Workbook

Sheet Introduction
F12: Land-Based Wind Market Report
F13: 2022 Edition
F17: Ryan Wiser1, Mark Bolinger1, Ben Hoen, Dev Millstein, Joe Rand, Galen Barbose,
F18: Naïm Darghouth, Will Gorman, Seongeun Jeong, Ben Paulos
F20: Lawrence Berkeley National Laboratory
F21: 1 Corresponding authors
F23: August 2022
F26: For additional details and related products, see: windreport.lbl.gov
F28: Contact the authors: Ryan Wiser (rhwiser@lbl.gov), Mark Bolinger (mabolinger@lbl.gov)
A29: Photo source: Ed Collier Photography
A32: Purpose, Scope, and Data
A33: Summarize publicly available data on key trends in U.S. wind power sector. Focus on land-based wind turbines over 100 kW in size. Separate DOE-funded data collection efforts on distributed and offshore wind. Focus on historical data, with some emphasis on the previous year. Data sources include EIA, FERC, SEC, ACP, etc.
A35: Outline of Data File
A36: • Installation data and trends
A37: • Industry data and trends
A38: • Technology data and trends
A39: • Performance data and trends
A40: • Cost data and trends
A41: • Power sales price and levelized cost data and trends
A42: • Cost and value comparisons
A43: • Wind capacity forecasts
A45: Acknowledgments
A46: This work was funded by the Wind Energy Technologies Office, Office of Energy Efficiency and Renewable Energy of the U.S. Department of Energy under Contract No. DE-AC02-05CH11231. The authors are solely responsible for any omissions or errors contained herein.
A48: Disclaimer
A49: This work was prepared as an account of work sponsored by an agency of the United States government. Neither the United States government nor any agency thereof, nor any of their employees, makes any warranty, express or implied, or assumes any legal liability or responsibility for the accuracy, completeness, or usefulness of any information, apparatus, product, or process disclosed, or represents that its use would not infringe privately owned rights. Reference herein to any specific commercial product, process, or service by trade name, trademark, manufacturer, or otherwise does not necessarily constitute or imply its endorsement, recommendation, or favoring by the United States government or any agency thereof. The views and opinions of authors expressed herein do not necessarily state or reflect those of the United States government or any agency thereof.

Sheet Table of Contents
B2: Table of Contents
B4: # | C4: Sheet Name
B5: 1 | C5: Introduction
B6: 2 | C6: Regional Definitions
B7: 3 | C7: Wind Capacity Growth
B8: 4 | C8: Capacity Additions by Tech.
B9: 5 | C9: Capacity Additions by Region
B10: 6 | C10: International Wind Ranking
B11: 7 | C11: International Wind Penetration
B12: 8 | C12: State Wind Deployment
B13: 9 | C13: Wind Penetration by Region
B14: 10 | C14: Online Wind Hybrids
B15: 11 | C15: All Hybrid Comparison
B16: 12 | C16: Generator+Storage Hybrids
B17: 13 | C17: All Capacity in Queues
B18: 14 | C18: Capacity in Queues, Time+Region
B19: 15 | C19: Wind Capacity in Queues, Region
B20: 16 | C20: Hybrid Capacity in Queues
B21: 17 | C21: OEM Market Share
B22: 18 | C22: Manufacturing Facilities
B23: 19 | C23: Manufacturing Capability
B24: 20 | C24: OEM Profitability
B25: 21 | C25: Wind Equip Imports over Time
B26: 22 | C26: Wind Equip Imports by Country
B27: 23 | C27: Equip Import by Component
B28: 24 | C28: Domestic Content
B29: 25 | C29: Capacity by Owner
B30: 26 | C30: Capacity by Offtake
B31: 27 | C31: Avg Capacity, Height & Diameter
B32: 28 | C32: Cap, Height & Diameter Trends
B33: 29 | C33: Trends in Specific Power
B34: 30 | C34: Wind Resource by Year
B35: 31 | C35: Location of Tall Tower & Low SP
B36: 32 | C36: Future Total Height Trends
B37: 33 | C37: Partial Repowering Over Time
B38: 34 | C38: Average Retrofit Tech Change
B39: 35 | C39: Capacity Factor in 2021 by COD
B40: 36 | C40: Capacity Factor by State
B41: 37 | C41: Capacity Factor Drivers
B42: 38 | C42: Influence of Specific Power
B43: 39 | C43: Curtailment and Penetration
B44: 40 | C44: Inter-Annual Variability
B45: 41 | C45: Performance with Project Age
B46: 42 | C46: Wind Turbine Prices
B47: 43 | C47: CapEx Over Time
B48: 44 | C48: CapEx Trend by Region
B49: 45 | C49: 2021 CapEx by Region
B50: 46 | C50: CapEx by Project Capacity
B51: 47 | C51: O&M Over Time
B52: 48 | C52: O&M by Project Age
B53: 49 | C53: Wind PPAs by Plant_Real
B54: 50 | C54: Wind PPAs by Plant_Nominal
B55: 51 | C55: Wind PPA Average
B56: 52 | C56: Level10 Wind PPA Prices
B57: 53 | C57: Wind LCOE Over Time
B58: 54 | C58: Wind LCOE by Region
B59: 55 | C59: REC Prices
B60: 56 | C60: Wind & PV PPAs vs Gas
B61: 57 | C61: Recent Wind PPAs v Gas Forecast
B62: 58 | C62: Market Value and PPAs over Time
B63: 59 | C63: 2021 Market Value by Location
B64: 60 | C64: Value Relative to Flat Block
B65: 61 | C65: Health and Climate Benefits
B66: 62 | C66: Transmission Build
B67: 63 | C67: Wind Capacity Forecasts

Sheet Regional Definitions
A1: Regional boundaries overlaid on a map of average annual wind speed at 100 meters
A24: Sources: AWS Truepower, National Renewable Energy Laboratory (NREL)

Sheet Wind Capacity Growth
A1: Annual and cumulative growth in U.S. wind power capacity
A22: Source: ACP
B24: Cumulative | C24: Annual | D24: Annual | E24: Annual | F24: Annual | G24: Annual | H24: Annual | I24: Annual | J24: Annual | K24: Annual | L24: Annual | M24: Annual
B25: US | C25: US | D25: Capacity | E25: Capacity | F25: Capacity | G25: Capacity | H25: Capacity | I25: Capacity | J25: Capacity | K25: Capacity | L25: Capacity | M25: Capacity
B26: Wind | C26: Wind | D26: in | E26: in | F26: in | G26: in | H26: in | I26: in | J26: in | K26: in the | L26: in the | M26: in the
B27: Capacity | C27: Capacity | D27: CAISO | E27: ERCOT | F27: SPP | G27: MISO | H27: PJM | I27: NYISO | J27: ISO-NE | K27: West (non-ISO) | L27: Southeast (non-ISO) | M27: Noncontiguous US
B28: (GW) | C28: (GW) | D28: (GW) | E28: (GW) | F28: (GW) | G28: (GW) | H28: (GW) | I28: (GW) | J28: (GW) | K28: (GW) | L28: (GW) | M28: (GW)
A29: 1998 | B29: 1.512 | C29: 0.14232 | D29: 0 | E29: 0 | F29: 0.00216 | G29: 0.11343 | H29: 0 | I29: 0 | J29: 0 | K29: 0.02673 | L29: 0 | M29: 0
A30: 1999 | B30: 2.431 | C30: 0.89247 | D30: 0.25442 | E30: 0.14432 | F30: 0.00357 | G30: 0.38931 | H30: 0 | I30: 0 | J30: 0 | K30: 0.093075 | L30: 0 | M30: 0.000575
A31: 2000 | B31: 2.502 | C31: 0.070955 | D31: 0.01 | E31: 0 | F31: 0 | G31: 0.01188 | H31: 0.0104 | I31: 0.01815 | J31: 0 | K31: 0.018345 | L31: 0.00198 | M31: 0.0001
A32: 2001 | B32: 4.195 | C32: 1.692 | D32: 0.0666 | E32: 0.83092 | F32: 0.196426 | G32: 0.14229 | H32: 0.024 | I32: 0.03 | J32: 0.00066 | K32: 0.39956 | L32: 0 | M32: 0
A33: 2002 | B33: 4.603 | C33: 0.409 | D33: 0.10242 | E33: 0 | F33: 0.002708 | G33: 0.11573 | H33: 0.066 | I33: 0.00025 | J33: 0 | K33: 0.1234 | L33: 0 | M33: 0.0001
A34: 2003 | B34: 6.268 | C34: 1.665 | D34: 0.2025 | E34: 0.1975 | F34: 0.18132 | G34: 0.32762 | H34: 0.1485 | I34: 0 | J34: 0 | K34: 0.607316 | L34: 0.0001 | M34: 0
A35: 2004 | B35: 6.665 | C35: 0.396 | D35: 0.09353 | E35: 0 | F35: 0.06 | G35: 0.204618 | H35: 0.0036 | I35: 0 | J35: 0 | K35: 0.0075 | L35: 0.027 | M35: 0.00015
A36: 2005 | B36: 9.046 | C36: 2.382 | D36: 0.05975 | E36: 0.67176 | F36: 0.6476 | G36: 0.35576 | H36: 0.062145 | I36: 0.13695 | J36: 0.0001 | K36: 0.44005 | L36: 0 | M36: 0.0003
A37: 2006 | B37: 11.512 | C37: 2.466 | D37: 0.212 | E37: 0.7337 | F37: 0.2005 | G37: 0.33038 | H37: 0.050225 | I37: 0.1848 | J37: 0.01347 | K37: 0.6876 | L37: 0 | M37: 0.040775
A38: 2007 | B38: 16.765 | C38: 5.253 | D38: 0.063 | E38: 1.5366 | F38: 0.4072 | G38: 0.86195 | H38: 0.7067 | I38: 0.0545 | J38: 0.0345 | K38: 1.56705 | L38: 0 | M38: 0.021
A39: 2008 | B39: 25.135 | C39: 8.37 | D39: 0.089 | E39: 2.5615 | F39: 0.8943 | G39: 3.06181 | H39: 0.5397 | I39: 0.282 | J39: 0.0298 | K39: 0.9026 | L39: 0 | M39: 0.001725
A40: 2009 | B40: 35.13 | C40: 9.997 | D40: 0.161225 | E40: 2.01916 | F40: 1.0691 | G40: 1.76445 | H40: 1.720258 | I40: 0.5675 | J40: 0.13765 | K40: 2.56015 | L40: 0.0001 | M40: 0.0056
A41: 2010 | B41: 40.346 | C41: 5.218 | D41: 0.4395 | E41: 0.65397 | F41: 0.8298 | G41: 0.88752 | H41: 0.9772 | I41: 0.0002 | J41: 0.0981 | K41: 1.3317 | L41: 0 | M41: 0.002
A42: 2011 | B42: 46.779 | C42: 6.604 | D42: 0.9233 | E42: 0.1995 | F42: 1.0231 | G42: 2.0381 | H42: 0.56725 | I42: 0.12855 | J42: 0.1983 | K42: 1.71145 | L42: 0 | M42: 0.03
A43: 2012 | B43: 60.067 | C43: 13.34 | D43: 1.65818 | E43: 1.50408 | F43: 3.03785 | G43: 2.246855 | H43: 1.612355 | I43: 0.2367 | J43: 0.316975 | K43: 2.235575 | L43: 0 | M43: 0.2871
A44: 2013 | B44: 61.137 | C44: 1.087 | D44: 0.26911 | E44: 0.1411 | F44: 0.32855 | G44: 0.22135 | H44: 0.0043 | I44: 0.08424 | J44: 0.00336 | K44: 0.0318 | L44: 0 | M44: 0.003525
A45: 2014 | B45: 65.874 | C45: 4.857 | D45: 0.1069 | E45: 1.54939 | F45: 1.2412 | G45: 1.132408 | H45: 0.24175 | I45: 0.02592 | J45: 0.00915 | K45: 0.54712 | L45: 0 | M45: 0
A46: 2015 | B46: 73.891 | C46: 8.599 | D46: 0.1939 | E46: 3.59548 | F46: 2.74066 | G46: 1.08 | H46: 0.3621 | I46: 0.0011 | J46: 0.1925 | K46: 0.4288 | L46: 0 | M46: 0
A47: 2016 | B47: 82.037 | C47: 8.233 | D47: 0 | E47: 2.61094 | F47: 3.117235 | G47: 1.278797 | H47: 0.4287 | I47: 0.0777 | J47: 0.3407 | K47: 0.34855 | L47: 0 | M47: 0
A48: 2017 | B48: 88.964 | C48: 7.017 | D48: 0.0497 | E48: 1.946315 | F48: 2.363985 | G48: 1.04367 | H48: 0.80625 | I48: 0.0015 | J48: 0.0543 | K48: 0.7475 | L48: 0 | M48: 0.0033
A49: 2018 | B49: 96.383 | C49: 7.588 | D49: 0.32985 | E49: 2.1244 | F49: 1.966975 | G49: 1.69015 | H49: 0.5095 | I49: 0.1584 | J49: 0.0225 | K49: 0.78571 | L49: 0 | M49: 0.0009
A50: 2019 | B50: 105.591 | C50: 9.132 | D50: 0.1328 | E50: 3.45537 | F50: 1.21297 | G50: 3.074305 | H50: 0.639855 | I50: 0 | J50: 0.0384 | K50: 0.57745 | L50: 0 | M50: 0.0009
A51: 2020 | B51: 122.464 | C51: 17.213 | D51: 0.111 | E51: 4.137175 | F51: 3.88247 | G51: 4.11474 | H51: 0.83606 | I51: 0 | J51: 0.0726 | K51: 3.552455 | L51: 0.4785 | M51: 0.0276
A52: 2021 | B52: 135.886 | C52: 13.413 | D52: 0.28845 | E52: 3.343085 | F52: 3.91905 | G52: 2.75454 | H52: 0.625705 | I52: 0.2052 | J52: 0.0152 | K52: 2.2619 | L52: 0 | M52: 0

Sheet Capacity Additions by Tech.
A1: Relative contribution of resource types in annual capacity additions
A21: Sources: Hitachi, ACP, EIA, Berkeley Lab
B23: Nameplate Capacity Additions (GW)
A24: Capacity Type | B24: 2000 | C24: 2001 | D24: 2002 | E24: 2003 | F24: 2004 | G24: 2005 | H24: 2006 | I24: 2007 | J24: 2008 | K24: 2009 | L24: 2010 | M24: 2011 | N24: 2012 | O24: 2013 | P24: 2014 | Q24: 2015 | R24: 2016 | S24: 2017 | T24: 2018 | U24: 2019 | V24: 2020 | W24: 2021
A25: Wind | B25: 0.070855 | C25: 1.690456 | D25: 0.410608 | E25: 1.664856 | F25: 0.396398 | G25: 2.374415 | H25: 2.45345 | I25: 5.2525 | J25: 8.362435 | K25: 10.005193 | L25: 5.21999 | M25: 6.81955 | N25: 13.01107 | O25: 1.08651 | P25: 4.853838 | Q25: 8.59454 | R25: 8.202622 | S25: 7.01652 | T25: 7.588385 | U25: 9.13205 | V25: 17.203 | W25: 13.422005
A26: Solar | B26: 0.003822710776 | C26: 0.0111271831 | D26: 0.0222809324 | E26: 0.04450486369 | F26: 0.05658720405 | G26: 0.07761603992 | H26: 0.1025865465 | I26: 0.2414410799 | J26: 0.3029607843 | K26: 0.4169377525 | L26: 0.8847805115 | M26: 1.879620642 | N26: 3.015640487 | O26: 5.657311267 | P26: 5.217122633 | Q26: 6.324682699 | R26: 11.40405594 | S26: 8.649837782 | T26: 8.198658011 | U26: 9.695037075 | V26: 14.81304593 | W26: 18.85128487
A27: Storage | B27: 0 | C27: 0 | D27: 0.328 | E27: 0.04 | F27: 0 | G27: 0 | H27: 0 | I27: 0 | J27: 0 | K27: 0 | L27: 0.004 | M27: 0.037 | N27: 0.127 | O27: 0.2974 | P27: 0.0313 | Q27: 0.2976 | R27: 0.24007 | S27: 0.156805 | T27: 0.354718 | U27: 0.337371 | V27: 0.719828 | W27: 3.601382
A28: Other renewable | B28: 0.17577 | C28: 0.62334 | D28: 0.421315 | E28: 0.33204 | F28: 0.208315 | G28: 0.1147 | H28: 0.41684 | I28: 0.552695 | J28: 0.469208 | K28: 0.69136 | L28: 0.421086 | M28: 0.804604 | N28: 1.165798 | O28: 1.457747 | P28: 0.681575 | Q28: 0.497537 | R28: 0.515588 | S28: 0.526833 | T28: 0.3791 | U28: 0.296273 | V28: 0.33481 | W28: 0.087218
A29: Gas | B29: 29.300833 | C29: 49.2064 | D29: 71.423945 | E29: 55.029326 | F29: 27.16383 | G29: 19.47869 | H29: 10.77298 | I29: 8.404816 | J29: 10.548152 | K29: 12.027625 | L29: 7.362112 | M29: 12.063777 | N29: 9.750338 | O29: 7.872298 | P29: 9.01301 | Q29: 6.5611 | R29: 9.4532 | S29: 12.39382 | T29: 21.831292 | U29: 8.888407 | V29: 7.60686 | W29: 6.216204
A30: Coal | B30: 0.1805 | C30: 0 | D30: 0.5242 | E30: 0.09 | F30: 0.742 | G30: 0.3727 | H30: 0.6047 | I30: 1.513504 | J30: 1.591 | K30: 3.5987 | L30: 6.014298 | M30: 1.734999 | N30: 4.76 | O30: 1.8125 | P30: 0.1062 | Q30: 0.0055 | R30: 0 | S30: 0 | T30: 0 | U30: 0.017 | V30: 0 | W30: 0
A31: Other non-renewable | B31: 1.334601 | C31: 0.821 | D31: 1.18155 | E31: 0.4059 | F31: 0.5244 | G31: 0.25767 | H31: 0.344598 | I31: 0.372985 | J31: 0.144401 | K31: 0.253185 | L31: 1.21899 | M31: 0.847275 | N31: 0.30758 | O31: 0.14269 | P31: 0.191448 | Q31: 0.1889 | R31: 1.4272 | S31: 0.11105 | T31: 0.0909 | U31: 0.0943 | V31: 0.0486 | W31: 0.04199
A32: Total | B32: 31.06638171 | C32: 52.35232318 | D32: 74.31189893 | E32: 57.60662686 | F32: 29.0915302 | G32: 22.67579104 | H32: 14.69515455 | I32: 16.33794108 | J32: 21.41815678 | K32: 26.99300075 | L32: 21.12525651 | M32: 24.18682564 | N32: 32.13742649 | O32: 18.32645627 | P32: 20.09449363 | Q32: 22.4698597 | R32: 31.24273594 | S32: 28.85486578 | T32: 38.44305301 | U32: 28.46043808 | V32: 40.72614393 | W32: 42.22008387
A33: Wind % of Total | B33: 0.002280761263 | C33: 0.03228999015 | D33: 0.005525467737 | E33: 0.02890042501 | F33: 0.01362589033 | G33: 0.1047114518 | H33: 0.1669563932 | I33: 0.3214909378 | J33: 0.3904367254 | K33: 0.3706587901 | L33: 0.247097118 | M33: 0.2819530806 | N33: 0.4048572466 | O33: 0.05928642091 | P33: 0.2415506501 | Q33: 0.3824919299 | R33: 0.2625449325 | S33: 0.2431659205 | T33: 0.1973928813 | U33: 0.3208682163 | V33: 0.4224067967 | W33: 0.3179056925

Sheet Capacity Additions by Region
A1: Capacity additions by region over last ten years: 2012-2021
A21: Sources: Hitachi, ACP, EIA, Berkeley Lab
E23: Cumulative Capacity Additions (GW): 2012-2021
A24: Capacity Type | B24: SPP | C24: ERCOT | D24: MISO | E24: West (non-ISO) | F24: PJM | G24: NYISO | H24: ISO-NE | I24: CAISO | J24: Southeast (non-ISO) | K24: U.S. Total
A25: Wind | B25: 23.811945 | C25: 24.407335 | D25: 18.636815 | E25: 11.51686 | F25: 6.066575 | G25: 0.790035 | H25: 1.064685 | I25: 3.13989 | J25: 0.4785 | K25: 90.11054
A26: Solar | B26: 0.6492682346 | C26: 9.853840991 | D26: 4.298574301 | E26: 14.56688152 | F26: 10.37539056 | G26: 3.433534027 | H26: 5.638690802 | I26: 25.53024258 | J26: 15.72570629 | K26: 91.8266767
A27: Storage | B27: 0.028548 | C27: 0.815016 | D27: 0.066219 | E27: 0.774138 | F27: 0.34522 | G27: 0.083605 | H27: 0.232986 | I27: 3.077354 | J27: 0.575413 | K27: 6.163474
A28: Other renewable | B28: 0.113699 | C28: 0.1751 | D28: 0.752242 | E28: 1.973991 | F28: 0.666221 | G28: 0.07531 | H28: 0.191245 | I28: 0.3906 | J28: 1.296716 | K28: 5.942479
A29: Gas | B29: 3.537512 | C29: 10.47706 | D29: 9.30039 | E29: 5.64822 | F29: 31.917167 | G29: 2.54063 | H29: 3.013881 | I29: 7.743995 | J29: 24.78404 | K29: 99.586529
A30: Coal | B30: 0.609 | C30: 1.008 | D30: 2.6767 | E30: 0 | F30: 1.478 | G30: 0.003 | H30: 0 | I30: 0 | J30: 0.9095 | K30: 6.7012
A31: Other non-renewable | B31: 0.104798 | C31: 0.0949 | D31: 0.1692 | E31: 0.0123 | F31: 0.24073 | G31: 0.0925 | H31: 0.276371 | I31: 0.10069 | J31: 1.428569 | K31: 2.644658
A32: Total | B32: 28.85477023 | C32: 46.83125199 | D32: 35.9001403 | E32: 34.49239052 | F32: 51.08930356 | G32: 7.018614027 | H32: 10.4178588 | I32: 39.98277158 | J32: 45.19844429 | K32: 302.9755567
A33: *U.S. Total also includes AK and HI, in addition to the regions listed
E36: Percent of Capacity Additions: 2012-2021
A37: Capacity Type | B37: =B24 -> SPP | C37: ERCOT | D37: MISO | E37: West (non-ISO) | F37: PJM | G37: NYISO | H37: ISO-NE | I37: CAISO | J37: Southeast (non-ISO) | K37: U.S. Total
A38: Wind | B38: =B25/B$32 -> 0.8252342613 | C38: 0.5211762223 | D38: 0.5191293082 | E38: 0.3338956745 | F38: 0.1187445234 | G38: 0.1125628218 | H38: 0.1021980639 | I38: 0.07853107415 | J38: 0.01058664756 | K38: 0.2974185145
A39: Solar | B39: =B26/B$32 -> 0.02250124431 | C39: 0.2104116498 | D39: 0.1197369778 | E39: 0.4223215991 | F39: 0.2030834213 | G39: 0.4892039958 | H39: 0.5412523734 | I39: 0.6385310866 | J39: 0.347925831 | K39: 0.3030827889
A40: Storage | B40: =B27/B$32 -> 0.0009893684742 | C40: 0.01740325029 | D40: 0.001844533181 | E40: 0.0224437329 | F40: 0.006757187434 | G40: 0.01191189595 | H40: 0.02236409654 | I40: 0.07696700049 | J40: 0.01273081428 | K40: 0.02034313945
A41: Other renewable | B41: =B28/B$32 -> 0.003940388334 | C41: 0.0037389562 | D41: 0.02095373427 | E41: 0.05722975329 | F41: 0.0130403226 | G41: 0.01073003868 | H41: 0.01835741909 | I41: 0.009769207699 | J41: 0.02868939452 | K41: 0.01961372417
A42: Gas | B42: =B29/B$32 -> 0.1225971294 | C42: 0.2237194086 | D42: 0.2590627759 | E42: 0.1637526398 | F42: 0.6247328653 | G42: 0.3619845728 | H42: 0.2892994671 | I42: 0.1936832964 | J42: 0.5483383419 | K42: 0.3286949287
A43: Coal | B43: =B30/B$32 -> 0.0211056957 | C43: 0.02152408823 | D43: 0.07455959719 | E43: 0 | F43: 0.02892973474 | G43: 0.0004274348167 | H43: 0 | I43: 0 | J43: 0.020122374 | K43: 0.02211795589
A44: Other non-renewable | B44: =B31/B$32 -> 0.003631912476 | C44: 0.002026424577 | D44: 0.004713073503 | E44: 0.0003566003925 | F44: 0.004711945226 | G44: 0.01317924018 | H44: 0.02652857994 | I44: 0.002518334673 | J44: 0.0316065967 | K44: 0.008728948397
A45: Total | B45: =B32/B$32 -> 1 | C45: 1 | D45: 1 | E45: 1 | F45: 1 | G45: 1 | H45: 1 | I45: 1 | J45: 1 | K45: 1
A46: *U.S. Total also includes AK and HI, in addition to the regions listed

Sheet International Wind Ranking
A1: International rankings of total wind power capacity
A3: Annual Capacity | D3: Cumulative Capacity
A4: (2021, GW) | D4: (end of 2021, GW)
A5: China | B5: 47.57 | D5: China | E5: 338.30969
A6: United States | B6: 13.413 | D6: United States | E6: 135.886
A7: Brazil | B7: 3.83023 | D7: Germany | E7: 64.54194
A8: Vietnam | B8: 3.49655 | D8: India | E8: 40.08363
A9: United Kingdom | B9: 2.64445 | D9: Spain | E9: 28.3198
A10: Sweden | B10: 2.104 | D10: United Kingdom | E10: 26.5862
A11: Germany | B11: 1.925 | D11: Brazil | E11: 21.579969
A12: Australia | B12: 1.7455 | D12: France | E12: 19.13254
A13: India | B13: 1.4586 | D13: Canada | E13: 14.2546
A14: Turkey | B14: 1.4 | D14: Sweden | E14: 12.10615
A15: Rest of World | B15: 14.682835 | D15: Rest of World | E15: 138.140233
A16: TOTAL | B16: =SUM(B5:B15) -> 94.270165 | D16: TOTAL | E16: =SUM(E5:E15) -> 838.940752
A17: Sources: GWEC, ACP

Sheet International Wind Penetration
A1: Wind energy penetration in subset of top global wind markets
A21: Source: ACP
B23: Wind Energy
B24: Penetration
B25: 2021
A26: Denmark | B26: 0.44
A27: Ireland | B27: 0.31
A28: Portugal | B28: 0.26
A29: Spain | B29: 0.24
A30: Germany | B30: 0.23
A31: U.K. | B31: 0.22
A32: Sweden | B32: 0.19
A33: Greece | B33: 0.18
A34: Netherlands | B34: 0.15
A35: EU | B35: 0.14
A36: Belgium | B36: 0.13
A37: Australia | B37: 0.118
A38: Brazil | B38: 0.113
A39: Romania | B39: 0.11
A40: Austria | B40: 0.11
A41: Croatia | B41: 0.11
A42: Romania | B42: 0.11
A43: Turkey | B43: 0.1
A44: Lithuania | B44: 0.1
A45: United States | B45: 0.091
A46: Poland | B46: 0.09
A47: Finland | B47: 0.09
A48: Estonia | B48: 0.09
A49: Norway | B49: 0.09
A50: France | B50: 0.08
A51: China | B51: 0.078
A52: Italy | B52: 0.07
A53: Mexico | B53: 0.066
A54: Canada | B54: 0.0577
A55: India | B55: 0.04

Sheet State Wind Deployment
A1: U.S. wind power installations by state | R1: Two alternate versions of the map:
N2: All 50 States (plus Puerto Rico)
A3: Installed Capacity (MW) | G3: 2021 Wind Generation as a Percentage of: | O3: Cumulative MW | P3: Annual MW
A4: Annual (2021) | D4: Cumulative (end of 2021) | G4: In-State Generation | J4: In-State Sales | N4: State | O4: at end of 2021 | P4: in 2021
A5: Texas | B5: 3343.085 | D5: Texas | E5: 35969 | G5: Iowa | H5: 0.551130799 | J5: South Dakota | K5: 0.7155357691 | N5: TX | O5: 35969 | P5: 3343.085
A6: Oklahoma | B6: 1402.52 | D6: Iowa | E6: 12219 | G6: South Dakota | H6: 0.5226215171 | J6: Iowa | K6: 0.6913510244 | N6: IA | O6: 12219 | P6: 600.3
A7: New Mexico | B7: 1368.2 | D7: Oklahoma | E7: 10994 | G7: Kansas | H7: 0.4510808337 | J7: North Dakota | K7: 0.6329053319 | N7: OK | O7: 10994 | P7: 1402.52
A8: Kansas | B8: 1228.38 | D8: Kansas | E8: 8245 | G8: Oklahoma | H8: 0.4141763735 | J8: Kansas | K8: 0.6303813038 | N8: KS | O8: 8245 | P8: 1228.38
A9: South Dakota | B9: 609.74 | D9: Illinois | E9: 6997 | G9: North Dakota | H9: 0.3404907975 | J9: Wyoming | K9: 0.5329254447 | N9: IL | O9: 6997 | P9: 579.7
A10: Iowa | B10: 600.3 | D10: California | E10: 6142 | G10: New Mexico | H10: 0.2979878544 | J10: Oklahoma | K10: 0.5150879358 | N10: CA | O10: 6142 | P10: 288.45
A11: Illinois | B11: 579.7 | D11: Colorado | E11: 5035 | G11: Colorado | H11: 0.260143322 | J11: New Mexico | K11: 0.4135948728 | N11: CO | O11: 5035 | P11: 304.8
A12: Michigan | B12: 549.6 | D12: Minnesota | E12: 4591 | G12: Nebraska | H12: 0.2513576416 | J12: Nebraska | K12: 0.3048646614 | N12: MN | O12: 4591 | P12: 266.4
A13: Indiana | B13: 500.4 | D13: North Dakota | E13: 4302 | G13: Maine | H13: 0.2299576157 | J13: Colorado | K13: 0.2641718374 | N13: ND | O13: 4302 | P13: 298.8
A14: Missouri | B14: 448 | D14: New Mexico | E14: 4001 | G14: Minnesota | H14: 0.2163793536 | J14: Texas | K14: 0.2345814771 | N14: NM | O14: 4001 | P14: 1368.2
A15: Nebraska | B15: 387.75 | D15: Oregon | E15: 3842 | G15: Texas | H15: 0.2059515551 | J15: Maine | K15: 0.2219707521 | N15: OR | O15: 3842 | P15: 0
A16: Wyoming | B16: 349.1 | D16: Indiana | E16: 3468.06 | G16: Wyoming | H16: 0.1934782111 | J16: Minnesota | K16: 0.1963494568 | N16: IN | O16: 3468.06 | P16: 500.4
A17: Colorado | B17: 304.8 | D17: Washington | E17: 3396 | G17: Oregon | H17: 0.1562734174 | J17: Montana | K17: 0.1892562538 | N17: WA | O17: 3396 | P17: 0
A18: North Dakota | B18: 298.8 | D18: Wyoming | E18: 3178 | G18: Idaho | H18: 0.1556714319 | J18: Oregon | K18: 0.1849039147 | N18: WY | O18: 3178 | P18: 349.1
A19: California | B19: 288.45 | D19: Michigan | E19: 3158.59 | G19: Vermont | H19: 0.1447537473 | J19: Illinois | K19: 0.1375609972 | N19: MI | O19: 3158.59 | P19: 549.6
A20: Minnesota | B20: 266.4 | D20: Nebraska | E20: 2942 | G20: Montana | H20: 0.1151366789 | J20: Washington | K20: 0.1084694716 | N20: NE | O20: 2942 | P20: 387.75
A21: Ohio | B21: 247 | D21: South Dakota | E21: 2915.194 | G21: Illinois | H21: 0.1022546354 | J21: Idaho | K21: 0.1054825519 | N21: SD | O21: 2915.194 | P21: 609.74
A22: Montana | B22: 239.8 | D22: Missouri | E22: 2435.31 | G22: Washington | H22: 0.08688341832 | J22: Missouri | K22: 0.08420207478 | N22: MO | O22: 2435.31 | P22: 448
A23: New York | B23: 205.2 | D23: New York | E23: 2191.435 | G23: Missouri | H23: 0.08444205871 | J23: Indiana | K23: 0.07875828392 | N23: NY | O23: 2191.435 | P23: 205.2
A24: West Virginia | B24: 168.705 | D24: Pennsylvania | E24: 1459.2 | G24: Indiana | H24: 0.08337817165 | J24: Michigan | K24: 0.07855820691 | N24: PA | O24: 1459.2 | P24: 0
A25: Rest of U.S. | B25: 27 | D25: Rest of U.S. | E25: 8405 | G25: Rest of U.S. | H25: 0.016 | J25: Rest of U.S. | K25: 0.015 | N25: MT | O25: 1120.069 | P25: 239.8
A26: Total | B26: 13413 | D26: Total | E26: 135886 | G26: Total | H26: 0.091 | J26: Total | K26: 0.1 | N26: OH | O26: 1111.2 | P26: 247
N27: ME | O27: 1011.2 | P27: 15.2
A28: Sources: ACP, EIA | N28: ID | O28: 972.5 | P28: 0
N29: WV | O29: 856 | P29: 168.705
N30: WI | O30: 737 | P30: 0
N31: AZ | O31: 617.9 | P31: 0
N32: UT | O32: 390.675 | P32: 0
N33: HI | O33: 233.46 | P33: 0
N34: NH | O34: 214.15 | P34: 0
N35: NC | O35: 208.1 | P35: 0
N36: MD | O36: 191.05 | P36: 0
N37: NV | O37: 151.8 | P37: 0
N38: VT | O38: 149.45 | P38: 0
N39: PR | O39: 125.425 | P39: 0
N40: MA | O40: 120.28 | P40: 0
N41: AK | O41: 63.515 | P41: 0
N42: RI | O42: 74.885 | P42: 0
N43: TN | O43: 28.98 | P43: 0
N44: VA | O44: 12 | P44: 12
N45: NJ | O45: 9 | P45: 0
N46: CT | O46: 5.1 | P46: 0
N47: DE | O47: 2 | P47: 0
N48: AR | O48: 0 | P48: 0
N49: AL | O49: 0 | P49: 0
N50: FL | O50: 0 | P50: 0
N51: GA | O51: 0 | P51: 0
N52: KY | O52: 0 | P52: 0
N53: LA | O53: 0 | P53: 0
N54: MS | O54: 0 | P54: 0
N55: SC | O55: 0 | P55: 0
A62: Sources: ACP, Berkeley Lab

Sheet Wind Penetration by Region
A1: Wind penetration as a proportion of load by independent system operator regions
A20: Sources: MISO, CAISO, SPP, NYISO, PJM, ISO-NE, ERCOT
A24: Wind
A25: Penetration (%) | B25: MISO | C25: CAISO | D25: SPP | E25: NYISO | F25: PJM | G25: ISO-NE | H25: ERCOT
A26: 2008 | B26: 0.01484161083 | D26: 0.03663543259 | H26: 0.04877505376
A27: 2009 | B27: 0.02714458276 | D27: 0.05103059383 | H27: 0.06102125101
A28: 2010 | B28: 0.03418919388 | D28: 0.04539417849 | H28: 0.07744855047
A29: 2011 | B29: 0.04560506076 | C29: 0.0316183521 | D29: 0.05466732338 | G29: 0.005993590146 | H29: 0.08446383978
A30: 2012 | B30: 0.06214660257 | C30: 0.03968075084 | D30: 0.07762624885 | E30: 0.0186 | F30: 0.0169 | G30: 0.009298593959 | H30: 0.09174225231
A31: 2013 | B31: 0.06853903369 | C31: 0.05395639001 | D31: 0.1101942343 | E31: 0.0216 | F31: 0.0187 | G31: 0.01388413213 | H31: 0.09860319647
A32: 2014 | B32: 0.05675085807 | C32: 0.0548542859 | D32: 0.1196495057 | E32: 0.0248 | F32: 0.0194 | G32: 0.01532389146 | H32: 0.1062614139
A33: 2015 | B33: 0.06222216655 | C33: 0.05172870548 | D33: 0.1347678589 | E33: 0.0242 | F33: 0.0209 | G33: 0.01721801187 | H33: 0.117289641
A34: 2016 | B34: 0.06903076503 | C34: 0.05834646084 | D34: 0.1753955116 | E34: 0.0243047662 | F34: 0.02106730107 | G34: 0.02035411625 | H34: 0.1510455221
A35: 2017 | B35: 0.07693471278 | C35: 0.0582060201 | D35: 0.2298008427 | E35: 0.02650443172 | F35: 0.02626697867 | G35: 0.02707486738 | H35: 0.1736987272
A36: 2018 | B36: 0.07337324221 | C36: 0.06975310746 | D36: 0.2383081156 | E36: 0.02451363582 | F36: 0.02650724963 | G36: 0.02717707706 | H36: 0.1851303609
A37: 2019 | B37: 0.08503175569 | C37: 0.06905544255 | D37: 0.2751555829 | E37: 0.02836542259 | F37: 0.03031481243 | G37: 0.02934793694 | H37: 0.1993458918
A38: 2020 | B38: 0.1097422847 | C38: 0.06624761734 | D38: 0.3126348056 | E38: 0.02944363837 | F38: 0.03400586816 | G38: 0.03039199654 | H38: 0.2273367928
A39: 2021 | B39: 0.120401388 | C39: 0.0843291127 | D39: 0.3484425205 | E39: 0.02665574304 | F39: 0.03527078946 | G39: 0.02951653366 | H39: 0.2417061935

Sheet Online Wind Hybrids
A1: Online wind hybrid / co-located projects: wind+storage, wind+other generator(s), wind+other generator(s)+storage
A3: Wind hybrid / co-located projects over time | E3: Wind hybrid / co-located projects by region at end of 2021 | I3: Wind hybrid / co-located projects by state at end of 2021
A23: Sources: EIA 860 2021 Early Release, Berkeley Lab
E26: Sources: EIA 860 2021 Early Release, Berkeley Lab | I26: Sources: EIA 860 2021 Early Release, Berkeley Lab
A30: List of hybrid / co-located projects that include wind power | K30: Storage details | O30: Wind hybrid / co-located projects over time | U30: Wind hybrid / co-located projects by state | X30: Wind hybrid / co-located projects by region
A31: State | B31: Project name | C31: Wind online date | D31: Storage online date | E31: Solar online date | F31: Fossil online date | G31: Wind capacity (MW) | H31: Storage capacity (MW) | I31: Solar capacity (MW) | J31: Fossil capacity (MW) | K31: Technology | L31: Duration (hrs) | M31: Storage:generator ratio | P31: Wind | Q31: Storage | R31: Solar | S31: Fossil | U31: State | V31: Hybrid Wind Capacity | X31: Region | Y31: Hybrid Wind Capacity
A32: AK | B32: Kotzebue Hybrid | C32: 1997 | D32: 2015 | E32: n/a | F32: 1987 | G32: 3.3 | H32: 1.2 | I32: n/a | J32: 11.8 | K32: LIB | L32: 0.8333333333 | M32: 0.07947019868 | O32: 2001 | P32: 3.3 | Q32: 0 | R32: 0 | S32: 11.8 | U32: TX | V32: 858.8 | X32: ERCOT | Y32: 855.8
A33: NY | B33: Harbec Energy | C33: 2001 | D33: n/a | E33: n/a | F33: 2015 | G33: 1.2 | H33: n/a | I33: n/a | J33: 0.5 | K33: n/a | L33: n/a | M33: n/a | O33: 2002 | P33: 8.9 | Q33: 0 | R33: 0 | S33: 25.8 | U33: IL | V33: 430.6 | X33: PJM | Y33: 771.3
A34: MN | B34: Worthington | C34: 2002 | D34: n/a | E34: n/a | F34: 2002 | G34: 5.6 | H34: n/a | I34: n/a | J34: 14 | K34: n/a | L34: n/a | M34: n/a | O34: 2003 | P34: 8.9 | Q34: 0 | R34: 0 | S34: 25.8 | U34: WA | V34: 272.6 | X34: West (non-ISO) | Y34: 426.1
A35: PA | B35: Meyersdale Battery | C35: 2003 | D35: 2015 | E35: n/a | F35: n/a | G35: 30 | H35: 18 | I35: n/a | J35: n/a | K35: LIB | L35: 0.6722222222 | M35: 0.6 | O35: 2004 | P35: 14.9 | Q35: 0 | R35: 0 | S35: 27.8 | U35: WV | V35: 198.1 | X35: CAISO | Y35: 151.7
A36: CO | B36: Lamar Plant | C36: 2004 | D36: n/a | E36: n/a | F36: 1946 | G36: 6 | H36: n/a | I36: n/a | J36: 2 | K36: n/a | L36: n/a | M36: n/a | O36: 2005 | P36: 14.9 | Q36: 0 | R36: 0 | S36: 27.8 | U36: CA | V36: 151.7 | X36: Hawaii | Y36: 114
A37: MN | B37: Carleton College | C37: 2004 | D37: n/a | E37: n/a | F37: 2009 | G37: 3.2 | H37: n/a | I37: n/a | J37: 4.6 | K37: n/a | L37: n/a | M37: n/a | O37: 2006 | P37: 22.4 | Q37: 0 | R37: 0.5 | S37: 27.8 | U37: HI | V37: 114 | X37: SPP | Y37: 65.9
A38: WA | B38: Wild Horse | C38: 2006 | D38: n/a | E38: 2007 | F38: n/a | G38: 272.6 | H38: n/a | I38: 0.5 | J38: n/a | K38: n/a | L38: n/a | M38: n/a | O38: 2007 | P38: 296.2 | Q38: 0 | R38: 1 | S38: 35.8 | U38: OH | V38: 105 | X38: MISO | Y38: 24.3
A39: NJ | B39: Jersey-Atlantic Wind Farm | C39: 2006 | D39: 2018 | E39: 2005 | F39: n/a | G39: 7.5 | H39: 1 | I39: 0.5 | J39: n/a | K39: LIB | L39: 1 | M39: 0.125 | O39: 2008 | P39: 296.2 | Q39: 0 | R39: 1.1 | S39: 105.3 | U39: NM | V39: 101.3 | X39: Alaska | Y39: 6.1
A40: MN | B40: Mountain Lake | C40: 2007 | D40: n/a | E40: n/a | F40: 1954 | G40: 1.2 | H40: n/a | I40: n/a | J40: 8 | K40: n/a | L40: n/a | M40: n/a | O40: 2009 | P40: 305.2 | Q40: 0 | R40: 1.1 | S40: 155.9 | U40: NE | V40: 40.9 | X40: NYISO | Y40: 1.2
A41: IL | B41: Grand Ridge Battery Projects | C41: 2008 | D41: 2013 | E41: 2012 | F41: n/a | G41: 210 | H41: 36 | I41: 20 | J41: n/a | K41: LIB | L41: 0.375 | M41: 0.1565217391 | O41: 2010 | P41: 305.2 | Q41: 0 | R41: 1.1 | S41: 155.9 | U41: AZ | V41: 40 | X41: ISO-NE | Y41: 1.2
A42: TX | B42: NRG Elbow Creek Energy Storage Project | C42: 2008 | D42: 2017 | E42: n/a | F42: n/a | G42: 121.9 | H42: 2 | I42: n/a | J42: n/a | K42: LIB | L42: 0.35 | M42: 0.01640689089 | O42: 2011 | P42: 417 | Q42: 16 | R42: 1.6 | S42: 160.5 | U42: PA | V42: 33.2 | X42: Southwest (non-ISO) | Y42: 0
A43: IL | B43: FPL Energy Illinois Wind LLC Hybrid | C43: 2009 | D43: 2014 | E43: n/a | F43: n/a | G43: 217.5 | H43: 20 | I43: n/a | J43: n/a | K43: LIB | L43: 0.415 | M43: 0.09195402299 | O43: 2012 | P43: 982.2 | Q43: 75 | R43: 131.6 | S43: 167.5 | U43: SD | V43: 25
A44: SD | B44: Rolling Thunder Wind Farm Hybrid | C44: 2009 | D44: 2018 | E44: n/a | F44: n/a | G44: 25 | H44: 0.8 | I44: n/a | J44: n/a | K44: LIB | L44: 1 | M44: 0.032 | O44: 2013 | P44: 984 | Q44: 111 | R44: 131.6 | S44: 184.1 | U44: MN | V44: 16.6
A45: TX | B45: Notrees Windpower Hybrid | C45: 2009 | D45: 2012 | E45: n/a | F45: n/a | G45: 152.5 | H45: 36 | I45: n/a | J45: n/a | K45: LIB | L45: 0.3777777778 | M45: 0.2360655738 | O45: 2014 | P45: 1251.9 | Q45: 131 | R45: 186.6 | S45: 184.1 | U45: NJ | V45: 7.5
A46: TX | B46: Pyron Wind Farm LLC Hybrid | C46: 2009 | D46: 2018 | E46: n/a | F46: n/a | G46: 249 | H46: 9.9 | I46: n/a | J46: n/a | K46: LIB | L46: 1 | M46: 0.03975903614 | O46: 2015 | P46: 1413.6 | Q46: 181.7 | R46: 238.8 | S46: 184.6 | U46: AK | V46: 6.1
A47: TX | B47: Inadale Wind Farm LLC Hybrid | C47: 2009 | D47: 2018 | E47: n/a | F47: n/a | G47: 197 | H47: 9.9 | I47: n/a | J47: n/a | K47: LIB | L47: 1 | M47: 0.05025380711 | O47: 2016 | P47: 1413.6 | Q47: 181.7 | R47: 239.6 | S47: 184.6 | U47: CO | V47: 6
A48: MA | B48: Deer Island Treatment Plant | C48: 2009 | D48: n/a | E48: 2008 | F48: 1995 | G48: 1.2 | H48: n/a | I48: 0.1 | J48: 69.5 | K48: n/a | L48: n/a | M48: n/a | O48: 2017 | P48: 1711.9 | Q48: 214 | R48: 239.7 | S48: 355.6 | U48: UT | V48: 3.2
A49: IL | B49: Geneseo | C49: 2009 | D49: n/a | E49: 2015 | F49: 1957 | G49: 3 | H49: n/a | I49: 1.2 | J49: 29.4 | K49: n/a | L49: n/a | M49: n/a | O49: 2018 | P49: 2235.8 | Q49: 236.6 | R49: 242.5 | S49: 355.6 | U49: WI | V49: 3
A50: IA | B50: Osage (IA) | C50: 2009 | D50: n/a | E50: 2016 | F50: 1963 | G50: 1.6 | H50: n/a | I50: 0.8 | J50: 16.6 | K50: n/a | L50: n/a | M50: n/a | O50: 2019 | P50: 2304.8 | Q50: 236.6 | R50: 291.5 | S50: 355.6 | U50: IA | V50: 1.6
A51: WV | B51: Beech Ridge Energy Storage | C51: 2010 | D51: 2015 | E51: n/a | F51: n/a | G51: 100.5 | H51: 31.5 | I51: n/a | J51: n/a | K51: LIB | L51: 0.3968253968 | M51: 0.3134328358 | O51: 2020 | P51: 2309.4 | Q51: 236.6 | R51: 292.5 | S51: 355.6 | U51: NY | V51: 1.2
A52: UT | B52: Tooele Army Depot (CSG) | C52: 2010 | D52: n/a | E52: 2021 | F52: n/a | G52: 3.2 | H52: n/a | I52: 1.5 | J52: n/a | K52: n/a | L52: n/a | M52: n/a | O52: 2021 | P52: 2417.6 | Q52: 237.4 | R52: 298 | S52: 355.6 | U52: MA | V52: 1.2
A53: PA | B53: PPL Frey Farm Landfill Wind | C53: 2011 | D53: n/a | E53: n/a | F53: 2006 | G53: 3.2 | H53: n/a | I53: n/a | J53: 1.6 | K53: n/a | L53: n/a | M53: n/a
A54: NM | B54: Macho Springs Power I | C54: 2011 | D54: n/a | E54: 2014 | F54: n/a | G54: 50.4 | H54: n/a | I54: 55 | J54: n/a | K54: n/a | L54: n/a | M54: n/a
A55: WV | B55: Laurel Mountain Hybrid | C55: 2011 | D55: 2011 | E55: n/a | F55: n/a | G55: 97.6 | H55: 16 | I55: n/a | J55: n/a | K55: LIB | L55: 1 | M55: 0.1639344262
A56: AZ | B56: Kingman 1 | C56: 2011 | D56: n/a | E56: 2011 | F56: n/a | G56: 10 | H56: n/a | I56: 0.5 | J56: n/a | K56: n/a | L56: n/a | M56: n/a
A57: AK | B57: Sand Point | C57: 2011 | D57: n/a | E57: n/a | F57: 2000 | G57: 1 | H57: n/a | I57: n/a | J57: 3 | K57: n/a | L57: n/a | M57: n/a
A58: TX | B58: Blue Summit Storage, LLC | C58: 2012 | D58: 2017 | E58: n/a | F58: n/a | G58: 135.4 | H58: 30 | I58: n/a | J58: n/a | K58: LIB | L58: 0.42 | M58: 0.2215657312
A59: HI | B59: Kaheawa Wind Power II LLC | C59: 2012 | D59: 2012 | E59: n/a | F59: n/a | G59: 21 | H59: 10 | I59: n/a | J59: n/a | K59: LIB | L59: 2 | M59: 0.4761904762
A60: HI | B60: Auwahi Wind Energy Hybrid | C60: 2012 | D60: 2012 | E60: n/a | F60: n/a | G60: 24 | H60: 11 | I60: n/a | J60: n/a | K60: LIB | L60: 0.4 | M60: 0.4583333333
A61: WI | B61: Waxdale | C61: 2012 | D61: n/a | E61: n/a | F61: 2003 | G61: 3 | H61: n/a | I61: n/a | J61: 7 | K61: n/a | L61: n/a | M61: n/a
A62: TX | B62: Texas Dispatchable Wind 1 | C62: 2012 | D62: 2012 | E62: n/a | F62: n/a | G62: 3 | H62: 2 | I62: n/a | J62: n/a | K62: CAES | L62: n/a | M62: 0.6666666667
A63: CA | B63: Pacific Wind LLC | C63: 2012 | D63: n/a | E63: 2012 | F63: n/a | G63: 151.7 | H63: n/a | I63: 110 | J63: n/a | K63: n/a | L63: n/a | M63: n/a
A64: HI | B64: Kawailoa Wind | C64: 2012 | D64: n/a | E64: 2019 | F64: n/a | G64: 69 | H64: n/a | I64: 49 | J64: n/a | K64: n/a | L64: n/a | M64: n/a
A65: AK | B65: Snake River | C65: 2013 | D65: n/a | E65: n/a | F65: 1991 | G65: 1.8 | H65: n/a | I65: n/a | J65: 16.6 | K65: n/a | L65: n/a | M65: n/a
A66: AZ | B66: Red Horse 2 | C66: 2015 | D66: n/a | E66: 2015 | F66: n/a | G66: 30 | H66: n/a | I66: 51 | J66: n/a | K66: n/a | L66: n/a | M66: n/a
A67: NE | B67: Lon Wright | C67: 2017 | D67: n/a | E67: 2018 | F67: 1957 | G67: 40.9 | H67: n/a | I67: 2.3 | J67: 170 | K67: n/a | L67: n/a | M67: n/a
A68: IL | B68: TAC-Distributed Energy Resource Hybrid | C68: 2017 | D68: 2017 | E68: 2017 | F68: 2017 | G68: 0.1 | H68: 0.3 | I68: 0.1 | J68: 1 | K68: LIB | L68: 1.666666667 | M68: 0.25
A69: NM | B69: Casa Mesa Wind Energy Center Hybrid | C69: 2018 | D69: 2018 | E69: n/a | F69: n/a | G69: 50.9 | H69: 1 | I69: n/a | J69: n/a | K69: LIB | L69: 1 | M69: 0.01964636542
A70: MN | B70: Lake Region Community Hybrid, LLC | C70: 2018 | D70: n/a | E70: 2018 | F70: n/a | G70: 2 | H70: n/a | I70: 0.5 | J70: n/a | K70: n/a | L70: n/a | M70: n/a
A71: OH | B71: Northwest Ohio Wind | C71: 2018 | D71: 2021 | E71: 2021 | F71: n/a | G71: 105 | H71: 0.8 | I71: 4 | J71: n/a | K71: LIB | L71: 4.75 | M71: 0.007339449541
A72: MN | B72: Red Lake Falls Community Hybrid | C72: 2020 | D72: n/a | E72: 2020 | F72: n/a | G72: 4.6 | H72: n/a | I72: 1 | J72: n/a | K72: n/a | L72: n/a | M72: n/a
A73: Source: EIA 860 2021 Early Release, Berkeley Lab

Sheet All Hybrid Comparison
A1: Online hybrid / co-located projects (all configuarions)
A3: Online hybrid / co-located projects at end of 2021: subset of configurations
B5: # projects | F5: Total capacity (MW) | K5: Storage ratio | L5: Duration (hrs)
D6: Wind | E6: PV | F6: Fossil | G6: Storage
A7: PV+Storage | B7: 140 | E7: 4176.9 | G7: 2195.55 | K7: 0.5256410256 | L7: 3.194967093
A8: Wind+Storage | B8: 14 | D8: 1425.3 | G8: 198.1 | K8: 0.1389882832 | L8: 0.6148409894
A9: Wind+PV+Storage | B9: 3 | D9: 322.5 | E9: 24.5 | G9: 37.8 | K9: 0.1089337176 | L9: 0.4841269841
A10: Fossil+Storage | B10: 24 | F10: 6067.3 | G10: 727.3 | K10: 0.11986815 | L10: 1.191530318
A11: Wind+PV | B11: 9 | D11: 593.5 | E11: 269 | G11: 0 | K11: n/a | L11: n/a
A12: Notes: Not included in the figure are 108 other hybrid / co-located projects with other configurations; details on those projects are provided below.
A13: Storage ratio defined as storage capacity divided by total generator capacity.
A14: Sources: EIA 860 2021 Early Release, Berkeley Lab
A17: Hybrid / co-located projects newly completed in 2021: subset of configurations
B18: # projects | F18: Total capacity (MW) | K18: Storage ratio | L18: Duration (hrs)
D19: Fossil | E19: PV | F19: Wind | G19: Storage
A20: PV+Storage | B20: 67 | D20: 0 | E20: 3199 | G20: 1950.6 | K20: 0.6097530478 | L20: 3.297836563
A21: Fossil+Storage | B21: 3 | D21: 2019.3 | E21: 0.2 | G21: 431.2 | K21: 0.2135181976 | L21: 1.17393321
A22: Note: Not included in the figure are 4 other hybrid / co-located projects with other configurations built in 2021; details on those projects are provided below.
A23: Sources: EIA 860 2021 Early Release, Berkeley Lab
A25: Online wind hybrid / co-located projects compared to other online hybrid / co-located plants
A26: Total end of 2021 | B26: # projects | C26: Gen 1 (MW) | D26: Gen 2 (MW) | E26: Gen 3 (MW) | F26: Total Gen (MW) | G26: Storage capacity (MW) | H26: Storage energy (MWh) | I26: Storage: generator ratio | J26: Duration (hrs)
A27: Wind+Storage | B27: 14 | C27: 1425.3 | D27: 0 | E27: 0 | F27: 1425.3 | G27: 198.1 | H27: 121.8 | I27: 0.1389882832 | J27: 0.6148409894
A28: Wind+PV | B28: 9 | C28: 593.5 | D28: 269 | E28: 0 | F28: 862.5 | G28: 0 | H28: 0 | I28: 0 | J28: n/a
A29: Wind+PV+Storage | B29: 3 | C29: 322.5 | D29: 24.5 | E29: 0 | F29: 347 | G29: 37.8 | H29: 18.3 | I29: 0.1089337176 | J29: 0.4841269841
A30: PV+Storage | B30: 140 | C30: 4176.9 | D30: 0 | E30: 0 | F30: 4176.9 | G30: 2195.55 | H30: 7014.71 | I30: 0.5256410256 | J30: 3.194967093
A31: Fossil+PV | B31: 34 | C31: 10126.5 | D31: 222.9 | E31: 0 | F31: 10349.4 | G31: 0 | H31: 0 | I31: 0 | J31: n/a
A32: Fossil+Hydro | B32: 26 | C32: 489.7 | D32: 77.8 | E32: 0 | F32: 567.5 | G32: 0 | H32: 0 | I32: 0 | J32: n/a
A33: Fossil+Storage | B33: 24 | C33: 6067.3 | D33: 0.2 | E33: 0 | F33: 6067.5 | G33: 727.3 | H33: 866.6 | I33: 0.11986815 | J33: 1.191530318
A34: Fossil+Wind | B34: 9 | C34: 57.3 | D34: 26.2 | E34: 0 | F34: 83.5 | G34: 0 | H34: 0 | I34: 0 | J34: n/a
A35: Fossil+PV+Storage | B35: 6 | C35: 1026.6 | D35: 13.5 | E35: 0 | F35: 1040.1 | G35: 7.8 | H35: 12.2 | I35: 0.007499278915 | J35: 1.564102564
A36: Fossil+Wind+PV | B36: 4 | C36: 285.5 | D36: 46.7 | E36: 4.4 | F36: 336.6 | G36: 0 | H36: 0 | I36: 0 | J36: n/a
A37: Fossil+Wind+Storage | B37: 1 | C37: 11.8 | D37: 3.3 | E37: 0 | F37: 15.1 | G37: 1.2 | H37: 1 | I37: 0.07947019868 | J37: 0.8333333333
A38: Fossil+Wind+PV+Storage | B38: 1 | C38: 1 | D38: 0.1 | E38: 0.1 | F38: 1.2 | G38: 0.3 | H38: 0.5 | I38: 0.25 | J38: 1.666666667
A39: Biomass+Hydro | B39: 9 | C39: 326.7 | D39: 53.8 | E39: 0 | F39: 380.5 | G39: 0 | H39: 0 | I39: 0 | J39: n/a
A40: Biomass+PV | B40: 4 | C40: 102.2 | D40: 8.7 | E40: 0 | F40: 110.9 | G40: 0 | H40: 0 | I40: 0 | J40: n/a
A41: Biomass+Storage | B41: 1 | C41: 1.2 | D41: 0 | E41: 0 | F41: 1.2 | G41: 1 | H41: 2 | I41: 0.8333333333 | J41: 2
A42: Hydro+Storage | B42: 5 | C42: 209.15 | D42: 0 | E42: 0 | F42: 209.15 | G42: 32 | H42: 31 | I42: 0.1530002391 | J42: 0.96875
A43: Nuclear+Fossil | B43: 4 | C43: 6480.2 | D43: 1354.8 | E43: 0 | F43: 7835 | G43: 0 | H43: 0 | I43: 0 | J43: n/a
A44: Nuclear+Hydro | B44: 1 | C44: 1959.4 | D44: 1 | E44: 0 | F44: 1960.4 | G44: 0 | H44: 0 | I44: 0 | J44: n/a
A45: Geothermal+PV | B45: 2 | C45: 85 | D45: 17.9 | E45: 0 | F45: 102.9 | G45: 0 | H45: 0 | I45: 0 | J45: n/a
A46: Geothermal+PV+CSP | B46: 1 | C46: 47.2 | D46: 22 | E46: 2 | F46: 71.2 | G46: 0 | H46: 0 | I46: 0 | J46: n/a
A48: Newly installed in 2021 | B48: # projects | C48: Gen 1 (MW) | D48: Gen 2 (MW) | E48: Gen 3 (MW) | F48: Total Gen (MW) | G48: Storage capacity (MW) | H48: Storage energy (MWh) | I48: Storage: generator ratio | J48: Duration (hrs)
A49: Wind+Storage | B49: 0 | C49: 0 | D49: 0 | E49: 0 | F49: 0 | G49: 0 | H49: 0 | I49: n/a | J49: n/a
A50: Wind+PV | B50: 1 | C50: 3.2 | D50: 1.5 | E50: 0 | F50: 4.7 | G50: 0 | H50: 0 | I50: 0 | J50: n/a
A51: Wind+PV+Storage | B51: 1 | C51: 105 | D51: 4 | E51: 0 | F51: 109 | G51: 0.8 | H51: 3.8 | I51: 0.007339449541 | J51: 4.75
A52: PV+Storage | B52: 67 | C52: 3199 | D52: 0 | E52: 0 | F52: 3199 | G52: 1950.6 | H52: 6432.76 | I52: 0.6097530478 | J52: 3.297836563
A53: Fossil+PV | B53: 1 | C53: 723.2 | D53: 4.4 | E53: 0 | F53: 727.6 | G53: 0 | H53: 0 | I53: 0 | J53: n/a
A54: Fossil+Hydro | B54: 0 | C54: 0 | D54: 0 | E54: 0 | F54: 0 | G54: 0 | H54: 0 | I54: n/a | J54: n/a
A55: Fossil+Storage | B55: 3 | C55: 2019.3 | D55: 0.2 | E55: 0 | F55: 2019.5 | G55: 431.2 | H55: 506.2 | I55: 0.2135181976 | J55: 1.17393321
A56: Fossil+Wind | B56: 0 | C56: 0 | D56: 0 | E56: 0 | F56: 0 | G56: 0 | H56: 0 | I56: n/a | J56: n/a
A57: Fossil+PV+Storage | B57: 1 | C57: 6.9 | D57: 0.7 | E57: 0 | F57: 7.6 | G57: 0.5 | H57: 2.1 | I57: 0.06578947368 | J57: 4.2
A58: Fossil+Wind+PV | B58: 0 | C58: 0 | D58: 0 | E58: 0 | F58: 0 | G58: 0 | H58: 0 | I58: n/a | J58: n/a
A59: Fossil+Wind+Storage | B59: 0 | C59: 0 | D59: 0 | E59: 0 | F59: 0 | G59: 0 | H59: 0 | I59: n/a | J59: n/a
A60: Fossil+Wind+PV+Storage | B60: 0 | C60: 0 | D60: 0 | E60: 0 | F60: 0 | G60: 0 | H60: 0 | I60: n/a | J60: n/a
A61: Biomass+Hydro | B61: 0 | C61: 0 | D61: 0 | E61: 0 | F61: 0 | G61: 0 | H61: 0 | I61: n/a | J61: n/a
A62: Biomass+PV | B62: 0 | C62: 0 | D62: 0 | E62: 0 | F62: 0 | G62: 0 | H62: 0 | I62: n/a | J62: n/a
A63: Biomass+Storage | B63: 0 | C63: 0 | D63: 0 | E63: 0 | F63: 0 | G63: 0 | H63: 0 | I63: n/a | J63: n/a
A64: Hydro+Storage | B64: 0 | C64: 0 | D64: 0 | E64: 0 | F64: 0 | G64: 0 | H64: 0 | I64: n/a | J64: n/a
A65: Nuclear+Fossil | B65: 0 | C65: 0 | D65: 0 | E65: 0 | F65: 0 | G65: 0 | H65: 0 | I65: n/a | J65: n/a
A66: Nuclear+Hydro | B66: 0 | C66: 0 | D66: 0 | E66: 0 | F66: 0 | G66: 0 | H66: 0 | I66: n/a | J66: n/a
A67: Geothermal+PV | B67: 0 | C67: 0 | D67: 0 | E67: 0 | F67: 0 | G67: 0 | H67: 0 | I67: n/a | J67: n/a
A68: Geothermal+PV+CSP | B68: 0 | C68: 0 | D68: 0 | E68: 0 | F68: 0 | G68: 0 | H68: 0 | I68: n/a | J68: n/a
A69: Note: New is defined as when the project became a hybrid / co-located project (e.g., if a battery was added to an older plant in 2021 then it would be defined as new in 2021)
A70: Sources: EIA 860 2021 Early Release, Berkeley Lab

Sheet Generator+Storage Hybrids
A1: Online generator+storage hybrid / co-located projects: wind+storage, PV+storage, fossil+storage
A19: Sources: EIA 860 2021 Early Release, Berkeley Lab | I19: Sources: EIA 860 2021 Early Release, Berkeley Lab
A21: Generator+storage hybrid / co-located projects by region at end of 2021 | I21: Generator+storage hybrid / co-located projects by state at end of 2021
A22: Region | B22: PV+Storage | C22: Wind+Storage | D22: Fossil+Storage | I22: State | J22: PV+Storage | K22: Wind+Storage | L22: Fossil+Storage
A23: ERCOT | B23: 794.3 | C23: 855.8 | D23: 0 | I23: TX | J23: 794.3 | K23: 858.8 | L23: 0
A24: PJM | B24: 10.1 | C24: 445.6 | D24: 240 | I24: IL | J24: 0 | K24: 217.5 | L24: 0
A25: West (non-ISO) | B25: 800.6 | C25: 53.9 | D25: 1056.6 | I25: WV | J25: 0 | K25: 198.1 | L25: 0
A26: Hawaii | B26: 70.1 | C26: 45 | D26: 15.1 | I26: NM | J26: 3.5 | K26: 50.9 | L26: 0
A27: SPP | B27: 11.4 | C27: 25 | D27: 0 | I27: HI | J27: 70.1 | K27: 45 | L27: 15.1
A28: CAISO | B28: 1633 | C28: 0 | D28: 1734.1 | I28: PA | J28: 0 | K28: 30 | L28: 8
A29: Southeast (non-ISO) | B29: 603 | C29: 0 | D29: 677.2 | I29: SD | J29: 0 | K29: 25 | L29: 0
A30: ISO-NE | B30: 204.4 | C30: 0 | D30: 980.4 | I30: CA | J30: 1970.1 | K30: 0 | L30: 2092.4
A31: NYISO | B31: 34.1 | C31: 0 | D31: 4 | I31: FL | J31: 377.5 | K31: 0 | L31: 0
A32: MISO | B32: 15.9 | C32: 0 | D32: 1359.9 | I32: NV | J32: 281 | K32: 0 | L32: 0
I33: GA | J33: 214.5 | K33: 0 | L33: 1.2
I34: MA | J34: 174 | K34: 0 | L34: 134.4
I35: AZ | J35: 152 | K35: 0 | L35: 698.3
I36: NY | J36: 36.1 | K36: 0 | L36: 4
I37: CO | J37: 23.3 | K37: 0 | L37: 0
I38: VT | J38: 21.4 | K38: 0 | L38: 0
I39: AL | J39: 10 | K39: 0 | L39: 676
I40: MN | J40: 10 | K40: 0 | L40: 0
I41: AR | J41: 10 | K41: 0 | L41: 0
I42: CT | J42: 7 | K42: 0 | L42: 0
I43: NC | J43: 6 | K43: 0 | L43: 3
I44: IN | J44: 4 | K44: 0 | L44: 1173.7
I45: WA | J45: 3.7 | K45: 0 | L45: 0
I46: OH | J46: 3 | K46: 0 | L46: 0
I47: NJ | J47: 2.1 | K47: 0 | L47: 0
I48: NE | J48: 1.4 | K48: 0 | L48: 0
I49: LA | J49: 1.1 | K49: 0 | L49: 186.2
I50: MI | J50: 0.8 | K50: 0 | L50: 0
I51: ME | J51: 0 | K51: 0 | L51: 846
I52: MD | J52: 0 | K52: 0 | L52: 229

Sheet All Capacity in Queues
A1: Generation capacity in selected interconnection queues from 2014 to 2021, by resource type
A22: Source: Berkeley Lab review of interconnection queues
A23: Notes: Hybrid storage capacity is estimated using storage:generator ratios from projects that provide separate capacity data;
A24: storage capacity in hybrids was not estimated for years prior to 2020; offshore wind was not separately identified prior to 2020.
A26: type | B26: year | C26: standalone (GW) | D26: hybrid (GW)
A27: Solar | B27: 2014 | C27: 44.56412 | D27: 0
A28: Solar | B28: 2015 | C28: 56.818612 | D28: 0
A29: Solar | B29: 2016 | C29: 120.3100172 | D29: 0
A30: Solar | B30: 2017 | C30: 188.5093483 | D30: 0
A31: Solar | B31: 2018 | C31: 253.7430825 | D31: 29.22296
A32: Solar | B32: 2019 | C32: 265.568521 | D32: 101.5832144
A33: Solar | B33: 2020 | C33: 303.1761274 | D33: 159.2686
A34: Solar | B34: 2021 | C34: 390.0792 | D34: 285.5584
A35: Wind | B35: 2014 | C35: 95.8759 | D35: 0
A36: Wind | B36: 2015 | C36: 109.589845 | D36: 0
A37: Wind | B37: 2016 | C37: 141.67545 | D37: 0
A38: Wind | B38: 2017 | C38: 180.174485 | D38: 0
A39: Wind | B39: 2018 | C39: 229.1448 | D39: 3.018390007
A40: Wind | B40: 2019 | C40: 214.588824 | D40: 10.9134
A41: Wind | B41: 2020 | C41: 134.9308 | D41: 13.229
A42: Wind | B42: 2021 | C42: 153.345 | D42: 16.851
A43: Offshore Wind | B43: 2014 | C43: 0 | D43: 0
A44: Offshore Wind | B44: 2015 | C44: 0 | D44: 0
A45: Offshore Wind | B45: 2016 | C45: 0 | D45: 0
A46: Offshore Wind | B46: 2017 | C46: 0 | D46: 0
A47: Offshore Wind | B47: 2018 | C47: 0 | D47: 0
A48: Offshore Wind | B48: 2019 | C48: 0 | D48: 0
A49: Offshore Wind | B49: 2020 | C49: 60.979 | D49: 0
A50: Offshore Wind | B50: 2021 | C50: 74.657 | D50: 2.546
A51: Storage | B51: 2014 | C51: 0 | D51: 0
A52: Storage | B52: 2015 | C52: 7.30314 | D52: 0
A53: Storage | B53: 2016 | C53: 11.738165 | D53: 0
A54: Storage | B54: 2017 | C54: 18.882355 | D54: 0
A55: Storage | B55: 2018 | C55: 29.0334243 | D55: 0
A56: Storage | B56: 2019 | C56: 55.403319 | D56: 0
A57: Storage | B57: 2020 | C57: 92.73635 | D57: 111.73039
A58: Storage | B58: 2021 | C58: 219.647 | D58: 207.5617
A59: Gas | B59: 2014 | C59: 145.14108 | D59: 0
A60: Gas | B60: 2015 | C60: 163.349278 | D60: 0
A61: Gas | B61: 2016 | C61: 133.375701 | D61: 0
A62: Gas | B62: 2017 | C62: 110.870468 | D62: 0
A63: Gas | B63: 2018 | C63: 85.66826701 | D63: 0.34425
A64: Gas | B64: 2019 | C64: 76.726334 | D64: 0.4803
A65: Gas | B65: 2020 | C65: 69.8287 | D65: 4.193
A66: Gas | B66: 2021 | C66: 72.5755 | D66: 2.4724
A67: Nuclear | B67: 2014 | C67: 9.963 | D67: 0
A68: Nuclear | B68: 2015 | C68: 9.554 | D68: 0
A69: Nuclear | B69: 2016 | C69: 2.3602 | D69: 0
A70: Nuclear | B70: 2017 | C70: 0.8248 | D70: 0
A71: Nuclear | B71: 2018 | C71: 1.2299 | D71: 0
A72: Nuclear | B72: 2019 | C72: 3.3335 | D72: 0
A73: Nuclear | B73: 2020 | C73: 3.3823 | D73: 0
A74: Nuclear | B74: 2021 | C74: 6.3243 | D74: 0
A75: Coal | B75: 2014 | C75: 3.6198 | D75: 0
A76: Coal | B76: 2015 | C76: 3.661 | D76: 0
A77: Coal | B77: 2016 | C77: 0.875 | D77: 0
A78: Coal | B78: 2017 | C78: 0.193 | D78: 0
A79: Coal | B79: 2018 | C79: 0.819 | D79: 0
A80: Coal | B80: 2019 | C80: 0.05 | D80: 0
A81: Coal | B81: 2020 | C81: 0.1307 | D81: 0
A82: Coal | B82: 2021 | C82: 0.943 | D82: 0
A83: Other | B83: 2014 | C83: 25.40639 | D83: 0
A84: Other | B84: 2015 | C84: 13.161853 | D84: 0
A85: Other | B85: 2016 | C85: 10.47223 | D85: 0
A86: Other | B86: 2017 | C86: 6.233460001 | D86: 0
A87: Other | B87: 2018 | C87: 6.589435001 | D87: 0
A88: Other | B88: 2019 | C88: 4.64768 | D88: 0
A89: Other | B89: 2020 | C89: 6.21626 | D89: 1.696429
A90: Other | B90: 2021 | C90: 9.46361 | D90: 6.195

Sheet Capacity in Queues, Time+Region
A1: Capacity in selected interconnection queues from 2014 to 2021, by resource type and region
A23: Source: Berkeley Lab review of interconnection queues
A24: Notes: (1) Wind capacity includes onshore and offshore for all years, but offshore is only broken out starting in 2020.
A25: (2) Hybrid storage capacity is estimated using storage:generator ratios from projects that provide separate capacity data; storage capacity in hybrids was not estimated for years prior to 2020.
A26: (3) Hybrid generator capacity is included in all generator categories.
A28: Region | B28: Year | C28: Wind | D28: Offshore Wind | E28: Solar | F28: Gas | G28: Standalone Storage | H28: Hybrid Storage
A29: West non-ISO | B29: 2007 | C29: 34.319 | D29: 0 | E29: 0.001 | F29: 5.962 | G29: 0 | H29: 0
A30: West non-ISO | B30: 2008 | C30: 59.54 | D30: 0 | E30: 3.356 | F30: 9.545 | G30: 0 | H30: 0
A31: West non-ISO | B31: 2009 | C31: 89.439 | D31: 0 | E31: 14.892 | F31: 11.415 | G31: 0 | H31: 0
A32: West non-ISO | B32: 2010 | C32: 77.375 | D32: 0 | E32: 15.143 | F32: 10.598 | G32: 0 | H32: 0
A33: West non-ISO | B33: 2011 | C33: 52.302 | D33: 0 | E33: 16.29 | F33: 9.819 | G33: 0 | H33: 0
A34: West non-ISO | B34: 2012 | C34: 39.748 | D34: 0 | E34: 13.541 | F34: 12.219 | G34: 0 | H34: 0
A35: West non-ISO | B35: 2013 | C35: 29.7989 | D35: 0 | E35: 17.2906 | F35: 12.5373 | G35: 0 | H35: 0
A36: West non-ISO | B36: 2014 | C36: 22.7704 | D36: 0 | E36: 14.3196 | F36: 13.6941 | G36: 0 | H36: 0
A37: West non-ISO | B37: 2015 | C37: 23.001645 | D37: 0 | E37: 14.728292 | F37: 7.670046 | G37: 0.207 | H37: 0
A38: West non-ISO | B38: 2016 | C38: 22.53011 | D38: 0 | E38: 24.728377 | F38: 8.253209 | G38: 1.48205 | H38: 0
A39: West non-ISO | B39: 2017 | C39: 37.57787 | D39: 0 | E39: 45.52383425 | F39: 9.40905 | G39: 3.95906 | H39: 0
A40: West non-ISO | B40: 2018 | C40: 54.82653 | D40: 0 | E40: 73.882704 | F40: 8.0961 | G40: 9.5398 | H40: 0
A41: West non-ISO | B41: 2019 | C41: 49.96762 | D41: 0 | E41: 71.89601 | F41: 4.4247 | G41: 14.8186 | H41: 0
A42: West non-ISO | B42: 2020 | C42: 29.608 | D42: 0 | E42: 81.5168 | F42: 4.1 | G42: 15.3666 | H42: 45.45984
A43: West non-ISO | B43: 2021 | C43: 49.0977 | D43: 0 | E43: 138.9088 | F43: 6.3254 | G43: 34.4978 | H43: 87.87274
A44: Southeast non-ISO | B44: 2007 | C44: 0 | D44: 0 | E44: 0 | F44: 0 | G44: 0 | H44: 0
A45: Southeast non-ISO | B45: 2008 | C45: 0 | D45: 0 | E45: 0 | F45: 0 | G45: 0 | H45: 0
A46: Southeast non-ISO | B46: 2009 | C46: 0.021 | D46: 0 | E46: 0.643 | F46: 13.497 | G46: 0 | H46: 0
A47: Southeast non-ISO | B47: 2010 | C47: 0.021 | D47: 0 | E47: 0.65 | F47: 25.527 | G47: 0 | H47: 0
A48: Southeast non-ISO | B48: 2011 | C48: 1.088 | D48: 0 | E48: 0.674 | F48: 29.661 | G48: 0 | H48: 0
A49: Southeast non-ISO | B49: 2012 | C49: 1.042 | D49: 0 | E49: 1.351 | F49: 25.709 | G49: 0 | H49: 0
A50: Southeast non-ISO | B50: 2013 | C50: 0.8685 | D50: 0 | E50: 2.9275 | F50: 21.549 | G50: 0 | H50: 0
A51: Southeast non-ISO | B51: 2014 | C51: 0.45 | D51: 0 | E51: 4.6305 | F51: 18.313 | G51: 0 | H51: 0
A52: Southeast non-ISO | B52: 2015 | C52: 0.42006 | D52: 0 | E52: 6.01426 | F52: 22.842 | G52: 0 | H52: 0
A53: Southeast non-ISO | B53: 2016 | C53: 1.32856 | D53: 0 | E53: 21.185383 | F53: 23.40122 | G53: 0 | H53: 0
A54: Southeast non-ISO | B54: 2017 | C54: 0.4362 | D54: 0 | E54: 33.52845 | F54: 26.12652 | G54: 0.014 | H54: 0
A55: Southeast non-ISO | B55: 2018 | C55: 0.7 | D55: 0 | E55: 39.360055 | F55: 17.4236 | G55: 0 | H55: 0
A56: Southeast non-ISO | B56: 2019 | C56: 1.486 | D56: 0 | E56: 47.007804 | F56: 34.6092 | G56: 1.44875 | H56: 0
A57: Southeast non-ISO | B57: 2020 | C57: 2.071 | D57: 0 | E57: 57.0872474 | F57: 39.19 | G57: 2.902 | H57: 6.489
A58: Southeast non-ISO | B58: 2021 | C58: 2.171 | D58: 0 | E58: 57.69192 | F58: 24.15 | G58: 5.089 | H58: 10.51688
A59: CAISO | B59: 2007 | C59: 18.546 | D59: 0 | E59: 22.369 | F59: 29.361 | G59: 0 | H59: 0
A60: CAISO | B60: 2008 | C60: 13.2 | D60: 0 | E60: 31.2 | F60: 19.7 | G60: 0 | H60: 0
A61: CAISO | B61: 2009 | C61: 10.289 | D61: 0 | E61: 16.239 | F61: 14.32 | G61: 0 | H61: 0
A62: CAISO | B62: 2010 | C62: 11.37 | D62: 0 | E62: 29.875 | F62: 14.308 | G62: 0 | H62: 0
A63: CAISO | B63: 2011 | C63: 16.13 | D63: 0 | E63: 38.353 | F63: 10.539 | G63: 0 | H63: 0
A64: CAISO | B64: 2012 | C64: 6.703 | D64: 0 | E64: 26.54 | F64: 13.101 | G64: 0 | H64: 0
A65: CAISO | B65: 2013 | C65: 5.4231 | D65: 0 | E65: 14.3813 | F65: 13.2037 | G65: 0 | H65: 0
A66: CAISO | B66: 2014 | C66: 4.2717 | D66: 0 | E66: 14.02292 | F66: 9.56183 | G66: 0 | H66: 0
A67: CAISO | B67: 2015 | C67: 3.47054 | D67: 0 | E67: 19.12488 | F67: 6.965312 | G67: 5.205 | H67: 0
A68: CAISO | B68: 2016 | C68: 4.2458 | D68: 0 | E68: 31.5486772 | F68: 5.677622 | G68: 8.616335 | H68: 0
A69: CAISO | B69: 2017 | C69: 4.44939 | D69: 0 | E69: 31.674939 | F69: 3.39601 | G69: 12.84151 | H69: 0
A70: CAISO | B70: 2018 | C70: 6.762045 | D70: 0 | E70: 37.3326815 | F70: 1.1738 | G70: 11.7775213 | H70: 0
A71: CAISO | B71: 2019 | C71: 10.147909 | D71: 0 | E71: 43.8644494 | F71: 0.158 | G71: 16.542518 | H71: 0
A72: CAISO | B72: 2020 | C72: 11.0453 | D72: 2.212 | E72: 47.309 | F72: 0.78 | G72: 22.712 | H72: 37.339
A73: CAISO | B73: 2021 | C73: 11.328 | D73: 6.382 | E73: 74.192 | F73: 0.8484 | G73: 68.576 | H73: 67.371
A74: ERCOT | B74: 2007 | C74: 41.117 | D74: 0 | E74: 0 | F74: 30.075 | G74: 0 | H74: 0
A75: ERCOT | B75: 2008 | C75: 51.6 | D75: 0 | E75: 0.95 | F75: 29.9 | G75: 0 | H75: 0
A76: ERCOT | B76: 2009 | C76: 45.666 | D76: 0 | E76: 1.003 | F76: 17.697 | G76: 0 | H76: 0
A77: ERCOT | B77: 2010 | C77: 37.867 | D77: 0 | E77: 1.279 | F77: 13 | G77: 0 | H77: 0
A78: ERCOT | B78: 2011 | C78: 31.766 | D78: 0 | E78: 1.293 | F78: 12.083 | G78: 0 | H78: 0
A79: ERCOT | B79: 2012 | C79: 21.43 | D79: 0 | E79: 1.315 | F79: 19.806 | G79: 0 | H79: 0
A80: ERCOT | B80: 2013 | C80: 24.266 | D80: 0 | E80: 2.849 | F80: 22.854 | G80: 0 | H80: 0
A81: ERCOT | B81: 2014 | C81: 23.932 | D81: 0 | E81: 6.425 | F81: 30.862 | G81: 0 | H81: 0
A82: ERCOT | B82: 2015 | C82: 24.095 | D82: 0 | E82: 8.509 | F82: 27.686 | G82: 0.614 | H82: 0
A83: ERCOT | B83: 2016 | C83: 26.732 | D83: 0 | E83: 13.724 | F83: 18.576 | G83: 0.624 | H83: 0
A84: ERCOT | B84: 2017 | C84: 30.198 | D84: 0 | E84: 24.123 | F84: 13.969 | G84: 0.03 | H84: 0
A85: ERCOT | B85: 2018 | C85: 25.3154 | D85: 0 | E85: 36.39543 | F85: 6.5518 | G85: 1.00121 | H85: 0
A86: ERCOT | B86: 2019 | C86: 26.90256 | D86: 0 | E86: 53.53173 | F86: 5.2826 | G86: 2.02919 | H86: 0
A87: ERCOT | B87: 2020 | C87: 17.68502 | D87: 0 | E87: 64.9132 | F87: 4.935 | G87: 12.779 | H87: 7.638
A88: ERCOT | B88: 2021 | C88: 15.41412 | D88: 0 | E88: 80.568 | F88: 8.688 | G88: 28.927 | H88: 14.19874
A89: SPP | B89: 2007 | C89: 20.616 | D89: 0 | E89: 0 | F89: 3.005 | G89: 0 | H89: 0
A90: SPP | B90: 2008 | C90: 47.9 | D90: 0 | E90: 0.07 | F90: 4.2 | G90: 0 | H90: 0
A91: SPP | B91: 2009 | C91: 39.521 | D91: 0 | E91: 0.088 | F91: 4.653 | G91: 0 | H91: 0
A92: SPP | B92: 2010 | C92: 15.979 | D92: 0 | E92: 0.08 | F92: 2.18 | G92: 0 | H92: 0
A93: SPP | B93: 2011 | C93: 20.027 | D93: 0 | E93: 0.04 | F93: 0.778 | G93: 0 | H93: 0
A94: SPP | B94: 2012 | C94: 19.246 | D94: 0 | E94: 0.056 | F94: 1.924 | G94: 0 | H94: 0
A95: SPP | B95: 2013 | C95: 15.8216 | D95: 0 | E95: 0.025 | F95: 2.3248 | G95: 0 | H95: 0
A96: SPP | B96: 2014 | C96: 14.327 | D96: 0 | E96: 1.1394 | F96: 2.851 | G96: 0 | H96: 0
A97: SPP | B97: 2015 | C97: 19.9626 | D97: 0 | E97: 1.89848 | F97: 2.205 | G97: 0.06 | H97: 0
A98: SPP | B98: 2016 | C98: 32.92242 | D98: 0 | E98: 3.7738 | F98: 0.507 | G98: 0.04019 | H98: 0
A99: SPP | B99: 2017 | C99: 52.58053 | D99: 0 | E99: 17.0473 | F99: 1.583 | G99: 0.84144 | H99: 0
A100: SPP | B100: 2018 | C100: 57.30919 | D100: 0 | E100: 25.306267 | F100: 0.255 | G100: 2.7984 | H100: 0
A101: SPP | B101: 2019 | C101: 56.99028 | D101: 0 | E101: 28.668867 | F101: 0.29129 | G101: 4.2116 | H101: 0
A102: SPP | B102: 2020 | C102: 45.4743 | D102: 0 | E102: 36.2603 | F102: 5.258 | G102: 5.734 | H102: 3.579
A103: SPP | B103: 2021 | C103: 43.2352 | D103: 0 | E103: 42.764 | F103: 5.162 | G103: 10.267 | H103: 3.259
A104: MISO | B104: 2007 | C104: 65.778 | D104: 0 | E104: 0 | F104: 8.474 | G104: 0 | H104: 0
A105: MISO | B105: 2008 | C105: 63.65 | D105: 0 | E105: 0 | F105: 5.7 | G105: 0 | H105: 0
A106: MISO | B106: 2009 | C106: 61.47 | D106: 0 | E106: 0 | F106: 2.153 | G106: 0 | H106: 0
A107: MISO | B107: 2010 | C107: 62.362 | D107: 0 | E107: 0 | F107: 3.849 | G107: 0 | H107: 0
A108: MISO | B108: 2011 | C108: 41.466 | D108: 0 | E108: 0.19 | F108: 2.858 | G108: 0 | H108: 0
A109: MISO | B109: 2012 | C109: 13.022 | D109: 0 | E109: 0 | F109: 7.729 | G109: 0 | H109: 0
A110: MISO | B110: 2013 | C110: 15.3499 | D110: 0 | E110: 0.11 | F110: 6.283 | G110: 0 | H110: 0
A111: MISO | B111: 2014 | C111: 11.5414 | D111: 0 | E111: 1.3784 | F111: 18.0654 | G111: 0 | H111: 0
A112: MISO | B112: 2015 | C112: 19.2734 | D112: 0 | E112: 2.48945 | F112: 18.6708 | G112: 0.19714 | H112: 0
A113: MISO | B113: 2016 | C113: 36.08189 | D113: 0 | E113: 9.18081 | F113: 15.23045 | G113: 0.134 | H113: 0
A114: MISO | B114: 2017 | C114: 29.25065 | D114: 0 | E114: 14.96256 | F114: 10.88266 | G114: 0.14 | H114: 0
A115: MISO | B115: 2018 | C115: 33.66171 | D115: 0 | E115: 34.38263 | F115: 8.3971 | G115: 0.21 | H115: 0
A116: MISO | B116: 2019 | C116: 20.74928 | D116: 0 | E116: 50.42645 | F116: 7.769 | G116: 1.0275 | H116: 0
A117: MISO | B117: 2020 | C117: 19.1796 | D117: 0 | E117: 63.5528 | F117: 5.035 | G117: 2.536 | H117: 2.674
A118: MISO | B118: 2021 | C118: 22.3166 | D118: 0 | E118: 112.3248 | F118: 9.996 | G118: 9.071 | H118: 10.30848
A119: PJM | B119: 2007 | C119: 35.135 | D119: 0 | E119: 0 | F119: 17.708 | G119: 0 | H119: 0
A120: PJM | B120: 2008 | C120: 42.6 | D120: 0 | E120: 0.055 | F120: 32.1 | G120: 0 | H120: 0
A121: PJM | B121: 2009 | C121: 41.515 | D121: 0 | E121: 0.652 | F121: 22.124 | G121: 0 | H121: 0
A122: PJM | B122: 2010 | C122: 36.937 | D122: 0 | E122: 3.904 | F122: 21.171 | G122: 0 | H122: 0
A123: PJM | B123: 2011 | C123: 44.299 | D123: 0 | E123: 3.622 | F123: 58.108 | G123: 0 | H123: 0
A124: PJM | B124: 2012 | C124: 18.113 | D124: 0 | E124: 1.258 | F124: 37.742 | G124: 0 | H124: 0
A125: PJM | B125: 2013 | C125: 15.77318 | D125: 0 | E125: 1.8036 | F125: 41.6511 | G125: 0 | H125: 0
A126: PJM | B126: 2014 | C126: 12.5379 | D126: 0 | E126: 2.432 | F126: 41.7836 | G126: 0 | H126: 0
A127: PJM | B127: 2015 | C127: 11.6257 | D127: 0 | E127: 3.47025 | F127: 60.59812 | G127: 0.866 | H127: 0
A128: PJM | B128: 2016 | C128: 7.64195 | D128: 0 | E128: 14.711 | F128: 48.53361 | G128: 0.46335 | H128: 0
A129: PJM | B129: 2017 | C129: 10.961695 | D129: 0 | E129: 18.708785 | F129: 35.5361 | G129: 0.3331 | H129: 0
A130: PJM | B130: 2018 | C130: 22.695175 | D130: 0 | E130: 30.355095 | F130: 32.85168 | G130: 1.081393 | H130: 0
A131: PJM | B131: 2019 | C131: 27.117275 | D131: 0 | E131: 56.807195 | F131: 17.1699 | G131: 6.154792 | H131: 0
A132: PJM | B132: 2020 | C132: 13.9873 | D132: 15.6983 | E132: 89.12312 | F132: 10.0121 | G132: 14.89825 | H132: 8.046
A133: PJM | B133: 2021 | C133: 22.3683 | D133: 16.9443 | E133: 147.3858 | F133: 16.5191 | G133: 41.72115 | H133: 12.82213
A134: NYISO | B134: 2007 | C134: 7.491 | D134: 0 | E134: 0 | F134: 8.884 | G134: 0 | H134: 0
A135: NYISO | B135: 2008 | C135: 7.96 | D135: 0 | E135: 0 | F135: 7.54 | G135: 0 | H135: 0
A136: NYISO | B136: 2009 | C136: 6.984 | D136: 0 | E136: 0 | F136: 6.991 | G136: 0 | H136: 0
A137: NYISO | B137: 2010 | C137: 7.039 | D137: 0 | E137: 0 | F137: 4.983 | G137: 0 | H137: 0
A138: NYISO | B138: 2011 | C138: 5.699 | D138: 0 | E138: 0 | F138: 6.058 | G138: 0 | H138: 0
A139: NYISO | B139: 2012 | C139: 2.302 | D139: 0 | E139: 0 | F139: 5.408 | G139: 0 | H139: 0
A140: NYISO | B140: 2013 | C140: 2.217 | D140: 0 | E140: 0 | F140: 6.278 | G140: 0 | H140: 0
A141: NYISO | B141: 2014 | C141: 2.0077 | D141: 0 | E141: 0.2103 | F141: 3.5732 | G141: 0 | H141: 0
A142: NYISO | B142: 2015 | C142: 3.4589 | D142: 0 | E142: 0.153 | F142: 7.5 | G142: 0.06 | H142: 0
A143: NYISO | B143: 2016 | C143: 4.3433 | D143: 0 | E143: 0.743 | F143: 6.8055 | G143: 0.2349 | H143: 0
A144: NYISO | B144: 2017 | C144: 6.3122 | D144: 0 | E144: 1.9738 | F144: 5.5111 | G144: 0.2349 | H144: 0
A145: NYISO | B145: 2018 | C145: 14.91292 | D145: 0 | E145: 4.1665 | F145: 6.49839 | G145: 1.4904 | H145: 0
A146: NYISO | B146: 2019 | C146: 18.1184 | D146: 0 | E146: 10.07655 | F146: 6.0953 | G146: 6.883369 | H146: 0
A147: NYISO | B147: 2020 | C147: 5.408 | D147: 28.162 | E147: 12.269 | F147: 3.754 | G147: 11.8885 | H147: 0.268
A148: NYISO | B148: 2021 | C148: 4.032 | D148: 36.652 | E148: 17.362 | F148: 2.424 | G148: 13.7715 | H148: 0.36612
A149: ISO-NE | B149: 2007 | C149: 2.076 | D149: 0 | E149: 0 | F149: 10.938 | G149: 0 | H149: 0
A150: ISO-NE | B150: 2008 | C150: 5.8 | D150: 0 | E150: 0 | F150: 12 | G150: 0 | H150: 0
A151: ISO-NE | B151: 2009 | C151: 3.648 | D151: 0 | E151: 0 | F151: 6.393 | G151: 0 | H151: 0
A152: ISO-NE | B152: 2010 | C152: 3.92 | D152: 0 | E152: 0 | F152: 6.315 | G152: 0 | H152: 0
A153: ISO-NE | B153: 2011 | C153: 3.077 | D153: 0 | E153: 0.016 | F153: 5.805 | G153: 0 | H153: 0
A154: ISO-NE | B154: 2012 | C154: 2.137 | D154: 0 | E154: 0.016 | F154: 3.67 | G154: 0 | H154: 0
A155: ISO-NE | B155: 2013 | C155: 2.5057 | D155: 0 | E155: 0.0158 | F155: 4.7416 | G155: 0 | H155: 0
A156: ISO-NE | B156: 2014 | C156: 4.0378 | D156: 0 | E156: 0.006 | F156: 6.43695 | G156: 0 | H156: 0
A157: ISO-NE | B157: 2015 | C157: 4.282 | D157: 0 | E157: 0.431 | F157: 9.212 | G157: 0.094 | H157: 0
A158: ISO-NE | B158: 2016 | C158: 5.84942 | D158: 0 | E158: 0.71497 | F158: 6.39109 | G158: 0.14334 | H158: 0
A159: ISO-NE | B159: 2017 | C159: 8.40794997 | D159: 0 | E159: 0.9666800003 | F159: 4.457027979 | G159: 0.4883449974 | H159: 0
A160: ISO-NE | B160: 2018 | C160: 15.98021997 | D160: 0 | E160: 1.784679998 | F160: 4.420797007 | G160: 1.135200005 | H160: 0
A161: ISO-NE | B161: 2019 | C161: 14.2514 | D161: 0 | E161: 1.70118 | F161: 0.9263440027 | G161: 2.287 | H161: 0
A162: ISO-NE | B162: 2020 | C162: 0.2258 | D162: 14.907 | E162: 3.9767 | F162: 0.9576 | G162: 3.645 | H162: 0.237
A163: ISO-NE | B163: 2021 | C163: 0.2328 | D163: 17.225 | E163: 4.4404 | F163: 0.935 | G163: 6.31 | H163: 0.5276
A164: All Regions | B164: 2007 | C164: 225.078 | D164: 0 | E164: 22.37 | F164: 114.407 | G164: 0 | H164: 0
A165: All Regions | B165: 2008 | C165: 292.25 | D165: 0 | E165: 35.631 | F165: 120.685 | G165: 0 | H165: 0
A166: All Regions | B166: 2009 | C166: 298.553 | D166: 0 | E166: 33.517 | F166: 99.243 | G166: 0 | H166: 0
A167: All Regions | B167: 2010 | C167: 252.87 | D167: 0 | E167: 50.931 | F167: 101.931 | G167: 0 | H167: 0
A168: All Regions | B168: 2011 | C168: 215.854 | D168: 0 | E168: 60.478 | F168: 135.709 | G168: 0 | H168: 0
A169: All Regions | B169: 2012 | C169: 123.743 | D169: 0 | E169: 44.077 | F169: 127.308 | G169: 0 | H169: 0
A170: All Regions | B170: 2013 | C170: 112.02388 | D170: 0 | E170: 39.4028 | F170: 131.4225 | G170: 0 | H170: 0
A171: All Regions | B171: 2014 | C171: 95.8759 | D171: 0 | E171: 44.56412 | F171: 145.14108 | G171: 0 | H171: 0
A172: All Regions | B172: 2015 | C172: 109.589845 | D172: 0 | E172: 56.818612 | F172: 163.349278 | G172: 7.30314 | H172: 0
A173: All Regions | B173: 2016 | C173: 141.67545 | D173: 0 | E173: 120.3100172 | F173: 133.375701 | G173: 11.738165 | H173: 0
A174: All Regions | B174: 2017 | C174: 180.174485 | D174: 0 | E174: 188.5093483 | F174: 110.870468 | G174: 18.882355 | H174: 0
A175: All Regions | B175: 2018 | C175: 232.16319 | D175: 0 | E175: 282.9660425 | F175: 85.66826701 | G175: 29.0339243 | H175: 0
A176: All Regions | B176: 2019 | C176: 225.730724 | D176: 0 | E176: 363.9802354 | F176: 76.726334 | G176: 55.403319 | H176: 0
A177: All Regions | B177: 2020 | C177: 144.68432 | D177: 60.9793 | E177: 456.0081674 | F177: 74.0217 | G177: 92.46135 | H177: 111.73
A178: All Regions | B178: 2021 | C178: 170.1957 | D178: 77.2033 | E178: 675.6376 | F178: 75.0479 | G178: 218.2305 | H178: 207.2427

Sheet Wind Capacity in Queues, Region
A1: Wind power capacity in selected interconnection queues at end of 2021, by region
A23: Source: Berkeley Lab review of interconnection queues
B26: Cumulative | C26: Annual | D26: Cumulative | E26: Annual
B27: Onshore Wind | C27: Onshore Wind | D27: Offshore Wind | E27: Offshore Wind
B28: Capacity (MW) | C28: Capacity (MW) | D28: Capacity (MW) | E28: Capacity (MW)
B29: end of 2021 | C29: added in 2021 | D29: end of 2021 | E29: added in 2021
A30: CAISO | B30: 11328 | C30: 6541 | D30: 6382 | E30: 5353
A31: ERCOT | B31: 15414.12 | C31: 1746 | D31: 0 | E31: 0
A32: ISO-NE | B32: 232.8 | C32: 22 | D32: 17225 | E32: 4989
A33: MISO | B33: 22316.6 | C33: 7818 | D33: 0 | E33: 0
A34: NYISO | B34: 4032 | C34: 397 | D34: 36652 | E34: 11620
A35: PJM | B35: 22368.3 | C35: 9363 | D35: 16944.3 | E35: 1798
A36: SPP | B36: 43235.2 | C36: 6913 | D36: 0 | E36: 0
A37: Southeast (non-I | B37: 2171 | C37: 100 | D37: 0 | E37: 0
A38: West (non-ISO) | B38: 49097.7 | C38: 16218.72 | D38: 0 | E38: 0

Sheet Hybrid Capacity in Queues
A1: Hybrid power plants in selected interconnection queues at end of 2021, including wind and solar hybrid configurations
R5: Region | S5: % of Proposed Capacity Hybridizing in Each Region
S7: Wind | T7: Solar | U7: Nat. Gas | V7: Battery
R8: CAISO | S8: =G33/(G33+L33) -> 0.4194805195 | T8: 0.9544964417 | U8: 0.1525223951 | V8: 0.5058703077
R9: ERCOT | S9: 0.04080674083 | T9: 0.2740542151 | U9: 0.269106814 | V9: 0.3292404954
R10: SPP | S10: 0.01434016727 | T10: 0.1836825367 | U10: 0 | V10: 0.2409433683
R11: MISO | S11: 0.07908910856 | T11: 0.2684447246 | U11: 0 | V11: n/a
R12: PJM | S12: 0.005061990303 | T12: 0.2143978592 | U12: 0.0003026799281 | V12: n/a
R13: NYISO | S13: 0.03333005604 | T13: 0.05834581269 | U13: 0 | V13: =J38/(J38+O38) -> 0.02588859416
R14: ISO-NE | S14: 0 | T14: 0.237636249 | U14: 0 | V14: n/a
R15: West (non-ISO) | S15: 0.1506995236 | T15: 0.7527099625 | U15: 0 | V15: n/a
R16: Southeast (non-ISO) | S16: 0 | T16: 0.284771247 | U16: 0 | V16: n/a
R17: TOTAL | S17: 0.07840370588 | T17: 0.4226502054 | U17: 0.03294429291 | V17: n/a
A22: Notes: (1) Hybrid plants involving multiple generator types (e.g., wind+PV+storage, or just wind+PV) show up in all generator categories, presuming the capacity is known
A23: for each generator type. (2) Hybrid storage capacity is estimated using storage:generator ratios from projects that provide separate capacity data. (3) In chart on right, each square
A24: represents one generator type, e.g., wind+solar represents the wind capacity in a wind+solar hybrid, whereas solar+wind can represent the solar capacity in that same hybrid.
A25: Source: Berkeley Lab review of interconnection queues
A28: Total capacity in 42 queues at end of 2021 | F28: Total capacity in queues at end of 2021, by region
G29: Hybrid | H29: Hybrid | I29: Hybrid | J29: Hybrid | K29: Hybrid | L29: Standalone | M29: Standalone | N29: Standalone | O29: Standalone | P29: Standalone | Q29: Standalone | R29: Standalone | S29: Standalone
G30: Wind | H30: Solar | I30: Nat. Gas | J30: Storage* | K30: Other | L30: Wind | M30: Solar | N30: Nat. Gas | O30: Battery | P30: Other Storage | Q30: Coal | R30: Nuclear | S30: Other
B31: Hybrid | C31: Standalone | D31: Hybrid | G31: Capacity (MW) | H31: Capacity (MW) | I31: Capacity (MW) | J31: Capacity (MW) | K31: Capacity (MW) | L31: Capacity (MW) | M31: Capacity (MW) | N31: Capacity (MW) | O31: Capacity (MW) | P31: Capacity (MW) | Q31: Capacity (MW) | R31: Capacity (MW) | S31: Capacity (MW)
B32: GW | C32: GW | D32: % | G32: end of 2021 | H32: end of 2021 | I32: end of 2021 | J32: end of 2021 | K32: end of 2021 | L32: end of 2021 | M32: end of 2021 | N32: end of 2021 | O32: end of 2021 | P32: end of 2021 | Q32: end of 2021 | R32: end of 2021 | S32: end of 2021
A33: Solar | B33: 285.5584 | C33: 390.0792 | D33: =B33/(B33+C33) -> 0.4226502492 | F33: CAISO | G33: 7429 | H33: 70816 | I33: 129.4 | J33: 67690 | K33: 1032 | L33: 10281 | M33: 3376 | N33: 719 | O33: 66119 | P33: 3874 | Q33: 0 | R33: 0 | S33: 954
A34: Wind | B34: 19.397 | C34: 228.002 | D34: =B34/(B34+C34) -> 0.07840371222 | F34: ERCOT | G34: 629 | H34: 22080 | I34: 2338 | J34: 14198.74 | K34: 0 | L34: 14785.12 | M34: 58488 | N34: 6350 | O34: 28927 | P34: 0 | Q34: 0 | R34: 0 | S34: 200
A35: Storage | B35: 207.5617 | C35: 219.647 | D35: =B35/(B35+C35) -> 0.4858555081 | F35: SPP | G35: 620 | H35: 7855 | I35: 0 | J35: 3259 | K35: 5163 | L35: 42615.2 | M35: 34909 | N35: 5162 | O35: 10267 | P35: 0 | Q35: 0 | R35: 0 | S35: 912
A36: Natural Gas | B36: 2.4724 | C36: 72.5755 | D36: =B36/(B36+C36) -> 0.03294429291 | F36: MISO | G36: 1765 | H36: 30153 | I36: 0 | J36: 10308.48 | K36: 0 | L36: 20551.6 | M36: 82171.8 | N36: 9996 | O36: 8931 | P36: 140 | Q36: 898 | R36: 0 | S36: 648
A37: Other | B37: 6.195 | C37: 9.46361 | D37: =B37/(B37+C37) -> 0.3956289862 | F37: PJM | G37: 199 | H37: 31599.2 | I37: 5 | J37: 12822.13 | K37: 0 | L37: 39113.6 | M37: 115786.6 | N37: 16514.1 | O37: 41721.15 | P37: 0 | Q37: 40 | R37: 145.3 | S37: 1275.6
F38: NYISO | G38: 1356 | H38: 1013 | I38: 0 | J38: 366 | K38: 0 | L38: 39328 | M38: 16349 | N38: 2424 | O38: 13771.5 | P38: 0 | Q38: 0 | R38: 0 | S38: 57
A39: *Note: Hybrid storage capacity is estimated using | F39: ISO-NE | G39: 0 | H39: 1055.2 | I39: 0 | J39: 527.6 | K39: 0 | L39: 17457.8 | M39: 3385.2 | N39: 935 | O39: 6310 | P39: 0 | Q39: 0 | R39: 37 | S39: 98.6
A40: storage:generator ratios from projects that provide | F40: West (non-ISO) | G40: 7399 | H40: 104558 | I40: 0 | J40: 87872.74 | K40: 0 | L40: 41698.7 | M40: 34350.75 | N40: 6325.4 | O40: 31811.8 | P40: 2686 | Q40: 5 | R40: 600 | S40: 4839.11
A41: separate capacity data | F41: Southeast (non-ISO) | G41: 0 | H41: 16429 | I41: 0 | J41: 10516.88 | K41: 0 | L41: 2171 | M41: 41262.92 | N41: 24150 | O41: 5089 | P41: 0 | Q41: 0 | R41: 5542 | S41: 559.3
F42: TOTAL | G42: =SUM(G33:G41) -> 19397 | H42: 285558.4 | I42: 2472.4 | J42: 207561.57 | K42: 6195 | L42: 228002.02 | M42: 390079.27 | N42: 72575.5 | O42: 212947.45 | P42: 6700 | Q42: 943 | R42: 6324.3 | S42: 9543.61
F43: *Note: Hybrid storage capacity is estimated using storage:generator ratios from projects that provide separate capacity data
A45: Wind and solar hybrid / co-located capacity in queues at end of 2021, by configuration
B46: Wind Capacity in Hybrids (MW) | F46: Solar Capacity in Hybrids (MW)
B47: Wind+ Storage | C47: Wind+ Solar | D47: Wind+ Solar+ Storage | F47: Solar+ Storage | G47: Solar+ Wind | H47: Solar+ Wind+ Storage
A48: CAISO | B48: 5468 | C48: 771 | D48: 0 | F48: 70049 | G48: 767 | H48: 0
A49: ERCOT | B49: 629 | C49: 0 | D49: 0 | F49: 22080 | G49: 0 | H49: 0
A50: SPP | B50: 620 | C50: 0 | D50: 0 | F50: 7855 | G50: 0 | H50: 0
A51: MISO | B51: 1200 | C51: 400 | D51: 165 | F51: 28251 | G51: 1537 | H51: 365
A52: PJM | B52: 0 | C52: 199 | D52: 0 | F52: 31560.2 | G52: 0 | H52: 0
A53: NYISO | B53: 0 | C53: 0 | D53: 0 | F53: 1013 | G53: 0 | H53: 0
A54: ISO-NE | B54: 0 | C54: 0 | D54: 0 | F54: 1055.2 | G54: 0 | H54: 0
A55: West (non-ISO) | B55: 3606 | C55: 2231 | D55: 1562 | F55: 102548 | G55: 760 | H55: 1250
A56: Southeast (non-ISO) | B56: 0 | C56: 0 | D56: 0 | F56: 16429 | G56: 0 | H56: 0
A57: Total | B57: =SUM(B48:B56) -> 11523 | C57: =SUM(C48:C56) -> 3601 | D57: =SUM(D48:D56) -> 1727 | F57: =SUM(F48:F56) -> 280840.4 | G57: =SUM(G48:G56) -> 3064 | H57: =SUM(H48:H56) -> 1615

Sheet OEM Market Share
A1: Annual U.S. market share of wind turbine manufacturers by MW, 2005–2021
A21: Source: ACP
A23: Turbine OEM | B23: 2005 | C23: 2006 | D23: 2007 | E23: 2008 | F23: 2009 | G23: 2010 | H23: 2011 | I23: 2012 | J23: 2013 | K23: 2014 | L23: 2015 | M23: 2016 | N23: 2017 | O23: 2018 | P23: 2019 | Q23: 2020 | R23: 2021
A24: GE Wind | B24: 1431 | C24: 1146 | D24: 2341.5 | E24: 3585 | F24: 3994.5 | G24: 2543.2 | H24: 2006.1 | I24: 5016.36 | J24: 983.6 | K24: 2912.21 | L24: 3468.065 | M24: 3421.045 | N24: 2066.22 | O24: 3010.915 | P24: 4141.51 | Q24: 9069.71 | R24: 6362.36
A25: Vestas | B25: 699.15 | C25: 439.25 | D25: 948.35 | E25: 1120.035 | F25: 1488.61 | G25: 221.1 | H25: 1969.35 | I25: 1818.08 | J25: 4 | K25: 584.25 | L25: 2869.6 | M25: 3530.45 | N25: 2481.05 | O25: 2886.25 | P25: 3002.65 | Q25: 6023.05 | R25: 3499.35
A26: Siemens (pre-2017) | B26: 0 | C26: 572.7 | D26: 862.5 | E26: 791.2 | F26: 1161.5 | G26: 828 | H26: 1233.1 | I26: 2637.93 | J26: 87.31 | K26: 1240.628 | L26: 1218.924 | M26: 829.127
A27: Gamesa (pre-2017) | B27: 50 | C27: 74 | D27: 494 | E27: 616 | F27: 600 | G27: 566 | H27: 154 | I27: 1341.1 | J27: 0 | K27: 22.85 | L27: 401.85 | M27: 318.4
A28: SGRE | N28: 1625.175 | O28: 629.6 | P28: 1424.155 | Q28: 1467.04 | R28: 1787.645
A29: Acciona (pre-2016) | B29: 0 | C29: 0 | D29: 0 | E29: 409.5 | F29: 204 | G29: 99 | H29: 0 | I29: 195 | J29: 0 | K29: 0 | L29: 465
A30: Nordex (pre-2016) | B30: 0 | C30: 0 | D30: 2.5 | E30: 0 | F30: 62.5 | G30: 20 | H30: 287.5 | I30: 275.1 | J30: 0 | K30: 90.4 | L30: 137.5
A31: Nordex Acciona | M31: 93 | N31: 806.325 | O31: 866.4 | P31: 548.835 | Q31: 451.2 | R31: 1764.675
A32: Goldwind | B32: 0 | C32: 0 | D32: 0 | E32: 0 | F32: 4.5 | G32: 0 | H32: 4.5 | I32: 157.5 | J32: 0 | K32: 0 | L32: 7.5 | M32: 1.5 | N32: 6 | O32: 171.07 | P32: 14 | Q32: 201.6 | R32: 0
A33: Other | B33: 194.265 | C33: 221.5 | D33: 603.65 | E33: 1840.7 | F33: 2489.583 | G33: 942.69 | H33: 1165.48 | I33: 1694.6 | J33: 12.425 | K33: 1.5 | L33: 21.5 | M33: 15 | N33: 31.75 | O33: 24.15 | P33: 0.9 | Q33: 0 | R33: 0

Sheet Manufacturing Facilities
A1: Location of wind turbine and component manufacturing facilities
A22: Source: ACP

Sheet Manufacturing Capability
A1: Domestic wind manufacturing capability vs. U.S. wind power capacity installations
A21: Sources: ACP, independent analyst projections, Berkeley Lab
A22: Note: Actual nacelle assembly, tower production, and blades production would be expected to be below maximum production capacity.
A24: GW | B24: 2006 | C24: 2007 | D24: 2008 | E24: 2009 | F24: 2010 | G24: 2011 | H24: 2012 | I24: 2013 | J24: 2014 | K24: 2015 | L24: 2016 | M24: 2017 | N24: 2018 | O24: 2019 | P24: 2020 | Q24: 2021 | R24: 2022e | S24: 2023e | T24: 2024e | U24: 2025e | V24: 2026e
A25: Actual wind capacity additions | B25: 2.466 | C25: 5.253 | D25: 8.37 | E25: 9.997 | F25: 5.218 | G25: 6.604 | H25: 13.34 | I25: 1.087 | J25: 4.857 | K25: 8.599 | L25: 8.233 | M25: 7.017 | N25: 7.588 | O25: 9.132 | P25: 17.213 | Q25: 13.413
A26: Average forecast capacity additions | R26: 10.843318 | S26: 7.088687139 | T26: 9.451823899 | U26: 12.95876299 | V26: 11.46715874
A27: Nacelle manufacturing capacity | B27: 1.325 | C27: 2.825 | D27: 6.335 | E27: 5.923 | F27: 7.425 | G27: 11.885375 | H27: 13.4 | I27: 12.9 | J27: 11.4 | K27: 10.2 | L27: 11.7 | M27: 11.7 | N27: 15 | O27: 15 | P27: 15 | Q27: 12.3
A28: Tower production capacity | H28: 7.396649867 | I28: 8.058793103 | J28: 7.235600536 | K28: 6.246734665 | L28: 6.785569853 | M28: 7.42980278 | N28: 8.8695 | O28: 9.28925 | P28: 10.2 | Q28: 9.2
A29: Blade production capacity | H29: 8.110361696 | I29: 6.865591954 | J29: 7.012949356 | K29: 6.99186803 | L29: 8.113961835 | M29: 8.946720847 | N29: 9.234 | O29: 9.671 | P29: 9.18 | Q29: 4.6

Sheet OEM Profitability
A1: Turbine OEM global profitability over time
A21: Sources: OEM annual reports and financial statements | K21: Sources: OEM annual reports and financial statements
A24: EBITDA | B24: 2008 | C24: 2009 | D24: 2010 | E24: 2011 | F24: 2012 | G24: 2013 | H24: 2014 | I24: 2015 | J24: 2016 | K24: 2017 | L24: 2018 | M24: 2019 | N24: 2020 | O24: 2021
A25: Gamesa/SGRE | B25: 0.136400986 | C25: 0.1381304208 | D25: 0.1288600839 | E25: 0.1182608696 | F25: 0.06529080675 | G25: 0.1232876712 | H25: 0.1285944521 | I25: 0.1484102127 | J25: 0.1649702949 | K25: 0.09330536301 | L25: 0.09383627237 | M25: 0.08790560639 | N25: -0.01191606032 | O25: 0.02304414533 | P25: Gamesa in 2016 and earlier, SGRE in 2017 and after
A26: Vestas | B26: 0.1268631436 | C26: 0.09234101201 | D26: 0.09884393064 | E26: 0.05226182317 | F26: 0.04143569845 | G26: 0.08711374096 | H26: 0.1413892909 | I26: 0.1493529621 | J26: 0.1783725701 | K26: 0.1658796343 | L26: 0.1360765739 | M26: 0.128 | N26: 0.09325865443 | O26: 0.084108552
A27: Nordex | B27: 0.06947257198 | C27: 0.04895164018 | D27: 0.06440329218 | E27: -0.002172024327 | F27: 0.007625778852 | G27: 0.05849017001 | H27: 0.06976073796 | I27: 0.07505863956 | J27: 0.08409425626 | K27: 0.06520891546 | L27: 0.04135659388 | M27: 0.03769104305 | N27: 0.0202120111 | O27: 0.009680382072
A28: Goldwind | B28: 0.1971326165 | C28: 0.1920790362 | D28: 0.1681308201 | E28: 0.07896718164 | F28: 0.03138613119 | G28: 0.05734464064 | H28: 0.1411306727 | I28: 0.1227381641 | J28: 0.1680697315 | K28: 0.1817982058 | L28: 0.1693143414 | M28: 0.105170216 | N28: 0.08835702073 | O28: 0.1247415334
A31: EBIT | B31: 2008 | C31: 2009 | D31: 2010 | E31: 2011 | F31: 2012 | G31: 2013 | H31: 2014 | I31: 2015 | J31: 2016 | K31: 2017 | L31: 2018 | M31: 2019 | N31: 2020 | O31: 2021
A32: Gamesa/SGRE | B32: 0.05751848809 | C32: 0.07227754578 | D32: 0.04841784217 | E32: 0.04034782609 | F32: 0.008255159475 | G32: 0.05522260274 | H32: 0.06710803375 | I32: 0.08390885101 | J32: 0.1032090199 | K32: 0.07059467348 | L32: 0.07596791676 | M32: 0.07089161806 | N32: -0.02457028367 | O32: -0.009413778516 | P32: Gamesa in 2016 and earlier, SGRE in 2017 and after
A33: Vestas | B33: 0.10399729 | C33: 0.049419177 | D33: 0.04479768786 | E33: -0.01028101439 | F33: -0.09659090909 | G33: 0.016765286 | H33: 0.08784370478 | I33: 0.1075626261 | J33: 0.1388101983 | K33: 0.1235808299 | L33: 0.0908821788 | M33: 0.083 | N33: 0.04710169377 | O33: 0.02065824084
A34: Nordex | B34: 0.05294562568 | C34: 0.03495892327 | D34: 0.03978569303 | E34: -0.03203883495 | F34: -0.05550004542 | G34: 0.02948811822 | H34: 0.0448404714 | I34: 0.05223293738 | J34: 0.04965541615 | K34: 0.0138773422 | L34: -0.02291851664 | M34: -0.005062767991 | N34: -0.01422160856 | O34: -0.02124037453
A35: Goldwind | B35: 0.1852890759 | C35: 0.1843789507 | D35: 0.1585624451 | E35: 0.06355627992 | F35: 0.01048603795 | G35: 0.03837453182 | H35: 0.1164211832 | I35: 0.1044888162 | J35: 0.1327484655 | K35: 0.1367801277 | L35: 0.1210208061 | M35: 0.0615998567 | N35: 0.0524700972 | O35: 0.07792525873

Sheet Wind Equip Imports over Time
A1: Estimated imports of wind-powered generating sets, nacelles, towers, generators and generator parts, and blades and hubs
A21: Note: Wind-related trade codes and definitions are not consistent over the full time period.
A22: Source: Berkeley Lab analysis of data from USA Trade Online, https://usatrade.census.gov
C24: Billion US$2021
B25: Annual Capacity Additions (GW) | C25: Wind-powered generating sets and parts, including nacelles | D25: Wind towers | E25: Other wind-related equipment | F25: Wind generators and generator parts | G25: Wind blades and hubs
C26: (estimated for 2014−2019) | D26: (estimated for 2006−2010) | E26: (estimated for 2006−2011) | F26: (2012-2021) | G26: (2012−2021)
A27: 2006 | B27: 2.466 | C27: 1.627 | D27: 0.278 | E27: 0.68 | F27: na | G27: na
A28: 2007 | B28: 5.253 | C28: 3.108 | D28: 0.657 | E28: 1.362 | F28: na | G28: na
A29: 2008 | B29: 8.37 | C29: 3.157 | D29: 1.216 | E29: 2.003 | F29: na | G29: na
A30: 2009 | B30: 9.997 | C30: 2.873 | D30: 0.759 | E30: 1.306 | F30: na | G30: na
A31: 2010 | B31: 5.218 | C31: 1.518 | D31: 0.49 | E31: 0.951 | F31: na | G31: na
A32: 2011 | B32: 6.604 | C32: 1.486 | D32: 0.53 | E32: 1.214 | F32: na | G32: na
A33: 2012 | B33: 13.34 | C33: 1.151 | D33: 0.973 | E33: na | F33: 0.538 | G33: 1.053
A34: 2013 | B34: 1.087 | C34: 0.027 | D34: 0.115 | E34: na | F34: 0.232 | G34: 0.318
A35: 2014 | B35: 4.857 | C35: 0.476 | D35: 0.281 | E35: na | F35: 0.382 | G35: 0.558
A36: 2015 | B36: 8.599 | C36: 0.6 | D36: 0.335 | E36: na | F36: 0.395 | G36: 0.932
A37: 2016 | B37: 8.233 | C37: 0.743 | D37: 0.338 | E37: na | F37: 0.389 | G37: 1.021
A38: 2017 | B38: 7.017 | C38: 0.831 | D38: 0.246 | E38: na | F38: 0.326 | G38: 1.086
A39: 2018 | B39: 7.588 | C39: 0.582 | D39: 0.216 | E39: na | F39: 0.343 | G39: 1.045
A40: 2019 | B40: 9.132 | C40: 0.383 | D40: 0.484 | E40: na | F40: 0.29 | G40: 1.918
A41: 2020 | B41: 17.213 | C41: 1.161 | D41: 0.772 | E41: na | F41: 0.222 | G41: 2.723
A42: 2021 | B42: 13.413 | C42: 0.453 | D42: 0.478 | E42: na | F42: 0.197 | G42: 1.936

Sheet Wind Equip Imports by Country
A1: Summary map of tracked wind-specific imports into the United States in 2021: top-10 countries of origin and states of entry (million 2021$)
A2: (wind-powered generating sets and parts, towers, generators and generator parts, blades and hubs, and nacelles)
A23: Notes: Line widths are proportional to amount of imports, by country. Figure does not intend to depict the destination of these imports, by state.
A24: Source: Berkeley Lab analysis of data from USA Trade Online, https://usatrade.census.gov
A26: Total wind-specific exports to U.S. (million 2021 US$) | D26: Total wind-specific imports by U.S. districts of entry (million 2021 US$) | G26: Total wind-specific imports by U.S. state (million 2021 US$)
A27: Mexico | B27: 587.337 | D27: Houston-Galveston, TX | E27: 1556.92 | G27: TX | H27: 2171.832529
A28: Spain | B28: 527.669 | D28: Laredo, TX | E28: 318.28 | G28: IL | H28: 150.110392
A29: India | B29: 455.383 | D29: El Paso, TX | E29: 262.937 | G29: MI | H29: 141.806041
A30: Brazil | B30: 272.429 | D30: Chicago, IL | E30: 150.11 | G30: LA | H30: 133.402734
A31: Canada | B31: 192.509 | D31: Detroit, MI | E31: 141.806 | G31: FL | H31: 128.395184
A32: Denmark | B32: 157.843 | D32: New Orleans, LA | E32: 133.403 | G32: AL | H32: 76.910992
A33: China | B33: 152.161 | D33: Tampa, FL | E33: 127.667 | G33: OR | H33: 59.793065
A34: Malaysia | B34: 149.911 | D34: Mobile, AL | E34: 76.911 | G34: MT | H34: 42.454679
A35: Korea, South | B35: 130.599 | D35: Columbia-Snake, OR | E35: 59.793 | G35: MD | H35: 38.491943
A36: Vietnam | B36: 128.595 | D36: Great Falls, MT | E36: 42.455 | G36: OH | H36: 21.601801
A37: Germany | B37: 102.332 | D37: Baltimore, MD | E37: 38.492 | G37: PR | H37: 19.303018
A38: Belgium | B38: 47.128 | D38: Port Arthur, TX | E38: 31.116 | G38: CA | H38: 29.024972
A39: Turkey | B39: 46.137 | D39: Cleveland, OH | E39: 21.602 | G39: NY | H39: 18.185926
A40: Indonesia | B40: 39.067 | D40: San Juan, PR | E40: 19.303 | G40: ME | H40: 7.093715
A41: Argentina | B41: 16.65 | D41: San Diego, CA | E41: 18.634 | G41: MN | H41: 6.648431
A42: Italy | B42: 15.971 | D42: New York City, NY | E42: 12.072 | G42: MA | H42: 2.465327
A43: Serbia | B43: 8.735 | D43: Los Angeles, CA | E43: 10.128 | G43: SC | H43: 2.362727
A44: Portugal | B44: 6.846 | D44: Portland, ME | E44: 7.094 | G44: WA | H44: 2.3062
A45: France | B45: 4.643 | D45: Minneapolis, MN | E45: 5.292 | G45: MO | H45: 2.281595
A46: Japan | B46: 3.305 | D46: Buffalo, NY | E46: 4.716 | G46: VA | H46: 2.2126
A47: Morocco | B47: 3.272 | D47: Dallas-Fort Worth, TX | E47: 2.579 | G47: RI | H47: 2.175384
A48: United Kingdom | B48: 2.58 | D48: Boston, MA | E48: 2.465 | G48: GA | H48: 2.084331
A49: Taiwan | B49: 2.334 | D49: Charleston, SC | E49: 2.363 | G49: ND | H49: 1.787351
A50: Hungary | B50: 2.229 | D50: Seattle, WA | E50: 2.306 | G50: NC | H50: 0.724147
A51: Austria | B51: 2.074 | D51: St. Louis, MO | E51: 2.282 | G51: PA | H51: 0.273198
A52: Switzerland | B52: 2.007 | D52: Norfolk, VA | E52: 2.213 | G52: VT | H52: 0.209283
A53: Other | B53: 4.432 | D53: Providence, RI | E53: 2.175 | G53: AK | H53: 0.11353
D54: Savannah, GA | E54: 2.084 | G54: WI | H54: 0.091745
D55: Pembina, ND | E55: 1.787 | G55: DC | H55: 0.026155
D56: Ogdensburg, NY | E56: 1.398 | G56: AZ | H56: 0.006601
D57: Duluth, MN | E57: 1.356 | G57: HI | H57: 0.002244
D58: Miami, FL | E58: 0.728
D59: Wilmington, NC | E59: 0.724
D60: Philadelphia, PA | E60: 0.273
D61: San Francisco, CA | E61: 0.263
D62: St. Albans, VT | E62: 0.209
D63: Anchorage, AK | E63: 0.114
D64: Milwaukee, WI | E64: 0.092
D65: Washington, DC | E65: 0.026
D66: Nogales, AZ | E66: 0.007
D67: Honolulu, HI | E67: 0.002

Sheet Equip Import by Component
A1: Origins of U.S. imports of selected wind turbine equipment
A33: Source: Berkeley Lab analysis of data from USA Trade Online, https://usatrade.census.gov
A35: Wind-powered generating sets and nacelles (nacelles for 2020-present only)
C36: 2005 | D36: 2006 | E36: 2007 | F36: 2008 | G36: 2009 | H36: 2010 | I36: 2011 | J36: 2012 | K36: 2013 | L36: 2014 | M36: 2015 | N36: 2016 | O36: 2017 | P36: 2018 | Q36: 2019 | R36: 2020 | S36: 2021
B37: Europe | C37: 0.8440492487 | D37: 0.7329190832 | E37: 0.7274479706 | F37: 0.7692635991 | G37: 0.6280423558 | H37: 0.7560183659 | I37: 0.9569433895 | J37: 0.6721629334 | K37: 0.5401813249 | L37: 0.71779257 | M37: 0.8729513626 | N37: 0.6729313165 | O37: 0.7242169278 | P37: 0.9818795106 | Q37: 0.7471453214 | R37: 0.4203686115 | S37: 0.7118248921
B38: Asia | C38: 0.1556237802 | D38: 0.2662000625 | E38: 0.2719595541 | F38: 0.2295926854 | G38: 0.3637593104 | H38: 0.2367757867 | I38: 0.03395192513 | J38: 0.3150358249 | K38: 0.4336691302 | L38: 0.2755825733 | M38: 0.1220225929 | N38: 0.3012418563 | O38: 0.2563338622 | P38: 0.005048046543 | Q38: 0.2054847639 | R38: 0.4620799956 | S38: 0.1138381603
B39: South America | C39: 0 | D39: 0 | E39: 0 | F39: 1.913640425e-06 | G39: 0 | H39: 0.001279002592 | I39: 0.000188782349 | J39: 0.006400173402 | K39: 0 | L39: 0 | M39: 0 | N39: 0.002223506614 | O39: 0.01384947664 | P39: 0.001421253776 | Q39: 0.002696593431 | R39: 0.1121446222 | S39: 0.1664476608
B40: North America | C40: 0.0003164735027 | D40: 0.0008791735152 | E40: 0.0005924752707 | F40: 0.00102506661 | G40: 0.008088369388 | H40: 0.005862186269 | I40: 0.008857899335 | J40: 0.006390952989 | K40: 0.02614954496 | L40: 0.006624856635 | M40: 0.005026044559 | N40: 0.0236033206 | O40: 0.005599733264 | P40: 0.01165118906 | Q40: 0.04467332126 | R40: 0.005400807981 | S40: 0.007879137394
B41: Other | C41: 1.049764754e-05 | D41: 1.680830592e-06 | E41: 0 | F41: 0.0001167352553 | G41: 0.0001099644011 | H41: 6.465846722e-05 | I41: 5.800365349e-05 | J41: 1.011529067e-05 | K41: 0 | L41: 0 | M41: 0 | N41: 0 | O41: 0 | P41: 0 | Q41: 0 | R41: 5.962709717e-06 | S41: 1.014937354e-05
B42: Total Imports (Billion US$2021) | C42: 0.669 | D42: 1.627 | E42: 3.108 | F42: 3.157 | G42: 2.873 | H42: 1.518 | I42: 1.486 | J42: 1.151 | K42: 0.027 | L42: 0.29 | M42: 0.259 | N42: 0.144 | O42: 0.231 | P42: 0.215 | Q42: 0.088 | R42: 1.161 | S42: 0.453
A44: Wind Towers
C45: 2011 | D45: 2012 | E45: 2013 | F45: 2014 | G45: 2015 | H45: 2016 | I45: 2017 | J45: 2018 | K45: 2019 | L45: 2020 | M45: 2021
B46: Asia | C46: 0.8048581167 | D46: 0.8116950503 | E46: 0.6095610218 | F46: 0.5630347861 | G46: 0.3924022454 | H46: 0.5153100201 | I46: 0.3009076867 | J46: 0.5632078703 | K46: 0.7720376954 | L46: 0.4807871282 | M46: 0.6156022424
B47: North America | C47: 0.168158946 | D47: 0.1306234412 | E47: 0.362956454 | F47: 0.1705278123 | G47: 0.3679983331 | H47: 0.1687907555 | I47: 0.3507688584 | J47: 0.3112359286 | K47: 0.1649979727 | L47: 0.2893490047 | M47: 0.30257408
B48: Europe | C48: 0.02698293726 | D48: 0.05086004022 | E48: 0.02575641409 | F48: 0.2503306405 | G48: 0.2395994215 | H48: 0.3158992243 | I48: 0.3483234549 | J48: 0.1255562011 | K48: 0.06109375174 | L48: 0.1946995695 | M48: 0.0467647984
B49: South America | C49: 0 | D49: 0.004566471103 | E49: 0.001690017202 | F49: 0.01610676102 | G49: 0 | H49: 0 | I49: 0 | J49: 0 | K49: 0.001870580161 | L49: 0.02159623609 | M49: 0.03505887918
B50: Other | C50: 0 | D50: 0.002254997167 | E50: 3.60928482e-05 | F50: 0 | G50: 0 | H50: 0 | I50: 0 | J50: 0 | K50: 0 | L50: 0.01356806156 | M50: 0
B51: Total Imports (Billion US$2021) | C51: 0.53 | D51: 0.973 | E51: 0.115 | F51: 0.281 | G51: 0.335 | H51: 0.338 | I51: 0.246 | J51: 0.216 | K51: 0.484 | L51: 0.772 | M51: 0.478
A53: Wind blades and hubs
C54: 2012 | D54: 2013 | E54: 2014 | F54: 2015 | G54: 2016 | H54: 2017 | I54: 2018 | J54: 2019 | K54: 2020 | L54: 2021
B55: Asia | C55: 0.2317769975 | D55: 0.2576493477 | E55: 0.3853074679 | F55: 0.4456738172 | G55: 0.5964837564 | H55: 0.6817301749 | I55: 0.6091865366 | J55: 0.4650532197 | K55: 0.4262110761 | L55: 0.3504039292
B56: Europe | C56: 0.2635719386 | D56: 0.07502881981 | E56: 0.2448509631 | F56: 0.3555044517 | G56: 0.2264783727 | H56: 0.214338414 | I56: 0.2256818485 | J56: 0.201947523 | K56: 0.263132835 | L56: 0.2216112932
B57: South America | C57: 0.4840143211 | D57: 0.6612367373 | E57: 0.3686285365 | F57: 0.1978594674 | G57: 0.1714154255 | H57: 0.008558343498 | I57: 0.06974948807 | J57: 0.1430182509 | K57: 0.09231760737 | L57: 0.1016628688
B58: North America | C58: 0.02061790793 | D58: 0.006059891623 | E58: 0.001200151978 | F58: 0.0009622637006 | G58: 0.005622445419 | H58: 0.095364672 | I58: 0.09537992457 | J58: 0.1899810064 | K58: 0.215804145 | L58: 0.3246319998
B59: Other | C59: 0 | D59: 0 | E59: 0 | F59: 0 | G59: 0 | H59: 0 | I59: 0 | J59: 0 | K59: 0 | L59: 0.003
B60: Total Imports (Billion US$2021) | C60: 1.053 | D60: 0.318 | E60: 0.558 | F60: 0.932 | G60: 1.021 | H60: 1.086 | I60: 1.045 | J60: 1.918 | K60: 2.723 | L60: 1.936
A62: Wind generators and generator parts
C63: 2012 | D63: 2013 | E63: 2014 | F63: 2015 | G63: 2016 | H63: 2017 | I63: 2018 | J63: 2019 | K63: 2020 | L63: 2021
B64: Asia | C64: 0.4652501854 | D64: 0.647377677 | E64: 0.460814857 | F64: 0.4147282802 | G64: 0.2847822942 | H64: 0.2662118632 | I64: 0.2968170969 | J64: 0.4399850114 | K64: 0.3320768191 | L64: 0.4279113807
B65: Europe | C65: 0.2974709978 | D65: 0.3023737636 | E65: 0.4484525626 | F65: 0.2827142802 | G65: 0.4023674006 | H65: 0.2669358684 | I65: 0.148142825 | J65: 0.5414621549 | K65: 0.6524202695 | L65: 0.5555067708
B66: North America | C66: 0.2337402729 | D66: 0.04867425757 | E66: 0.09004872633 | F66: 0.3006325075 | G66: 0.3112034449 | H66: 0.4667983896 | I66: 0.5533034449 | J66: 0.01839200393 | K66: 0.0146344376 | L66: 0.01582697248
B67: Other | C67: 0.003538543882 | D67: 0.00157430188 | E67: 0.0006838540644 | F67: 0.001924932185 | G67: 0.001646860288 | H67: 5.387879785e-05 | I67: 0.001736633134 | J67: 0.0001608297329 | K67: 0.0008684737653 | L67: 0.0007548759987
B68: Total Imports (Billion US$2021) | C68: 0.538 | D68: 0.232 | E68: 0.382 | F68: 0.395 | G68: 0.389 | H68: 0.326 | I68: 0.343 | J68: 0.29 | K68: 0.222 | L68: 0.197
A71: Top 5 import countries for 2021
C72: Wind-powered generating sets and nacelles | E72: Towers | G72: Wind blades and hubs | I72: Wind generators and generator parts
C73: country | D73: import percentage | E73: country | F73: import percentage | G73: country | H73: import percentage | I73: country | J73: import percentage
B74: 1 | C74: Spain | D74: 0.344677297 | E74: Malaysia | F74: 0.3133898678 | G74: Mexico | H74: 0.2779179746 | I74: Vietnam | J74: 0.3920881705
B75: 2 | C75: Brazil | D75: 0.1663909964 | E75: Canada | F75: 0.2075991251 | G75: India | H75: 0.2087225467 | I75: Spain | J75: 0.2950102122
B76: 3 | C76: Denmark | D76: 0.1492279998 | E76: S. Korea | F76: 0.1284189222 | G76: Spain | H76: 0.1523942602 | I76: Germany | J76: 0.1644131262
B77: 4 | C77: Belgium | D77: 0.1039496389 | E77: Mexico | F77: 0.09497495492 | G77: Brazil | H77: 0.1016628688 | I77: Serbia | J77: 0.04440596571
B78: 5 | C78: Germany | D78: 0.103342232 | E78: India | F78: 0.08434121378 | G78: China | H78: 0.05996752331 | I78: China | J78: 0.01984529297

Sheet Domestic Content
A1: Approximate domestic content of major components in 2021
A18: Source: Berkeley Lab
A19: Note: Figure reflects estimated percentage of blades, towers, and nacelles that were installed in the U.S. in 2021 that were also manufactured / assembled domestically.
A24: Component | B24: low end | C24: high end | D24: diff
A25: Blades and Hubs | B25: 0.15 | C25: 0.25 | D25: =C25-B25 -> 0.1
A26: Wind Towers | B26: 0.55 | C26: 0.7 | D26: =C26-B26 -> 0.15
A27: Nacelle Assembly | B27: 0.85 | C27: 1 | D27: =C27-B27 -> 0.15

Sheet Capacity by Owner
A1: Cumulative and 2021 wind power capacity categorized by owner type
A21: Source: Berkeley Lab estimates based on ACP
A25: Through Year | B25: GW | F25: Percent of Total
B26: IOU | C26: POU | D26: IPP | E26: Other | F26: IOU | G26: POU | H26: IPP | I26: Other
A27: 1998 | B27: 0.00725 | C27: 0.008405 | D27: 1.484896 | E27: 0.002475 | F27: 0.004823602519 | G27: 0.0055920523 | H27: 0.9879376671 | I27: 0.001646678101
A28: 1999 | B28: 0.079736 | C28: 0.022159 | D28: 2.282276 | E28: 0.004125 | F28: 0.03338614644 | G28: 0.009278163176 | H28: 0.9556085175 | I28: 0.001727172846
A29: 2000 | B29: 0.079736 | C29: 0.025559 | D29: 2.349506 | E29: 0.00435 | F29: 0.03242419843 | G29: 0.0103934244 | H29: 0.955413474 | I29: 0.00176890317
A30: 2001 | B30: 0.091856 | C30: 0.035989 | D30: 4.013446 | E30: 0.008316 | F30: 0.02213607216 | G30: 0.008672869503 | H30: 0.9671870131 | I30: 0.002004045202
A31: 2002 | B31: 0.091856 | C31: 0.101789 | D31: 4.344346 | E31: 0.022224 | F31: 0.02014290993 | G31: 0.0223210967 | H31: 0.9526625389 | I31: 0.004873454431
A32: 2003 | B32: 0.091856 | C32: 0.134859 | D32: 5.908416 | E32: 0.08994 | F32: 0.01475581564 | G32: 0.0216638493 | H32: 0.9491323071 | I32: 0.01444802798
A33: 2004 | B33: 0.252356 | C33: 0.155087 | D33: 6.091626 | E33: 0.1224 | F33: 0.03811178456 | G33: 0.02342184189 | H33: 0.9199810495 | I33: 0.01848532403
A34: 2005 | B34: 0.601756 | C34: 0.220397 | D34: 8.028326 | E34: 0.145405 | F34: 0.06689236989 | G34: 0.02449976011 | H34: 0.8924443668 | I34: 0.01616350322
A35: 2006 | B35: 1.190356 | C35: 0.246412 | D35: 9.772266 | E35: 0.2403 | F35: 0.1039672701 | G35: 0.02152195053 | H35: 0.853522659 | I35: 0.02098812036
A36: 2007 | B36: 1.717656 | C36: 0.514112 | D36: 14.176816 | E36: 0.29325 | F36: 0.1028423585 | G36: 0.03078176924 | H36: 0.8488179202 | I36: 0.01755795202
A37: 2008 | B37: 3.205906 | C37: 0.551012 | D37: 20.833616 | E37: 0.473735 | F37: 0.1279074207 | G37: 0.0219839645 | H37: 0.8312078042 | I37: 0.01890081055
A38: 2009 | B38: 4.263256 | C38: 1.066212 | D38: 29.081026 | E38: 0.658968 | F38: 0.1215660508 | G38: 0.03040286161 | H38: 0.8292407223 | I38: 0.01879036525
A39: 2010 | B39: 4.864856 | C39: 1.221632 | D39: 33.446576 | E39: 0.756388 | F39: 0.1207476339 | G39: 0.03032138536 | H39: 0.8301571339 | I39: 0.01877384681
A40: 2011 | B40: 6.356656 | C40: 1.425532 | D40: 38.412026 | E40: 0.914788 | F40: 0.1349350598 | G40: 0.03026028868 | H40: 0.8153861124 | I40: 0.01941853916
A41: 2012 | B41: 7.484806 | C41: 1.644232 | D41: 49.969766 | E41: 1.145868 | F41: 0.124240132 | G41: 0.0272925712 | H41: 0.8294470588 | I41: 0.01902023801
A42: 2013 | B42: 7.529456 | C42: 1.646032 | D42: 50.999966 | E42: 1.156553 | F42: 0.1227655244 | G42: 0.02683805863 | H42: 0.8315391668 | I42: 0.01885725018
A43: 2014 | B43: 8.810264 | C43: 1.646032 | D43: 54.572396 | E43: 1.157153 | F43: 0.1331140216 | G43: 0.02486984944 | H43: 0.8245327381 | I43: 0.0174833909
A44: 2015 | B44: 9.849364 | C44: 1.646032 | D44: 61.862286 | E44: 1.422703 | F44: 0.1317105281 | G44: 0.02201154755 | H44: 0.8272528418 | I44: 0.01902508258
A45: 2016 | B45: 10.866831 | C45: 1.646032 | D45: 69.004461 | E45: 1.465683 | F45: 0.1309524852 | G45: 0.01983577192 | H45: 0.8315492954 | I45: 0.01766244745
A46: 2017 | B46: 11.481431 | C46: 1.646032 | D46: 75.404131 | E46: 1.467933 | F46: 0.127572126 | G46: 0.01828934057 | H46: 0.837828081 | I46: 0.01631045239
A47: 2018 | B47: 12.989956 | C47: 1.648432 | D47: 81.477271 | E47: 1.472253 | F47: 0.1331102975 | G47: 0.01689176422 | H47: 0.8349115104 | I47: 0.01508642792
A48: 2019 | B48: 15.482116 | C48: 1.653932 | D48: 88.106661 | E48: 1.477253 | F48: 0.145072353 | G48: 0.01549786909 | H48: 0.8255874473 | I48: 0.01384233064
A49: 2020 | B49: 20.311091 | C49: 1.653932 | D49: 100.490286 | E49: 1.477253 | F49: 0.1638882524 | G49: 0.01334541926 | H49: 0.8108465151 | I49: 0.01191981329
A50: 2021 | B50: 23.728951 | C50: 1.653932 | D50: 110.485556 | E50: 1.477253 | F50: 0.1727680763 | G50: 0.0120421105 | H50: 0.8044340845 | I50: 0.01075572869
A52: Latest-year annual data (MW): | F52: Pecent of total
A53: 2021 | B53: 3417.86 | C53: 0 | D53: 9995.27 | E53: 0 | F53: 0.2548144989 | G53: 0 | H53: 0.7451855011 | I53: 0

Sheet Capacity by Offtake
A1: Cumulative and 2021 wind power capacity categorized by power off-take arrangement
A21: Source: Berkeley Lab estimates based on ACP
A25: Through Year | B25: GW | I25: Percent of Total
B26: IOU | C26: POU | D26: Undisclosed | E26: Power Marketer | F26: Retail | G26: On-Site | H26: Merchant/Quasi-Merchant | I26: IOU | J26: POU | K26: Undisclosed | L26: Power Marketer | M26: Retail | N26: On-Site | O26: Merchant/Quasi-Merchant
A27: 1998 | B27: 1.452246 | C27: 0.048555 | D27: 0 | E27: 0 | F27: 0 | G27: 0.002225 | H27: 0 | I27: 0.9662148226 | J27: 0.03230483039 | K27: 0 | L27: 0 | M27: 0 | N27: 0.00148034698 | O27: 0
A28: 1999 | B28: 2.291812 | C28: 0.093209 | D28: 0 | E28: 0 | F28: 0 | G28: 0.003275 | H28: 0 | I28: 0.9596013224 | J28: 0.03902740699 | K28: 0 | L28: 0 | M28: 0 | N28: 0.001371270563 | O28: 0
A29: 2000 | B29: 2.320292 | C29: 0.113409 | D29: 0 | E29: 0.0104 | F29: 0 | G29: 0.0035 | H29: 0.01155 | I29: 0.9435337643 | J29: 0.04611713555 | K29: 0 | L29: 0.004229101832 | M29: 0 | N29: 0.001423255424 | O29: 0.0046967429
A30: 2001 | B30: 2.808392 | C30: 0.460639 | D30: 0 | E30: 0.83456 | F30: 0 | G30: 0.004466 | H30: 0.04155 | I30: 0.6767850546 | J30: 0.1110078617 | K30: 0 | L30: 0.2011178408 | M30: 0 | N30: 0.001076246498 | O30: 0.01001299641
A31: 2002 | B31: 2.980373969 | C31: 0.5925570313 | D31: 0 | E31: 0.94016 | F31: 0 | G31: 0.005574 | H31: 0.04155 | I31: 0.6535599678 | J31: 0.1299405908 | K31: 0 | L31: 0.2061657181 | M31: 0 | N31: 0.00122231079 | O31: 0.00911141251
A32: 2003 | B32: 3.778909969 | C32: 0.8570270313 | D32: 0 | E32: 1.54116 | F32: 0 | G32: 0.006424 | H32: 0.04155 | I32: 0.6070468865 | J32: 0.1376734549 | K32: 0 | L32: 0.2475730799 | M32: 0 | N32: 0.001031956101 | O32: 0.006674622667
A33: 2004 | B33: 4.127419969 | C33: 0.9033050313 | D33: 0 | E33: 1.54116 | F33: 0 | G33: 0.008034 | H33: 0.04155 | I33: 0.6233390157 | J33: 0.1364206389 | K33: 0 | L33: 0.2327519769 | M33: 0 | N33: 0.001213325925 | O33: 0.006275042593
A34: 2005 | B34: 5.479489969 | C34: 1.331265031 | D34: 0 | E34: 1.86576 | F34: 0 | G34: 0.020869 | H34: 0.2985 | I34: 0.6091107854 | J34: 0.1479860157 | K34: 0 | L34: 0.2074015183 | M34: 0 | N34: 0.002319838717 | O34: 0.03318184183
A35: 2006 | B35: 6.624529969 | C35: 1.667980031 | D35: 0 | E35: 2.03996 | F35: 0 | G35: 0.024064 | H35: 1.0928 | I35: 0.5785952239 | J35: 0.1456835857 | K35: 0 | L35: 0.178172809 | M35: 0 | N35: 0.002101781641 | O35: 0.09544659978
A36: 2007 | B36: 9.077379969 | C36: 2.586980031 | D36: 0 | E36: 3.09186 | F36: 0 | G36: 0.028814 | H36: 1.9168 | I36: 0.5434959998 | J36: 0.1548919736 | K36: 0 | L36: 0.1851209873 | M36: 0 | N36: 0.001725199759 | O36: 0.1147658395
A37: 2008 | B37: 11.83627997 | C37: 4.353730031 | D37: 0 | E37: 3.69276 | F37: 0 | G37: 0.076599 | H37: 5.1049 | I37: 0.4722371903 | J37: 0.1737026534 | K37: 0 | L37: 0.1473316457 | M37: 0 | N37: 0.003056103491 | O37: 0.2036724071
A38: 2009 | B38: 15.39157997 | C38: 6.850480031 | D38: 0 | E38: 3.95536 | F38: 0.204 | G38: 0.129882 | H38: 8.53816 | I38: 0.4388883972 | J38: 0.1953403229 | K38: 0 | L38: 0.1127864465 | M38: 0.005817026791 | N38: 0.003703564087 | O38: 0.2434642425
A39: 2010 | B39: 17.55262997 | C39: 8.463350031 | D39: 0 | E39: 4.25416 | F39: 0.21675 | G39: 0.147852 | H39: 9.65471 | I39: 0.4356631599 | J39: 0.2100636671 | K39: 0 | L39: 0.1055899197 | M39: 0.005379820008 | N39: 0.003669744627 | O39: 0.2396336887
A40: 2011 | B40: 21.81372997 | C40: 9.402550031 | D40: 0 | E40: 4.60666 | F40: 0.36355 | G40: 0.186452 | H40: 10.73606 | I40: 0.4630480172 | J40: 0.1995913654 | K40: 0 | L40: 0.09778725518 | M40: 0.007717208698 | N40: 0.003957884737 | O40: 0.2278982688
A41: 2012 | B41: 29.23075697 | C41: 12.37429003 | D41: 0 | E41: 4.74416 | F41: 0.43275 | G41: 0.283302 | H41: 13.179413 | I41: 0.4852006991 | J41: 0.205400571 | K41: 0 | L41: 0.07874820864 | M41: 0.007183207836 | N41: 0.004702523735 | O41: 0.2187647897
A42: 2013 | B42: 29.92161697 | C42: 12.48359003 | D42: 0 | E42: 4.74416 | F42: 0.43275 | G42: 0.297387 | H42: 13.452503 | I42: 0.4878630006 | J42: 0.2035411956 | K42: 0 | L42: 0.07735210752 | M42: 0.007055859105 | N42: 0.004848805942 | O42: 0.2193390313
A43: 2014 | B43: 32.41856497 | C43: 13.20392003 | D43: 0 | E43: 4.74416 | F43: 0.43275 | G43: 0.320637 | H43: 15.065813 | I43: 0.4898111517 | J43: 0.1994976423 | K43: 0 | L43: 0.07167937495 | M43: 0.006538407117 | N43: 0.004844495073 | O43: 0.2276289288
A44: 2015 | B44: 35.62126497 | C44: 15.19963003 | D44: 0 | E44: 4.77416 | F44: 1.276525 | G44: 0.323187 | H44: 17.585628 | I44: 0.4763449694 | J44: 0.2032568835 | K44: 0 | L44: 0.06384240147 | M44: 0.01707031636 | N44: 0.004321814561 | O44: 0.2351636147
A45: 2016 | B45: 37.90461697 | C45: 17.21348003 | D45: 0 | E45: 4.85496 | F45: 3.281635 | G45: 0.326477 | H45: 19.401848 | I45: 0.456775595 | J45: 0.2074337696 | K45: 0 | L45: 0.05850546504 | M45: 0.03954586274 | N45: 0.003934262838 | O45: 0.2338050447
A46: 2017 | B46: 39.80096697 | C46: 18.45576003 | D46: 0.3733 | E46: 5.25616 | F46: 4.9783525 | G46: 0.332427 | H46: 20.8025705 | I46: 0.4422352414 | J46: 0.2050650553 | K46: 0.004147799116 | L46: 0.05840207822 | M46: 0.05531531234 | N46: 0.003693652335 | O46: 0.2311408613
A47: 2018 | B47: 42.41652197 | C47: 19.37865503 | D47: 0.62497 | E47: 5.46766 | F47: 6.7724425 | G47: 0.349327 | H47: 22.5783455 | I47: 0.4346492998 | J47: 0.1985763672 | K47: 0.006404173664 | L47: 0.05602804003 | M47: 0.06939836776 | N47: 0.003579613059 | O47: 0.2313641385
A48: 2019 | B48: 45.60525697 | C48: 20.46625003 | D48: 0.62497 | E48: 6.36266 | F48: 8.8390375 | G48: 0.360027 | H48: 24.4617705 | I48: 0.4273357284 | J48: 0.1917752568 | K48: 0.005856167204 | L48: 0.05962014308 | M48: 0.08282458601 | N48: 0.003373567227 | O48: 0.2292145513
A49: 2020 | B49: 53.50785197 | C49: 22.87235003 | D49: 0.62497 | E49: 6.76818 | F49: 13.3371775 | G49: 0.360027 | H49: 26.4620155 | I49: 0.4317497096 | J49: 0.1845547919 | K49: 0.005042822802 | L49: 0.05461179326 | M49: 0.1076164021 | N49: 0.002905023225 | O49: 0.2135194572
A50: 2021 | B50: 57.82678697 | C50: 24.50371003 | D50: 2.119015 | E50: 7.04834 | F50: 18.0710925 | G50: 0.360027 | H50: 27.4167305 | I50: 0.4210309178 | J50: 0.178409005 | K50: 0.01542833135 | L50: 0.0513182422 | M50: 0.1315737751 | N50: 0.002621319741 | O50: 0.1996184089
A52: Latest-year annual data (MW): | I52: Percent of total
A53: 2021 | B53: 4318.935 | C53: 1631.36 | D53: 1494.045 | E53: 280.16 | F53: 4733.915 | G53: 0 | H53: 954.715 | I53: 0.3219930769 | J53: 0.1216241101 | K53: 0.1113867531 | L53: 0.02088699655 | M53: 0.3529314187 | N53: 0 | O53: 0.07117764459

Sheet Avg Capacity, Height & Diameter
A1: Average turbine nameplate capacity, hub height, and rotor diameter for land-based wind
A22: Sources: ACP, Berkeley Lab
B24: '98−99 | C24: '00−01 | D24: '02−03 | E24: '04−05 | F24: 2006 | G24: 2007 | H24: 2008 | I24: 2009 | J24: 2010 | K24: 2011 | L24: 2012 | M24: 2013 | N24: 2014 | O24: 2015 | P24: 2016 | Q24: 2017 | R24: 2018 | S24: 2019 | T24: 2020 | U24: 2021
A25: Average Nameplate Capacity (left scale) | B25: 0.7163891 | C25: 0.8882648 | D25: 1.233567 | E25: 1.455627 | F25: 1.612465 | G25: 1.645533 | H25: 1.666853 | I25: 1.741606 | J25: 1.791247 | K25: 1.966372 | L25: 1.945639 | M25: 1.864476 | N25: 1.940735 | O25: 2.006226 | P25: 2.15111 | Q25: 2.321813 | R25: 2.430376 | S25: 2.550852 | T25: 2.762082 | U25: 3.002045
A26: Average Rotor Diameter (right scale) | B26: 48.2067 | C26: 52.945 | D26: 63.6304 | E26: 73.6148 | F26: 77.8719 | G26: 79.0393 | H26: 79.2742 | I26: 81.508 | J26: 84.0837 | K26: 88.9857 | L26: 93.4008 | M26: 96.8857 | N26: 99.4508 | O26: 102.389 | P26: 108.231 | Q26: 113.004 | R26: 115.622 | S26: 121.16 | T26: 124.858 | U26: 127.459
A27: Average Hub Height (right scale) | B27: 56.5707 | C27: 58.1971 | D27: 66.163 | E27: 74.1071 | F27: 75.9643 | G27: 78.1616 | H27: 78.4722 | I27: 78.822 | J27: 79.6662 | K27: 80.9657 | L27: 83.773 | M27: 80.4948 | N27: 82.6772 | O27: 82.4325 | P27: 82.9966 | Q27: 86.0076 | R27: 88.093 | S27: 90.0848 | T27: 90.0557 | U27: 93.9082

Sheet Cap, Height & Diameter Trends
A1: Trends in turbine nameplate capacity, hub height, and rotor diameter
A14: Sources: ACP, Berkeley Lab
A16: Capacity
B17: 2011 | C17: 2012 | D17: 2013 | E17: 2014 | F17: 2015 | G17: 2016 | H17: 2017 | I17: 2018 | J17: 2019 | K17: 2020 | L17: 2021
A18: <2.0 MW | B18: 0.5606 | C18: 0.528 | D18: 0.8316 | E18: 0.6704 | F18: 0.4192 | G18: 0.2217 | H18: 0.0142 | I18: 0.0593 | J18: 0.0232 | K18: 0.0143 | L18: 0
A19: 2.0−2.75 MW | B19: 0.3711 | C19: 0.4117 | D19: 0.0739 | E19: 0.2908 | F19: 0.5227 | G19: 0.6802 | H19: 0.8405 | I19: 0.7611 | J19: 0.7838 | K19: 0.4847 | L19: 0.2941
A20: 2.75−3.5 MW | B20: 0.0683 | C20: 0.0578 | D20: 0.0945 | E20: 0.0388 | F20: 0.0582 | G20: 0.0981 | H20: 0.1453 | I20: 0.1355 | J20: 0.0922 | K20: 0.3533 | L20: 0.506
A21: ≥3.5 MW | B21: 0 | C21: 0.0025 | D21: 0 | E21: 0 | F21: 0 | G21: 0 | H21: 0 | I21: 0.0442 | J21: 0.1008 | K21: 0.1477 | L21: 0.1998
A22: Average | B22: 1.966373 | C22: 1.945639 | D22: 1.864476 | E22: 1.940735 | F22: 2.006226 | G22: 2.15111 | H22: 2.321813 | I22: 2.430376 | J22: 2.550852 | K22: 2.762082 | L22: 3.002045
A24: Hub height
B25: 2011 | C25: 2012 | D25: 2013 | E25: 2014 | F25: 2015 | G25: 2016 | H25: 2017 | I25: 2018 | J25: 2019 | K25: 2020 | L25: 2021
A26: <80 m | B26: 0.0484 | C26: 0.1054 | D26: 0.012 | E26: 0.0016 | F26: 0.0056 | G26: 0.0129 | H26: 0.0069 | I26: 0.0003 | J26: 0.0006 | K26: 0 | L26: 0.0047
A27: 80−90 m | B27: 0.8832 | C27: 0.6526 | D27: 0.9811 | E27: 0.8408 | F27: 0.816 | G27: 0.7877 | H27: 0.6195 | I27: 0.5288 | J27: 0.536 | K27: 0.6308 | L27: 0.5909
A28: 90−100 m | B28: 0.0314 | C28: 0.0811 | D28: 0 | E28: 0.1512 | F28: 0.1756 | G28: 0.1928 | H28: 0.3736 | I28: 0.4548 | J28: 0.4008 | K28: 0.2219 | L28: 0.127
A29: ≥100 m | B29: 0.0369 | C29: 0.1609 | D29: 0.0069 | E29: 0.0064 | F29: 0.0028 | G29: 0.0066 | H29: 0 | I29: 0.016 | J29: 0.0626 | K29: 0.1473 | L29: 0.2773
A30: Average | B30: 80.96569 | C30: 83.773 | D30: 80.49485 | E30: 82.6772 | F30: 82.43246 | G30: 82.99663 | H30: 86.00761 | I30: 88.09305 | J30: 90.08478 | K30: 90.05567 | L30: 93.90815
A32: Rotor diameter
B33: 2011 | C33: 2012 | D33: 2013 | E33: 2014 | F33: 2015 | G33: 2016 | H33: 2017 | I33: 2018 | J33: 2019 | K33: 2020 | L33: 2021
A34: <100 m | B34: 0.7664 | C34: 0.5268 | D34: 0.256 | E34: 0.1952 | F34: 0.1364 | G34: 0.0289 | H34: 0.0096 | I34: 0.0083 | J34: 0.002 | K34: 0.0003 | L34: 0
A35: 100-115 m | B35: 0.2336 | C35: 0.4653 | D35: 0.744 | E35: 0.7952 | F35: 0.7915 | G35: 0.7038 | H35: 0.5993 | I35: 0.4327 | J35: 0.1595 | K35: 0.0855 | L35: 0.1129
A36: 115-130 m | B36: 0 | C36: 0.0079 | D36: 0 | E36: 0.0096 | F36: 0.0722 | G36: 0.2672 | H36: 0.3911 | I36: 0.525 | J36: 0.6919 | K36: 0.7415 | L36: 0.6608
A37: ≥130 m | B37: 0 | C37: 0 | D37: 0 | E37: 0 | F37: 0 | G37: 0 | H37: 0 | I37: 0.034 | J37: 0.1466 | K37: 0.1727 | L37: 0.2263
A38: Average | B38: 88.98567 | C38: 93.40084 | D38: 96.88574 | E38: 99.4508 | F38: 102.3893 | G38: 108.2307 | H38: 113.0038 | I38: 115.622 | J38: 121.1601 | K38: 124.8578 | L38: 127.4595

Sheet Trends in Specific Power
A1: Trends in turbine specific power
A20: Sources: ACP, Berkeley Lab
B24: '98−99 | C24: '00−01 | D24: '02−03 | E24: '04−05 | F24: 2006 | G24: 2007 | H24: 2008 | I24: 2009 | J24: 2010 | K24: 2011 | L24: 2012 | M24: 2013 | N24: 2014 | O24: 2015 | P24: 2016 | Q24: 2017 | R24: 2018 | S24: 2019 | T24: 2020 | U24: 2021
A25: 180−200 | B25: 0 | C25: 0 | D25: 0 | E25: 0 | F25: 0 | G25: 0 | H25: 0 | I25: 0 | J25: 0 | K25: 0 | L25: 0 | M25: 0 | N25: 0.0108 | O25: 0.0371 | P25: 0.0997 | Q25: 0.0834 | R25: 0.0951 | S25: 0.3591 | T25: 0.2626 | U25: 0.1308
A26: ≥200−250 | B26: 0 | C26: 0 | D26: 0 | E26: 0 | F26: 0 | G26: 0 | H26: 0 | I26: 0 | J26: 0.0003 | K26: 0.0516 | L26: 0.2244 | M26: 0.5825 | N26: 0.4784 | O26: 0.4519 | P26: 0.5318 | Q26: 0.6085 | R26: 0.6989 | S26: 0.492 | T26: 0.5487 | U26: 0.6635
A27: ≥250−300 | B27: 0 | C27: 0 | D27: 0.0107 | E27: 0 | F27: 0.002 | G27: 0 | H27: 0.0484 | I27: 0.0751 | J27: 0.3505 | K27: 0.4755 | L27: 0.381 | M27: 0.0687 | N27: 0.2856 | O27: 0.3657 | P27: 0.2859 | Q27: 0.2816 | R27: 0.1823 | S27: 0.1353 | T27: 0.1836 | U27: 0.1752
A28: ≥300−350 | B28: 0.0603 | C28: 0.0208 | D28: 0.1499 | E28: 0.6891 | F28: 0.8321 | G28: 0.9248 | H28: 0.8676 | I28: 0.8355 | J28: 0.5852 | K28: 0.3746 | L28: 0.3414 | M28: 0.3351 | N28: 0.2244 | O28: 0.1401 | P28: 0.0826 | Q28: 0.0248 | R28: 0.0215 | S28: 0.0026 | T28: 0.0031 | U28: 0.0296
A29: ≥350 | B29: 0.9397 | C29: 0.9792 | D29: 0.8394 | E29: 0.3109 | F29: 0.1659 | G29: 0.0752 | H29: 0.0839 | I29: 0.0894 | J29: 0.0639 | K29: 0.0983 | L29: 0.0532 | M29: 0.0137 | N29: 0.0008 | O29: 0.0051 | P29: 0 | Q29: 0.0017 | R29: 0.0022 | S29: 0.0111 | T29: 0.002 | U29: 0.0009
A30: Average | B30: 392.8353 | C30: 389.8783 | D30: 377.0353 | E30: 340.0634 | F30: 334.2662 | G30: 330.7503 | H30: 332.562 | I30: 329.2824 | J30: 319.1867 | K30: 314.9132 | L30: 285.9007 | M30: 255.2573 | N30: 250.6265 | O30: 245.0146 | P30: 233.4347 | Q30: 230.6828 | R30: 229.8354 | S30: 219.8276 | T30: 223.1508 | U30: 230.9816

Sheet Wind Resource by Year
A1: Wind resource quality by year of installation at 100 meters
A22: Sources: ACP, Berkeley Lab, AWS Truepower, FAA Obstacle Evaluation / Airport Airspace Analysis files
A23: Notes: Turbines used in this figure have been screened to remove offshore turbines and those >1000ft. The wind resource quality index is based on site estimates of gross capacity factor at 100 meters by AWS Truepower. A single, common wind-turbine power curve is used across all sites and timeframes, and no losses are assumed. Values are indexed to those projects built in 1998—1999.
A26: Year | B26: label | C26: Wind speed | D26: Wind speed | E26: Wind resource quality | F26: Wind resource quality
C27: m/s, 100m | D27: m/s, 100m FAA | E27: index, 100m | F27: index, 100m FAA
A28: 1998-99 | C28: 8.809793 | E28: 100
A29: 2000-1 | B29: 00-01 | C29: 8.378744 | E29: 93.65463307
A30: 2002-3 | C30: 8.296857 | E30: 92.24503015
A31: 2004-5 | B31: 04-05 | C31: 8.299285 | E31: 92.33152059
A32: 2006 | C32: 8.012197 | E32: 88.30454072
A33: 2007 | B33: =A33 -> 2007 | C33: 8.251531 | E33: 90.74008935
A34: 2008 | C34: 8.236069 | E34: 91.09732936
A35: 2009 | B35: =A35 -> 2009 | C35: 7.906085 | E35: 85.71463553
A36: 2010 | C36: 7.88205 | E36: 84.96281751
A37: 2011 | B37: =A37 -> 2011 | C37: 7.673553 | E37: 82.38476253
A38: 2012 | C38: 7.678964 | E38: 82.06516435
A39: 2013 | B39: =A39 -> 2013 | C39: 7.982574 | E39: 85.82429018
A40: 2014 | C40: 8.34197 | E40: 91.40432663
A41: 2015 | B41: =A41 -> 2015 | C41: 8.262725 | E41: 90.17222661
A42: 2016 | C42: 8.268111 | E42: 90.99210737
A43: 2017 | B43: =A43 -> 2017 | C43: 8.079531 | E43: 87.30778264
A44: 2018 | C44: 8.102968 | E44: 87.83896871
A45: 2019 | B45: =A45 -> 2019 | C45: 8.177437 | E45: 89.97086243
A46: 2020 | C46: 8.013368 | E46: 85.81199313
A47: 2021 | B47: =A47 -> 2021 | C47: 7.998228 | E47: 85.60031586
A49: Under Construction (Under Const.) | D49: 7.818977 | F49: 83.67034041
A50: Advanced Development (Adv. Dev.) | D50: 7.982147 | F50: 84.14223969
A51: Pending | D51: 7.998617 | F51: 83.45910999
A52: Proposed | D52: 7.931828 | F52: 86.23570513

Sheet Location of Tall Tower & Low SP
A1: Locations of tall tower and low specific power installations at end of 2021
A27: Sources: ACP, U.S. Wind Turbine Database, AWS Truepower, Berkeley Lab

Sheet Future Total Height Trends
A1: Total turbine height trends based on to-be-built projects via FAA applications, and compared to FAA heights for 2021 installations (note: blade tip height, not hub height)
A21: Sources: ACP, FAA Obstacle Evaluation / Airport Airspace Analysis files, Berkeley Lab | K21: Sources: FAA Obstacle Evaluation / Airport Airspace Analysis files, AWS Truepower, ACP, Berkeley Lab
K22: Note: Figure includes FAA data on under construction, advanced development, pending. and proposed turbines
A24: Total height | B24: 2021 projects | C24: Under const. | D24: Adv. dev. | E24: Pending | F24: Proposed
A25: <450 ft | B25: 422 | C25: 0 | D25: 180 | E25: 28 | F25: 18
A26: 450−550 ft | B26: 2793 | C26: 589 | D26: 1751 | E26: 2904 | F26: 821
A27: 550−650 ft | B27: 1245 | C27: 312 | D27: 385 | E27: 3301 | F27: 4391
A28: 650−750 ft | B28: 4 | C28: 932 | D28: 288 | E28: 3758 | F28: 4517
A29: >750 ft | B29: 0 | C29: 0 | D29: 0 | E29: 2 | F29: 347
A30: Average: right axis | B30: 517.119 | C30: 614.3361 | D30: 524.5008 | E30: 599.3354 | F30: 642.5179

Sheet Partial Repowering Over Time
A1: Annual amount of partially repowered wind power capacity and number of turbines
A22: Sources: ACP, Berkeley Lab, turbine manufacturers
A27: Repower year | B27: Original capacity (MW) | C27: Added capacity (MW) | D27: Number of turbines (#)
A28: 2015 | B28: 5.82 | C28: 0.45 | D28: 9
A29: 2016 | B29: 0 | C29: 0 | D29: 0
A30: 2017 | B30: 2130.7 | C30: 12.52 | D30: 1317
A31: 2018 | B31: 1311.76 | C31: 11.16 | D31: 1106
A32: 2019 | B32: 2863.58 | C32: 181.568 | D32: 1828
A33: 2020 | B33: 3036.08 | C33: 74.328 | D33: 1807
A34: 2021 | B34: 1583.3 | C34: 144.93 | D34: 769

Sheet Average Retrofit Tech Change
A1: 2021 retrofitted turbine changes in average hub height, rotor diameter, capacity, and specific power
A22: Sources: ACP, Berkeley Lab, turbine manufacturers
A23: Note: Average changes above are derived from all turbines that received any retrofit change (n=769)
L25: 2015 | M25: 2016 | N25: 2017 | O25: 2018 | P25: 2019 | Q25: 2020 | R25: 2021
B26: 2021 Changes | D26: average | E26: average | G26: Number of Turbines Undergoing Any Change in Year | L26: 9 | M26: 0 | N26: 1317 | O26: 1106 | P26: 1828 | Q26: 1827 | R26: 769
B27: Hub Height | C27: Original | D27: 81.9844 | G27: Hub Height | H27: Number of Turbines with Change | L27: 0 | M27: n/a | N27: 0 | O27: 138 | P27: 47 | Q27: 0 | R27: 23
C28: Retrofitted | D28: =D27+0.144 -> 82.1284 | H28: Average Pre-Retrofit | L28: n/a | M28: n/a | N28: n/a | O28: 64.7826 | P28: 79.7826 | Q28: n/a | R28: 85
B29: Rotor Diameter | C29: Original | D29: 91.435 | H29: Average Change | L29: 0 | M29: n/a | N29: 0 | O29: 15 | P29: 6.5 | Q29: 0 | R29: 4.82
C30: Retrofitted | D30: =D29+22.5251 -> 113.9601 | G30: Rotor Diameter | H30: Number of Turbines with Change | L30: 0 | M30: n/a | N30: 1317 | O30: 681 | P30: 1648 | Q30: 1769 | R30: 755
B31: Capacity | C31: Original | E31: 2.15455 | H31: Average Pre-Retrofit | L31: n/a | M31: n/a | N31: 78.2168 | O31: 70.9435 | P31: 80.142 | Q31: 80.9081 | R31: 91.2762
C32: Retrofitted | E32: =E31+0.292955 -> 2.447505 | H32: Average Change | L32: 0 | M32: n/a | N32: 12.19894 | O32: 10.63877 | P32: 14.40686 | Q32: 14.32447 | R32: 22.953
B33: Hub Height | C33: Original | G33: Capacity | H33: Number of Turbines with Change | L33: 9 | M33: n/a | N33: 113 | O33: 93 | P33: 1102 | Q33: 1502 | R33: 654
C34: Retrofitted | H34: Average Pre-Retrofit | L34: 0.646667 | M34: n/a | N34: 1.5 | O34: 1.5 | P34: 1.42666 | Q34: 1.65192 | R34: 2.083
B35: Rotor Diameter | C35: Original | H35: Average Change | L35: 0.05 | M35: n/a | N35: 0.1107965 | O35: 0.12 | P35: 0.1647623 | Q35: 0.050154 | R35: 0.286
C36: Retrofitted | G36: Specific Power | H36: Number of Turbines with Change | L36: 9 | M36: n/a | N36: 1317 | O36: 681 | P36: 1796 | Q36: 1827 | R36: 769
B37: Specific Power | C37: Original | D37: 312.343 | H37: Average Pre-Retrofit | L37: 392.117 | M37: n/a | N37: 335.445 | O37: 373.121 | P37: 328.338 | Q37: 334.2992 | R37: 312.34
C38: Retrofitted | D38: =D37-89.4275 -> 222.9155 | H38: Average Change | L38: 30.4348 | M38: n/a | N38: -82.8436 | O38: -82.4208 | P38: -67.2547 | Q38: -82.45772 | R38: -89.42
G39: Note: Table above shows changes for only turbines that received that change, rather than for all turbines that received any change, as is shown in the figure and the table to the left.

Sheet Capacity Factor in 2021 by COD
A1: Calendar year 2021 capacity factors by commercial operation date
A22: Source: EIA, FERC, Berkeley Lab
A25: Capacity Factor in 2021 | D25: Capacity-
D26: Weighted | E26: Fleet-wide | H26: Fleet-wide | J26: 2021
D27: Average | E27: Average | H27: Average | J27: Capacity | K27: COD
A28: Project | B28: Sample | C28: Sample | D28: Capacity | E28: Capacity | H28: Capacity | J28: Factor | K28: Code
A29: COD | B29: Projects | C29: GW | D29: Factor | E29: Factor | H29: Factor | J29: 0.6564470537 | K29: 6
A30: 1 | B30: 16 | C30: 0.59757 | D30: 0.2146539757 | E30: 0.3481760486 | G30: 1999 | H30: 0.2660661425 | J30: 0.5421547217 | K30: 17
A31: 2 | B31: 32 | C31: 0.73539 | D31: 0.1786611409 | E31: 0.3481760486 | G31: =G30+1 -> 2000 | H31: 0.3150263294 | J31: 0.528630137 | K31: 17
A32: 3 | B32: 36 | C32: 1.34435 | D32: 0.2272618041 | E32: 0.3481760486 | G32: =G31+1 -> 2001 | H32: 0.3158584174 | J32: 0.5279567116 | K32: 18
A33: 4 | B33: 27 | C33: 1.63843 | D33: 0.2725819882 | E33: 0.3481760486 | G33: 2002 | H33: 0.3001339847 | J33: 0.5237259178 | K33: 16
A34: 5 | B34: 23 | C34: 1.25358 | D34: 0.2677382206 | E34: 0.3481760486 | G34: 2003 | H34: 0.2874212626 | J34: 0.5230326831 | K34: 19
A35: 6 | B35: 31 | C35: 4.01355 | D35: 0.2724648677 | E35: 0.3481760486 | G35: 2004 | H35: 0.2992920964 | J35: 0.5205494878 | K35: 14
A36: 7 | B36: 63 | C36: 4.87695 | D36: 0.2458018081 | E36: 0.3481760486 | G36: 2005 | H36: 0.2987657724 | J36: 0.5067847859 | K36: 19
A37: 8 | B37: 85 | C37: 7.41576 | D37: 0.26213391 | E37: 0.3481760486 | G37: 2006 | H37: 0.3214115141 | J37: 0.50026771 | K37: 19
A38: 9 | B38: 50 | C38: 4.2472 | D38: 0.2728615296 | E38: 0.3481760486 | G38: 2007 | H38: 0.3237302892 | J38: 0.4983007991 | K38: 14
A39: 10 | B39: 77 | C39: 5.6124 | D39: 0.2689918078 | E39: 0.3481760486 | G39: 2008 | H39: 0.3434862821 | J39: 0.4982793991 | K39: 14
A40: 11 | B40: 133 | C40: 12.09736 | D40: 0.3299629689 | E40: 0.3481760486 | G40: 2009 | H40: 0.2978219643 | J40: 0.4982426808 | K40: 17
A41: 12 | B41: 14 | C41: 0.99122 | D41: 0.3670374288 | E41: 0.3481760486 | G41: 2010 | H41: 0.3071462072 | J41: 0.4952748486 | K41: 18
A42: 13 | B42: 43 | C42: 5.134998 | D42: 0.3881135772 | E42: 0.3481760486 | G42: 2011 | H42: 0.3338801427 | J42: 0.4922874056 | K42: 19
A43: 14 | B43: 59 | C43: 8.34331 | D43: 0.3872529287 | E43: 0.3481760486 | G43: 2012 | H43: 0.3248112324 | J43: 0.4912313005 | K43: 18
A44: 15 | B44: 60 | C44: 7.637182 | D44: 0.4034037605 | E44: 0.3481760486 | G44: 2013 | H44: 0.3234993729 | J44: 0.4870106164 | K44: 19
A45: 16 | B45: 64 | C45: 6.906915 | D45: 0.4043066964 | E45: 0.3481760486 | G45: 2014 | H45: 0.3378293768 | J45: 0.4851966788 | K45: 16
A46: 17 | B46: 59 | C46: 7.877065 | D46: 0.4126097577 | E46: 0.3481760486 | G46: 2015 | H46: 0.3197208257 | J46: 0.4851222417 | K46: 17
A47: 18 | B47: 39 | C47: 7.299285 | D47: 0.401170585 | E47: 0.3481760486 | G47: 2016 | H47: 0.3426148425 | J47: 0.4844148936 | K47: 15
A48: 19 | B48: 78 | C48: 15.080925 | D48: 0.3816314155 | E48: 0.3481760486 | G48: 2017 | H48: 0.3452694088 | J48: 0.484206427 | K48: 15
G49: 2018 | H49: 0.3489272949 | J49: 0.4836461187 | K49: 14
G50: 2019 | H50: 0.3473789146 | J50: 0.4823188737 | K50: 14
G51: 2020 | H51: 0.3559698699 | J51: 0.4817280768 | K51: 18
G52: 2021 | H52: 0.3481760486 | J52: 0.4798720239 | K52: 16
J53: 0.4787164605 | K53: 17
J54: 0.4778159166 | K54: 11
J55: 0.4772360999 | K55: 15
J56: 0.4760797744 | K56: 19
J57: 0.4752779963 | K57: 17
J58: 0.4752233472 | K58: 16
J59: 0.4736099919 | K59: 16
J60: 0.4726377473 | K60: 18
J61: 0.4726198242 | K61: 18
J62: 0.4720808031 | K62: 14
J63: 0.4720037242 | K63: 17
J64: 0.4718332894 | K64: 11
J65: 0.471384164 | K65: 17
J66: 0.4712181692 | K66: 14
J67: 0.4711232877 | K67: 16
J68: 0.4710338894 | K68: 18
J69: 0.4700021319 | K69: 15
J70: 0.4699496237 | K70: 13
J71: 0.4693242009 | K71: 15
J72: 0.4690182648 | K72: 13
J73: 0.4689425093 | K73: 19
J74: 0.4684968794 | K74: 11
J75: 0.4682262066 | K75: 14
J76: 0.4680725534 | K76: 16
J77: 0.4677747336 | K77: 14
J78: 0.4677662219 | K78: 19
J79: 0.4676020905 | K79: 15
J80: 0.4669554896 | K80: 18
J81: 0.4667578467 | K81: 15
J82: 0.4666286149 | K82: 11
J83: 0.4654631455 | K83: 19
J84: 0.4654420922 | K84: 18
J85: 0.4654207262 | K85: 12
J86: 0.465135287 | K86: 19
J87: 0.4651012732 | K87: 16
J88: 0.465089108 | K88: 15
J89: 0.4640903302 | K89: 18
J90: 0.4640183331 | K90: 13
J91: 0.4639079148 | K91: 11
J92: 0.4626130917 | K92: 11
J93: 0.462512667 | K93: 14
J94: 0.4623302984 | K94: 16
J95: 0.460916992 | K95: 17
J96: 0.4607477169 | K96: 14
J97: 0.4597374429 | K97: 16
J98: 0.4597053199 | K98: 13
J99: 0.4595922121 | K99: 15
J100: 0.45879414 | K100: 17
J101: 0.4587217595 | K101: 13
J102: 0.4584820811 | K102: 18
J103: 0.4584662108 | K103: 16
J104: 0.4578744292 | K104: 15
J105: 0.4558837765 | K105: 15
J106: 0.4558434253 | K106: 17
J107: 0.454576051 | K107: 15
J108: 0.4534098501 | K108: 13
J109: 0.4533285268 | K109: 14
J110: 0.4527145628 | K110: 11
J111: 0.452263097 | K111: 19
J112: 0.4522502929 | K112: 18
J113: 0.4516668383 | K113: 17
J114: 0.4504444886 | K114: 17
J115: 0.4493562718 | K115: 18
J116: 0.4492009132 | K116: 12
J117: 0.4491938666 | K117: 17
J118: 0.4484660444 | K118: 17
J119: 0.4480926088 | K119: 18
J120: 0.4480089981 | K120: 14
J121: 0.4476898782 | K121: 18
J122: 0.4469299848 | K122: 16
J123: 0.4462631628 | K123: 14
J124: 0.4455105005 | K124: 13
J125: 0.4450208207 | K125: 15
J126: 0.4449104838 | K126: 19
J127: 0.4442306189 | K127: 14
J128: 0.4431598554 | K128: 16
J129: 0.4429452055 | K129: 19
J130: 0.4424467275 | K130: 16
J131: 0.4423102376 | K131: 16
J132: 0.4421506849 | K132: 13
J133: 0.4420471842 | K133: 11
J134: 0.4419520548 | K134: 19
J135: 0.4412627327 | K135: 15
J136: 0.4412501882 | K136: 11
J137: 0.4410115635 | K137: 17
J138: 0.4409496433 | K138: 15
J139: 0.4402337072 | K139: 17
J140: 0.4392386961 | K140: 15
J141: 0.4390405825 | K141: 19
J142: 0.4388051233 | K142: 18
J143: 0.4384859838 | K143: 19
J144: 0.4383175612 | K144: 11
J145: 0.437668729 | K145: 13
J146: 0.4375127316 | K146: 17
J147: 0.4371699702 | K147: 15
J148: 0.436619863 | K148: 15
J149: 0.4363936753 | K149: 18
J150: 0.436124786 | K150: 11
J151: 0.4357982412 | K151: 17
J152: 0.4352435159 | K152: 19
J153: 0.4350870687 | K153: 17
J154: 0.4330022263 | K154: 11
J155: 0.432793116 | K155: 16
J156: 0.432002407 | K156: 17
J157: 0.4318926652 | K157: 18
J158: 0.4314849186 | K158: 11
J159: 0.4311455479 | K159: 14
J160: 0.4309010654 | K160: 17
J161: 0.4307614155 | K161: 14
J162: 0.4307325789 | K162: 13
J163: 0.4305738768 | K163: 10
J164: 0.4300527129 | K164: 16
J165: 0.4294901065 | K165: 16
J166: 0.4272871005 | K166: 14
J167: 0.4270053759 | K167: 19
J168: 0.4269661488 | K168: 14
J169: 0.4258761175 | K169: 18
J170: 0.4254371475 | K170: 17
J171: 0.4245656393 | K171: 15
J172: 0.4244060057 | K172: 19
J173: 0.4239535563 | K173: 14
J174: 0.4235532569 | K174: 16
J175: 0.4233722401 | K175: 19
J176: 0.4233477792 | K176: 15
J177: 0.423105032 | K177: 19
J178: 0.4226159115 | K178: 15
J179: 0.4223444491 | K179: 10
J180: 0.4221327734 | K180: 19
J181: 0.4218696326 | K181: 19
J182: 0.4217325211 | K182: 14
J183: 0.4217216687 | K183: 14
J184: 0.4216125782 | K184: 19
J185: 0.421417821 | K185: 16
J186: 0.4213507247 | K186: 17
J187: 0.4212826484 | K187: 16
J188: 0.4211156758 | K188: 19
J189: 0.4211074413 | K189: 16
J190: 0.4210896872 | K190: 15
J191: 0.4204308629 | K191: 13
J192: 0.4198491767 | K192: 13
J193: 0.4196993912 | K193: 5
J194: 0.4193783897 | K194: 19
J195: 0.4193302892 | K195: 10
J196: 0.4190104592 | K196: 19
J197: 0.4189105784 | K197: 17
J198: 0.4188730666 | K198: 15
J199: 0.4185281583 | K199: 13
J200: 0.4173243213 | K200: 11
J201: 0.4171986244 | K201: 19
J202: 0.41637374 | K202: 17
J203: 0.4151781919 | K203: 12
J204: 0.415152968 | K204: 15
J205: 0.4146840776 | K205: 11
J206: 0.4142694064 | K206: 16
J207: 0.4142694064 | K207: 16
J208: 0.4133926941 | K208: 16
J209: 0.4132340183 | K209: 14
J210: 0.4128234399 | K210: 16
J211: 0.4128234399 | K211: 16
J212: 0.4128234399 | K212: 16
J213: 0.4123404677 | K213: 19
J214: 0.4122313821 | K214: 17
J215: 0.4121380261 | K215: 19
J216: 0.4112186073 | K216: 17
J217: 0.4111843607 | K217: 15
J218: 0.4108789723 | K218: 11
J219: 0.4103744932 | K219: 19
J220: 0.4098669843 | K220: 17
J221: 0.4091992166 | K221: 15
J222: 0.4091749787 | K222: 18
... 795 more rows

Sheet Capacity Factor by State
A1: Average calendar year 2021 capacity factors by state
A25: Source: EIA, FERC, Berkeley Lab
A26: Note: States shaded in white have no projects in full sample (left) or in newer sample (right)
B28: 1998- | C28: 2016-
B29: 2020 | C29: 2020
B30: Projects | C30: Projects
A31: NM | B31: 0.4212872364 | C31: 0.4572963403
A32: ND | B32: 0.4150973134 | C32: 0.4450965813
A33: NE | B33: 0.4134160159 | C33: 0.4207837732
A34: KS | B34: 0.4073357888 | C34: 0.4342227921
A35: OK | B35: 0.3991025805 | C35: 0.4211306804
A36: SD | B36: 0.3824652219 | C36: 0.4582242126
A37: IA | B37: 0.3672092474 | C37: 0.4103857819
A38: WY | B38: 0.3633181521 | C38: 0.4013804595
A39: MT | B39: 0.358484315 | C39: 0.381834182
A40: CO | B40: 0.3526540176 | C40: 0.4090819616
A41: TX | B41: 0.349885483 | C41: 0.3891492555
A42: IL | B42: 0.3381389791 | C42: 0.3726532659
A43: HI | B43: 0.3373841524 | C43: 0.404519059
A44: MO | B44: 0.3171582596 | C44: 0.3458809056
A45: WA | B45: 0.3157641979 | C45: 0.3347667442
A46: ID | B46: 0.3141268881
A47: MD | B47: 0.3108813987
A48: OH | B48: 0.3080300133 | C48: 0.3287002009
A49: MI | B49: 0.3053233618 | C49: 0.2998504828
A50: NJ | B50: 0.3002891933
A51: OR | B51: 0.2986419664 | C51: 0.3608594572
A52: AZ | B52: 0.2961335992 | C52: 0.349446987
A53: MN | B53: 0.2951772463 | C53: 0.4128255583
A54: ME | B54: 0.291404105 | C54: 0.3170819284
A55: CT | B55: 0.2912785388
A56: IN | B56: 0.2900514813 | C56: 0.347141421
A57: CA | B57: 0.2884828592 | C57: 0.3741395693
A58: NC | B58: 0.277245785 | C58: 0.277245785
A59: DE | B59: 0.2767694064
A60: NH | B60: 0.2689114799 | C60: 0.3093845129
A61: AK | B61: 0.2686363636
A62: PA | B62: 0.2661766703 | C62: 0.3168418981
A63: VT | B63: 0.2612143564 | C63: 0.3554452055
A64: NY | B64: 0.2568801244 | C64: 0.3251839168
A65: NV | B65: 0.2556415856
A66: MA | B66: 0.2503813802 | C66: 0.2102739726
A67: WV | B67: 0.2503746132 | C67: 0.329449753
A68: WI | B68: 0.2474985311 | C68: 0.4235532569
A69: UT | B69: 0.2417352418 | C69: 0.287725426
A70: RI | B70: 0.2309768428 | C70: 0.2394977169
A71: TN | B71: 0.1191696262
A72: U.S. | B72: 0.3481760486 | C72: 0.3980976989

Sheet Capacity Factor Drivers
A1: 2021 capacity factors and various drivers by commercial operation date
A22: Note: In order to have all three indices be directionally consistent with their influence on capacity factor, this figure indexes the inverse of specific power (i.e., a decline in specific power causes the index to increase rather than decrease).
A23: Source: EIA, FERC, Berkeley Lab
B26: Weighted- | C26: Index of | D26: Index of | E26: Index of
B27: Average | C27: the Inverse | D27: Built | E27: Built Wind
B28: Capacity | C28: of Built | D28: Turbine | E28: Resource
B29: Factor | C29: Specific | D29: Hub | E29: Quality
B30: in 2021 | C30: Power | D30: Height | E30: at 100m
A31: 1998-99 | B31: 0.2146539757 | C31: 100 | D31: 100 | E31: 100
A32: 2000-01 | B32: 0.1786611409 | C32: 100.7584418 | D32: 102.8749865 | E32: 93.65463307
A33: 2002-03 | B33: 0.2272618041 | C33: 104.1905891 | D33: 116.9563042 | E33: 92.24503015
A34: 2004-05 | B34: 0.2725819882 | C34: 115.5182534 | D34: 130.9990861 | E34: 92.33152059
A35: 2006 | B35: 0.2677382206 | C35: 117.5216938 | D35: 134.2820577 | E35: 88.30454072
A36: 2007 | B36: 0.2724648677 | C36: 118.770958 | D36: 138.1662239 | E36: 90.74008935
A37: 2008 | B37: 0.2458018081 | C37: 118.1239288 | D37: 138.7152713 | E37: 91.09732936
A38: 2009 | B38: 0.26213391 | C38: 119.3004242 | D38: 139.3336126 | E38: 85.71463553
A39: 2010 | B39: 0.2728615296 | C39: 123.0738311 | D39: 140.8259046 | E39: 84.96281751
A40: 2011 | B40: 0.2689918078 | C40: 124.7439929 | D40: 143.1230301 | E40: 82.38476253
A41: 2012 | B41: 0.3299629689 | C41: 137.4027066 | D41: 148.085493 | E41: 82.06516435
A42: 2013 | B42: 0.3670374288 | C42: 153.897773 | D42: 142.2906204 | E42: 85.82429018
A43: 2014 | B43: 0.3881135772 | C43: 156.7413262 | D43: 146.1484479 | E43: 91.40432663
A44: 2015 | B44: 0.3872529287 | C44: 160.3313843 | D44: 145.7158918 | E44: 90.17222661
A45: 2016 | B45: 0.4034037605 | C45: 168.284878 | D45: 146.7130511 | E45: 90.99210737
A46: 2017 | B46: 0.4043066964 | C46: 170.2924102 | D46: 152.0355944 | E46: 87.30778264
A47: 2018 | B47: 0.4126097577 | C47: 170.920276 | D47: 155.721955 | E47: 87.83896871
A48: 2019 | B48: 0.401170585 | C48: 178.701537 | D48: 159.2428589 | E48: 89.97086243
A49: 2020 | B49: 0.3816314155 | C49: 176.0402831 | D49: 159.1914189 | E49: 85.81199313
A50: 2021 | C50: 170.0721183 | D50: 166.0014813 | E50: 85.60031586

Sheet Influence of Specific Power
A1: Calendar year 2021 capacity factors by wind resource quality and specific power
A22: Source: EIA, FERC, Berkeley Lab
A23: Note: Wind resource quality is based on site estimates of gross capacity factor at 100 meters by AWS Truepower, using a single, common wind-turbine power curve. The “lower” category includes all projects with an estimated gross capacity factor of less than 42%; “medium” corresponds to ≥42%–48%; “higher” ≥48%–54%; and “highest” ≥54%.
A25: 1998-2020 Projects | J25: 2014-2020 Projects
A26: Average Capacity Factor | C26: Wind Resource Quality | J26: Average Capacity Factor | L26: Wind Resource Quality
A27: Specific Power Range | C27: Lower | D27: Medium | E27: Higher | F27: Highest | J27: Specific Power Range | L27: Lower | M27: Medium | N27: Higher | O27: Highest
B28: ≥ 400 W/m2 | C28: 0.1954584767 | D28: 0.2091643329 | E28: 0.2508289894 | F28: 0.229976505 | K28: ≥ 275 W/m2 | L28: 0.2985592281 | M28: 0.3113401507 | N28: 0.3582962546 | O28: 0.3835901329
A29: < 400 W/m2 | B29: ≥ 350 W/m2 | C29: 0.1956320596 | D29: 0.2142148277 | E29: 0.2671317872 | F29: 0.2600273975 | J29: < 275 W/m2 | K29: ≥ 250 W/m2 | L29: 0.309644407 | M29: 0.3382791163 | N29: 0.4048125005 | O29: 0.41420199
A30: < 350 W/m2 | B30: ≥ 300 W/m2 | C30: 0.2733926386 | D30: 0.2802474094 | E30: 0.2763852474 | F30: 0.2912697936 | J30: < 250 W/m2 | K30: ≥ 225 W/m2 | L30: 0.3088277707 | M30: 0.3459231718 | N30: 0.3927101445 | O30: 0.4402870354
A31: < 300 W/m2 | B31: ≥ 250 W/m2 | C31: 0.2832490088 | D31: 0.3148056231 | E31: 0.3829276385 | F31: 0.4013832092 | J31: < 225 W/m2 | K31: ≥ 200 W/m2 | L31: 0.3388750425 | M31: 0.383840672 | N31: 0.4247113326 | O31: 0.4493349761
A32: < 250 W/m2 | C32: 0.3288709981 | D32: 0.3753142043 | E32: 0.4198166324 | F32: 0.4476162005 | J32: < 200 W/m2 | L32: 0.3109827338 | M32: 0.394290137 | N32: 0.4463594483 | O32: 0.4549944
A35: Projects in Sample | C35: Wind Resource Quality | J35: Projects in Sample | L35: Wind Resource Quality
A36: Specific Power Range | C36: Lower | D36: Medium | E36: Higher | F36: Highest | J36: Specific Power Range | L36: Lower | M36: Medium | N36: Higher | O36: Highest
B37: ≥ 400 W/m2 | C37: 3 | D37: 8 | E37: 10 | F37: 13 | K37: ≥ 275 W/m2 | L37: 17 | M37: 7 | N37: 13 | O37: 22
A38: < 400 W/m2 | B38: ≥ 350 W/m2 | C38: 11 | D38: 26 | E38: 8 | F38: 35 | J38: < 275 W/m2 | K38: ≥ 250 W/m2 | L38: 23 | M38: 12 | N38: 33 | O38: 19
A39: < 350 W/m2 | B39: ≥ 300 W/m2 | C39: 93 | D39: 66 | E39: 78 | F39: 75 | J39: < 250 W/m2 | K39: ≥ 225 W/m2 | L39: 14 | M39: 25 | N39: 27 | O39: 13
A40: < 300 W/m2 | B40: ≥ 250 W/m2 | C40: 83 | D40: 38 | E40: 66 | F40: 40 | J40: < 225 W/m2 | K40: ≥ 200 W/m2 | L40: 20 | M40: 32 | N40: 52 | O40: 32
A41: < 250 W/m2 | C41: 60 | D41: 81 | E41: 92 | F41: 51 | J41: < 200 W/m2 | L41: 9 | M41: 13 | N41: 9 | O41: 6
A44: MW in Sample | C44: Wind Resource Quality | J44: MW in Sample | L44: Wind Resource Quality
A45: Specific Power Range | C45: Lower | D45: Medium | E45: Higher | F45: Highest | J45: Specific Power Range | L45: Lower | M45: Medium | N45: Higher | O45: Highest
B46: ≥ 400 W/m2 | C46: 135.025 | D46: 688.95 | E46: 843.3 | F46: 854.45 | K46: ≥ 275 W/m2 | L46: 599.2 | M46: 271.4 | N46: 1900.65 | O46: 2725.35
A47: < 400 W/m2 | B47: ≥ 350 W/m2 | C47: 323 | D47: 2007.7 | E47: 682.28 | F47: 1616.02 | J47: < 275 W/m2 | K47: ≥ 250 W/m2 | L47: 1242.13 | M47: 2165.375 | N47: 5619.252 | O47: 3867.103
A48: < 350 W/m2 | B48: ≥ 300 W/m2 | C48: 5313.665 | D48: 6678.3 | E48: 8005.34 | F48: 8156.57 | J48: < 250 W/m2 | K48: ≥ 225 W/m2 | L48: 1597.18 | M48: 2604.32 | N48: 4201.155 | O48: 2110.08
A49: < 300 W/m2 | B49: ≥ 250 W/m2 | C49: 3793.97 | D49: 4999.605 | E49: 9183.852 | F49: 6350.503 | J49: < 225 W/m2 | K49: ≥ 200 W/m2 | L49: 2707.36 | M49: 6140.77 | N49: 8753.73 | O49: 5130.715
A50: < 250 W/m2 | C50: 6118.84 | D50: 12143.96 | E50: 16495.115 | F50: 8141.635 | J50: < 200 W/m2 | L50: 562.4 | M50: 2108.7 | N50: 2755.43 | O50: 900.84

Sheet Curtailment and Penetration
A1: Wind curtailment and penetration rates by ISO
A21: Sources: ERCOT, MISO, CAISO, NYISO, PJM, ISO-NE, SPP | M21: Sources: ERCOT, MISO, CAISO, NYISO, PJM, ISO-NE, SPP
D23: Wind | E23: Wind
D24: Penetration | E24: Curtailment
D25: % | E25: % | F25: Year
A26: 2014-21 SPP | F26: 2007
F27: 2008
F28: 2009
F29: 2010 | I29: Wind
F30: 2011 | H30: ISO | I30: Curtailment
F31: 2012 | H31: Region | I31: 2021 %
F32: 2013 | H32: CAISO | I32: 0.003883324236
D33: 0.1196495057 | E33: 0.007119886646 | F33: 2014 | H33: PJM | I33: 0.01766219047
D34: 0.1347678589 | E34: 0.00929959518 | F34: 2015 | H34: ISO-NE | I34: 0.01813115583
D35: 0.1753955116 | E35: 0.01655975111 | F35: 2016 | H35: NYISO | I35: 0.01979534555
D36: 0.2298008427 | E36: 0.02800968575 | F36: 2017 | H36: MISO | I36: 0.04737857197
D37: 0.2383081156 | E37: 0.0128608194 | F37: 2018 | H37: ERCOT | I37: 0.05150225526
D38: 0.275131358 | E38: 0.01570461898 | F38: 2019 | H38: SPP | I38: 0.06353499046
D39: 0.3126348056 | E39: 0.02528591583 | F39: 2020
D40: 0.3484425205 | E40: 0.06353499046 | F40: 2021
A42: 2007-21 ERCOT | D42: 0.02866988535 | E42: 0.01221103785 | F42: 2007
D43: 0.04877505376 | E43: 0.08506083651 | F43: 2008
D44: 0.06102125101 | E44: 0.1707036188 | F44: 2009
D45: 0.07744855047 | E45: 0.07716663567 | F45: 2010
D46: 0.08446383978 | E46: 0.08479260773 | F46: 2011
D47: 0.09174225231 | E47: 0.03794342906 | F47: 2012
D48: 0.09860319647 | E48: 0.01098066763 | F48: 2013
D49: 0.1062614139 | E49: 0.00512064749 | F49: 2014
D50: 0.117289641 | E50: 0.009519259763 | F50: 2015
D51: 0.1510455221 | E51: 0.01567669526 | F51: 2016
D52: 0.1736987272 | E52: 0.02157937785 | F52: 2017
D53: 0.1851303609 | E53: 0.02538171212 | F53: 2018
D54: 0.1993133381 | E54: 0.02691535119 | F54: 2019
D55: 0.2273367928 | E55: 0.04611486993 | F55: 2020
D56: 0.2417061935 | E56: 0.05150225526 | F56: 2021
A58: 2009-21 MISO | F58: 2007
F59: 2008
D60: 0.02714458276 | E60: 0.01947533746 | F60: 2009
D61: 0.03418919388 | E61: 0.03879733092 | F61: 2010
D62: 0.04560506076 | E62: 0.03185828482 | F62: 2011
D63: 0.06214660257 | E63: 0.02601906753 | F63: 2012
D64: 0.06853903369 | E64: 0.04722765101 | F64: 2013
D65: 0.05675085807 | E65: 0.05515661055 | F65: 2014
D66: 0.06222216655 | E66: 0.05426408632 | F66: 2015
D67: 0.06903076503 | E67: 0.04309120888 | F67: 2016
D68: 0.07693471278 | E68: 0.04258114528 | F68: 2017
D69: 0.07337324221 | E69: 0.04243139865 | F69: 2018
D70: 0.08502380665 | E70: 0.0553619621 | F70: 2019
D71: 0.1097422847 | E71: 0.05036746699 | F71: 2020
D72: 0.120401388 | E72: 0.04737857197 | F72: 2021
A74: 2015-21 CAISO | F74: 2007
F75: 2008
F76: 2009
F77: 2010
F78: 2011
F79: 2012
F80: 2013
F81: 2014
D82: 0.05172870548 | E82: 0.004041127704 | F82: 2015
D83: 0.05834646084 | E83: 0.005366273756 | F83: 2016
D84: 0.0582060201 | E84: 0.002405716298 | F84: 2017
D85: 0.06975310746 | E85: 0.001730663417 | F85: 2018
D86: 0.06884366751 | E86: 0.00272474401 | F86: 2019
D87: 0.06624761734 | E87: 0.005812533784 | F87: 2020
D88: 0.0843291127 | E88: 0.003883324236 | F88: 2021
A90: 2012-21 NYISO | F90: 2007
F91: 2008
F92: 2009
F93: 2010
F94: 2011
D95: 0.01862337809 | E95: 0.002943558184 | F95: 2012
D96: 0.02164620933 | E96: 0.0140502247 | F96: 2013
D97: 0.02479072144 | E97: 0.00735477216 | F97: 2014
D98: 0.02416220386 | E98: 0.009450058366 | F98: 2015
D99: 0.0243047662 | E99: 0.005603500134 | F99: 2016
D100: 0.02650443172 | E100: 0.009985658915 | F100: 2017
D101: 0.02451363582 | E101: 0.01642740942 | F101: 2018
D102: 0.02834848974 | E102: 0.01536924206 | F102: 2019
D103: 0.02944363837 | E103: 0.01358347678 | F103: 2020
D104: 0.02665574304 | E104: 0.01979534555 | F104: 2021
A106: 2014-21 ISO-NE | F106: 2007
F107: 2008
F108: 2009
F109: 2010
F110: 2011
F111: 2012
F112: 2013
D113: 0.01532389146 | E113: 0.03065787101 | F113: 2014
D114: 0.01721801187 | E114: 0.02319782202 | F114: 2015
D115: 0.02035411625 | E115: 0.04179122667 | F115: 2016
D116: 0.02707486738 | E116: 0.02695405609 | F116: 2017
D117: 0.02717707706 | E117: 0.0279903904 | F117: 2018
D118: 0.02930642281 | E118: 0.0191678899 | F118: 2019
D119: 0.03039199654 | E119: 0.01585293214 | F119: 2020
D120: 0.02951653366 | E120: 0.01813115583 | F120: 2021
A122: 2012-21 PJM | F122: 2007
F123: 2008
F124: 2009
F125: 2010
F126: 2011
D127: 0.01685911282 | E127: 0.01986500316 | F127: 2012
D128: 0.01868566433 | E128: 0.01906463542 | F128: 2013
D129: 0.0193882431 | E129: 0.007362341176 | F129: 2014
D130: 0.02085090767 | E130: 0.003305442516 | F130: 2015
D131: 0.02222086811 | E131: 0.002152268868 | F131: 2016
D132: 0.02626697867 | E132: 0.01620903145 | F132: 2017
D133: 0.02649522433 | E133: 0.01654720083 | F133: 2018
D134: 0.03031581865 | E134: 0.006643761525 | F134: 2019
D135: 0.03400586816 | E135: 0.008145685532 | F135: 2020
D136: 0.03527078946 | E136: 0.01766219047 | F136: 2021
A138: 2007-21 Total | E138: 0.01221103785 | F138: 2007
E139: 0.08506083651 | F139: 2008
E140: 0.110523182 | F140: 2009
E141: 0.06019140179 | F141: 2010
E142: 0.06026456766 | F142: 2011
E143: 0.02958728642 | F143: 2012
E144: 0.02762368234 | F144: 2013
E145: 0.02306797184 | F145: 2014
E146: 0.02156406547 | F146: 2015
E147: 0.02114583558 | F147: 2016
E148: 0.02659071789 | F148: 2017
E149: 0.02314212716 | F149: 2018
E150: 0.02649812707 | F150: 2019
E151: 0.03507312732 | F151: 2020
E152: 0.04761331104 | F152: 2021

Sheet Inter-Annual Variability
A1: Inter-annual variability in the wind resource by region and nationally
A22: Source: ERA, Berkeley Lab; methodology behind the index of inter-annual variability is explained in report appendix
A25: Year | B25: National | C25: CAISO | D25: ERCOT | E25: SPP | F25: MISO | G25: PJM | H25: NYISO | I25: ISO-NE | J25: West (non-ISO)
A26: 2000 | B26: 0.9580817502 | C26: 0.9282268449 | E26: 1.010377388 | F26: 0.9701254238 | J26: 0.8588028986
A27: 2001 | B27: 0.9835408021 | C27: 0.7719755879 | D27: 0.9499040576 | E27: 0.9979715372 | F27: 1.090967322 | H27: 0.91107459 | J27: 0.8775259569
A28: 2002 | B28: 0.9792493759 | C28: 0.9240366672 | D28: 0.9552901644 | E28: 1.022886463 | F28: 1.010374026 | G28: 1.075862327 | H28: 1.026165566 | J28: 0.9840203377
A29: 2003 | B29: 0.9200059298 | C29: 0.9136983972 | D29: 0.8837368369 | E29: 0.9446168252 | F29: 0.9548729738 | G29: 1.066194334 | H29: 0.9747274435 | J29: 0.900223584
A30: 2004 | B30: 0.9518268404 | C30: 0.9044806576 | D30: 0.9691150273 | E30: 0.931000869 | F30: 0.9948176483 | G30: 0.99783063 | H30: 0.9665133463 | J30: 0.9141808494
A31: 2005 | B31: 0.9066187746 | C31: 0.9107917489 | D31: 0.8787516892 | E31: 0.9238175587 | F31: 0.9428807446 | G31: 0.9224873887 | H31: 0.8373188112 | J31: 0.8847181586
A32: 2006 | B32: 0.9867374959 | C32: 0.8982926863 | D32: 0.9892752507 | E32: 0.9799871241 | F32: 0.9685346705 | G32: 1.017973208 | H32: 1.003606869 | J32: 1.042316595
A33: 2007 | B33: 1.002267922 | C33: 1.08952867 | D33: 0.8924996475 | E33: 0.9258366741 | F33: 1.084442897 | G33: 1.044708555 | H33: 1.000749016 | J33: 1.047665549
A34: 2008 | B34: 1.091559169 | C34: 1.163312935 | D34: 1.067721024 | E34: 1.092201778 | F34: 1.03524724 | G34: 1.056961016 | H34: 0.991175792 | I34: 0.9418019376 | J34: 1.148634782
A35: 2009 | B35: 1.005871579 | C35: 1.040147587 | D35: 0.9928422521 | E35: 1.013175327 | F35: 0.9844264261 | G35: 1.006007058 | H35: 0.9617558186 | I35: 0.9888647767 | J35: 1.041466666
A36: 2010 | B36: 1.009233371 | C36: 1.046562639 | D36: 1.020491421 | E36: 1.021191014 | F36: 1.005409718 | G36: 0.9954893744 | H36: 0.9643566419 | I36: 1.068357891 | J36: 0.9996363065
A37: 2011 | B37: 1.08265216 | C37: 1.0844918 | D37: 1.118835534 | E37: 1.069130424 | F37: 1.03500192 | G37: 1.011943889 | H37: 0.9778447479 | I37: 0.9664098714 | J37: 1.152081646
A38: 2012 | B38: 1.025859351 | C38: 1.03446581 | D38: 1.03302027 | E38: 1.021182189 | F38: 0.995546151 | G38: 0.9773845482 | H38: 0.9429655461 | I38: 0.8912214877 | J38: 1.093173802
A39: 2013 | B39: 1.013766203 | C39: 0.9912792997 | D39: 1.007741322 | E39: 1.023139921 | F39: 1.023340594 | G39: 1.010889035 | H39: 1.032072013 | I39: 0.9877659383 | J39: 1.011254743
A40: 2014 | B40: 1.068775285 | C40: 0.9572423826 | D40: 1.063950388 | E40: 1.082496592 | F40: 1.084500991 | G40: 1.068656605 | H40: 1.104545834 | I40: 1.015188663 | J40: 1.0852268
A41: 2015 | B41: 0.9528370792 | C41: 0.8492125763 | D41: 0.9220667355 | E41: 0.9625045919 | F41: 1.015353372 | G41: 1.013067122 | H41: 1.020915004 | I41: 1.013265908 | J41: 0.9004039275
A42: 2016 | B42: 1.009799648 | C42: 1.025289294 | D42: 0.9838982643 | E42: 1.018544219 | F42: 1.021487523 | G42: 0.9933013759 | H42: 1.035068564 | I42: 1.001071094 | J42: 1.019939943
A43: 2017 | B43: 1.013143992 | C43: 1.043186272 | D43: 1.020260415 | E43: 1.012400999 | F43: 1.003345199 | G43: 1.051214204 | H43: 1.096866709 | I43: 1.04331704 | J43: 0.9720638842
A44: 2018 | B44: 0.9850553891 | C44: 1.003504716 | D44: 1.027019528 | E44: 0.9899284189 | F44: 0.9249529436 | G44: 0.964510157 | H44: 1.019620523 | I44: 1.038174433 | J44: 0.99217896
A45: 2019 | B45: 0.9988176356 | C45: 1.082047418 | D45: 1.025763152 | E45: 1.008235454 | F45: 0.9953945368 | G45: 1.017746915 | H45: 1.072340446 | I45: 1.082636076 | J45: 0.8941147408
A46: 2020 | B46: 1.029893778 | C46: 1.007785592 | D46: 1.027944592 | E46: 1.012205995 | F46: 1.004309212 | G46: 0.9838302928 | H46: 1.069089552 | I46: 1.051636768 | J46: 1.121993393
A47: 2021 | B47: 1.000508036 | C47: 1.166439945 | D47: 0.9881497163 | E47: 1.003925322 | F47: 0.9587279472 | G47: 0.9789166276 | H47: 0.926027446 | I47: 0.9894519232 | J47: 1.035640791

Sheet Performance with Project Age
A1: Changes in project-level capacity factors as projects age
A22: Source: EIA, FERC, Berkeley Lab
A26: Full Sample | I26: Older: Pre-2008 | R26: Newer: Post-2007
D27: Indexed Capacity Factor (Year 2=100%) | L27: Indexed Capacity Factor (Year 2=100%) | U27: Indexed Capacity Factor (Year 2=100%)
D28: Capacity- | F28: Median | L28: Capacity- | N28: Median | U28: Capacity- | W28: Median
A29: Sample | B29: Sample | C29: Years | D29: Weighted | E29: 25th | F29: 50th | G29: 75th | I29: Sample | J29: Sample | K29: Years | L29: Weighted | M29: 25th | N29: 50th | O29: 75th | R29: Sample | S29: Sample | T29: Years | U29: Weighted | V29: 25th | W29: 50th | X29: 75th
A30: Projects | B30: GW | C30: Post-COD | D30: Average | E30: Percentile | F30: Percentile | G30: Percentile | I30: Projects | J30: GW | K30: Post-COD | L30: Average | M30: Percentile | N30: Percentile | O30: Percentile | R30: Projects | S30: GW | T30: Post-COD | U30: Average | V30: Percentile | W30: Percentile | X30: Percentile
A31: 1010 | B31: 101.38364 | C31: 1 | D31: 0.9817187219 | E31: 0.9284937924 | F31: 0.986767313 | G31: 1.038083221 | I31: 188 | J31: 14.94382 | K31: 1 | L31: 0.9801439025 | M31: 0.9287283546 | N31: 0.9937705853 | O31: 1.048815605 | P31: =O31-M31 -> 0.1200872506 | R31: 822 | S31: 86.43982 | T31: 1 | U31: 0.9819909786 | V31: 0.92801039 | W31: 0.9849184301 | X31: 1.03611337 | Y31: =X31-V31 -> 0.1081029799
A32: 1043 | B32: 102.31163 | C32: 2 | D32: 1 | E32: 1 | F32: 1 | G32: 1 | I32: 210 | J32: 15.25336 | K32: 2 | L32: 1 | M32: 1 | N32: 1 | O32: 1 | P32: =O32-M32 -> 0 | R32: 834 | S32: 87.05827 | T32: 2 | U32: 1 | V32: 1 | W32: 1 | X32: 1 | Y32: =X32-V32 -> 0
A33: 1000 | B33: 94.824465 | C33: 3 | D33: 1.006484312 | E33: 0.9531367183 | F33: 0.9977108268 | G33: 1.044691308 | I33: 208 | J33: 15.07648 | K33: 3 | L33: 0.9893260316 | M33: 0.9234103961 | N33: 0.9717755342 | O33: 1.030369687 | P33: 0.1069592907 | R33: 792 | S33: 79.747985 | T33: 3 | U33: 1.009728111 | V33: 0.9638225972 | W33: 1.001606639 | X33: 1.048766334 | Y33: 0.08494373691
A34: 943 | B34: 86.929005 | C34: 4 | D34: 1.00099393 | E34: 0.9384263196 | F34: 0.9952664556 | G34: 1.059803903 | I34: 209 | J34: 15.25336 | K34: 4 | L34: 0.9737234579 | M34: 0.907037363 | N34: 0.9686346313 | O34: 1.029987156 | P34: 0.1229497931 | R34: 734 | S34: 71.675645 | T34: 4 | U34: 1.006797384 | V34: 0.9523893174 | W34: 1.000757647 | X34: 1.061977106 | Y34: 0.1095877882
A35: 872 | B35: 79.31831 | C35: 5 | D35: 0.991854766 | E35: 0.9247515108 | F35: 0.9860223019 | G35: 1.044561051 | I35: 209 | J35: 15.25336 | K35: 5 | L35: 0.9692999191 | M35: 0.888806024 | N35: 0.9693609364 | O35: 1.037683664 | P35: 0.1488776397 | R35: 663 | S35: 64.06495 | T35: 5 | U35: 0.9972248974 | V35: 0.9296915324 | W35: 0.9891751408 | X35: 1.047529987 | Y35: 0.1178384543
A36: 812 | B36: 71.945408 | C36: 6 | D36: 0.9909818176 | E36: 0.9066855941 | F36: 0.9811318222 | G36: 1.054436945 | I36: 209 | J36: 15.25336 | K36: 6 | L36: 0.9615673255 | M36: 0.8744892325 | N36: 0.9457970791 | O36: 1.032225517 | P36: 0.1577362847 | R36: 603 | S36: 56.692048 | T36: 6 | U36: 0.9988959758 | V36: 0.9191869724 | W36: 0.9865296242 | X36: 1.056924915 | Y36: 0.137737943
A37: 748 | B37: 63.283398 | C37: 7 | D37: 0.987912025 | E37: 0.9024189237 | F37: 0.9683137178 | G37: 1.046303926 | I37: 208 | J37: 15.24586 | K37: 7 | L37: 0.9583627306 | M37: 0.8763777187 | N37: 0.9435190238 | O37: 1.005629877 | P37: 0.129252158 | R37: 540 | S37: 48.037538 | T37: 7 | U37: 0.9972901993 | V37: 0.9149532779 | W37: 0.9784136374 | X37: 1.056418069 | Y37: 0.1414647909
A38: 701 | B38: 58.12595 | C38: 8 | D38: 0.9828757499 | E38: 0.8991110291 | F38: 0.9657747241 | G38: 1.040396304 | I38: 206 | J38: 15.23941 | K38: 8 | L38: 0.9541567476 | M38: 0.8659813578 | N38: 0.9472686319 | O38: 1.014294441 | P38: 0.1483130832 | R38: 495 | S38: 42.88654 | T38: 8 | U38: 0.9930808317 | V38: 0.9096550854 | W38: 0.9734602997 | X38: 1.049135945 | Y38: 0.1394808601
A39: 672 | B39: 55.06723 | C39: 9 | D39: 0.9822072228 | E39: 0.8868506072 | F39: 0.9653056318 | G39: 1.049273412 | I39: 208 | J39: 15.24736 | K39: 9 | L39: 0.9753023796 | M39: 0.882837792 | N39: 0.9504895455 | O39: 1.031826294 | P39: 0.1489885025 | R39: 464 | S39: 39.81987 | T39: 9 | U39: 0.9848511448 | V39: 0.8883981446 | W39: 0.97372755 | X39: 1.055483082 | Y39: 0.1670849377
A40: 526 | B40: 41.76317 | C40: 10 | D40: 0.9674388699 | E40: 0.8524101829 | F40: 0.9446294663 | G40: 1.044817464 | I40: 208 | J40: 15.25006 | K40: 10 | L40: 0.9638551406 | M40: 0.8197913405 | N40: 0.9268644948 | O40: 1.004658605 | P40: 0.1848672649 | R40: 318 | S40: 26.51311 | T40: 10 | U40: 0.9695001931 | V40: 0.8664959696 | W40: 0.9558452231 | X40: 1.070866948 | Y40: 0.2043709786
A41: 423 | B41: 33.19947 | C41: 11 | D41: 0.9332362283 | E41: 0.8433904447 | F41: 0.9344805563 | G41: 0.9949206532 | I41: 204 | J41: 14.93356 | K41: 11 | L41: 0.9339337485 | M41: 0.8540058521 | N41: 0.922293364 | O41: 0.988588006 | P41: 0.1345821539 | R41: 219 | S41: 18.26591 | T41: 11 | U41: 0.9326659605 | V41: 0.8167672844 | W41: 0.9436872199 | X41: 1.006445759 | Y41: 0.1896784745
A42: 352 | B42: 25.94715 | C42: 12 | D42: 0.9073425205 | E42: 0.8011637639 | F42: 0.8961549721 | G42: 0.9815149818 | I42: 198 | J42: 13.13324 | K42: 12 | L42: 0.9299073175 | M42: 0.839593852 | N42: 0.9016171664 | O42: 0.9792199902 | P42: 0.1396261382 | R42: 154 | S42: 12.81391 | T42: 12 | U42: 0.8842153957 | V42: 0.745963159 | W42: 0.8823857801 | X42: 0.9846787198 | Y42: 0.2387155609
A43: 256 | B43: 17.48189 | C43: 13 | D43: 0.8837065724 | E43: 0.7511869838 | F43: 0.8806656035 | G43: 0.9696616635 | I43: 194 | J43: 12.61494 | K43: 13 | L43: 0.9004674292 | M43: 0.7883620139 | N43: 0.888787747 | O43: 0.9687836025 | P43: 0.1804215886 | R43: 62 | S43: 4.86695 | T43: 13 | U43: 0.8402631012 | V43: 0.5860210796 | W43: 0.8439112525 | X43: 0.9721729512 | Y43: 0.3861518715
A44: 187 | B44: 12.08234 | C44: 14 | D44: 0.8782147587 | E44: 0.7255133289 | F44: 0.8818598255 | G44: 0.9705629186 | I44: 187 | J44: 12.08234 | K44: 14 | L44: 0.8782147587 | M44: 0.7255133289 | N44: 0.8818598255 | O44: 0.9705629186 | P44: 0.2450495897 | T44: 14
A45: 144 | B45: 7.24144 | C45: 15 | D45: 0.8247631353 | E45: 0.7795066712 | F45: 0.8387909143 | G45: 0.9353916 | I45: 144 | J45: 7.24144 | K45: 15 | L45: 0.8247631353 | M45: 0.7795066712 | N45: 0.8387909143 | O45: 0.9353916 | P45: 0.1558849287 | T45: 15
A46: 122 | B46: 5.82096 | C46: 16 | D46: 0.8022446477 | E46: 0.6862922986 | F46: 0.8052607567 | G46: 0.9275805928 | I46: 122 | J46: 5.82096 | K46: 16 | L46: 0.8022446477 | M46: 0.6862922986 | N46: 0.8052607567 | O46: 0.9275805928 | P46: 0.2412882941 | T46: 16
A47: 100 | B47: 3.40872 | C47: 17 | D47: 0.759675936 | E47: 0.6432611213 | F47: 0.7688846572 | G47: 0.8580749899 | I47: 100 | J47: 3.40872 | K47: 17 | L47: 0.759675936 | M47: 0.6432611213 | N47: 0.7688846572 | O47: 0.8580749899 | P47: 0.2148138686 | T47: 17
A48: 89 | B48: 3.00139 | C48: 18 | D48: 0.7452878679 | E48: 0.5457310006 | F48: 0.6815806122 | G48: 0.7874031814 | I48: 89 | J48: 3.00139 | K48: 18 | L48: 0.7452878679 | M48: 0.5457310006 | N48: 0.6815806122 | O48: 0.7874031814 | P48: 0.2416721808 | T48: 18
A49: 62 | B49: 1.97086 | C49: 19 | D49: 0.7154140481 | E49: 0.6262093475 | F49: 0.7648580776 | G49: 0.8655920658 | I49: 62 | J49: 1.97086 | K49: 19 | L49: 0.7154140481 | M49: 0.6262093475 | N49: 0.7648580776 | O49: 0.8655920658 | P49: 0.2393827184 | T49: 19
A50: 48 | B50: 1.43343 | C50: 20 | D50: 0.5925652802 | E50: 0.57221847 | F50: 0.7900914334 | G50: 0.9022527159 | I50: 48 | J50: 1.43343 | K50: 20 | L50: 0.5925652802 | M50: 0.57221847 | N50: 0.7900914334 | O50: 0.9022527159 | P50: 0.3300342459 | T50: 20
A51: 18 | B51: 0.73932 | C51: 21 | D51: 0.7821353155 | E51: 0.5727024399 | F51: 0.7191518615 | G51: 0.8249109207 | I51: 18 | J51: 0.73932 | K51: 21 | L51: 0.7821353155 | M51: 0.5727024399 | N51: 0.7191518615 | O51: 0.8249109207 | P51: 0.2522084807 | T51: 21
A52: 14 | B52: 0.57957 | C52: 22 | D52: 0.6596088291 | E52: 0.6538487111 | F52: 0.7534473084 | G52: 0.8625263927 | I52: 14 | J52: 0.57957 | K52: 22 | L52: 0.6596088291 | M52: 0.6538487111 | N52: 0.7534473084 | O52: 0.8625263927 | P52: 0.2086776816 | T52: 22
A53: 4 | B53: 0.13985 | C53: 23 | D53: 0.8763135913 | E53: 0.86676444 | F53: 0.9047243819 | G53: 0.923828218 | I53: 4 | J53: 0.13985 | K53: 23 | L53: 0.8763135913 | M53: 0.86676444 | N53: 0.9047243819 | O53: 0.923828218 | P53: 0.05706377799 | T53: 23
A55: Years with fewer than 10 projects are excluded from the graph.

Sheet Wind Turbine Prices
A1: Reported wind turbine transaction prices over time
A21: Sources: Berkeley Lab, annual financial reports, forecast providers
B24: U.S. turbine orders | D24: Vestas global average | F24: SGRE global average | H24: Nordex global average
A25: Order Date | B25: (2021 $/kW) | D25: (2021 $/kW) | F25: (2021 $/kW) | H25: (2021 $/kW)
A26: 1997-02-01 | B26: 1953.934991 | D26: 2005-06-30 | E26: 1448.260413
A27: 1997-12-01 | B27: 1521.998073 | D27: 2006-06-30 | E27: 1453.14388
A28: 1998-01-01 | B28: 1490.404466 | D28: 2007-06-30 | E28: 1716.605515
A29: 1998-05-01 | B29: 1257.891427 | D29: 2008-06-30 | E29: 1963.01075
A30: 1998-05-01 | B30: 1438.764704 | D30: 2009-06-30 | E30: 1808.190069
A31: 1998-08-01 | B31: 1177.041766 | D31: 2010-06-30 | E31: 1618.547598
A32: 1998-08-01 | B32: 1177.041766 | D32: 2011-06-30 | E32: 1657.825954
A33: 1998-11-01 | B33: 1460.869635 | D33: 2012-06-30 | E33: 1547.366333
A34: 1998-11-01 | B34: 1307.534081 | D34: 2013-06-30 | E34: 1502.533269
A35: 2000-07-01 | B35: 721.9255269 | D35: 2014-06-30 | E35: 1345.841615
A36: 2000-12-01 | B36: 1003.809067 | D36: 2015-06-30 | E36: 1150.348337
A37: 2001-03-01 | B37: 1165.369922 | D37: 2016-06-30 | E37: 1122.046781 | F37: 2016-06-30 | G37: 1104.515786 | H37: 2016-06-30 | I37: 1169.702552
A38: 2001-04-01 | B38: 745.4244568 | D38: 2017-06-30 | E38: 988.6827324 | F38: 2017-06-30 | G38: 1007.396052 | H38: 2017-06-30 | I38: 1003.658861
A39: 2002-02-01 | B39: 972.6609181 | D39: 2018-06-30 | E39: 945.5407436 | F39: 2018-06-30 | G39: 931.6258555 | H39: 2018-06-30 | I39: 970.0256836
A40: 2002-04-01 | B40: 737.9650699 | D40: 2019-06-30 | E40: 910.8667404 | F40: 2019-06-30 | G40: 871.4347946 | H40: 2019-06-30 | I40: 839.236527
A41: 2002-05-01 | B41: 882.7790077 | D41: 2020-06-30 | E41: 874.9944402 | F41: 2020-06-30 | G41: 809.3933701 | H41: 2020-06-30 | I41: 832.7225081
A42: 2002-06-01 | B42: 989.8621792 | D42: 2021-06-30 | E42: 961.6424827 | F42: 2021-06-30 | G42: 773.4431329 | H42: 2021-06-30 | I42: 845.8636123
A43: 2002-08-01 | B43: 883.6577865
A44: 2002-12-01 | B44: 1001.933629
A45: 2003-05-01 | B45: 1206.258419
A46: 2003-06-01 | B46: 1164.521476
A47: 2003-07-01 | B47: 1241.914016
A48: 2004-12-01 | B48: 1193.886841
A49: 2004-08-01 | B49: 1249.965454
A50: 2005-03-01 | B50: 1367.148141
A51: 2005-05-01 | B51: 1587.594169
A52: 2005-11-01 | B52: 1560.808037
A53: 2006-01-01 | B53: 1597.979725
A54: 2006-05-01 | B54: 1581.049575
A55: 2006-06-01 | B55: 1443.050969
A56: 2006-07-01 | B56: 1490.26725
A57: 2006-07-01 | B57: 1420.804679
A58: 2006-09-01 | B58: 1379.527933
A59: 2006-09-01 | B59: 1896.265669
A60: 2007-03-01 | B60: 1564.136301
A61: 2007-03-01 | B61: 1648.938872
A62: 2007-03-01 | B62: 1395.454936
A63: 2007-04-01 | B63: 1428.164199
A64: 2007-05-01 | B64: 1241.755881
A65: 2007-06-01 | B65: 1702.924589
A66: 2007-06-01 | B66: 1892.67469
A67: 2007-06-01 | B67: 1600.493034
A68: 2007-06-01 | B68: 1418.595731
A69: 2007-07-01 | B69: 1874.701467
A70: 2007-08-01 | B70: 2410.253699
A71: 2007-09-01 | B71: 1678.760266
A72: 2007-09-01 | B72: 1699.108875
A73: 2007-10-01 | B73: 1778.14901
A74: 2007-10-01 | B74: 1852.506587
A75: 2007-11-01 | B75: 1864.077073
A76: 2007-12-01 | B76: 1651.875481
A77: 2008-01-01 | B77: 2089.406758
A78: 2008-01-01 | B78: 1584.804883
A79: 2008-02-01 | B79: 1774.573628
A80: 2008-03-01 | B80: 1685.380164
A81: 2008-04-01 | B81: 2226.798858
A82: 2008-04-01 | B82: 2523.570414
A83: 2008-06-01 | B83: 2056.731867
A84: 2008-08-01 | B84: 1920.656806
A85: 2008-10-01 | B85: 1829.852613
A86: 2008-11-01 | B86: 1857.273265
A87: 2008-11-01 | B87: 1381.148301
A88: 2008-12-01 | B88: 2104.983575
A89: 2009-02-01 | B89: 1495.751205
A90: 2009-03-01 | B90: 1736.10859
A91: 2009-04-09 | B91: 1336.787675
A92: 2009-05-01 | B92: 1622.754999
A93: 2009-06-01 | B93: 1782.621143
A94: 2009-07-01 | B94: 1965.594522
A95: 2009-07-01 | B95: 2043.258208
A96: 2009-08-01 | B96: 1662.610996
A97: 2009-09-01 | B97: 2038.185158
A98: 2009-10-01 | B98: 1931.195827
A99: 2009-12-01 | B99: 1985.847987
A100: 2010-01-01 | B100: 2420.827648
A101: 2010-01-01 | B101: 1857.296661
A102: 2010-03-01 | B102: 1856.581305
A103: 2010-06-01 | B103: 1464.952363
A104: 2010-07-01 | B104: 1847.266858
A105: 2010-07-01 | B105: 1723.748119
A106: 2010-07-01 | B106: 1888.317232
A107: 2010-08-01 | B107: 1649.438202
A108: 2010-10-01 | B108: 1515.451546
A109: 2010-10-01 | B109: 1448.593389
A110: 2011-02-01 | B110: 1490.082128
A111: 2011-02-01 | B111: 1814.676041
A112: 2011-03-01 | B112: 1421.607818
A113: 2011-05-31 | B113: 1360.079321
A114: 2011-05-01 | B114: 2014.932327
A115: 2011-06-01 | B115: 1447.65506
A116: 2011-08-01 | B116: 2002.031429
A117: 2011-09-01 | B117: 2001.017259
A118: 2011-09-01 | B118: 1550.788376
A119: 2011-10-01 | B119: 1607.14534
A120: 2011-10-01 | B120: 1170.001807
A121: 2011-11-01 | B121: 1611.125398
A122: 2011-12-01 | B122: 1231.701273
A123: 2012-01-01 | B123: 1789.418982
A124: 2012-01-01 | B124: 1196.031481
A125: 2012-02-01 | B125: 1348.030128
A126: 2012-02-01 | B126: 1147.15742
A127: 2012-10-01 | B127: 1367.353864
A128: 2013-01-17 | B128: 1369.181715
A129: 2013-01-01 | B129: 1513.913634
A130: 2013-05-01 | B130: 1452.114339
A131: 2013-05-01 | B131: 1283.849062
A132: 2013-07-01 | B132: 1326.704192
A133: 2013-11-01 | B133: 1539.695491
A134: 2013-12-01 | B134: 1064.637733
A135: 2013-12-01 | B135: 1455.128889
A136: 2013-12-01 | B136: 1725.190276
A137: 2013-12-01 | B137: 1194.10951
A138: 2014-01-01 | B138: 1065.117446
A139: 2014-03-01 | B139: 998.8852886
A140: 2014-04-01 | B140: 1144.982366
A141: 2014-05-01 | B141: 1406.901431
A142: 2014-06-01 | B142: 1091.919414
A143: 2014-07-01 | B143: 1274.429081
A144: 2014-12-01 | B144: 1324.862346
A145: 2015-01-01 | B145: 1351.567606
A146: 2015-09-01 | B146: 1457.350012
A147: 2016-07-01 | B147: 984.6207506

Sheet CapEx Over Time
A1: Installed wind power project costs over time
A22: Note: Size of bubble reflects project capacity. | L22: Note: Size of bubble reflects project capacity.
A23: Sources: Berkeley Lab, EIA (some data points suppressed to protect confidentiality) | L23: Sources: Berkeley Lab, EIA (some data points suppressed to protect confidentiality)
B26: Capacity-
A27: Commercial | B27: Weighted
A28: Operation | B28: Average
A29: Date | B29: 2021 $/kW
A30: 1982
A31: 1983 | B31: 4804.060615
A32: 1984
A33: 1985 | B33: 3678.514877 | C33: 1985
A34: 1986
A35: 1987
A36: 1988
A37: 1989
A38: 1990 | B38: 3429.210142 | C38: 1990
A39: 1991
A40: 1992
A41: 1993
A42: 1994 | B42: 2184.208382
A43: 1995 | C43: 1995
A44: 1996
A45: 1997
A46: 1998 | B46: 1646.042992
A47: 1999 | B47: 1934.728475
A48: 2000 | B48: 1948.388739 | C48: 2000
A49: 2001 | B49: 1530.004778
A50: 2002 | B50: 1788.611789
A51: 2003 | B51: 1624.451754
A52: 2004 | B52: 1497.256465
A53: 2005 | B53: 1758.131818 | C53: 2005
A54: 2006 | B54: 1962.314683
A55: 2007 | B55: 2158.916654
A56: 2008 | B56: 2414.14436
A57: 2009 | B57: 2643.047675
A58: 2010 | B58: 2639.533555 | C58: 2010
A59: 2011 | B59: 2529.96302
A60: 2012 | B60: 2284.722003
A61: 2013 | B61: 2149.688053
A62: 2014 | B62: 1983.556018
A63: 2015 | B63: 1806.104144 | C63: 2015
A64: 2016 | B64: 1847.520598
A65: 2017 | B65: 1763.177264
A66: 2018 | B66: 1552.552868
A67: 2019 | B67: 1488.932382
A68: 2020 | B68: 1523.057398
A69: 2021 | B69: 1501.07742 | C69: 2021
D1122: 2020 | E1122: 1249.15665 | F1122: 195.84
D1123: 2020 | E1123: 1616.97787 | F1123: 193.24
D1124: 2020 | E1124: 1554.223769 | F1124: 179.88
D1125: 2020 | E1125: 1638.045348 | F1125: 168.8
D1126: 2020 | E1126: 1698.608489 | F1126: 168.6
D1127: 2020 | E1127: 1215.140903 | F1127: 162.25
D1128: 2020 | E1128: 1428.169694 | F1128: 162.15
D1129: 2020 | E1129: 983.6767139 | F1129: 160.74
D1130: 2020 | E1130: 1634.906232 | F1130: 152.2
D1131: 2020 | E1131: 1220.032369 | F1131: 151.2
D1132: 2020 | E1132: 1723.888773 | F1132: 150
D1133: 2020 | E1133: 1763.80133 | F1133: 150
D1134: 2020 | E1134: 1598.107735 | F1134: 149.9
D1135: 2020 | E1135: 1797.578231 | F1135: 149.66
D1136: 2020 | E1136: 1933.210398 | F1136: 149.4
D1137: 2020 | E1137: 1238.030558 | F1137: 146.64
D1138: 2020 | E1138: 1548.798986 | F1138: 136.8
D1139: 2020 | E1139: 1265.670358 | F1139: 133.28
D1140: 2020 | E1140: 1560.258438 | F1140: 131.3
D1141: 2020 | E1141: 1960.674351 | F1141: 130.92
D1142: 2020 | E1142: 1254.890436 | F1142: 126
D1143: 2020 | E1143: 1560.258438 | F1143: 122.8
D1144: 2020 | E1144: 1933.720614 | F1144: 112.42
D1145: 2020 | E1145: 2055.689497 | F1145: 106.4
D1146: 2020 | E1146: 1810.457833 | F1146: 102
D1147: 2020 | E1147: 1723.242148 | F1147: 90
D1148: 2020 | E1148: 1638.045348 | F1148: 83.7
D1149: 2020 | E1149: 1629.457674 | F1149: 79.9
D1150: 2020 | E1150: 2141.610538 | F1150: 72.6
D1151: 2020 | E1151: 2104.724662 | F1151: 72.45
D1152: 2020 | E1152: 1674.514117 | F1152: 60.4
D1153: 2020 | E1153: 1389.435972 | F1153: 59.22
D1154: 2020 | E1154: 1499.831057 | F1154: 50.6
D1155: 2020 | E1155: 1653.252929 | F1155: 50.4
D1156: 2020 | E1156: 1415.148567 | F1156: 36.8
D1157: 2020 | E1157: 1822.711354 | F1157: 5
D1158: 2021 | E1158: 1574.731469 | F1158: 383.52
D1159: 2021 | E1159: 1425.60349 | F1159: 303.2
D1160: 2021 | E1160: 1692.460317 | F1160: 302.4
D1161: 2021 | E1161: 1400.156693 | F1161: 301.14
D1162: 2021 | E1162: 1199.376441 | F1162: 301.1
D1163: 2021 | E1163: 1587.511998 | F1163: 298.8
D1164: 2021 | E1164: 1774.89282 | F1164: 298.6
D1165: 2021 | E1165: 1336.264043 | F1165: 286.62
D1166: 2021 | E1166: 1234.817814 | F1166: 247
D1167: 2021 | E1167: 1632.840067 | F1167: 239.8
D1168: 2021 | E1168: 1261.968085 | F1168: 225.6
D1169: 2021 | E1169: 1763.07155 | F1169: 218
D1170: 2021 | E1170: 1654.551431 | F1170: 218
D1171: 2021 | E1171: 1310.446072 | F1171: 212.8
D1172: 2021 | E1172: 1399.713467 | F1172: 209.4
D1173: 2021 | E1173: 1798.853463 | F1173: 202.74
D1174: 2021 | E1174: 1354.062187 | F1174: 199.4
D1175: 2021 | E1175: 1597.133283 | F1175: 198
D1176: 2021 | E1176: 1529.888551 | F1176: 197.4
D1177: 2021 | E1177: 1567.764688 | F1177: 184.9
D1178: 2021 | E1178: 1399.41691 | F1178: 180.075
D1179: 2021 | E1179: 1529.743493 | F1179: 166.08
D1180: 2021 | E1180: 1468.950457 | F1180: 155
D1181: 2021 | E1181: 1372.536415 | F1181: 153.6
D1182: 2021 | E1182: 1735.714286 | F1182: 140
D1183: 2021 | E1183: 1215.140903 | F1183: 137.75
D1184: 2021 | E1184: 1523.897191 | F1184: 125.475
D1185: 2021 | E1185: 1665.588484 | F1185: 118.1
D1186: 2021 | E1186: 1474.786265 | F1186: 100.8
D1187: 2021 | E1187: 1503.006012 | F1187: 99.8
D1188: 2021 | E1188: 1650 | F1188: 93.06

Sheet CapEx Trend by Region
A1: Installed wind power project costs by region, over time
A23: Note: NYISO data are not available over this period. For other regions, data for specific years are missing. | L23: Sources: Berkeley Lab, EIA
A24: Sources: Berkeley Lab, EIA
B26: National | C26: ERCOT | D26: West (non-ISO) | E26: SPP | F26: PJM | G26: MISO | H26: ISO-NE | I26: CAISO | J26: NYISO
B27: Capacity- | C27: Capacity- | D27: Capacity- | E27: Capacity- | F27: Capacity- | G27: Capacity- | H27: Capacity- | I27: Capacity- | J27: Capacity-
A28: Commercial | B28: Weighted | C28: Weighted | D28: Weighted | E28: Weighted | F28: Weighted | G28: Weighted | H28: Weighted | I28: Weighted | J28: Weighted
A29: Operation | B29: Average | C29: Average | D29: Average | E29: Average | F29: Average | G29: Average | H29: Average | I29: Average | J29: Average
A30: Date | B30: 2021 $/kW | C30: 2021 $/kW | D30: 2021 $/kW | E30: 2021 $/kW | F30: 2021 $/kW | G30: 2021 $/kW | H30: 2021 $/kW | I30: 2021 $/kW | J30: 2021 $/kW
A31: 2010 | B31: 2639.533555 | C31: 2535.449375 | D31: 2593.433969 | E31: 2702.783238 | F31: 2489.035669 | G31: 2670.98601 | H31: 2945.152099 | I31: 3012.240773
A32: 2011 | B32: 2529.96302 | D32: 2392.742034 | E32: 2528.966132 | F32: 2810.195518 | G32: 2476.555497 | H32: 3068.794362 | I32: 2692.052259
A33: 2012 | B33: 2284.722003 | C33: 2152.984584 | D33: 2432.791155 | E33: 2057.36382 | F33: 2282.597169 | G33: 2140.622158 | H33: 2735.542662 | I33: 2543.682941 | J33: 2334.056062
A34: 2013 | B34: 2149.688053 | E34: 1827.269182 | G34: 2055.671567 | I34: 2600.564739
A35: 2014 | B35: 1983.556018 | C35: 1767.296412 | D35: 2042.408915 | E35: 2072.728895 | F35: 2227.564371 | G35: 2028.458177 | I35: 2547.89053
A36: 2015 | B36: 1806.104144 | C36: 1718.873165 | E36: 1733.654609 | F36: 2247.343191 | G36: 1947.472313 | H36: 2254.889524
A37: 2016 | B37: 1847.520598 | C37: 1780.430719 | D37: 1789.91716 | E37: 1782.384646 | F37: 2012.650575 | G37: 1822.791497 | H37: 2881.808398
A38: 2017 | B38: 1764.459512 | C38: 1553.685493 | D38: 1873.122215 | E38: 1759.133592 | F38: 1966.591277 | G38: 1849.493395 | H38: 2340.264128 | I38: 2151.298758
A39: 2018 | B39: 1552.552868 | C39: 1335.796368 | D39: 1494.035302 | E39: 1425.283774 | F39: 1910.870498 | G39: 1680.380303 | I39: 1888.336599
A40: 2019 | B40: 1489.399417 | C40: 1361.177666 | D40: 1509.46125 | E40: 1490.353039 | F40: 1600.910458 | G40: 1568.949183 | H40: 2563.349008 | I40: 1880.130147
A41: 2020 | B41: 1523.057398 | C41: 1336.021888 | D41: 1435.282241 | E41: 1531.94292 | F41: 1478.426327 | G41: 1700.635976
A42: 2021 | B42: 1501.07742 | C42: 1349.103768 | D42: 1384.35878 | E42: 1504.351039 | F42: 1396.027843 | G42: 1599.972406
B45: National | C45: ERCOT | D45: West (non-ISO) | E45: SPP | F45: PJM | G45: MISO | H45: ISO-NE | I45: CAISO | J45: NYISO
A46: Commercial | B46: Sample | C46: Sample | D46: Sample | E46: Sample | F46: Sample | G46: Sample | H46: Sample | I46: Sample | J46: Sample
A47: Operation | B47: Capacity | C47: Capacity | D47: Capacity | E47: Capacity | F47: Capacity | G47: Capacity | H47: Capacity | I47: Capacity | J47: Capacity
A48: Date | B48: (MW) | C48: (MW) | D48: (MW) | E48: (MW) | F48: (MW) | G48: (MW) | H48: (MW) | I48: (MW) | J48: (MW)
A49: 2010 | B49: 5140.77 | C49: 653.87 | D49: 1263.8 | E49: 826.8 | F49: 975.9 | G49: 885.2 | H49: 95.7 | I49: 439.5
A50: 2011 | B50: 6375.45 | D50: 1937.9 | E50: 1018.1 | F50: 567 | G50: 1466.45 | H50: 193.5 | I50: 915.7
A51: 2012 | B51: 9556.04 | C51: 505.2 | D51: 1884.45 | E51: 1867.85 | F51: 1354.33 | G51: 2000.23 | H51: 314.05 | I51: 1341.98 | J51: 287.95
A52: 2013 | B52: 858.47 | E52: 328.55 | G52: 221.35 | I52: 269.11
A53: 2014 | B53: 5101.428 | C53: 1688.49 | D53: 547.12 | E53: 1241.2 | F53: 240.85 | G53: 1132.408 | I53: 106.4
A54: 2015 | B54: 8172.25 | C54: 3445.49 | E54: 2534.86 | F54: 362.1 | G54: 1078.15 | H54: 166.85
A55: 2016 | B55: 8172.622 | C55: 2610.94 | D55: 348.55 | E55: 3117.235 | F55: 428.7 | G55: 1278.797 | H55: 310.7
A56: 2017 | B56: 6811.7 | C56: 1796.975 | D56: 747.5 | E56: 2334.085 | F56: 806.25 | G56: 1018.09 | H56: 54.3 | I56: 49.7
A57: 2018 | B57: 7475.57 | C57: 2056.56 | D57: 785.71 | E57: 1966.975 | F57: 509.5 | G57: 1646.075 | I57: 329.85
A58: 2019 | B58: 8617.67 | C58: 3152.97 | D58: 577.45 | E58: 1212.97 | F58: 493.95 | G58: 3008.23 | H58: 38.4
A59: 2020 | B59: 12173.185 | C59: 2209.37 | D59: 2780.875 | E59: 2557.15 | F59: 533.56 | G59: 3541.13
A60: 2021 | B60: 6498.16 | C60: 615.075 | D60: 853.5 | E60: 2133.47 | F60: 445 | G60: 2325.64

Sheet 2021 CapEx by Region
A1: Installed wind power project costs by region, in 2021
A22: Notes: Size of bubble reflects project capacity. Other regions lack adequate data for inclusion.
A23: Sources: Berkeley Lab
B25: 2021
B26: Capacity-
B27: Weighted
B28: Average | D28: Region | F28: Project | G28: Region
A29: Region | B29: 2021 $/kW | D29: Name | E29: 2021 $/kW | F29: MW | G29: Code
A30: ERCOT | B30: 1349.103768 | D30: ERCOT | E30: 1261.968085 | F30: 225.6 | G30: 1
A31: West (non-ISO) | B31: 1384.35878 | D31: ERCOT | E31: 1399.713467 | F31: 209.4 | G31: 1
A32: PJM | B32: 1396.027843 | D32: ERCOT | E32: 1399.41691 | F32: 180.075 | G32: 1
A33: SPP | B33: 1504.351039 | D33: West (non-ISO) | E33: 1199.376441 | F33: 301.1 | G33: 2
A34: MISO | B34: 1599.972406 | D34: West (non-ISO) | E34: 1632.840067 | F34: 239.8 | G34: 2
D35: West (non-ISO) | E35: 1310.446072 | F35: 212.8 | G35: 2
D36: West (non-ISO) | E36: 1503.006012 | F36: 99.8 | G36: 2
D37: PJM | E37: 1234.817814 | F37: 247 | G37: 3
D38: PJM | E38: 1597.133283 | F38: 198 | G38: 3
D39: SPP | E39: 1425.60349 | F39: 303.2 | G39: 4
D40: SPP | E40: 1587.511998 | F40: 298.8 | G40: 4
D41: SPP | E41: 1774.89282 | F41: 298.6 | G41: 4
D42: SPP | E42: 1336.264043 | F42: 286.62 | G42: 4
D43: SPP | E43: 1354.062187 | F43: 199.4 | G43: 4
D44: SPP | E44: 1529.888551 | F44: 197.4 | G44: 4
D45: SPP | E45: 1372.536415 | F45: 153.6 | G45: 4
D46: SPP | E46: 1735.714286 | F46: 140 | G46: 4
D47: SPP | E47: 1215.140903 | F47: 137.75 | G47: 4
D48: SPP | E48: 1665.588484 | F48: 118.1 | G48: 4
D49: MISO | E49: 1574.731469 | F49: 383.52 | G49: 5
D50: MISO | E50: 1692.460317 | F50: 302.4 | G50: 5
D51: MISO | E51: 1400.156693 | F51: 301.14 | G51: 5
D52: MISO | E52: 1763.07155 | F52: 218 | G52: 5
D53: MISO | E53: 1654.551431 | F53: 218 | G53: 5
D54: MISO | E54: 1798.853463 | F54: 202.74 | G54: 5
D55: MISO | E55: 1567.764688 | F55: 184.9 | G55: 5
D56: MISO | E56: 1529.743493 | F56: 166.08 | G56: 5
D57: MISO | E57: 1468.950457 | F57: 155 | G57: 5
D58: MISO | E58: 1474.786265 | F58: 100.8 | G58: 5
D59: MISO | E59: 1650 | F59: 93.06 | G59: 5

Sheet CapEx by Project Capacity
A1: Installed wind power project costs by project size: 2020 and 2021 projects
A22: Sources: Berkeley Lab
B24: 2020-2021 | C24: 2020-2021 | D24: 2020-2021
A25: Project | B25: Sample | C25: Sample | D25: Average Cost | F25: Individual Projects:
A26: Size Bin | B26: Projects | C26: MW | D26: 2021 $/kW | F26: 2021 $/kW | G26: Bin
A27: ≤5 MW | B27: 1 | C27: 5 | F27: 1822.711354 | G27: 1
A28: 5-20 MW | F28: 1415.148567 | G28: 3
A29: 20-50 MW | B29: 1 | C29: 36.8 | F29: 1389.435972 | G29: 4
A30: 50-100 MW | B30: 11 | C30: 812.13 | D30: 1694.981757 | F30: 1499.831057 | G30: 4
A31: 100-200 MW | B31: 43 | C31: 6747.06 | D31: 1526.882859 | F31: 1503.006012 | G31: 4
A32: >200 MW | B32: 40 | C32: 11070.355 | D32: 1495.43478 | F32: 1629.457674 | G32: 4
F33: 1638.045348 | G33: 4
A34: Total | B34: 96 | C34: 18671.345 | F34: 1650 | G34: 4
F35: 1653.252929 | G35: 4
F36: 1674.514117 | G36: 4
F37: 1723.242148 | G37: 4
F38: 2104.724662 | G38: 4
F39: 2141.610538 | G39: 4
F40: 983.6767139 | G40: 5
F41: 1197.849962 | G41: 5
F42: 1215.140903 | G42: 5
F43: 1215.140903 | G43: 5
F44: 1220.032369 | G44: 5
F45: 1238.030558 | G45: 5
F46: 1249.15665 | G46: 5
F47: 1254.890436 | G47: 5
F48: 1265.670358 | G48: 5
F49: 1265.670358 | G49: 5
F50: 1354.062187 | G50: 5
F51: 1372.536415 | G51: 5
F52: 1399.41691 | G52: 5
F53: 1428.169694 | G53: 5
F54: 1468.950457 | G54: 5
F55: 1471.913931 | G55: 5
F56: 1474.786265 | G56: 5
F57: 1523.897191 | G57: 5
F58: 1529.743493 | G58: 5
F59: 1529.888551 | G59: 5
F60: 1548.798986 | G60: 5
F61: 1554.223769 | G61: 5
F62: 1560.258438 | G62: 5
F63: 1560.258438 | G63: 5
F64: 1567.764688 | G64: 5
F65: 1597.133283 | G65: 5
F66: 1598.107735 | G66: 5
F67: 1616.97787 | G67: 5
F68: 1634.906232 | G68: 5
F69: 1638.045348 | G69: 5
F70: 1665.588484 | G70: 5
F71: 1698.608489 | G71: 5
F72: 1723.888773 | G72: 5
F73: 1735.714286 | G73: 5
F74: 1751.876048 | G74: 5
F75: 1763.80133 | G75: 5
F76: 1797.578231 | G76: 5
F77: 1810.457833 | G77: 5
F78: 1816.095324 | G78: 5
F79: 1933.210398 | G79: 5
F80: 1933.720614 | G80: 5
F81: 1960.674351 | G81: 5
F82: 2055.689497 | G82: 5
F83: 1102.137205 | G83: 6
F84: 1159.518763 | G84: 6
F85: 1180.600923 | G85: 6
F86: 1183.578802 | G86: 6
F87: 1199.376441 | G87: 6
F88: 1234.817814 | G88: 6
F89: 1260.392148 | G89: 6
F90: 1261.968085 | G90: 6
F91: 1263.716392 | G91: 6
F92: 1295.310415 | G92: 6
F93: 1310.446072 | G93: 6
F94: 1312.696489 | G94: 6
F95: 1336.264043 | G95: 6
F96: 1339.643956 | G96: 6
F97: 1399.713467 | G97: 6
F98: 1400.156693 | G98: 6
F99: 1425.60349 | G99: 6
F100: 1445.3835 | G100: 6
F101: 1454.39114 | G101: 6
F102: 1469.51269 | G102: 6
F103: 1500.967406 | G103: 6
F104: 1508.811503 | G104: 6
F105: 1547.538198 | G105: 6
F106: 1574.731469 | G106: 6
F107: 1577.764342 | G107: 6
F108: 1581.038785 | G108: 6
F109: 1587.511998 | G109: 6
F110: 1601.382118 | G110: 6
F111: 1632.840067 | G111: 6
F112: 1654.551431 | G112: 6
F113: 1673.525375 | G113: 6
F114: 1692.460317 | G114: 6
F115: 1721.478442 | G115: 6
F116: 1748.657108 | G116: 6
F117: 1763.07155 | G117: 6
F118: 1774.89282 | G118: 6
F119: 1798.853463 | G119: 6
F120: 1814.646461 | G120: 6
F121: 1823.971 | G121: 6
F122: 1835.588895 | G122: 6

Sheet O&M Over Time
A1: Average O&M costs for available data years from 2000 to 2021, by COD
A22: Source: Berkeley Lab; some data points suppressed to protect confidentiality
B24: Average | C24: Average
B25: $/kW-yr | C25: $/kW-yr
A26: Commercial | B26: (projects | C26: (projects
A27: Operation | B27: with 2021 | C27: with no 2021
A28: Date | B28: O&M data) | C28: O&M data)
A29: 2020 | B29: 7.929837043
A30: 2020 | B30: 10.3399331
A31: 2020 | B31: 11.15404921
A32: 2020 | B32: 11.35555998
A33: 2019 | B33: 12.23063878
A34: 2020 | B34: 12.50468565
A35: 2019 | B35: 13.97258125
A36: 2012 | B36: 15.42681962
A37: 2019 | B37: 15.50243745
A38: 2009 | B38: 15.53781639
A39: 2019 | B39: 15.66052738
A40: 2012 | B40: 15.94023401
A41: 2009 | B41: 16.38397739
A42: 2019 | B42: 16.44904369
A43: 2020 | B43: 17.22137089
A44: 2010 | B44: 18.16368927
A45: 2018 | B45: 18.65883456
A46: 2019 | B46: 19.04896206
A47: 2018 | B47: 19.26725621
A48: 2018 | B48: 20.15551873
A49: 2008 | B49: 20.31810681
A50: 2008 | B50: 20.35794055
A51: 2007 | B51: 20.36916528
A52: 2008 | B52: 21.10229806
A53: 2009 | B53: 21.34761033
A54: 2019 | B54: 21.50499072
A55: 2020 | B55: 21.64422265
A56: 2020 | B56: 21.67504599
A57: 2008 | B57: 21.78922287
A58: 2012 | B58: 22.09001386
A59: 2020 | B59: 22.3566044
A60: 2012 | B60: 22.39326029
A61: 2010 | B61: 22.45604857
A62: 2019 | B62: 22.64799697
A63: 2008 | B63: 22.68218288
A64: 2007 | B64: 23.03548373
A65: 2010 | B65: 23.17673923
A66: 2016 | B66: 23.34867678
A67: 2019 | B67: 23.72523875
A68: 2011 | B68: 23.80691694
A69: 2008 | B69: 24.40137303
A70: 2007 | B70: 24.54514924
A71: 2020 | B71: 24.55170642
A72: 2020 | B72: 24.98659048
A73: 2008 | B73: 25.14972432
A74: 2018 | B74: 25.17375102
A75: 2008 | B75: 25.42334624
A76: 2020 | B76: 25.63539802
A77: 2015 | B77: 25.93103046
A78: 2017 | B78: 26.02495526
A79: 2008 | B79: 26.18961322
A80: 2016 | B80: 26.2754251
A81: 2018 | B81: 26.39245892
A82: 2012 | B82: 26.39945665
A83: 2018 | B83: 26.43593748
A84: 2019 | B84: 26.61474294
A85: 2020 | B85: 26.66738667
A86: 2015 | B86: 26.70269523
A87: 2016 | B87: 27.08312622
A88: 2005 | B88: 27.21850078
A89: 2011 | B89: 27.36312157
A90: 2004 | B90: 27.48146348
A91: 2017 | B91: 27.54190533
A92: 2006 | B92: 27.54570383
A93: 2016 | B93: 27.67587387
A94: 2006 | B94: 27.69256007
A95: 2014 | B95: 28.04239986
A96: 2007 | B96: 28.42669277
A97: 2011 | B97: 28.67664766
A98: 2015 | B98: 28.90478344
A99: 2014 | B99: 29.10763737
A100: 2014 | B100: 29.47741219
A101: 2008 | B101: 29.68263612
A102: 2020 | B102: 29.73834667
A103: 2009 | B103: 29.74787957
A104: 2009 | B104: 29.83507813
A105: 2012 | B105: 29.98629177
A106: 2016 | B106: 30.02857422
A107: 2009 | B107: 30.22191379
A108: 2020 | B108: 31.09765385
A109: 2020 | B109: 31.32490909
A110: 2008 | B110: 31.80304643
A111: 2006 | B111: 31.88055519
A112: 2009 | B112: 31.99824478
A113: 2008 | B113: 32.37134258
A114: 2012 | B114: 32.71592054
A115: 2015 | B115: 33.21369963
A116: 2010 | B116: 33.85598723
A117: 2014 | B117: 35.09687174
A118: 2011 | B118: 35.99321685
A119: 2017 | B119: 36.67477487
A120: 2014 | B120: 36.790739
A121: 2020 | B121: 38.35927771
A122: 2014 | B122: 39.3345275
A123: 2012 | B123: 40.33834824
A124: 2012 | B124: 40.71613419
A125: 2014 | B125: 42.60283948
A126: 2005 | B126: 43.08229043
A127: 2009 | B127: 43.38202979
A128: 2015 | B128: 44.25954896
A129: 2008 | B129: 44.26051706
A130: 2010 | B130: 44.547849
A131: 2006 | B131: 45.62392631
A132: 2012 | B132: 45.72713739
A133: 2001 | B133: 48.19957943
A134: 2009 | B134: 50.77064447
A135: 2008 | B135: 51.66603715
A136: 2014 | B136: 53.32512576
A137: 2012 | B137: 57.68913219
A138: 2012 | B138: 58.81226087
A139: 1999 | B139: 64.64439392
A140: 2012 | C140: 68.16419862
A141: 2007 | C141: 33.85089517
A142: 2007 | C142: 100.9907651
A143: 2006 | C143: 132.0510312
A144: 2004 | C144: 58.72932641
A145: 2002 | C145: 8.235933116
A146: 2002 | C146: 7.551397713
A147: 2002 | C147: 38.54851066
A148: 2002 | C148: 42.91469623
A149: 2002 | C149: 37.85155383
A150: 2002 | C150: 19.17083272
A151: 2002 | C151: 32.77165776
A152: 2002 | C152: 23.80119465
A153: 2002 | C153: 39.19822992
A154: 2001 | C154: 8.388323064
A155: 2001 | C155: 4.943662157
A156: 2001 | C156: 17.0354396
A157: 2001 | C157: 27.71739252
A158: 2001 | C158: 41.57608911
A159: 2001 | C159: 27.03674034
A160: 2001 | C160: 64.85158102
A161: 2001 | C161: 40.86554138
A162: 2001 | C162: 31.66935424
A163: 2000 | C163: 55.2106858
A164: 2000 | C164: 36.16290292
A165: 2000 | C165: 38.8715598
A166: 2000 | C166: 31.59154871
A167: 2000 | C167: 29.35295958
A168: 2000 | C168: 21.27264767
A169: 1999 | C169: 61.46332133
A170: 1999 | C170: 47.02998907
A171: 1999 | C171: 147.0289471
A172: 1999 | C172: 72.32197486
A173: 1999 | C173: 45.1024687
A174: 1999 | C174: 131.3246584
A175: 1999 | C175: 29.47044265
A176: 1999 | C176: 21.63639598
A177: 1999 | C177: 103.2809866
A178: 1999 | C178: 42.16657925
A179: 1999 | C179: 29.47920257
A180: 1999 | C180: 48.52850293
A181: 1999 | C181: 37.74690005
A182: 1999 | C182: 78.02371378
A183: 1999 | C183: 77.14307097
A184: 1999 | C184: 66.36872906
A185: 1999 | C185: 15.238036
A186: 1999 | C186: 36.10491403
A187: 1998 | C187: 60.69223425
A188: 1998 | C188: 38.16692739
A189: 1998 | C189: 61.8467195
A190: 1998 | C190: 39.06153924
A191: 1994 | C191: 39.57720574
A192: 1994 | C192: 69.23455732
A193: 1994 | C193: 57.25702476
A194: 1994 | C194: 117.8380226
A195: 1994 | C195: 80.93327958
A196: 1990 | C196: 67.50391456
A197: 1990 | C197: 69.1096929
A198: 1990 | C198: 66.47405327
A199: 1990 | C199: 122.7304214
A200: 1990 | C200: 68.69073562
A201: 1989 | C201: 55.00732583
A202: 1989 | C202: 53.65021871
A203: 1989 | C203: 55.24518045
A204: 1987 | C204: 73.69563508
A205: 1987 | C205: 83.62505396
A206: 1987 | C206: 91.52540143
A207: 1987 | C207: 96.79390703
A208: 1987 | C208: 102.6263402
A209: 1987 | C209: 56.37803527
A210: 1985 | C210: 64.16241566
A211: 1985 | C211: 61.28238895
A212: 1985 | C212: 94.55536774
A213: 1985 | C213: 123.7933815
A214: 1985 | C214: 109.0635932
A215: 1985 | C215: 116.8285241
A216: 1984 | C216: 163.3604408
A217: 1984 | C217: 90.57114553
A218: 1984 | C218: 89.71612088
A219: 1984 | C219: 73.16027206

Sheet O&M by Project Age
A1: Median annual O&M costs by project age and commercial operation date
A22: Source: Berkeley Lab; medians shown only for groups of two or more projects, and only projects >5 MW are included.
A25: 2021 $/kW-year
A26: Commercial Operation Date | B26: Years Since Commercial Operation Date
B27: 1 | C27: 2 | D27: 3 | E27: 4 | F27: 5 | G27: 6 | H27: 7 | I27: 8 | J27: 9 | K27: 10 | L27: 11 | M27: 12 | N27: 13 | O27: 14 | P27: 15 | Q27: 16 | R27: 17 | S27: 18 | T27: 19 | U27: 20
A28: 1998−2005 | B28: 32.77165776 | C28: 34.40917853 | D28: 35.74100602 | E28: 45.12549163 | F28: 50.04638577 | G28: 55.98561412 | H28: 48.48176997 | I28: 45.9166243 | J28: 51.95724473 | K28: 59.86703045 | L28: 78.39507105 | M28: 74.73705102 | N28: 62.70376434 | O28: 43.65910847 | P28: 57.64619452 | Q28: 47.01391745 | R28: 44.42334747 | S28: 53.22712206 | T28: 40.19177358 | U28: 51.58171512
A29: 2006−2012 | B29: 26.6076487 | C29: 27.92681089 | D29: 28.87469709 | E29: 28.34173479 | F29: 27.75379837 | G29: 29.25919862 | H29: 28.72683386 | I29: 26.96899788 | J29: 25.22309398 | K29: 20.44159877 | L29: 21.10192991 | M29: 23.2201867 | N29: 24.77971137 | O29: 23.66162963 | P29: 24.29878704 | Q29: n/a | R29: n/a | S29: n/a | T29: n/a | U29: n/a
A30: 2013−2020 | B30: 24.60552457 | C30: 26.91748159 | D30: 27.23992782 | E30: 28.14904434 | F30: 29.06045801 | G30: 30.81727093 | H30: 34.01816816 | I30: n/a | J30: n/a | K30: n/a | L30: n/a | M30: n/a | N30: n/a | O30: n/a | P30: n/a | Q30: n/a | R30: n/a | S30: n/a | T30: n/a | U30: n/a
A31: n/a = insufficient data
A34: Sample Size
A35: Commercial Operation Date | B35: Years Since Commercial Operation Date
B36: 1 | C36: 2 | D36: 3 | E36: 4 | F36: 5 | G36: 6 | H36: 7 | I36: 8 | J36: 9 | K36: 10 | L36: 11 | M36: 12 | N36: 13 | O36: 14 | P36: 15 | Q36: 16 | R36: 17 | S36: 18 | T36: 19 | U36: 20
A37: 1998−2005 | B37: 19 | C37: 32 | D37: 25 | E37: 23 | F37: 11 | G37: 8 | H37: 6 | I37: 8 | J37: 7 | K37: 9 | L37: 8 | M37: 9 | N37: 9 | O37: 9 | P37: 9 | Q37: 9 | R37: 6 | S37: 4 | T37: 3 | U37: 2
A38: 2006−2012 | B38: 52 | C38: 54 | D38: 52 | E38: 52 | F38: 52 | G38: 52 | H38: 52 | I38: 52 | J38: 51 | K38: 39 | L38: 34 | M38: 31 | N38: 22 | O38: 7 | P38: 4 | Q38: 0 | R38: 0 | S38: 0 | T38: 0 | U38: 0
A39: 2013−2020 | B39: 53 | C39: 36 | D39: 25 | E39: 20 | F39: 18 | G39: 13 | H39: 8 | I39: 0 | J39: 0 | K39: 0 | L39: 0 | M39: 0 | N39: 0 | O39: 0 | P39: 0 | Q39: 0 | R39: 0 | S39: 0 | T39: 0 | U39: 0

Sheet Wind PPAs by Plant_Real
A1: Levelized wind PPA prices by PPA execution date and region (full sample) | K1: Levelized wind PPA prices by PPA execution date and region (recent sample) | T1: Levelized wind PPA prices by PPA execution date and consolidated region (full sample) | AE1: Levelized wind PPA prices by PPA execution date and consolidated region (recent sample)
A22: Note: Size of bubble reflects contract capacity. | K22: Note: Size of bubble reflects contract capacity. | T22: Note: Size of bubble reflects contract capacity. | AE22: Note: Size of bubble reflects contract capacity.
A23: Source: Berkeley Lab, FERC | K23: Source: Berkeley Lab, FERC | O23: 44742 | P23: 42370 | T23: Source: Berkeley Lab, FERC | AE23: Source: Berkeley Lab, FERC
A25: PPA Execution Date | B25: Capacity (MW) | C25: CAISO | D25: West (non-ISO) | E25: MISO | F25: SPP | G25: ERCOT | H25: PJM | I25: NYISO | J25: ISO-NE | K25: Southeast (non-ISO) | M25: West | N25: Central | O25: East | P25: Note: West = CAISO, West (non-ISO); Central = MISO, SPP, ERCOT; East = PJM, NYISO, ISO-NE, Southeast (non-ISO)
A26: 1996-09-06 | B26: 107.25 | E26: 37.31614597 | N26: 37.31614597
A27: 1996-11-27 | B27: 25.08 | D27: 70.18345853 | M27: 70.18345853
A28: 1997-03-11 | B28: 108.75 | E28: 55.46669167 | N28: 55.46669167
A29: 1997-05-14 | B29: 9 | E29: 56.2074927 | N29: 56.2074927
A30: 1997-07-16 | B30: 70.5 | E30: 65.16813616 | N30: 65.16813616
A31: 1998-02-27 | B31: 41.25 | E31: 54.11547416 | N31: 54.11547416
A32: 1998-04-09 | B32: 103.5 | E32: 39.05246101 | N32: 39.05246101
A33: 1998-09-21 | B33: 1.98 | E33: 46.80091437 | N33: 46.80091437
A34: 1999-08-31 | B34: 74.9 | G34: 36.34130765 | N34: 36.34130765
A35: 1999-11-12 | B35: 10.4 | H35: 201.9713824 | O35: 201.9713824
A36: 2000-05-10 | B36: 16.8 | D36: 48.08489513 | M36: 48.08489513
A37: 2000-09-21 | B37: 29.7 | D37: 52.3927579 | M37: 52.3927579
A38: 2000-10-31 | B38: 150 | G38: 36.0766108 | N38: 36.0766108
A39: 2000-11-30 | B39: 299.64 | D39: 34.46658902 | M39: 34.46658902
A40: 2001-01-22 | B40: 50 | D40: 44.48207902 | M40: 44.48207902
A41: 2001-02-23 | B41: 40.05 | E41: 40.85194067 | N41: 40.85194067
A42: 2001-03-13 | B42: 112.2 | F42: 32.36380106 | N42: 32.36380106
A43: 2001-04-17 | B43: 25.5 | E43: 105.470645 | N43: 105.470645
A44: 2001-04-18 | B44: 4.5 | E44: 91.88472862 | N44: 91.88472862
A45: 2001-04-25 | B45: 64.5 | H45: 55.3745758 | O45: 55.3745758
A46: 2001-11-01 | B46: 160.5 | G46: 31.45046207 | N46: 31.45046207
A47: 2001-11-07 | B47: 49.8 | D47: 80.96836402 | M47: 80.96836402
A48: 2001-11-09 | B48: 40.05 | E48: 52.5482401 | N48: 52.5482401
A49: 2001-12-20 | B49: 66 | H49: 52.26257638 | O49: 52.26257638
A50: 2001-12-20 | B50: 9 | H50: 53.24731854 | O50: 53.24731854
A51: 2001-12-21 | B51: 80 | F51: 32.13405489 | N51: 32.13405489
A52: 2001-12-31 | B52: 51 | E52: 36.99962571 | N52: 36.99962571
A53: 2002-03-30 | B53: 15 | H53: 53.24406477 | O53: 53.24406477
A54: 2002-04-23 | B54: 85.5 | E54: 31.30703998 | N54: 31.30703998
A55: 2002-09-13 | B55: 40.5 | E55: 24.66789451 | N55: 24.66789451
A56: 2002-09-13 | B56: 40.5 | D56: 26.97473482 | M56: 26.97473482
A57: 2002-09-13 | B57: 21 | E57: 35.08333642 | N57: 35.08333642
A58: 2002-09-19 | B58: 5.94 | E58: 33.79427673 | N58: 33.79427673
A59: 2002-09-27 | B59: 56.76 | E59: 28.90793971 | N59: 28.90793971
A60: 2002-10-02 | B60: 16.5 | C60: 64.56501101 | M60: 64.56501101
A61: 2002-10-07 | B61: 162 | C61: 44.04776614 | M61: 44.04776614
A62: 2002-10-14 | B62: 11.22 | E62: 33.79651944 | N62: 33.79651944
A63: 2002-10-21 | B63: 204 | D63: 31.78778583 | M63: 31.78778583
A64: 2002-10-30 | B64: 60 | C64: 59.24687183 | M64: 59.24687183
A65: 2002-10-31 | B65: 22.44 | C65: 61.13540321 | M65: 61.13540321
A66: 2002-11-25 | B66: 43.5 | E66: 30.77533404 | N66: 30.77533404
A67: 2002-12-20 | B67: 27 | K67: 84.60042386 | O67: 84.60042386
A68: 2003-01-10 | B68: 24 | D68: 44.62022267 | M68: 44.62022267
A69: 2003-01-21 | B69: 74.25 | F69: 28.66056542 | N69: 28.66056542
A70: 2003-03-27 | B70: 51 | F70: 21.43753815 | N70: 21.43753815
A71: 2003-04-01 | B71: 162 | D71: 45.9014329 | M71: 45.9014329
A72: 2003-04-21 | B72: 30 | H72: 47.06033746 | O72: 47.06033746
A73: 2003-05-28 | B73: 144 | D73: 48.33245866 | M73: 48.33245866
A74: 2003-05-30 | B74: 24 | H74: 60.90478009 | O74: 60.90478009
A75: 2003-06-06 | B75: 51 | F75: 30.70057385 | N75: 30.70057385
A76: 2003-11-13 | B76: 10 | E76: 37.41685621 | N76: 37.41685621
A77: 2004-01-06 | B77: 9 | D77: 65.7571269 | M77: 65.7571269
A78: 2004-04-07 | B78: 3.3 | E78: 32.73592927 | N78: 32.73592927
A79: 2004-05-27 | B79: 91.5 | G79: 33.49941744 | N79: 33.49941744
A80: 2004-05-30 | B80: 100.5 | E80: 29.69123233 | N80: 29.69123233
A81: 2004-05-31 | B81: 50 | C81: 58.56078578 | M81: 58.56078578
A82: 2004-07-02 | B82: 27.5 | E82: 73.60074341 | N82: 73.60074341
A83: 2004-07-02 | B83: 16.5 | E83: 73.60073954 | N83: 73.60073954
A84: 2004-07-08 | B84: 80 | F84: 33.4872598 | N84: 33.4872598
A85: 2004-09-09 | B85: 10.5 | D85: 65.53707203 | M85: 65.53707203
A86: 2004-10-06 | B86: 20.46 | C86: 54.75372103 | M86: 54.75372103
A87: 2004-11-19 | B87: 27.5 | E87: 73.60074341 | N87: 73.60074341
A88: 2004-12-08 | B88: 75 | D88: 49.82418927 | M88: 49.82418927
A89: 2004-12-16 | B89: 35 | G89: 36.51312348 | N89: 36.51312348
A90: 2005-01-26 | B90: 151.2 | F90: 33.62240173 | N90: 33.62240173
A91: 2005-02-28 | B91: 120 | F91: 34.04929204 | N91: 34.04929204
A92: 2005-02-28 | B92: 60 | D92: 42.86737207 | M92: 42.86737207
A93: 2005-03-28 | B93: 100 | G93: 36.51312348 | N93: 36.51312348
A94: 2005-04-01 | B94: 64.5 | D94: 65.22559614 | M94: 65.22559614
A95: 2005-04-01 | B95: 38 | C95: 68.93005594 | M95: 68.93005594
A96: 2005-04-08 | B96: 147 | F96: 29.48723678 | N96: 29.48723678
A97: 2005-05-27 | B97: 50.6 | E97: 31.96717007 | N97: 31.96717007
A98: 2005-06-15 | B98: 75 | C98: 66.92834934 | M98: 66.92834934
A99: 2005-06-16 | B99: 49.5 | E99: 31.26273979 | N99: 31.26273979
A100: 2005-10-11 | B100: 25 | C100: 73.92924409 | M100: 73.92924409
A101: 2005-10-12 | B101: 205.5 | E101: 49.76967995 | N101: 49.76967995
A102: 2005-11-08 | B102: 161 | F102: 41.08008685 | N102: 41.08008685
A103: 2005-11-18 | B103: 98.9 | E103: 46.10139192 | N103: 46.10139192
A104: 2005-12-22 | B104: 90 | D104: 67.44302871 | M104: 67.44302871
A105: 2005-12-29 | B105: 150 | E105: 44.53430769 | N105: 44.53430769
A106: 2005-12-30 | B106: 56.7 | K106: 47.52132547 | O106: 47.52132547
A107: 2006-01-16 | B107: 201 | D107: 51.97605327 | M107: 51.97605327
A108: 2006-02-01 | B108: 199.5 | D108: 70.85778214 | M108: 70.85778214
A109: 2006-02-21 | B109: 25.2 | F109: 47.22843508 | N109: 47.22843508
A110: 2006-03-01 | B110: 240.8 | G110: 54.83121706 | N110: 54.83121706
A111: 2006-03-15 | B111: 50.4 | K111: 48.80331871 | O111: 48.80331871
A112: 2006-03-21 | B112: 80 | H112: 71.35920637 | O112: 71.35920637
A113: 2006-04-01 | B113: 124.2 | G113: 47.1639272 | N113: 47.1639272
A114: 2006-04-20 | B114: 10.5 | D114: 71.13876992 | M114: 71.13876992
A115: 2006-05-24 | B115: 50 | C115: 70.97007014 | M115: 70.97007014
A116: 2006-06-30 | B116: 300.5 | D116: 53.69522703 | M116: 53.69522703
A117: 2006-07-14 | B117: 60.9 | D117: 60.66837148 | M117: 60.66837148
A118: 2006-07-31 | B118: 199.5 | D118: 51.82581876 | M118: 51.82581876
A119: 2006-07-31 | B119: 50 | E119: 39.13402665 | N119: 39.13402665
A120: 2006-08-16 | B120: 45 | C120: 76.07272757 | M120: 76.07272757
A121: 2006-08-24 | B121: 94.5 | F121: 31.02801634 | N121: 31.02801634
A122: 2006-08-31 | B122: 50 | E122: 52.58234438 | N122: 52.58234438
A123: 2006-09-01 | B123: 100.5 | E123: 61.69909143 | N123: 61.69909143
A124: 2006-09-12 | B124: 26 | H124: 71.75925426 | O124: 71.75925426
A125: 2006-09-27 | B125: 50.4 | K125: 49.55123672 | O125: 49.55123672
A126: 2006-10-01 | B126: 21 | E126: 34.7418343 | N126: 34.7418343
A127: 2006-10-01 | B127: 14.7 | E127: 36.98301254 | N127: 36.98301254
A128: 2006-10-26 | B128: 79.8 | D128: 67.40910026 | M128: 67.40910026
A129: 2006-10-27 | B129: 100.65 | E129: 49.5455276 | N129: 49.5455276
A130: 2006-11-10 | B130: 6 | C130: 72.42787281 | M130: 72.42787281
A131: 2006-11-22 | B131: 29.4 | D131: 51.33714605 | M131: 51.33714605
A132: 2006-12-01 | B132: 5 | K132: 58.99227907 | O132: 58.99227907
A133: 2006-12-11 | B133: 29.4 | H133: 75.70888988 | O133: 75.70888988
A134: 2006-12-15 | B134: 100.65 | D134: 67.96581658 | M134: 67.96581658
A135: 2006-12-20 | B135: 21 | D135: 71.15874156 | M135: 71.15874156
A136: 2006-12-20 | B136: 21 | D136: 71.15897168 | M136: 71.15897168
A137: 2006-12-28 | B137: 48 | E137: 43.61525611 | N137: 43.61525611
A138: 2007-01-01 | B138: 59.8 | G138: 45.39108783 | N138: 45.39108783
A139: 2007-02-16 | B139: 52.8 | E139: 69.64698615 | N139: 69.64698615
A140: 2007-02-20 | B140: 57.5 | E140: 81.94674561 | N140: 81.94674561
A141: 2007-02-22 | B141: 51 | F141: 52.43167861 | N141: 52.43167861
A142: 2007-02-23 | B142: 50.4 | F142: 46.35383443 | N142: 46.35383443
A143: 2007-02-28 | B143: 25.2 | F143: 47.88438557 | N143: 47.88438557
A144: 2007-04-23 | B144: 30 | E144: 65.63107803 | N144: 65.63107803
A145: 2007-06-06 | B145: 20.46 | E145: 59.33675094 | N145: 59.33675094
A146: 2007-06-19 | B146: 105 | F146: 42.18250174 | N146: 42.18250174
A147: 2007-06-26 | B147: 99 | D147: 67.42890491 | M147: 67.42890491
A148: 2007-07-02 | B148: 30 | E148: 65.81877344 | N148: 65.81877344
A149: 2007-08-03 | B149: 100.4333333 | H149: 71.20581739 | O149: 71.20581739
A150: 2007-08-17 | B150: 150 | C150: 93.299738 | M150: 93.299738
A151: 2007-08-29 | B151: 99 | H151: 70.39583817 | O151: 70.39583817
A152: 2007-09-17 | B152: 75 | H152: 65.2506345 | O152: 65.2506345
A153: 2007-09-25 | B153: 96 | F153: 49.2129187 | N153: 49.2129187
A154: 2007-09-25 | B154: 50 | F154: 43.44002338 | N154: 43.44002338
A155: 2007-10-05 | B155: 50 | D155: 72.77727429 | M155: 72.77727429
A156: 2007-10-15 | B156: 98.7 | D156: 74.45125457 | M156: 74.45125457
A157: 2007-11-01 | B157: 24 | F157: 47.28811692 | N157: 47.28811692
A158: 2007-11-01 | B158: 24 | F158: 47.28811692 | N158: 47.28811692
A159: 2007-11-02 | B159: 50 | E159: 58.5511903 | N159: 58.5511903
A160: 2007-12-03 | B160: 99 | E160: 54.44318286 | N160: 54.44318286
A161: 2007-12-22 | B161: 165.6 | G161: 60.92140798 | N161: 60.92140798
A162: 2007-12-31 | B162: 99 | E162: 41.72235344 | N162: 41.72235344
A163: 2007-12-31 | B163: 19.5 | E163: 41.72207156 | N163: 41.72207156
A164: 2008-01-02 | B164: 24 | J164: 58.94316301 | O164: 58.94316301
A165: 2008-01-16 | B165: 200.8666667 | H165: 78.16649274 | O165: 78.16649274
A166: 2008-02-27 | B166: 81 | F166: 60.19080872 | N166: 60.19080872
A167: 2008-02-28 | B167: 100 | D167: 62.12360795 | M167: 62.12360795
A168: 2008-03-25 | B168: 106 | E168: 83.58531414 | N168: 83.58531414
A169: 2008-04-03 | B169: 100.5 | E169: 73.34553908 | N169: 73.34553908
A170: 2008-04-30 | B170: 54 | E170: 62.94563306 | N170: 62.94563306
A171: 2008-05-28 | B171: 102.9 | D171: 86.2099543 | M171: 86.2099543
A172: 2008-05-30 | B172: 40 | H172: 88.85219992 | O172: 88.85219992
A173: 2008-05-30 | B173: 38 | H173: 87.96876121 | O173: 87.96876121
A174: 2008-05-30 | B174: 10 | H174: 97.62772583 | O174: 97.62772583
A175: 2008-06-12 | B175: 99 | E175: 46.96211028 | N175: 46.96211028
A176: 2008-06-12 | B176: 4.5 | J176: 142.7720125 | O176: 142.7720125
A177: 2008-06-15 | B177: 50.25 | H177: 101.4430207 | O177: 101.4430207
A178: 2008-06-30 | B178: 50.25 | H178: 101.4430207 | O178: 101.4430207
A179: 2008-07-23 | B179: 63 | D179: 98.3976444 | M179: 98.3976444
A180: 2008-07-23 | B180: 30 | E180: 66.23561753 | N180: 66.23561753
A181: 2008-07-28 | B181: 72 | D181: 107.9321501 | M181: 107.9321501
A182: 2008-08-11 | B182: 76.5 | D182: 86.80737585 | M182: 86.80737585
A183: 2008-08-14 | B183: 290 | D183: 102.6060002 | M183: 102.6060002
A184: 2008-08-14 | B184: 290 | D184: 102.6060002 | M184: 102.6060002
A185: 2008-08-14 | B185: 265 | D185: 102.9253333 | M185: 102.9253333
A186: 2008-08-14 | B186: 15 | F186: 48.67079166 | N186: 48.67079166
A187: 2008-08-15 | B187: 50 | F187: 48.07592643 | N187: 48.07592643
A188: 2008-08-20 | B188: 62.5 | H188: 96.86135166 | O188: 96.86135166
A189: 2008-09-05 | B189: 99 | D189: 68.49366999 | M189: 68.49366999
A190: 2008-09-22 | B190: 49.5 | E190: 66.43693602 | N190: 66.43693602
A191: 2008-09-24 | B191: 40.5 | E191: 46.48625247 | N191: 46.48625247
A192: 2008-10-07 | B192: 50 | E192: 71.80455609 | N192: 71.80455609
A193: 2008-10-08 | B193: 50 | E193: 73.25337096 | N193: 73.25337096
A194: 2008-10-17 | B194: 99 | H194: 71.29343394 | O194: 71.29343394
A195: 2008-11-20 | B195: 101.2 | C195: 112.9307065 | M195: 112.9307065
A196: 2008-11-21 | B196: 150 | E196: 63.08060172 | N196: 63.08060172
A197: 2008-12-02 | B197: 100 | E197: 60.70058012 | N197: 60.70058012
A198: 2008-12-09 | B198: 25 | F198: 68.42594497 | N198: 68.42594497
A199: 2008-12-12 | B199: 49.5 | E199: 55.91679513 | N199: 55.91679513
A200: 2008-12-16 | B200: 150.1 | K200: 74.64108576 | O200: 74.64108576
A201: 2008-12-22 | B201: 151.8 | D201: 61.47182206 | M201: 61.47182206
A202: 2008-12-22 | B202: 79.5 | F202: 62.28213872 | N202: 62.28213872
A203: 2008-12-23 | B203: 18.9 | F203: 40.41345844 | N203: 40.41345844
A204: 2009-01-28 | B204: 50.4 | E204: 55.88945604 | N204: 55.88945604
A205: 2009-01-30 | B205: 98.9 | F205: 63.66232591 | N205: 63.66232591
A206: 2009-02-02 | B206: 99 | F206: 53.93140631 | N206: 53.93140631
A207: 2009-02-05 | B207: 150 | H207: 95.21447691 | O207: 95.21447691
A208: 2009-02-05 | B208: 51 | H208: 97.93492809 | O208: 97.93492809
A209: 2009-02-05 | B209: 49.5 | H209: 97.95525101 | O209: 97.95525101
A210: 2009-02-19 | B210: 49.5 | H210: 95.9886783 | O210: 95.9886783
A211: 2009-03-17 | B211: 24.75 | E211: 122.047664 | N211: 122.047664
A212: 2009-03-17 | B212: 8 | E212: 119.1022973 | N212: 119.1022973
A213: 2009-03-24 | B213: 63 | D213: 91.06401912 | M213: 91.06401912
A214: 2009-03-31 | B214: 30 | D214: 62.37348815 | M214: 62.37348815
A215: 2009-03-31 | B215: 12 | D215: 62.37272701 | M215: 62.37272701
A216: 2009-04-01 | B216: 96.6 | D216: 83.24084635 | M216: 83.24084635
A217: 2009-04-01 | B217: 49.5 | E217: 52.1705366 | N217: 52.1705366
A218: 2009-04-10 | B218: 124.5 | D218: 108.3473957 | M218: 108.3473957
A219: 2009-04-29 | B219: 70 | H219: 71.06968424 | O219: 71.06968424
A220: 2009-04-30 | B220: 22.5 | D220: 65.81783987 | M220: 65.81783987
A221: 2009-06-10 | B221: 102.3 | E221: 78.74900954 | N221: 78.74900954
... 329 more rows

Sheet Wind PPAs by Plant_Nominal
A1: Levelized wind PPA prices by PPA execution date and region (full sample) | K1: Levelized wind PPA prices by PPA execution date and region (recent sample) | T1: Levelized wind PPA prices by PPA execution date and consolidated region (full sample) | AE1: Levelized wind PPA prices by PPA execution date and consolidated region (recent sample) | AQ1: Levelized wind PPA prices by PPA execution date and region partial sample) | BB1: Levelized wind PPA prices by PPA execution date and consolidated region (partial sample)
AQ2: Comparison of average LBNL and LevelTen prices | BB2: Comparison of average LBNL and LevelTen prices
A22: Note: Size of bubble reflects contract capacity. | K22: Note: Size of bubble reflects contract capacity. | T22: Note: Size of bubble reflects contract capacity. | AE22: Note: Size of bubble reflects contract capacity.
A23: Source: Berkeley Lab, FERC | K23: Source: Berkeley Lab, FERC | O23: 44742 | P23: 42370 | T23: Source: Berkeley Lab, FERC | AE23: Source: Berkeley Lab, FERC | AQ23: Note: Size of bubble reflects contract capacity. | BB23: Note: Size of bubble reflects contract capacity.
AQ24: Source: Berkeley Lab, FERC, LevelTen | BB24: Source: Berkeley Lab, FERC, LevelTen
A25: PPA Execution Date | B25: Capacity (MW) | C25: CAISO | D25: West (non-ISO) | E25: MISO | F25: SPP | G25: ERCOT | H25: PJM | I25: NYISO | J25: ISO-NE | K25: Southeast (non-ISO) | M25: West | N25: Central | O25: East | P25: Note: West = CAISO, West (non-ISO); Central = MISO, SPP, ERCOT; East = PJM, NYISO, ISO-NE, Southeast (non-ISO)
A26: 1996-09-06 | B26: 107.25 | E26: 30.09279522 | N26: 30.09279522 | AR26: LBNL | AS26: LevelTen
A27: 1996-11-27 | B27: 25.08 | D27: 56.74982413 | M27: 56.74982413 | AR27: Nominal | AS27: Nominal
A28: 1997-03-11 | B28: 108.75 | E28: 42.38895679 | N28: 42.38895679 | AR28: $/MWh | AS28: $/MWh
A29: 1997-05-14 | B29: 9 | E29: 46.3812244 | N29: 46.3812244 | AQ29: 2009 | AR29: 75.7855649 | AS29: =NA() -> 
A30: 1997-07-16 | B30: 70.5 | E30: 49.84332777 | N30: 49.84332777 | AQ30: =AQ29+1 -> 2010 | AR30: 67.80269438 | AS30: =NA() -> 
A31: 1998-02-27 | B31: 41.25 | E31: 42.71569517 | N31: 42.71569517 | AQ31: =AQ30+1 -> 2011 | AR31: 52.96346735 | AS31: =NA() -> 
A32: 1998-04-09 | B32: 103.5 | E32: 30.96738202 | N32: 30.96738202 | AQ32: 2012 | AR32: 41.78320104 | AS32: =NA() -> 
A33: 1998-09-21 | B33: 1.98 | E33: 34.7 | N33: 34.7 | AQ33: 2013 | AR33: 30.72675017 | AS33: =NA() -> 
A34: 1999-08-31 | B34: 74.9 | G34: 27.83530502 | N34: 27.83530502 | AQ34: 2014 | AR34: 29.23250965 | AS34: =NA() -> 
A35: 1999-11-12 | B35: 10.4 | H35: 149.5 | O35: 149.5 | AQ35: 2015 | AR35: 36.0159693 | AS35: =NA() -> 
A36: 2000-05-10 | B36: 16.8 | D36: 37.59894032 | M36: 37.59894032 | AQ36: 2016 | AR36: 30.13210942 | AS36: =NA() -> 
A37: 2000-09-21 | B37: 29.7 | D37: 40.48961029 | M37: 40.48961029 | AQ37: 2017 | AR37: 24.00645714 | AS37: =NA() -> 
A38: 2000-10-31 | B38: 150 | G38: 26.87 | N38: 26.87 | AQ38: 2018 | AR38: 20.58281137 | AS38: 22.11818182
A39: 2000-11-30 | B39: 299.64 | D39: 28.53102157 | M39: 28.53102157 | AQ39: 2019 | AR39: 28.96425386 | AS39: 25.29821429
A40: 2001-01-22 | B40: 50 | D40: 35.48 | M40: 35.48 | AQ40: 2020 | AR40: 30.4349866 | AS40: 31.625
A41: 2001-02-23 | B41: 40.05 | E41: 31.5526239 | N41: 31.5526239 | AQ41: 2021 | AR41: 27.93006111 | AS41: 27.2625
A42: 2001-03-13 | B42: 112.2 | F42: 25 | N42: 25
A43: 2001-04-17 | B43: 25.5 | E43: 86.80797199 | N43: 86.80797199
A44: 2001-04-18 | B44: 4.5 | E44: 73.19822459 | N44: 73.19822459
A45: 2001-04-25 | B45: 64.5 | H45: 45.94097053 | O45: 45.94097053
A46: 2001-11-01 | B46: 160.5 | G46: 25.41 | N46: 25.41
A47: 2001-11-07 | B47: 49.8 | D47: 65.83270279 | M47: 65.83270279
A48: 2001-11-09 | B48: 40.05 | E48: 39.13694113 | N48: 39.13694113
A49: 2001-12-20 | B49: 66 | H49: 43.0844176 | O49: 43.0844176
A50: 2001-12-20 | B50: 9 | H50: 43.30065831 | O50: 43.30065831
A51: 2001-12-21 | B51: 80 | F51: 24.83007915 | N51: 24.83007915
A52: 2001-12-31 | B52: 51 | E52: 29.75 | N52: 29.75
A53: 2002-03-30 | B53: 15 | H53: 43.30065831 | O53: 43.30065831
A54: 2002-04-23 | B54: 85.5 | E54: 25.83465711 | N54: 25.83465711
A55: 2002-09-13 | B55: 40.5 | E55: 21.01969791 | N55: 21.01969791
A56: 2002-09-13 | B56: 40.5 | D56: 23.13041417 | M56: 23.13041417
A57: 2002-09-13 | B57: 21 | E57: 29.9 | N57: 29.9
A58: 2002-09-19 | B58: 5.94 | E58: 27.5 | N58: 27.5
A59: 2002-09-27 | B59: 56.76 | E59: 24.2737399 | N59: 24.2737399
A60: 2002-10-02 | B60: 16.5 | C60: 52.6 | M60: 52.6
A61: 2002-10-07 | B61: 162 | C61: 37.77749754 | M61: 37.77749754
A62: 2002-10-14 | B62: 11.22 | E62: 27.5 | N62: 27.5
A63: 2002-10-21 | B63: 204 | D63: 27.25 | M63: 27.25
A64: 2002-10-30 | B64: 60 | C64: 49.2 | M64: 49.2
A65: 2002-10-31 | B65: 22.44 | C65: 49.15 | M65: 49.15
A66: 2002-11-25 | B66: 43.5 | E66: 24.7419845 | N66: 24.7419845
A67: 2002-12-20 | B67: 27 | K67: 72.11612016 | O67: 72.11612016
A68: 2003-01-10 | B68: 24 | D68: 36.76690867 | M68: 36.76690867
A69: 2003-01-21 | B69: 74.25 | F69: 23.79661027 | N69: 23.79661027
A70: 2003-03-27 | B70: 51 | F70: 18.38323324 | N70: 18.38323324
A71: 2003-04-01 | B71: 162 | D71: 37.37638978 | M71: 37.37638978
A72: 2003-04-21 | B72: 30 | H72: 39.6 | O72: 39.6
A73: 2003-05-28 | B73: 144 | D73: 42.0260762 | M73: 42.0260762
A74: 2003-05-30 | B74: 24 | H74: 53.71 | O74: 53.71
A75: 2003-06-06 | B75: 51 | F75: 24.68 | N75: 24.68
A76: 2003-11-13 | B76: 10 | E76: 33 | N76: 33
A77: 2004-01-06 | B77: 9 | D77: 57.55871768 | M77: 57.55871768
A78: 2004-04-07 | B78: 3.3 | E78: 27.75 | N78: 27.75
A79: 2004-05-27 | B79: 91.5 | G79: 27.45 | N79: 27.45
A80: 2004-05-30 | B80: 100.5 | E80: 24.84 | N80: 24.84
A81: 2004-05-31 | B81: 50 | C81: 51.25985888 | M81: 51.25985888
A82: 2004-07-02 | B82: 27.5 | E82: 67.32303892 | N82: 67.32303892
A83: 2004-07-02 | B83: 16.5 | E83: 67.32303219 | N83: 67.32303219
A84: 2004-07-08 | B84: 80 | F84: 28.74832604 | N84: 28.74832604
A85: 2004-09-09 | B85: 10.5 | D85: 56.67853259 | M85: 56.67853259
A86: 2004-10-06 | B86: 20.46 | C86: 44.59366657 | M86: 44.59366657
A87: 2004-11-19 | B87: 27.5 | E87: 67.32303892 | N87: 67.32303892
A88: 2004-12-08 | B88: 75 | D88: 45.66146817 | M88: 45.66146817
A89: 2004-12-16 | B89: 35 | G89: 30.28 | N89: 30.28
A90: 2005-01-26 | B90: 151.2 | F90: 27.53789724 | N90: 27.53789724
A91: 2005-02-28 | B91: 120 | F91: 29.23851247 | N91: 29.23851247
A92: 2005-02-28 | B92: 60 | D92: 37.79 | M92: 37.79
A93: 2005-03-28 | B93: 100 | G93: 30.28 | N93: 30.28
A94: 2005-04-01 | B94: 64.5 | D94: 57.10566957 | M94: 57.10566957
A95: 2005-04-01 | B95: 38 | C95: 57.4 | M95: 57.4
A96: 2005-04-08 | B96: 147 | F96: 25.5092148 | N96: 25.5092148
A97: 2005-05-27 | B97: 50.6 | E97: 29.5 | N97: 29.5
A98: 2005-06-15 | B98: 75 | C98: 56.62 | M98: 56.62
A99: 2005-06-16 | B99: 49.5 | E99: 28.30680787 | N99: 28.30680787
A100: 2005-10-11 | B100: 25 | C100: 62.95 | M100: 62.95
A101: 2005-10-12 | B101: 205.5 | E101: 46.28056247 | N101: 46.28056247
A102: 2005-11-08 | B102: 161 | F102: 36.88804732 | N102: 36.88804732
A103: 2005-11-18 | B103: 98.9 | E103: 40.65129364 | N103: 40.65129364
A104: 2005-12-22 | B104: 90 | D104: 60.14 | M104: 60.14
A105: 2005-12-29 | B105: 150 | E105: 39 | N105: 39
A106: 2005-12-30 | B106: 56.7 | K106: 42.71 | O106: 42.71
A107: 2006-01-16 | B107: 201 | D107: 46.68400327 | M107: 46.68400327
A108: 2006-02-01 | B108: 199.5 | D108: 62.5 | M108: 62.5
A109: 2006-02-21 | B109: 25.2 | F109: 43.2 | N109: 43.2
A110: 2006-03-01 | B110: 240.8 | G110: 49.26 | N110: 49.26
A111: 2006-03-15 | B111: 50.4 | K111: 44 | O111: 44
A112: 2006-03-21 | B112: 80 | H112: 65 | O112: 65
A113: 2006-04-01 | B113: 124.2 | G113: 40.5578558 | N113: 40.5578558
A114: 2006-04-20 | B114: 10.5 | D114: 65.35585438 | M114: 65.35585438
A115: 2006-05-24 | B115: 50 | C115: 60.05 | M115: 60.05
A116: 2006-06-30 | B116: 300.5 | D116: 48.75 | M116: 48.75
A117: 2006-07-14 | B117: 60.9 | D117: 55.50468447 | M117: 55.50468447
A118: 2006-07-31 | B118: 199.5 | D118: 48.17555072 | M118: 48.17555072
A119: 2006-07-31 | B119: 50 | E119: 36.18016957 | N119: 36.18016957
A120: 2006-08-16 | B120: 45 | C120: 69.05876304 | M120: 69.05876304
A121: 2006-08-24 | B121: 94.5 | F121: 28.83709591 | N121: 28.83709591
A122: 2006-08-31 | B122: 50 | E122: 47.24857986 | N122: 47.24857986
A123: 2006-09-01 | B123: 100.5 | E123: 56.43913179 | N123: 56.43913179
A124: 2006-09-12 | B124: 26 | H124: 64 | O124: 64
A125: 2006-09-27 | B125: 50.4 | K125: 45 | O125: 45
A126: 2006-10-01 | B126: 21 | E126: 31 | N126: 31
A127: 2006-10-01 | B127: 14.7 | E127: 33 | N127: 33
A128: 2006-10-26 | B128: 79.8 | D128: 63.77821272 | M128: 63.77821272
A129: 2006-10-27 | B129: 100.65 | E129: 45 | N129: 45
A130: 2006-11-10 | B130: 6 | C130: 72.6015058 | M130: 72.6015058
A131: 2006-11-22 | B131: 29.4 | D131: 46.9678295 | M131: 46.9678295
A132: 2006-12-01 | B132: 5 | K132: 54 | O132: 54
A133: 2006-12-11 | B133: 29.4 | H133: 64 | O133: 64
A134: 2006-12-15 | B134: 100.65 | D134: 61.27421543 | M134: 61.27421543
A135: 2006-12-20 | B135: 21 | D135: 65.36652609 | M135: 65.36652609
A136: 2006-12-20 | B136: 21 | D136: 65.36668687 | M136: 65.36668687
A137: 2006-12-28 | B137: 48 | E137: 41 | N137: 41
A138: 2007-01-01 | B138: 59.8 | G138: 41.22 | N138: 41.22
A139: 2007-02-16 | B139: 52.8 | E139: 63.72693732 | N139: 63.72693732
A140: 2007-02-20 | B140: 57.5 | E140: 74.95716309 | N140: 74.95716309
A141: 2007-02-22 | B141: 51 | F141: 48.85050642 | N141: 48.85050642
A142: 2007-02-23 | B142: 50.4 | F142: 42.4 | N142: 42.4
A143: 2007-02-28 | B143: 25.2 | F143: 43.8 | N143: 43.8
A144: 2007-04-23 | B144: 30 | E144: 58.9609251 | N144: 58.9609251
A145: 2007-06-06 | B145: 20.46 | E145: 49.65113822 | N145: 49.65113822
A146: 2007-06-19 | B146: 105 | F146: 39 | N146: 39
A147: 2007-06-26 | B147: 99 | D147: 58.5 | M147: 58.5
A148: 2007-07-02 | B148: 30 | E148: 60.21207394 | N148: 60.21207394
A149: 2007-08-03 | B149: 100.4333333 | H149: 66.34574846 | O149: 66.34574846
A150: 2007-08-17 | B150: 150 | C150: 86.9 | M150: 86.9
A151: 2007-08-29 | B151: 99 | H151: 59 | O151: 59
A152: 2007-09-17 | B152: 75 | H152: 59.23848104 | O152: 59.23848104
A153: 2007-09-25 | B153: 96 | F153: 45.5 | N153: 45.5
A154: 2007-09-25 | B154: 50 | F154: 40.45 | N154: 40.45
A155: 2007-10-05 | B155: 50 | D155: 65.4 | M155: 65.4
A156: 2007-10-15 | B156: 98.7 | D156: 67.3 | M156: 67.3
A157: 2007-11-01 | B157: 24 | F157: 43.4 | N157: 43.4
A158: 2007-11-01 | B158: 24 | F158: 43.4 | N158: 43.4
A159: 2007-11-02 | B159: 50 | E159: 54.57460701 | N159: 54.57460701
A160: 2007-12-03 | B160: 99 | E160: 48.25 | N160: 48.25
A161: 2007-12-22 | B161: 165.6 | G161: 54.25 | N161: 54.25
A162: 2007-12-31 | B162: 99 | E162: 39.22 | N162: 39.22
A163: 2007-12-31 | B163: 19.5 | E163: 39.22 | N163: 39.22
A164: 2008-01-02 | B164: 24 | J164: 52.5 | O164: 52.5
A165: 2008-01-16 | B165: 200.8666667 | H165: 72.82912918 | O165: 72.82912918
A166: 2008-02-27 | B166: 81 | F166: 56.08992574 | N166: 56.08992574
A167: 2008-02-28 | B167: 100 | D167: 61.7162404 | M167: 61.7162404
A168: 2008-03-25 | B168: 106 | E168: 78.47030355 | N168: 78.47030355
A169: 2008-04-03 | B169: 100.5 | E169: 68.34140712 | N169: 68.34140712
A170: 2008-04-30 | B170: 54 | E170: 63.89550119 | N170: 63.89550119
A171: 2008-05-28 | B171: 102.9 | D171: 76.75 | M171: 76.75
A172: 2008-05-30 | B172: 40 | H172: 86.10691146 | O172: 86.10691146
A173: 2008-05-30 | B173: 38 | H173: 86.27695603 | O173: 86.27695603
A174: 2008-05-30 | B174: 10 | H174: 94.61129778 | O174: 94.61129778
A175: 2008-06-12 | B175: 99 | E175: 44.45 | N175: 44.45
A176: 2008-06-12 | B176: 4.5 | J176: 126 | O176: 126
A177: 2008-06-15 | B177: 50.25 | H177: 92 | O177: 92
A178: 2008-06-30 | B178: 50.25 | H178: 92 | O178: 92
A179: 2008-07-23 | B179: 63 | D179: 90.99005752 | M179: 90.99005752
A180: 2008-07-23 | B180: 30 | E180: 61.25 | N180: 61.25
A181: 2008-07-28 | B181: 72 | D181: 96.79983029 | M181: 96.79983029
A182: 2008-08-11 | B182: 76.5 | D182: 75 | M182: 75
A183: 2008-08-14 | B183: 290 | D183: 101.39 | M183: 101.39
A184: 2008-08-14 | B184: 290 | D184: 101.39 | M184: 101.39
A185: 2008-08-14 | B185: 265 | D185: 99.69 | M185: 99.69
A186: 2008-08-14 | B186: 15 | F186: 45 | N186: 45
A187: 2008-08-15 | B187: 50 | F187: 44.45 | N187: 44.45
A188: 2008-08-20 | B188: 62.5 | H188: 90.866988 | O188: 90.866988
A189: 2008-09-05 | B189: 99 | D189: 63.8 | M189: 63.8
A190: 2008-09-22 | B190: 49.5 | E190: 57 | N190: 57
A191: 2008-09-24 | B191: 40.5 | E191: 44 | N191: 44
A192: 2008-10-07 | B192: 50 | E192: 61.11899213 | N192: 61.11899213
A193: 2008-10-08 | B193: 50 | E193: 62.33510441 | N193: 62.33510441
A194: 2008-10-17 | B194: 99 | H194: 66.43114475 | O194: 66.43114475
A195: 2008-11-20 | B195: 101.2 | C195: 103.25 | M195: 103.25
A196: 2008-11-21 | B196: 150 | E196: 54.04614511 | N196: 54.04614511
A197: 2008-12-02 | B197: 100 | E197: 51.63722868 | N197: 51.63722868
A198: 2008-12-09 | B198: 25 | F198: 63.7686385 | N198: 63.7686385
A199: 2008-12-12 | B199: 49.5 | E199: 53.95042813 | N199: 53.95042813
A200: 2008-12-16 | B200: 150.1 | K200: 70.35917104 | O200: 70.35917104
A201: 2008-12-22 | B201: 151.8 | D201: 59.33449981 | M201: 59.33449981
A202: 2008-12-22 | B202: 79.5 | F202: 58.04528038 | N202: 58.04528038
A203: 2008-12-23 | B203: 18.9 | F203: 37.37 | N203: 37.37
A204: 2009-01-28 | B204: 50.4 | E204: 50.15 | N204: 50.15
A205: 2009-01-30 | B205: 98.9 | F205: 60.51071245 | N205: 60.51071245
A206: 2009-02-02 | B206: 99 | F206: 50.23832946 | N206: 50.23832946
A207: 2009-02-05 | B207: 150 | H207: 89.79798385 | O207: 89.79798385
A208: 2009-02-05 | B208: 51 | H208: 91.2580551 | O208: 91.2580551
A209: 2009-02-05 | B209: 49.5 | H209: 91.27527512 | O209: 91.27527512
A210: 2009-02-19 | B210: 49.5 | H210: 90.52315238 | O210: 90.52315238
A211: 2009-03-17 | B211: 24.75 | E211: 115 | N211: 115
A212: 2009-03-17 | B212: 8 | E212: 115 | N212: 115
A213: 2009-03-24 | B213: 63 | D213: 85.79 | M213: 85.79
A214: 2009-03-31 | B214: 30 | D214: 58.12946715 | M214: 58.12946715
A215: 2009-03-31 | B215: 12 | D215: 58.1284137 | M215: 58.1284137
A216: 2009-04-01 | B216: 96.6 | D216: 77.5 | M216: 77.5
A217: 2009-04-01 | B217: 49.5 | E217: 49.95 | N217: 49.95
A218: 2009-04-10 | B218: 124.5 | D218: 103.0219744 | M218: 103.0219744
A219: 2009-04-29 | B219: 70 | H219: 68.32607603 | O219: 68.32607603
... 331 more rows

Sheet Wind PPA Average
A1: Generation-weighted average levelized wind PPA prices by PPA execution date and region
A22: Source: Berkeley Lab, FERC
A23: Note: West = CAISO, West (non-ISO); Central = MISO, SPP, ERCOT; East = PJM, NYISO, ISO-NE, Southeast (non-ISO)
A25: PPA | B25: Nationwide | C25: West | D25: Central | E25: East | G25: Nationwide | I25: West | K25: Central | M25: East
A26: Execution | B26: Average PPA | C26: Average PPA | D26: Average PPA | E26: Average PPA | G26: Sample | I26: Sample | K26: Sample | M26: Sample
A27: Year | B27: 2021 $/MWh | C27: 2021 $/MWh | D27: 2021 $/MWh | E27: 2021 $/MWh | G27: MW | H27: Projects | I27: MW | J27: Projects | K27: MW | L27: Projects | M27: MW | N27: Projects
A28: 1996-99 | B28: 45.32545314 | C28: 70.18345853 | D28: 42.86145813 | E28: 201.9713824 | G28: 553 | H28: 10 | I28: 25.08 | J28: 1 | K28: 517.13 | L28: 8 | M28: 10.4 | N28: 1
A29: 2000-01 | B29: 41.23746502 | C29: 41.50149218 | D29: 41.91765672 | E29: 54.26944895 | G29: 1249 | H29: 17 | I29: 445.94 | J29: 5 | K29: 663.8 | L29: 9 | M29: 139.5 | N29: 3
A30: 2002-03 | B30: 38.34404038 | C30: 41.61834577 | D30: 28.47452066 | E30: 58.81038431 | G30: 1382 | H30: 24 | I30: 835.44 | J30: 9 | K30: 450.67 | L30: 11 | M30: 96 | N30: 4
A31: 2004-05 | B31: 43.68249637 | C31: 57.28334124 | D31: 39.7352069 | E31: 47.52132547 | G31: 2190 | H31: 30 | I31: 517.46 | J31: 11 | K31: 1615.5 | L31: 18 | M31: 56.7 | N31: 1
A32: 2006 | B32: 56.03346082 | C32: 60.26052761 | D32: 46.37109085 | E32: 62.76414639 | G32: 2436 | H32: 31 | I32: 1324.75 | J32: 14 | K32: 869.55 | L32: 11 | M32: 241.2 | N32: 6
A33: 2007 | B33: 57.89883707 | C33: 80.17362889 | D33: 50.85956224 | E33: 69.4495152 | G33: 1781 | H33: 26 | I33: 397.7 | J33: 4 | K33: 1109.26 | L33: 19 | M33: 274.4333333 | N33: 3
A34: 2008 | B34: 71.76193605 | C34: 82.97261779 | D34: 58.81292581 | E34: 85.56362704 | G34: 3489 | H34: 40 | I34: 1611.4 | J34: 11 | K34: 1148.4 | L34: 18 | M34: 729.4666667 | N34: 11
A35: 2009 | B35: 75.8194927 | C35: 97.59380789 | D35: 61.26339134 | E35: 85.49455975 | G35: 4048 | H35: 49 | I35: 1680 | J35: 21 | K35: 1858.4 | L35: 21 | M35: 510 | N35: 7
A36: 2010 | B36: 66.43686459 | C36: 90.7114988 | D36: 52.10700672 | E36: 79.77703468 | G36: 4865 | H36: 51 | I36: 2136.9 | J36: 18 | K36: 2290.6 | L36: 23 | M36: 437.34 | N36: 10
A37: 2011 | B37: 48.48260549 | C37: 65.15149798 | D37: 42.23271435 | E37: 52.14190878 | G37: 4634 | H37: 43 | I37: 1285.4 | J37: 10 | K37: 2842.31 | L37: 28 | M37: 506.16 | N37: 5
A38: 2012 | B38: 40.81615088 | C38: 50.30902193 | D38: 36.52282382 | E38: 54.15308481 | G38: 1092 | H38: 13 | I38: 141 | J38: 2 | K38: 763.3 | L38: 7 | M38: 188 | N38: 4
A39: 2013 | B39: 29.11661813 | C39: 37.45947345 | D39: 24.35907436 | E39: 52.49578692 | G39: 5412 | H39: 37 | I39: 1091.7 | J39: 10 | K39: 3702.2 | L39: 22 | M39: 617.6 | N39: 5
A40: 2014 | B40: 26.84588979 | C40: 66.88592814 | D40: 24.08293813 | E40: 38.99621992 | G40: 2155 | H40: 18 | I40: 72.95 | J40: 2 | K40: 1766.7 | L40: 14 | M40: 315 | N40: 2
A41: 2015 | B41: 31.33861018 | C41: 46.45161964 | D41: 25.07466962 | E41: 46.28823324 | G41: 3275 | H41: 25 | I41: 524 | J41: 2 | K41: 2182.41 | L41: 18 | M41: 568.3 | N41: 5
A42: 2016 | B42: 25.74292502 | C42: 41.14462954 | D42: 21.30038803 | E42: 36.2615024 | G42: 2498 | H42: 22 | I42: 516.65 | J42: 5 | K42: 1754.13 | L42: 13 | M42: 226.9 | N42: 4
A43: 2017 | B43: 19.4360623 | C43: 29.85159068 | D43: 16.32102285 | E43: 24.17203948 | G43: 3675 | H43: 32 | I43: 750.5 | J43: 7 | K43: 2616.205 | L43: 23 | M43: 308 | N43: 2
A44: 2018 | B44: 16.61063168 | C44: 16.15790235 | D44: 16.51514635 | E44: 30.1401079 | G44: 2672 | H44: 17 | I44: 1095.02 | J44: 7 | K44: 1429.62 | L44: 7 | M44: 147.6 | N44: 3
A45: 2019 | B45: 22.67748057 | C45: 25.12898254 | D45: 18.221525 | E45: 26.84584429 | G45: 3533 | H45: 24 | I45: 1376.02 | J45: 10 | K45: 1591 | L45: 9 | M45: 566.4 | N45: 5
A46: 2020-21 | B46: 25.47790997 | C46: 34.73018128 | D46: 15.29869185 | E46: 31.02927767 | G46: 1987 | H46: 16 | I46: 849.3 | J46: 8 | K46: 1081.17 | L46: 7 | M46: 56.2 | N46: 1
A48: 2020 | B48: 25.66017857 | C48: 34.48366411 | D48: 14.87779599 | E48: 31.02927767 | G48: 1629 | H48: 12 | I48: 769.4 | J48: 6 | K48: 803.77 | L48: 5 | M48: 56.2 | N48: 1
A49: 2021 | B49: 23.736679 | C49: 38.45040739 | D49: 17.73318045 | G49: 357 | H49: 4 | I49: 79.9 | J49: 2 | K49: 277.4 | L49: 2 | M49: 0 | N49: 0

Sheet Level10 Wind PPA Prices
A1: Level10 Energy wind PPA price indices
A21: Note: Above data are presented in real levelized 2021$, converted from reported nominal dollars from | J21: Note: Above data are as reported by Level10 Energy, in nominal dollars
A22: Level10 Energy using methods described in full report
A23: Source: Level10 Energy
B25: Level10 PPA Price Index
B26: 25th percentile
B27: nominal dollars | R27: Average | S27: Average
B28: 2018 | D28: 2019 | H28: 2020 | L28: 2021 | P28: 2022 | R28: previous | S28: calendar
A29: Region | B29: Q3 | C29: Q4 | D29: Q1 | E29: Q2 | F29: Q3 | G29: Q4 | H29: Q1 | I29: Q2 | J29: Q3 | K29: Q4 | L29: Q1 | M29: Q2 | N29: Q3 | O29: Q4 | P29: Q1 | Q29: Q2 | R29: four quarters | S29: year 2021
A30: ISO-NE | R30: na | S30: na
A31: CAISO | B31: 38 | C31: 38 | D31: 39.7 | E31: 40 | F31: 40 | G31: 40 | H31: 48.3 | I31: 48 | J31: 49.7 | K31: 49 | L31: 50.3 | M31: 51.6 | P31: 61 | Q31: 61 | R31: =AVERAGE(N31:Q31) ->  | S31: =AVERAGE(L31:O31) -> 
A32: PJM | B32: 30 | C32: 31.5 | D32: 32 | E32: 31 | F32: 28 | G32: 28 | H32: 29.1 | I32: 35.3 | J32: 35.6 | K32: 35.5 | L32: 35.5 | M32: 34 | N32: 43 | O32: 47.7 | P32: 55.1 | Q32: 47 | R32: =AVERAGE(N32:Q32) -> 48.2 | S32: =AVERAGE(L32:O32) -> 40.05
A33: NYISO | R33: na | S33: na
A34: MISO | B34: 17.8 | C34: 21.6 | D34: 22.2 | E34: 22.5 | F34: 27 | G34: 27 | H34: 27.4 | I34: 25.2 | J34: 30 | K34: 33 | L34: 28.4 | M34: 33.9 | N34: 35.9 | O34: 35.9 | P34: 38.8 | Q34: 39.3 | R34: =AVERAGE(N34:Q34) -> 37.475 | S34: =AVERAGE(L34:O34) -> 33.525
A35: ERCOT | B35: 15.5 | C35: 15.8 | D35: 14.8 | E35: 16 | F35: 15.5 | G35: 16 | H35: 16 | I35: 17 | J35: 17 | K35: 20.9 | L35: 20 | M35: 20.9 | N35: 23 | O35: 26.3 | P35: 26.7 | Q35: 29.1 | R35: =AVERAGE(N35:Q35) -> 26.275 | S35: =AVERAGE(L35:O35) -> 22.55
A36: SPP | B36: 14.5 | C36: 14.2 | D36: 14 | E36: 14 | F36: 16.8 | G36: 16.9 | H36: 19 | I36: 16.5 | J36: 20.4 | K36: 19.7 | L36: 18.6 | M36: 22.8 | N36: 21.3 | O36: 21.3 | P36: 27.9 | Q36: 32.2 | R36: =AVERAGE(N36:Q36) -> 25.675 | S36: =AVERAGE(L36:O36) -> 21
A37: National | B37: na | C37: na | D37: na | E37: na | F37: na | G37: na | H37: na | I37: na | J37: 22.2 | K37: 21.7 | L37: 24.2 | M37: 25 | N37: 26.5 | O37: 27.4 | P37: 29 | Q37: 33.91 | R37: =AVERAGE(N37:Q37) -> 29.2025 | S37: =AVERAGE(L37:O37) -> 25.775
B40: Level10 PPA Price Index
B41: 25th percentile
B42: 2021 $/MWh (levelized PPA prices, in real $) | R42: Average | S42: Average
B43: 2018 | D43: 2019 | H43: 2020 | L43: 2021 | P43: 2022 | R43: previous | S43: calendar
A44: Region | B44: Q3 | C44: Q4 | D44: Q1 | E44: Q2 | F44: Q3 | G44: Q4 | H44: Q1 | I44: Q2 | J44: Q3 | K44: Q4 | L44: Q1 | M44: Q2 | N44: Q3 | O44: Q4 | P44: Q1 | Q44: Q2 | R44: four quarters | S44: year 2021
A45: ISO-NE | R45: na | S45: na
A46: CAISO | B46: 35.68954571 | C46: 35.68954571 | D46: 36.41513726 | E46: 36.69031462 | F46: 36.69031462 | G46: 36.69031462 | H46: 43.21062511 | I46: 42.94223613 | J46: 44.46310699 | K46: 43.83686605 | L46: 43.98258774 | M46: 45.11931466 | P46: 52.14155393 | Q46: 52.14155393 | R46: =AVERAGE(N46:Q46) ->  | S46: =AVERAGE(L46:O46) -> 
A47: PJM | B47: 28.17595714 | C47: 29.584755 | D47: 29.35225169 | E47: 28.43499383 | F47: 25.68322023 | G47: 25.68322023 | H47: 26.03373065 | I47: 31.58043615 | J47: 31.84882513 | K47: 31.75936214 | L47: 31.04138896 | M47: 29.72978098 | N47: 37.59942889 | O47: 41.7091339 | P47: 47.09835446 | Q47: 40.17463992 | R47: =AVERAGE(N47:Q47) -> 41.64538929 | S47: =AVERAGE(L47:O47) -> 35.01993318
A48: NYISO | R48: na | S48: na
A49: MISO | B49: 16.71773457 | C49: 20.28668914 | D49: 20.36312461 | E49: 20.63830197 | F49: 24.76596237 | G49: 24.76596237 | H49: 24.51285979 | I49: 22.54467397 | J49: 26.83889758 | K49: 29.52278734 | L49: 24.83311117 | M49: 29.64234045 | N49: 31.39115109 | O49: 31.39115109 | P49: 33.16544742 | Q49: 33.59283721 | R49: =AVERAGE(N49:Q49) -> 32.3851467 | S49: =AVERAGE(L49:O49) -> 29.31443845
A50: ERCOT | B50: 14.55757786 | C50: 14.83933743 | D50: 13.57541641 | E50: 14.67612585 | F50: 14.21749691 | G50: 14.67612585 | H50: 14.31407871 | I50: 15.20870863 | J50: 15.20870863 | K50: 18.69776532 | L50: 17.48810646 | M50: 18.27507125 | N50: 20.11132243 | O50: 22.99685999 | P50: 22.82261459 | Q50: 24.87408557 | R50: =AVERAGE(N50:Q50) -> 22.70122064 | S50: =AVERAGE(L50:O50) -> 19.71784003
A51: SPP | B51: 13.61837928 | C51: 13.33661971 | D51: 12.84161012 | E51: 12.84161012 | F51: 15.40993214 | G51: 15.50165792 | H51: 16.99796847 | I51: 14.76139367 | J51: 18.25045036 | K51: 17.62420941 | L51: 16.26393901 | M51: 19.93644136 | N51: 18.62483338 | O51: 18.62483338 | P51: 23.84835008 | Q51: 27.52390224 | R51: =AVERAGE(N51:Q51) -> 22.15547977 | S51: =AVERAGE(L51:O51) -> 18.36251178
A52: National | B52: na | C52: na | D52: na | E52: na | F52: na | G52: na | H52: na | I52: na | J52: 19.86078421 | K52: 19.41346925 | L52: 21.16060881 | M52: 21.86013307 | N52: 23.17174106 | O52: 23.95870585 | P52: 24.78860761 | Q52: 28.98557531 | R52: =AVERAGE(N52:Q52) -> 25.22615746 | S52: =AVERAGE(L52:O52) -> 22.5377972

Sheet Wind LCOE Over Time
A1: Estimated levelized cost of wind energy by commercial operation date
A22: Note: Size of bubble reflects project capacity. | K22: Note: Size of bubble reflects project capacity. | V22: Note: Size of bubble reflects project capacity.
A23: Source: Berkeley Lab | K23: Source: Berkeley Lab | V23: Source: Berkeley Lab
A25: GW: | B25: 112.38 | C25: 25.55367 | D25: 24.017925 | E25: 25.66544 | F25: 18.886585 | G25: 9.55269 | H25: 1.39475 | I25: 4.69782 | J25: 2.105235 | K25: 0.5055 | O25: Project-Level | P25: COD
A26: Projects: | B26: 914 | C26: 148 | D26: 172 | E26: 225 | F26: 181 | G26: 81 | H26: 29 | I26: 51 | J26: 24 | K26: 3 | M26: Plant | N26: COD | O26: LCOE | P26: Year
B27: Nationwide | C27: ERCOT | D27: SPP | E27: MISO | F27: West (non-ISO) | G27: PJM | H27: ISO-NE | I27: CAISO | J27: NYISO | K27: Southeast (non-ISO) | M27: MW | N27: Year | O27: 2021 $/MWh | P27: Code
A28: 1998-99 | B28: 106.1503442 | C28: 107.2642066 | E28: 109.5350195 | F28: 92.03328136 | I28: 106.1369558 | M28: 107.25 | N28: 1998 | O28: 100.2570544 | P28: 1
A29: 2000-01 | B29: 89.39333313 | C29: 88.59953807 | D29: 74.15156892 | E29: 97.90618198 | F29: 91.90693282 | G29: 149.8519928 | I29: 86.87953399 | J29: 123.8847002 | M29: 25.08 | N29: 1998 | O29: 87.27710748 | P29: 1
A30: 2002-03 | B30: 82.94234164 | C30: 73.65404125 | D30: 71.9041594 | E30: 75.20409522 | F30: 81.50836605 | G30: 100.1966568 | I30: 99.40079616 | M30: 74.9 | N30: 1999 | O30: 93.49492405 | P30: 1
A31: 2004-05 | B31: 70.08596392 | C31: 65.70154152 | D31: 64.10384534 | E31: 70.7027916 | F31: 76.44836391 | G31: 83.40002968 | I31: 81.9866343 | K31: 122.7828889 | M31: 41.25 | N31: 1999 | O31: 102.9662156 | P31: 1
A32: 2006 | B32: 82.51322224 | C32: 79.33839294 | D32: 82.63119406 | E32: 70.28806577 | F32: 94.00187905 | G32: 90.55158804 | H32: 96.49218729 | I32: 78.8078229 | J32: 79.50841937 | M32: 41.4 | N32: 1999 | O32: 79.31284783 | P32: 1
A33: 2007 | B33: 82.18697442 | C33: 83.0630464 | D33: 75.10637212 | E33: 72.73960348 | F33: 87.56584917 | G33: 88.44747443 | J33: 128.5530371 | M33: 60 | N33: 1999 | O33: 86.20007511 | P33: 1
A34: 2008 | B34: 90.37455928 | C34: 88.92013307 | D34: 81.04792139 | E34: 89.87356138 | F34: 86.33481497 | G34: 96.7312754 | I34: 68.49290914 | J34: 137.4881284 | M34: 16.5 | N34: 1999 | O34: 131.5006754 | P34: 1
A35: 2009 | B35: 97.03753183 | C35: 89.50798923 | D35: 80.0062957 | E35: 92.81000345 | F35: 103.6650359 | G35: 102.2370004 | H35: 125.2532349 | I35: 108.0921575 | J35: 132.3859671 | M35: 103.5 | N35: 1999 | O35: 93.81500493 | P35: 1
A36: 2010 | B36: 93.68071464 | C36: 93.85471813 | D36: 80.11332389 | E36: 87.51889263 | F36: 94.50851972 | G36: 101.1939486 | H36: 128.0027113 | I36: 117.252765 | M36: 9.24 | N36: 1999 | O36: 155.6521632 | P36: 1
A37: 2011 | B37: 92.69276721 | C37: 84.45258641 | D37: 70.67248269 | E37: 90.66926288 | F37: 90.04145345 | G37: 109.3673772 | H37: 116.8353531 | I37: 129.3720779 | J37: 120.0381964 | M37: 16.5 | N37: 1999 | O37: 137.0713477 | P37: 1
A38: 2012 | B38: 77.94327582 | C38: 84.85550941 | D38: 61.14513881 | E38: 67.14342497 | F38: 93.21551533 | G38: 78.10537688 | H38: 96.17715654 | I38: 97.83257586 | J38: 97.4063723 | M38: 28.5 | N38: 1999 | O38: 141.535692 | P38: 1
A39: 2013 | B39: 62.1915667 | D39: 46.33893433 | E39: 60.27019113 | F39: 58.31475791 | I39: 95.06994175 | M39: 10.2 | N39: 1999 | O39: 117.2021007 | P39: 1
A40: 2014 | B40: 52.1703208 | C40: 47.60518001 | D40: 47.47254905 | E40: 59.67319096 | F40: 52.61668791 | G40: 62.74814929 | H40: 83.57873975 | I40: 75.89875675 | J40: 69.33661579 | M40: 79.5 | N40: 1999 | O40: 115.2214312 | P40: 1
A41: 2015 | B41: 47.0082107 | C41: 47.53298492 | D41: 41.27525953 | E41: 50.03263396 | F41: 45.21771499 | G41: 63.17081959 | H41: 79.23555047 | I41: 69.64179734 | M41: 11.22 | N41: 1999 | O41: 149.9040248 | P41: 1
A42: 2016 | B42: 43.94630793 | C42: 42.56205732 | D42: 40.13564347 | E42: 46.55767265 | F42: 43.20268782 | G42: 54.73668378 | H42: 81.16840334 | J42: 65.53526295 | M42: 24.75 | N42: 1999 | O42: 91.36339378 | P42: 1
A43: 2017 | B43: 40.28043539 | C43: 40.30374216 | D43: 36.92299623 | E43: 40.8558527 | F43: 41.12159823 | G43: 49.20048713 | H43: 57.15553682 | I43: 45.9960458 | M43: 34.32 | N43: 1999 | O43: 116.2993329 | P43: 1
A44: 2018 | B44: 34.33114463 | C44: 30.09749207 | D44: 29.75744991 | E44: 38.50436043 | F44: 36.47803824 | G44: 46.17584145 | I44: 46.42498441 | J44: 52.90618542 | M44: 11.25 | N44: 1999 | O44: 108.0891304 | P44: 1
A45: 2019 | B45: 35.30396581 | C45: 34.6660893 | D45: 30.99954642 | E45: 35.73881252 | F45: 36.57728086 | G45: 43.79484086 | H45: 64.34436648 | I45: 51.63398378 | M45: 39.75 | N45: 1999 | O45: 140.6424277 | P45: 1
A46: 2020 | B46: 32.78031094 | C46: 29.26134221 | D46: 31.83777222 | E46: 35.51653663 | F46: 32.23216789 | G46: 37.4561414 | H46: 49.58883146 | K46: 31.29291012 | M46: 5.1 | N46: 1999 | O46: 200.8548371 | P46: 1
A47: 2021 | B47: 31.60196976 | C47: 28.26300125 | D47: 30.23028441 | E47: 34.25526186 | F47: 28.70975042 | G47: 34.72762705 | J47: 37.8234035 | M47: 11.88 | N47: 1999 | O47: 98.61753369 | P47: 1
M48: 43.4 | N48: 1999 | O48: 104.0705115 | P48: 1
M49: 108.75 | N49: 1999 | O49: 128.7735225 | P49: 1
M50: 6.6 | N50: 2000 | O50: 128.6947328 | P50: 2
M51: 16.8 | N51: 2000 | O51: 80.71568255 | P51: 2
M52: 10.4 | N52: 2000 | O52: 321.7060248 | P52: 2
M53: 11.55 | N53: 2000 | O53: 160.0779345 | P53: 2
M54: 112.2 | N54: 2001 | O54: 73.2834296 | P54: 2
M55: 176.88 | N55: 2001 | O55: 89.44749061 | P55: 2
M56: 83.16 | N56: 2001 | O56: 93.7866202 | P56: 2
M57: 159.72 | N57: 2001 | O57: 92.16240528 | P57: 2
M58: 150 | N58: 2001 | O58: 70.8096358 | P58: 2
M59: 80.1 | N59: 2001 | O59: 92.00719281 | P59: 2
M60: 82.5 | N60: 2001 | O60: 86.21746415 | P60: 2
M61: 80 | N61: 2001 | O61: 75.30605894 | P61: 2
M62: 30 | N62: 2001 | O62: 117.1699445 | P62: 2
M63: 278.2 | N63: 2001 | O63: 104.6037772 | P63: 2
M64: 160.5 | N64: 2001 | O64: 83.08656199 | P64: 2
M65: 24 | N65: 2001 | O65: 98.39415358 | P65: 2
M66: 30 | N66: 2001 | O66: 111.4260733 | P66: 2
M67: 29.7 | N67: 2001 | O67: 89.51676918 | P67: 2
M68: 24.6 | N68: 2001 | O68: 123.1199668 | P68: 2
M69: 15 | N69: 2001 | O69: 106.836216 | P69: 2
M70: 50 | N70: 2001 | O70: 83.67776169 | P70: 2
M71: 9.9 | N71: 2001 | O71: 134.9852447 | P71: 2
M72: 66.6 | N72: 2001 | O72: 86.87953399 | P72: 2
M73: 39.6 | N73: 2002 | O73: 88.89014045 | P73: 3
M74: 97.68 | N74: 2002 | O74: 80.66452632 | P74: 3
M75: 66 | N75: 2002 | O75: 93.76009702 | P75: 3
M76: 25.2 | N76: 2002 | O76: 119.6038824 | P76: 3
M77: 10.5 | N77: 2002 | O77: 101.8949422 | P77: 3
M78: 48.1 | N78: 2002 | O78: 105.7266329 | P78: 3
M79: 61.5 | N79: 2002 | O79: 99.597459 | P79: 3
M80: 40.92 | N80: 2002 | O80: 166.2125001 | P80: 3
M81: 204 | N81: 2003 | O81: 76.0580819 | P81: 3
M82: 40.5 | N82: 2003 | O82: 61.59388423 | P82: 3
M83: 40.5 | N83: 2003 | O83: 73.09793817 | P83: 3
M84: 21 | N84: 2003 | O84: 73.09793817 | P84: 3
M85: 160 | N85: 2003 | O85: 73.65404125 | P85: 3
M86: 144 | N86: 2003 | O86: 83.3786607 | P86: 3
M87: 51 | N87: 2003 | O87: 71.40352555 | P87: 3
M88: 43.5 | N88: 2003 | O88: 63.79282967 | P88: 3
M89: 102 | N89: 2003 | O89: 77.70661 | P89: 3
M90: 162 | N90: 2003 | O90: 91.16037235 | P90: 3
M91: 74.25 | N91: 2003 | O91: 65.56060733 | P91: 3
M92: 41 | N92: 2003 | O92: 82.35578442 | P92: 3
M93: 30 | N93: 2003 | O93: 85.40198147 | P93: 3
M94: 162 | N94: 2003 | O94: 77.1482085 | P94: 3
M95: 85.5 | N95: 2003 | O95: 79.93879745 | P95: 3
M96: 64.5 | N96: 2003 | O96: 98.1431396 | P96: 3
M97: 50.4 | N97: 2003 | O97: 127.5103679 | P97: 3
M98: 15.6 | N98: 2003 | O98: 100.3593018 | P98: 3
M99: 10.56 | N99: 2003 | O99: 101.0232739 | P99: 3
M100: 22.44 | N100: 2003 | O100: 78.26023256 | P100: 3
M101: 160.5 | N101: 2004 | O101: 70.56583871 | P101: 4
M102: 27 | N102: 2004 | O102: 122.7828889 | P102: 4
M103: 20.46 | N103: 2004 | O103: 70.36862677 | P103: 4
M104: 114 | N104: 2005 | O104: 52.69050669 | P104: 4
M105: 10.5 | N105: 2005 | O105: 71.68942449 | P105: 4
M106: 40.5 | N106: 2005 | O106: 47.50118018 | P106: 4
M107: 106.5 | N107: 2005 | O107: 47.50118018 | P107: 4
M108: 150 | N108: 2005 | O108: 72.61811159 | P108: 4
M109: 91.5 | N109: 2005 | O109: 61.48956524 | P109: 4
M110: 100.5 | N110: 2005 | O110: 64.29623456 | P110: 4
M111: 75 | N111: 2005 | O111: 71.16504315 | P111: 4
M112: 64.5 | N112: 2005 | O112: 78.01169362 | P112: 4
M113: 15 | N113: 2005 | O113: 77.5293735 | P113: 4
M114: 35 | N114: 2005 | O114: 82.90354074 | P114: 4
M115: 120 | N115: 2005 | O115: 62.96920744 | P115: 4
M116: 149.4 | N116: 2005 | O116: 83.67354782 | P116: 4
M117: 120.6 | N117: 2005 | O117: 77.67376679 | P117: 4
M118: 135 | N118: 2005 | O118: 70.10600181 | P118: 4
M119: 54.45 | N119: 2005 | O119: 81.7044755 | P119: 4
M120: 59.4 | N120: 2005 | O120: 77.886684 | P120: 4
M121: 50 | N121: 2005 | O121: 87.10755721 | P121: 4
M122: 150 | N122: 2005 | O122: 78.93363064 | P122: 4
M123: 135 | N123: 2005 | O123: 72.65593845 | P123: 4
M124: 7.5 | N124: 2005 | O124: 95.56932116 | P124: 4
M125: 11.88 | N125: 2006 | O125: 60.85473518 | P125: 5
M126: 38 | N126: 2006 | O126: 73.67896948 | P126: 5
M127: 321.75 | N127: 2006 | O127: 79.50841937 | P127: 5
M128: 6.25 | N128: 2006 | O128: 80.46501599 | P128: 5
M129: 49.5 | N129: 2006 | O129: 61.64932543 | P129: 5
M130: 24 | N130: 2006 | O130: 81.12750188 | P130: 5
M131: 199.5 | N131: 2006 | O131: 85.24850489 | P131: 5
M132: 150 | N132: 2006 | O132: 79.64966569 | P132: 5
M133: 100.5 | N133: 2006 | O133: 73.82133915 | P133: 5
M134: 26 | N134: 2006 | O134: 83.42207845 | P134: 5
M135: 98.9 | N135: 2006 | O135: 75.81708045 | P135: 5
M136: 50.6 | N136: 2006 | O136: 70.84158623 | P136: 5
M137: 124.2 | N137: 2006 | O137: 79.33839294 | P137: 5
M138: 120 | N138: 2006 | O138: 90.95632722 | P138: 5
M139: 228.6 | N139: 2006 | O139: 94.61942067 | P139: 5
M140: 24 | N140: 2006 | O140: 98.84448845 | P140: 5
M141: 99 | N141: 2006 | O141: 69.67556181 | P141: 5
M142: 100.5 | N142: 2006 | O142: 111.7160421 | P142: 5
M143: 42 | N143: 2006 | O143: 96.49218729 | P143: 5
M144: 80.5 | N144: 2007 | O144: 68.86050765 | P144: 6
M145: 80 | N145: 2007 | O145: 81.24226582 | P145: 6
M146: 75 | N146: 2007 | O146: 58.40875954 | P146: 6
M147: 94.5 | N147: 2007 | O147: 80.94624398 | P147: 6
M148: 14.7 | N148: 2007 | O148: 71.37409236 | P148: 6
M149: 56.7 | N149: 2007 | O149: 109.7671261 | P149: 6
M150: 200 | N150: 2007 | O150: 81.28352526 | P150: 6
M151: 232.5 | N151: 2007 | O151: 85.56249433 | P151: 6
M152: 21 | N152: 2007 | O152: 69.2555508 | P152: 6
M153: 159 | N153: 2007 | O153: 52.7269227 | P153: 6
M154: 80 | N154: 2007 | O154: 90.01931711 | P154: 6
M155: 48 | N155: 2007 | O155: 66.11668158 | P155: 6
M156: 300.5 | N156: 2007 | O156: 84.97369044 | P156: 6
M157: 140.4 | N157: 2007 | O157: 98.58517543 | P157: 6
M158: 150 | N158: 2007 | O158: 71.02268491 | P158: 6
M159: 161 | N159: 2007 | O159: 66.04027522 | P159: 6
M160: 400.5 | N160: 2007 | O160: 86.17119062 | P160: 6
M161: 20 | N161: 2007 | O161: 129.7066494 | P161: 6
M162: 130.5 | N162: 2007 | O162: 80.88946083 | P162: 6
M163: 204.7 | N163: 2007 | O163: 94.60302626 | P163: 6
M164: 34.5 | N164: 2007 | O164: 92.22697267 | P164: 6
M165: 90 | N165: 2007 | O165: 96.24517778 | P165: 6
M166: 125.4 | N166: 2007 | O166: 99.31655907 | P166: 6
M167: 205.5 | N167: 2007 | O167: 81.62525068 | P167: 6
M168: 34.5 | N168: 2007 | O168: 127.9289098 | P168: 6
M169: 123 | N169: 2007 | O169: 90.69224492 | P169: 6
M170: 75 | N170: 2007 | O170: 90.69224492 | P170: 6
M171: 198 | N171: 2007 | O171: 89.70218476 | P171: 6
M172: 59.8 | N172: 2007 | O172: 84.96158825 | P172: 6
M173: 100 | N173: 2008 | O173: 71.71908646 | P173: 7
M174: 112.5 | N174: 2008 | O174: 60.08974677 | P174: 7
M175: 10 | N175: 2008 | O175: 91.15573619 | P175: 7
M176: 10 | N176: 2008 | O176: 83.68978735 | P176: 7
M177: 50.4 | N177: 2008 | O177: 100.522837 | P177: 7
M178: 100.65 | N178: 2008 | O178: 68.14564354 | P178: 7
M179: 200 | N179: 2008 | O179: 74.04093856 | P179: 7
M180: 69 | N180: 2008 | O180: 84.9659656 | P180: 7
M181: 142.5 | N181: 2008 | O181: 65.81232187 | P181: 7
M182: 130.5 | N182: 2008 | O182: 90.15941047 | P182: 7
M183: 170.2 | N183: 2008 | O183: 85.01786616 | P183: 7
M184: 45 | N184: 2008 | O184: 68.49290914 | P184: 7
M185: 105 | N185: 2008 | O185: 81.46870492 | P185: 7
M186: 96 | N186: 2008 | O186: 81.46870492 | P186: 7
M187: 60 | N187: 2008 | O187: 89.42674368 | P187: 7
M188: 18.9 | N188: 2008 | O188: 90.54338415 | P188: 7
M189: 29.4 | N189: 2008 | O189: 77.46559712 | P189: 7
M190: 52.8 | N190: 2008 | O190: 92.42698664 | P190: 7
M191: 60.9 | N191: 2008 | O191: 86.36450625 | P191: 7
M192: 37.8 | N192: 2008 | O192: 81.31650527 | P192: 7
M193: 29.4 | N193: 2008 | O193: 114.1880867 | P193: 7
M194: 32.2 | N194: 2008 | O194: 101.100619 | P194: 7
M195: 180 | N195: 2008 | O195: 127.8552447 | P195: 7
M196: 70.2 | N196: 2008 | O196: 97.10940291 | P196: 7
M197: 80 | N197: 2008 | O197: 96.40750946 | P197: 7
M198: 164 | N198: 2008 | O198: 105.2115874 | P198: 7
M199: 126.5 | N199: 2008 | O199: 84.46741693 | P199: 7
M200: 58.5 | N200: 2008 | O200: 86.85996102 | P200: 7
M201: 75 | N201: 2008 | O201: 82.9678451 | P201: 7
M202: 169.5 | N202: 2008 | O202: 94.79966978 | P202: 7
M203: 198 | N203: 2008 | O203: 84.10846825 | P203: 7
M204: 19.5 | N204: 2008 | O204: 75.95406453 | P204: 7
M205: 40.5 | N205: 2008 | O205: 68.01548988 | P205: 7
M206: 7.2 | N206: 2008 | O206: 95.23416455 | P206: 7
M207: 174.8 | N207: 2008 | O207: 89.29252414 | P207: 7
M208: 209 | N208: 2008 | O208: 96.67916211 | P208: 7
M209: 94 | N209: 2008 | O209: 104.9028884 | P209: 7
M210: 118.5 | N210: 2008 | O210: 71.9776443 | P210: 7
M211: 150 | N211: 2008 | O211: 81.40029201 | P211: 7
M212: 198 | N212: 2008 | O212: 86.20509141 | P212: 7
M213: 24 | N213: 2008 | O213: 90.02626841 | P213: 7
M214: 99 | N214: 2008 | O214: 84.86007006 | P214: 7
M215: 129 | N215: 2008 | O215: 98.02094234 | P215: 7
M216: 29.7 | N216: 2008 | O216: 101.4689991 | P216: 7
M217: 100.5 | N217: 2008 | O217: 147.148187 | P217: 7
M218: 25 | N218: 2008 | O218: 108.1687431 | P218: 7
M219: 120 | N219: 2008 | O219: 93.50928911 | P219: 7
M220: 100 | N220: 2008 | O220: 112.8444496 | P220: 7
M221: 58.8 | N221: 2008 | O221: 107.7668463 | P221: 7
... 720 more rows

Sheet Wind LCOE by Region
A1: Estimated levelized cost of wind energy by region, over last five years
A22: Source: Berkeley Lab | K22: Source: Berkeley Lab
B24: National | C24: ERCOT | D24: SPP | E24: MISO | F24: West (non-ISO) | G24: PJM | H24: ISO-NE | I24: CAISO | J24: NYISO | K24: Southeast (non-ISO)
A25: COD | B25: 2021 $/MWh | C25: 2021 $/MWh | D25: 2021 $/MWh | E25: 2021 $/MWh | F25: 2021 $/MWh | G25: 2021 $/MWh | H25: 2021 $/MWh | I25: 2021 $/MWh | J25: 2021 $/MWh | K25: 2021 $/MWh
A26: 2016 | B26: 43.94630793 | C26: 42.56205732 | D26: 40.13564347 | E26: 46.55767265 | F26: 43.20268782 | G26: 54.73668378 | H26: 81.16840334 | J26: 65.53526295
A27: 2017 | B27: 40.28043539 | C27: 40.30374216 | D27: 36.92299623 | E27: 40.8558527 | F27: 41.12159823 | G27: 49.20048713 | H27: 57.15553682 | I27: 45.9960458
A28: 2018 | B28: 34.33114463 | C28: 30.09749207 | D28: 29.75744991 | E28: 38.50436043 | F28: 36.47803824 | G28: 46.17584145 | I28: 46.42498441 | J28: 52.90618542
A29: 2019 | B29: 35.30396581 | C29: 34.6660893 | D29: 30.99954642 | E29: 35.73881252 | F29: 36.57728086 | G29: 43.79484086 | H29: 64.34436648 | I29: 51.63398378
A30: 2020 | B30: 32.78031094 | C30: 29.26134221 | D30: 31.83777222 | E30: 35.51653663 | F30: 32.23216789 | G30: 37.4561414 | H30: 49.58883146 | K30: 31.29291012
A31: 2021 | B31: 31.60196976 | C31: 28.26300125 | D31: 30.23028441 | E31: 34.25526186 | F31: 28.70975042 | G31: 34.72762705 | J31: 37.8234035
B34: National | C34: ERCOT | D34: SPP | E34: MISO | F34: West (non-ISO) | G34: PJM | H34: ISO-NE | I34: CAISO | J34: NYISO | K34: Southeast (non-ISO)
A35: COD | B35: MW | C35: MW | D35: MW | E35: MW | F35: MW | G35: MW | H35: MW | I35: MW | J35: MW | K35: MW
A36: 2016 | B36: 8150.842 | C36: 2610.94 | D36: 3115.535 | E36: 1277.007 | F36: 346.76 | G36: 427.2 | H36: 295.7 | J36: 77.7
A37: 2017 | B37: 6755.46 | C37: 1796.975 | D37: 2332.385 | E37: 980.3 | F37: 747.5 | G37: 799.5 | H37: 52.8 | I37: 46
A38: 2018 | B38: 7430.45 | C38: 2056.56 | D38: 1963.405 | E38: 1639.775 | F38: 785.71 | G38: 502 | I38: 324.6 | J38: 158.4
A39: 2019 | B39: 8600.97 | C39: 3152.97 | D39: 1212.97 | E39: 3008.23 | F39: 577.45 | G39: 489.45 | H39: 28.8 | I39: 131.1
A40: 2020 | B40: 12168.185 | C40: 2209.37 | D40: 2557.15 | E40: 3536.13 | F40: 2780.875 | G40: 533.56 | H40: 72.6 | K40: 478.5
A41: 2021 | B41: 6498.16 | C41: 615.075 | D41: 2133.47 | E41: 2325.64 | F41: 853.5 | G41: 445 | H41: 0 | J41: 125.475
A42: TOTAL | B42: =SUM(IF(NOT(ISERROR(B36:B41)),B36:B41)) -> 49604.067 | C42: =SUM(IF(NOT(ISERROR(C36:C41)),C36:C41)) -> 12441.89 | D42: =SUM(IF(NOT(ISERROR(D36:D41)),D36:D41)) -> 13314.915 | E42: =SUM(IF(NOT(ISERROR(E36:E41)),E36:E41)) -> 12767.082 | F42: =SUM(IF(NOT(ISERROR(F36:F41)),F36:F41)) -> 6091.795 | G42: =SUM(IF(NOT(ISERROR(G36:G41)),G36:G41)) -> 3196.71 | H42: =SUM(IF(NOT(ISERROR(H36:H41)),H36:H41)) -> 449.9 | I42: =SUM(IF(NOT(ISERROR(I36:I41)),I36:I41)) -> 501.7 | J42: =SUM(IF(NOT(ISERROR(J36:J41)),J36:J41)) -> 361.575 | K42: =SUM(IF(NOT(ISERROR(K36:K41)),K36:K41)) -> 478.5

Sheet REC Prices
A1: Historical renewable energy certificate (REC) prices
A21: Source: Marex Spectron
A24: 2021$/MWh | B24: Primary Tier (new RE) RPS | O24: Voluntary Wind
B25: CT | C25: DC | D25: DE | E25: IL | F25: MA | G25: MD | H25: ME | I25: NH | J25: NJ | K25: OH | L25: PA | M25: RI | N25: TX | O25: National | P25: West
A26: 2010-01-29 | B26: 23.11612094 | C26: 1.155806047 | D26: 8.826155268 | E26: 5.463810404 | F26: 25.63787959 | G26: 1.05073277 | H26: 16.18128466 | I26: 28.57993134 | J26: 3.782637972 | L26: 1.576099155 | M26: 28.57993134 | N26: 0.8826155268 | O26: 0.8826155268 | P26: 5.043517296
A27: 2010-02-01 | B27: 20.59436229 | C27: 1.155806047 | D27: 8.40586216 | E27: 5.463810404 | F27: 23.95670716 | G27: 1.218850013 | H27: 16.39143121 | I27: 26.0581727 | J27: 2.942051756 | L27: 1.365952601 | M27: 26.89875891 | N27: 0.9246448376 | O27: 1.008703459 | P27: 4.833370742
A28: 2010-03-01 | B28: 17.23201743 | C28: 1.155806047 | D28: 8.40586216 | E28: 5.463810404 | F28: 21.0146554 | G28: 1.218850013 | H28: 16.39143121 | I28: 21.0146554 | J28: 2.311612094 | L28: 1.681172432 | M28: 21.0146554 | N28: 1.008703459 | O28: 0.9666741484 | P28: 4.20293108
A29: 2010-04-01 | B29: 12.24516768 | C29: 1.055617903 | D29: 3.800224452 | E29: 5.066965936 | F29: 14.35640349 | G29: 1.055617903 | H29: 13.089662 | I29: 19.42336942 | J29: 1.794550436 | L29: 1.688988645 | M29: 21.11235807 | N29: 0.8444943227 | O29: 0.8867190388 | P29: 3.694662662
A30: 2010-05-01 | B30: 14.56752707 | C30: 1.055617903 | D30: 3.800224452 | E30: 2.955730129 | F30: 15.83426855 | G30: 1.055617903 | H30: 13.089662 | I30: 19.42336942 | J30: 2.111235807 | L30: 1.266741484 | M30: 21.11235807 | N30: 0.8444943227 | O30: 0.8466055585 | P30: 6.544831001
A31: 2010-06-01 | B31: 14.03971811 | C31: 1.055617903 | D31: 3.800224452 | E31: 1.583426855 | F31: 16.88988645 | G31: 0.8444943227 | H31: 7.600448904 | I31: 19.42336942 | J31: 2.111235807 | L31: 2.005674016 | M31: 20.69011091 | N31: 0.7389325323 | O31: 0.7600448904 | P31: 6.544831001
A32: 2010-07-01 | B32: 11.43382625 | C32: 0.952818854 | D32: 3.811275416 | E32: 1.588031423 | F32: 13.33946396 | G32: 0.8469500924 | H32: 7.622550832 | I32: 15.66857671 | J32: 1.65155268 | L32: 1.270425139 | M32: 18.20942699 | N32: 0.7410813309 | O32: 0.7304944547 | P32: 6.563863216
A33: 2010-08-01 | B33: 9.52818854 | C33: 0.952818854 | D33: 3.811275416 | E33: 1.588031423 | F33: 12.06903882 | G33: 0.8469500924 | H33: 5.928650647 | I33: 15.66857671 | J33: 2.117375231 | K33: 28.79630314 | L33: 1.270425139 | M33: 18.20942699 | N33: 0.6987338262 | O33: 0.7199075786 | P33: 5.928650647
A34: 2010-09-01 | B34: 10.58687616 | C34: 0.952818854 | D34: 3.811275416 | E34: 1.588031423 | F34: 11.32795749 | G34: 0.8469500924 | H34: 5.928650647 | I34: 11.43382625 | J34: 2.117375231 | K34: 28.79630314 | L34: 1.270425139 | M34: 18.20942699 | N34: 0.6987338262 | O34: 0.7199075786 | P34: 5.293438078
A35: 2010-10-01 | B35: 9.794687968 | C35: 0.9581759968 | D35: 3.832703987 | E35: 1.596959995 | F35: 10.85932796 | G35: 0.8517119972 | H35: 5.96198398 | J35: 2.129279993 | K35: 28.9582079 | L35: 1.277567996 | M35: 12.77567996 | N35: 0.7026623977 | O35: 0.7239551976 | P35: 5.323199982
A36: 2010-11-01 | B36: 10.22054397 | C36: 0.9581759968 | D36: 3.832703987 | E36: 1.596959995 | F36: 11.07225596 | G36: 0.8517119972 | H36: 5.96198398 | I36: 13.20153596 | J36: 1.873766394 | K36: 28.9582079 | L36: 1.277567996 | M36: 13.20153596 | N36: 0.7026623977 | O36: 0.7239551976 | P36: 4.684415985
A37: 2010-12-01 | B37: 10.85932796 | C37: 1.384031995 | D37: 2.555135992 | E37: 1.490495995 | F37: 11.07225596 | G37: 0.8517119972 | H37: 6.387839979 | I37: 13.20153596 | J37: 1.596959995 | K37: 29.3840639 | L37: 1.277567996 | M37: 11.92396796 | N37: 0.7026623977 | O37: 0.7026623977 | P37: 4.418255985
A38: 2011-01-01 | B38: 11.81678902 | C38: 1.391469721 | D38: 2.568867177 | E38: 1.547684617 | F38: 13.20825874 | G38: 1.284433589 | H38: 8.691333949 | I38: 13.8290683 | J38: 1.575571869 | K38: 30.99766394 | L38: 1.284433589 | M38: 11.61342036 | N38: 0.7920673796 | O38: 0.7856452117 | P38: 7.492529267
A39: 2011-02-01 | B39: 11.39653136 | C39: 1.391469721 | D39: 1.676523842 | E39: 1.186974373 | F39: 11.92044506 | G39: 1.284433589 | H39: 8.562890591 | I39: 14.12876947 | J39: 1.144723268 | K39: 30.3982616 | L39: 1.135709699 | M39: 11.5599023 | N39: 0.8585424513 | O39: 0.79195471 | P39: 7.492529267
A40: 2011-03-01 | B40: 11.99270057 | C40: 1.391469721 | D40: 1.027546871 | E40: 1.038250484 | F40: 12.77918346 | G40: 1.284433589 | H40: 8.562890591 | I40: 14.12876947 | J40: 0.8255743428 | K40: 26.48911589 | L40: 0.9065495038 | M40: 11.5599023 | N40: 0.899103512 | O40: 0.8027709929 | P40: 7.36222441
A41: 2011-04-01 | B41: 12.4007814 | C41: 0.8188178857 | D41: 1.034296277 | E41: 1.045070196 | F41: 13.11186009 | G41: 1.137725904 | H41: 5.063742188 | I41: 14.26466948 | J41: 0.57317252 | K41: 26.2883637 | L41: 0.4740524602 | M41: 11.67892879 | N41: 0.9050092421 | O41: 0.8080439662 | P41: 6.033394948
A42: 2011-05-01 | B42: 13.57513863 | C42: 0.8188178857 | D42: 1.034296277 | E42: 1.045070196 | F42: 14.75513934 | G42: 0.9050092421 | H42: 3.878611038 | I42: 14.65253059 | J42: 0.7449395803 | K42: 26.2883637 | L42: 0.4740524602 | M42: 12.0667899 | N42: 0.8844874906 | O42: 0.8080439662 | P42: 5.622959917
A43: 2011-06-01 | B43: 15.18632933 | C43: 0.7571127101 | F43: 16.21964616 | G43: 0.8021672828 | H43: 3.878611038 | I43: 14.65253059 | J43: 0.9050092421 | K43: 26.2883637 | L43: 1.012748438 | M43: 12.0667899 | N43: 0.883461403 | O43: 0.8080439662 | P43: 5.063742188
A44: 2011-07-01 | B44: 21.07946396 | C44: 0.8175882625 | F44: 21.90355823 | G44: 0.8024075786 | H44: 7.872268946 | I44: 14.74695009 | J44: 1.096262246 | K44: 24.37584104 | L44: 1.019274492 | M44: 23.2047597 | N44: 0.9802384473 | O44: 0.8132509242 | P44: 4.185531423
A45: 2011-08-01 | B45: 24.58728628 | C45: 0.9542144177 | F45: 26.77402765 | G45: 0.9216843808 | H45: 13.26502619 | I45: 14.74695009 | J45: 1.236141405 | K45: 19.51802218 | L45: 0.8999976895 | M45: 23.2047597 | N45: 1.043672019 | O45: 0.8132509242 | P45: 3.79517098
A46: 2011-09-01 | B46: 21.63505633 | C46: 0.9707376111 | F46: 24.04640987 | G46: 0.9325277264 | H46: 12.88809084 | I46: 24.93969501 | J46: 1.219618211 | K46: 19.51802218 | L46: 0.9222007306 | M46: 23.53522357 | N46: 1.226847109 | O46: 0.8132509242 | P46: 3.79517098
A47: 2011-10-01 | B47: 24.067495 | C47: 1.001174695 | D47: 1.042545551 | F47: 25.89815534 | G47: 0.9339470557 | H47: 13.62135407 | I47: 24.97765382 | J47: 1.194583443 | K47: 15.82435211 | L47: 1.018757309 | M47: 24.10886586 | N47: 1.340415708 | O47: 0.7772549417 | P47: 3.80094732
A48: 2011-11-01 | B48: 29.82114669 | C48: 1.042545551 | D48: 1.042545551 | F48: 30.31526984 | G48: 1.146800106 | H48: 13.68341035 | I48: 29.5605103 | J48: 1.227162992 | K48: 12.85806179 | L48: 1.164175865 | M48: 29.4736315 | N48: 1.456305816 | O48: 0.716750066 | P48: 2.774691543
A49: 2011-12-01 | B49: 32.5351218 | C49: 1.206430552 | D49: 1.581588989 | E49: 1.998212305 | F49: 33.6655334 | G49: 1.80767131 | H49: 13.80188144 | I49: 32.26362556 | J49: 1.784964352 | K49: 8.608898865 | L49: 1.693149261 | M49: 32.93496171 | N49: 1.636875495 | O49: 0.716750066 | P49: 2.174438045
A50: 2012-01-01 | B50: 30.12577918 | C50: 1.757378512 | D50: 1.966992342 | E50: 2.134882093 | F50: 33.04149763 | G50: 2.094151443 | H50: 16.17304815 | I50: 33.22031511 | J50: 2.148790119 | K50: 6.695721407 | L50: 1.955071177 | M50: 33.22031511 | N50: 1.866655864 | O50: 0.7867969369 | P50: 2.523313409
A51: 2012-02-01 | B51: 32.85605727 | C51: 2.346861234 | D51: 1.966992342 | E51: 2.557090045 | F51: 39.65206785 | G51: 2.439486799 | H51: 19.50340555 | I51: 38.07014808 | J51: 2.895329469 | K51: 5.682422322 | L51: 2.490482897 | M51: 38.07014808 | N51: 1.926403611 | O51: 0.7826339901 | P51: 2.372879651
A52: 2012-03-01 | B52: 37.40762457 | C52: 2.354430228 | D52: 1.981893799 | E52: 2.557090045 | F52: 48.86684511 | G52: 2.449799553 | H52: 23.96154308 | I52: 38.16263173 | J52: 2.364364533 | K52: 5.682422322 | L52: 2.535234574 | M52: 47.49591105 | N52: 1.890498196 | O52: 0.699375055 | P52: 2.185547047
A53: 2012-04-01 | B53: 37.12369059 | C53: 2.413614559 | D53: 2.303904806 | E53: 2.567208212 | F53: 49.86047045 | G53: 2.413614559 | H53: 26.14226678 | I53: 36.86247689 | J53: 2.083440446 | K53: 4.905593226 | L53: 2.213002439 | M53: 49.42163144 | N53: 1.857751812 | O53: 0.702142417 | P53: 2.194195053
A54: 2012-05-01 | B54: 40.56398855 | C54: 2.413614559 | D54: 2.437464505 | E54: 1.318425028 | F54: 51.99288278 | G54: 2.429832522 | H54: 29.7647329 | I54: 39.49551096 | J54: 2.493750378 | K54: 2.947853354 | L54: 2.448912479 | M54: 52.66068128 | N54: 2.161759126 | O54: 0.7201661621 | P54: 1.795423952
A55: 2012-06-01 | B55: 41.7523973 | C55: 2.622585516 | D55: 2.955894193 | E55: 0.8776780213 | F55: 52.13825388 | G55: 2.763640912 | H55: 33.79060382 | I55: 42.21213341 | J55: 2.82215278 | K55: 2.633034064 | L55: 2.801255685 | M55: 52.66068128 | N55: 2.303904806 | O55: 0.7112326537 | P55: 1.360400933
A56: 2012-07-01 | B56: 43.121788 | C56: 2.646554001 | D56: 2.867100167 | E56: 0.8821846668 | F56: 52.62031041 | G56: 2.646554001 | H56: 38.73592674 | I56: 44.10923334 | J56: 2.90318954 | K56: 2.646554001 | L56: 2.926246639 | M56: 52.93108001 | N56: 2.31573475 | O56: 0.6912117361 | P56: 1.367386234
A57: 2012-08-01 | B57: 44.99141801 | C57: 2.786486741 | D57: 2.867100167 | E57: 0.8821846668 | F57: 53.22767658 | G57: 2.751503556 | H57: 40.61851988 | I57: 44.10923334 | J57: 3.069394237 | K57: 2.549209486 | L57: 3.019200972 | M57: 53.2504917 | N57: 2.31573475 | O57: 0.6947204251 | P57: 1.416289949
A58: 2012-09-01 | B58: 46.3036677 | C58: 2.818580011 | D58: 2.889154784 | F58: 54.66788107 | G58: 2.840634627 | H58: 37.82366759 | I58: 50.33966255 | J58: 3.255261421 | K58: 1.940806267 | L58: 3.151604722 | M58: 54.29846624 | N58: 2.260598209 | O58: 0.695823156 | P58: 1.414252294
A59: 2012-10-01 | B59: 46.83079442 | C59: 2.748743068 | D59: 3.325092421 | F59: 55.19171522 | G59: 2.947284819 | H59: 35.4483766 | I59: 54.49296392 | J59: 3.148717954 | K59: 1.859160371 | L59: 3.114021337 | M59: 55.09051676 | N59: 2.283230129 | O59: 0.6982694085 | P59: 0.9710233666
A60: 2012-11-01 | B60: 47.54882163 | C60: 2.434370694 | D60: 3.319046799 | F60: 56.0529974 | G60: 2.778971181 | H60: 29.05929256 | I60: 54.53151571 | J60: 2.962355066 | K60: 2.049466056 | L60: 2.844465426 | M60: 55.41820702 | N60: 2.268116073 | O60: 0.5728227399 | P60: 0.8342959167
A61: 2012-12-01 | B61: 48.32467652 | C61: 2.105891867 | D61: 3.280757856 | F61: 56.29434249 | G61: 2.804689068 | H61: 28.58523898 | I61: 54.57373911 | J61: 3.068585292 | K61: 2.194560998 | L61: 2.963026802 | M61: 55.42876287 | N61: 2.249451413 | O61: 0.551543108 | P61: 0.6322953525
A62: 2013-01-01 | B62: 48.03369996 | C62: 2.158807103 | D62: 3.293850013 | F62: 55.82321012 | G62: 3.269658988 | H62: 20.92039873 | I62: 48.0724056 | J62: 3.438996165 | K62: 2.292341563 | L62: 3.312235192 | M62: 55.86191576 | N62: 2.322338435 | O62: 0.6802516332 | P62: 0.73443953
A63: 2013-02-01 | B63: 48.0724056 | C63: 2.048641174 | D63: 3.293850013 | F63: 56.0065781 | G63: 3.515294659 | H63: 20.92039873 | I63: 48.0724056 | J63: 3.507505149 | K63: 2.339078624 | L63: 3.500828426 | M63: 55.86191576 | N63: 2.453695702 | O63: 0.6454165566 | P63: 0.73443953
A64: 2013-03-01 | B64: 48.41154073 | C64: 2.074023319 | D64: 3.293850013 | F64: 56.95350699 | G64: 3.643583123 | H64: 20.28452035 | I64: 48.0724056 | J64: 3.720948326 | K64: 3.555619947 | L64: 3.669018258 | M64: 55.86191576 | N64: 2.368646969 | O64: 0.6454165566 | P64: 0.73443953
A65: 2013-04-01 | B65: 48.61701435 | C65: 2.181272555 | D65: 3.859330605 | F65: 57.13919549 | G65: 4.346312384 | H65: 19.4995621 | I65: 48.2111962 | J65: 4.390952381 | K65: 4.910399613 | L65: 4.36254511 | M65: 56.02319558 | N65: 2.219825279 | O65: 0.6472799489 | P65: 0.7365599419
A66: 2013-05-01 | B66: 48.43439618 | C66: 2.053439838 | D66: 4.915251786 | F66: 57.33328243 | G66: 5.57805869 | H66: 19.19519849 | I66: 48.2111962 | J66: 5.891509101 | K66: 4.910399613 | L66: 5.887627362 | M66: 56.02319558 | N66: 2.148542439 | O66: 0.6472799489 | P66: 0.7365599419
A67: 2013-06-01 | B67: 48.33395619 | C67: 2.053439838 | D67: 6.71943547 | F67: 57.58559546 | G67: 6.563195482 | H67: 18.39167855 | I67: 48.2111962 | J67: 6.84219546 | K67: 4.910399613 | L67: 6.800903464 | M67: 57.58559546 | N67: 2.142719831 | O67: 0.6472799489 | P67: 0.7365599419
A68: 2013-07-01 | B68: 48.89121556 | C68: 2.063299005 | D68: 8.134234548 | F68: 57.8620808 | G68: 8.13715983 | H68: 18.39027374 | I68: 48.4426723 | J68: 8.365331837 | K68: 5.246005978 | L68: 8.274648091 | M68: 57.8620808 | N68: 2.062323911 | O68: 0.8308244513 | P68: 0.747073722
A69: 2013-08-01 | B69: 48.89121556 | C69: 1.91038653 | D69: 12.95474494 | F69: 57.8620808 | G69: 12.39100761 | H69: 13.96600611 | I69: 48.4426723 | J69: 12.59285208 | K69: 12.03930892 | L69: 12.56023075 | M69: 57.8620808 | N69: 1.782959467 | O69: 1.035727169 | P69: 1.060193165
A70: 2013-09-01 | B70: 48.89121556 | C70: 1.794173048 | D70: 11.40581438 | F70: 57.8620808 | G70: 10.9658148 | H70: 12.55921134 | I70: 48.02616784 | J70: 11.23921259 | K70: 13.23202623 | L70: 11.16445538 | M70: 57.8620808 | N70: 1.408639435 | O70: 1.076503829 | P70: 1.121358155
A71: 2013-10-01 | B71: 49.17856263 | C71: 2.175469723 | D71: 11.65906609 | F71: 58.2021521 | G71: 11.54725205 | H71: 15.24201961 | I71: 48.72738315 | J71: 11.72281972 | K71: 13.13324598 | L71: 11.66789352 | M71: 58.2021521 | N71: 1.088715686 | O71: 1.068118363 | P71: 1.127948684
A72: 2013-11-01 | B72: 49.17856263 | C72: 2.210779421 | D72: 11.84346118 | F72: 58.2021521 | G72: 11.73066631 | H72: 12.63302526 | I72: 48.72738315 | J72: 11.65009855 | K72: 10.8497921 | L72: 11.55019453 | M72: 58.2021521 | N72: 0.924917921 | O72: 1.048992276 | P72: 1.127948684
A73: 2013-12-01 | B73: 49.17856263 | C73: 2.23538921 | D73: 12.62277118 | F73: 58.2021521 | G73: 12.58278028 | H73: 7.875132631 | I73: 48.72738315 | J73: 12.81247164 | K73: 11.47431434 | L73: 12.73966768 | M73: 58.2021521 | N73: 0.9679850525 | O73: 1.048992276 | P73: 1.127948684
A74: 2014-01-01 | B74: 46.65202552 | C74: 2.491653464 | D74: 15.06317776 | F74: 56.62848781 | G74: 15.2463586 | H74: 5.633303483 | I74: 48.24747161 | J74: 15.49453911 | K74: 15.14688943 | L74: 15.32711575 | M74: 56.62848781 | N74: 1.092191182 | O74: 1.053289873 | P74: 1.132569756
A75: 2014-02-01 | B75: 46.43536 | C75: 2.491653464 | D75: 15.62946264 | F75: 56.62848781 | G75: 15.01221212 | H75: 3.62422322 | I75: 48.24747161 | J75: 15.14245764 | K75: 15.1141434 | L75: 15.09035943 | M75: 56.62848781 | N75: 1.074808699 | O75: 1.053289873 | P75: 1.132569756
A76: 2014-03-01 | B76: 46.89917428 | C76: 2.491653464 | D76: 12.9220816 | F76: 57.56690275 | G76: 12.81206054 | H76: 3.62422322 | I76: 48.24747161 | J76: 12.819611 | K76: 12.93286798 | L76: 12.819611 | M76: 56.62848781 | N76: 1.053829192 | O76: 1.050593279 | P76: 1.132569756
A77: 2014-04-01 | B77: 47.37808292 | C77: 2.505571693 | D77: 13.89453393 | F77: 58.38396188 | G77: 13.93077154 | H77: 3.644467917 | I77: 48.51697914 | J77: 13.92559474 | K77: 14.0436258 | L77: 13.75165422 | M77: 56.9448112 | N77: 0.9566728281 | O77: 1.047784526 | P77: 1.138896224
A78: 2014-05-01 | B78: 47.39879012 | C78: 1.506449096 | D78: 14.65552368 | F78: 57.77309936 | G78: 15.63083299 | H78: 3.644467917 | I78: 48.51697914 | J78: 15.62876227 | K78: 15.64946948 | L78: 15.62462083 | M78: 55.82662218 | N78: 0.9566728281 | O78: 1.047784526 | P78: 1.138896224
A79: 2014-06-01 | B79: 48.0071875 | C79: 1.252785846 | D79: 14.8707307 | F79: 56.40247966 | G79: 14.60498824 | H79: 3.644467917 | I79: 48.51697914 | J79: 14.68633797 | K79: 14.65379808 | L79: 14.68633797 | M79: 55.12257724 | N79: 0.9566728281 | O79: 1.047784526 | P79: 1.138896224
A80: 2014-07-01 | B80: 48.954313 | C80: 1.258171596 | D80: 13.43011151 | F80: 54.25554194 | G80: 13.13869311 | H80: 3.06337432 | I80: 48.72555453 | J80: 13.17549338 | K80: 13.20831525 | L80: 13.11581726 | M80: 55.35955022 | N80: 0.9428827453 | O80: 1.052288971 | P80: 1.14379236
A81: 2014-08-01 | B81: 48.86716692 | C81: 0.9803934513 | D81: 13.26799137 | F81: 49.16128495 | G81: 13.37692398 | H81: 2.28758472 | I81: 48.72555453 | J81: 14.13509492 | K81: 13.26799137 | L81: 13.99130388 | M81: 50.56651556 | N81: 0.9607855823 | O81: 1.015251885 | P81: 1.113090565
A82: 2014-09-01 | B82: 47.51937349 | C82: 0.9150338879 | D82: 13.26799137 | F82: 47.58176217 | G82: 13.08602441 | H82: 1.663697978 | I82: 48.72555453 | J82: 14.99407803 | K82: 13.26799137 | L82: 14.52616297 | M82: 48.82953565 | N82: 0.8859191732 | O82: 0.9566263373 | P82: 1.109478589
A83: 2014-10-01 | B83: 48.10602701 | C83: 0.9164950268 | D83: 13.28917789 | F83: 48.0761413 | G83: 13.76236826 | H83: 1.145618784 | I83: 48.80336018 | J83: 15.80953921 | K83: 9.304416903 | L83: 14.9119718 | M83: 47.6577414 | N83: 0.8128912412 | O83: 0.9164950268 | P83: 1.11125022
A84: 2014-11-01 | B84: 49.49073145 | C84: 0.7331960215 | D84: 16.58855999 | F84: 50.65926261 | G84: 15.55177499 | H84: 1.6955158 | I84: 48.80336018 | J84: 17.94611824 | K84: 7.520987314 | L84: 16.93224562 | M84: 47.6577414 | N84: 0.7561083971 | O84: 0.9164950268 | P84: 1.11125022
A85: 2014-12-01 | B85: 49.67004569 | C85: 0.6873712701 | D85: 17.41340551 | F85: 52.67854024 | G85: 16.02372012 | H85: 2.111923323 | I85: 49.14246334 | J85: 18.08583393 | K85: 6.071779553 | L85: 16.955158 | M85: 48.78343637 | N85: 0.7690588704 | O85: 0.8955750317 | P85: 1.163550208
A86: 2015-01-01 | B86: 48.16712467 | C86: 0.8470088461 | F86: 52.25649171 | G86: 16.59679496 | H86: 3.329764505 | I86: 48.30239636 | J86: 17.85586216 | K86: 7.554403222 | L86: 16.79449972 | M86: 47.61563243 | N86: 0.8012245841 | O86: 1.259067204
A87: 2015-02-01 | B87: 48.8518075 | C87: 0.8470088461 | F87: 50.82053076 | G87: 15.75550914 | H87: 4.303720623 | I87: 48.30239636 | J87: 16.52811856 | K87: 7.554403222 | L87: 15.71544791 | M87: 47.61563243 | N87: 0.8012245841 | O87: 0.8470088461 | P87: 1.259067204
A88: 2015-03-01 | B88: 47.19941186 | C88: 0.8470088461 | F88: 47.29306149 | G88: 15.30651121 | H88: 4.557615167 | I88: 47.66766 | J88: 15.67902861 | K88: 5.723032744 | L88: 15.37934981 | M88: 47.303467 | N88: 0.7710485933 | O88: 0.8470088461 | P88: 1.259067204
A89: 2015-04-01 | B89: 46.53509694 | C89: 0.8516090133 | D89: 14.98946946 | F89: 46.80710965 | G89: 14.38528739 | H89: 3.808177897 | I89: 46.51417289 | J89: 14.70751782 | K89: 5.181005105 | L89: 14.35913232 | M89: 44.14975474 | N89: 0.5984279553 | O89: 0.8516090133 | P89: 1.140360964
A90: 2015-05-01 | B90: 47.34814591 | C90: 0.8516090133 | D90: 15.16876768 | F90: 47.72079336 | G90: 14.75793483 | H90: 3.299025907 | I90: 46.95357803 | J90: 15.19634359 | K90: 4.953142153 | L90: 14.76341494 | M90: 43.73127366 | N90: 0.5940438677 | O90: 0.7902317871 | P90: 0.9897077722
A91: 2015-06-01 | B91: 47.37205912 | C91: 1.164423626 | D91: 15.21963406 | F91: 47.61791676 | G91: 14.84352418 | H91: 3.452468973 | I91: 46.95357803 | J91: 15.67734774 | K91: 3.28214717 | L91: 15.2745597 | M91: 43.73127366 | N91: 0.5523950356 | O91: 0.6674773347 | P91: 0.9897077722
A92: 2015-07-01 | B92: 45.94726256 | C92: 1.054066543 | D92: 14.95017714 | F92: 46.24842443 | G92: 14.23592157 | H92: 3.383051668 | I92: 47.1017164 | J92: 15.09824839 | K92: 2.42435305 | L92: 14.83724144 | M92: 43.86924566 | N92: 0.4698125165 | O92: 0.6183857055 | P92: 0.9928302966
A93: 2015-08-01 | B93: 45.87029898 | C93: 0.6926723 | D93: 14.25865929 | F93: 45.94726256 | G93: 13.8314564 | H93: 3.155507144 | I93: 47.1017164 | J93: 14.5406209 | K93: 2.426661958 | L93: 14.5131339 | M93: 43.86924566 | N93: 0.41560338 | O93: 0.5849232755 | P93: 0.9928302966
A94: 2015-09-01 | B94: 45.7163718 | C94: 0.6926723 | D94: 14.30079686 | F94: 45.93152001 | G94: 13.66453537 | H94: 2.959599827 | I94: 47.1017164 | J94: 14.07908925 | K94: 2.135739592 | L94: 13.98463394 | M94: 43.86924566 | N94: 0.3683757232 | O94: 0.55413784 | P94: 0.6569891815
A95: 2015-10-01 | B95: 45.51648988 | C95: 0.6927449168 | D95: 14.27054529 | F95: 45.95207948 | G95: 13.62398336 | H95: 4.156469501 | I95: 47.10665434 | J95: 14.20127079 | K95: 1.928140018 | L95: 14.08581331 | M95: 43.87384473 | N95: 0.3463724584 | O95: 0.5541959335 | P95: 0.6234704251
A96: 2015-11-01 | B96: 45.37479205 | C96: 0.6927449168 | D96: 14.63539094 | F96: 46.1719985 | G96: 13.82191048 | H96: 18.75909251 | I96: 47.10665434 | J96: 14.82804001 | K96: 1.721663547 | L96: 14.28374043 | M96: 43.87384473 | N96: 0.3463724584 | O96: 0.5541959335 | P96: 0.6234704251
A97: 2015-12-01 | B97: 44.99830025 | C97: 0.6927449168 | D97: 14.51993346 | F97: 45.31957325 | G97: 13.85489834 | H97: 27.50900104 | I97: 47.10665434 | J97: 15.0094732 | K97: 1.79305476 | L97: 14.31672828 | M97: 43.43209435 | N97: 0.3594241742 | O97: 0.4406460058 | P97: 0.6234704251
A98: 2016-01-01 | B98: 46.95895498 | C98: 1.527388497 | D98: 15.22993134 | E98: 0.8826437483 | F98: 46.95346077 | G98: 13.84539213 | H98: 30.657654 | I98: 46.1513071 | J98: 14.99917481 | K98: 2.07680882 | L98: 14.38382405 | M98: 43.84374175 | N98: 0.3738255875 | O98: 0.3530574993 | P98: 0.6230426459
A99: 2016-02-01 | B99: 44.21734757 | C99: 2.07680882 | D99: 15.22993134 | E99: 0.8826437483 | F99: 44.4481041 | G99: 12.65315003 | H99: 32.30591497 | I99: 46.1513071 | J99: 13.34541964 | K99: 2.07680882 | L99: 13.08938977 | M99: 43.84374175 | N99: 0.3738255875 | O99: 0.3530574993 | P99: 0.6230426459
A100: 2016-03-01 | B100: 38.54637432 | C100: 2.07680882 | D100: 15.10953663 | E100: 0.8826437483 | F100: 39.79045304 | G100: 11.7886491 | H100: 32.00492819 | I100: 46.1513071 | J100: 11.70336951 | K100: 2.07680882 | L100: 11.58799124 | M100: 43.84374175 | N100: 0.3738255875 | O100: 0.3530574993 | P100: 0.6230426459
A101: 2016-04-01 | B101: 32.86182051 | C101: 3.031696573 | D101: 13.9413784 | E101: 0.888762873 | F101: 34.02360205 | G101: 12.25956132 | H101: 25.55919373 | I101: 46.47126133 | J101: 12.71320935 | K101: 2.09120676 | L101: 12.1987061 | M101: 38.83669697 | N101: 0.3631397136 | O101: 0.3555051492 | P101: 0.627362028
A102: 2016-05-01 | B102: 34.62108969 | C102: 3.252988293 | D102: 13.9413784 | E102: 0.6709288355 | F102: 35.19141881 | G102: 12.14061702 | H102: 25.98165975 | I102: 38.97248962 | J102: 12.63173376 | K102: 2.207384913 | L102: 12.050843 | M102: 34.853446 | N102: 0.34853446 | O102: 0.3555051492 | P102: 0.627362028
A103: 2016-06-01 | B103: 36.80735131 | C103: 3.252988293 | D103: 13.9413784 | E103: 0.5692729513 | F103: 36.95521441 | G103: 11.17422602 | H103: 27.8827568 | I103: 37.17700907 | J103: 11.81109353 | K103: 2.207384913 | L103: 11.59669203 | M103: 34.853446 | N103: 0.34853446 | O103: 0.3555591855 | P103: 0.627362028
A104: 2016-07-01 | B104: 34.33879374 | C104: 3.264017252 | D104: 13.98864537 | E104: 0.5026475547 | F104: 34.33879374 | G104: 11.25197784 | H104: 27.97729073 | I104: 37.30305431 | J104: 12.63418923 | K104: 2.21486885 | L104: 12.47764962 | M104: 34.97161341 | N104: 0.3497161341 | O104: 0.3590418977 | P104: 0.6294890415
A105: 2016-08-01 | B105: 33.1470075 | C105: 2.594995082 | D105: 13.54263059 | E105: 0.4604595766 | F105: 33.1470075 | G105: 10.86654191 | H105: 26.86225378 | I105: 35.51899519 | J105: 11.9329227 | K105: 2.21486885 | L105: 11.95623711 | M105: 34.97161341 | N105: 0.2929506167 | O105: 0.3055201241 | P105: 0.6294890415
A106: 2016-09-01 | B106: 27.77593902 | C106: 2.469207856 | D106: 13.52235719 | E106: 0.4604595766 | F106: 27.64876951 | G106: 9.60659623 | H106: 25.99556597 | I106: 31.06115119 | J106: 10.57626369 | K106: 2.21486885 | L106: 10.16296281 | M106: 34.48413032 | N106: 0.3030873163 | O106: 0.3030873163 | P106: 0.6294890415
A107: 2016-10-01 | B107: 25.30290467 | C107: 1.874289235 | D107: 9.527636945 | E107: 0.4808444407 | F107: 24.23188225 | G107: 7.870899139 | H107: 19.01064796 | I107: 25.30290467 | J107: 8.634002613 | K107: 2.186670774 | L107: 8.567063712 | M107: 23.69637104 | N107: 0.2992168886 | O107: 0.3045720007 | P107: 0.6325726168
A108: 2016-11-01 | B108: 18.71946374 | C108: 1.874289235 | D108: 7.49715694 | E108: 0.7122299093 | F108: 18.83660681 | G108: 6.876298631 | H108: 20.61718159 | I108: 21.5543262 | J108: 7.630700048 | K108: 2.108575389 | L108: 7.368299555 | M108: 21.5543262 | N108: 0.2743490868 | O108: 0.3045720007 | P108: 0.6325726168
A109: 2016-12-01 | B109: 20.25958693 | C109: 2.096244539 | D109: 7.49715694 | E109: 1.210766184 | F109: 20.25958693 | G109: 6.547681473 | H109: 20.29657948 | I109: 21.36936345 | J109: 7.239442171 | K109: 2.108575389 | L109: 6.965697295 | M109: 21.3077092 | N109: 0.2624004929 | O109: 0.3045720007 | P109: 0.6851287001
A110: 2017-01-01 | B110: 22.82945933 | C110: 2.354766306 | D110: 7.064298917 | E110: 1.170318854 | F110: 22.82945933 | G110: 7.04663817 | H110: 18.36717719 | I110: 23.31218643 | J110: 7.441061526 | K110: 2.354766306 | L110: 7.229132559 | M110: 22.13480327 | N110: 0.2778624241 | O110: 0.2745800226 | P110: 2.590242936
A111: 2017-02-01 | B111: 24.96052284 | C111: 2.354766306 | D111: 7.064298917 | E111: 1.170318854 | F111: 24.96052284 | G111: 7.078150484 | H111: 18.36717719 | I111: 23.31218643 | J111: 7.126630967 | K111: 2.354766306 | L111: 7.008892651 | M111: 22.13480327 | N111: 0.2778624241 | O111: 0.2660885926 | P111: 2.590242936
A112: 2017-03-01 | B112: 24.96052284 | C112: 2.354766306 | D112: 7.064298917 | E112: 1.170318854 | F112: 24.96052284 | G112: 5.958582565 | H112: 18.36717719 | I112: 23.31218643 | J112: 6.030249366 | K112: 2.354766306 | L112: 6.030249366 | M112: 22.13480327 | N112: 0.2876910139 | O112: 0.2660885926 | P112: 2.590242936
A113: 2017-04-01 | B113: 24.26672967 | C113: 2.250142454 | D113: 7.086083971 | E113: 0.9613453921 | F113: 24.26672967 | G113: 5.25862021 | H113: 19.51781024 | I113: 23.38407711 | J113: 5.544549915 | K113: 2.36202799 | L113: 5.544549915 | M113: 21.40743263 | N113: 0.3070636388 | O113: 0.2669091629 | P113: 2.59823079
A114: 2017-05-01 | B114: 16.85629066 | C114: 1.589000648 | D114: 5.690340159 | E114: 0.5716107737 | F114: 16.85629066 | G114: 5.294163646 | H114: 12.15370766 | I114: 13.33472166 | J114: 5.572238759 | K114: 1.181013995 | L114: 5.529292796 | M114: 13.35619464 | N114: 0.285590657 | O114: 0.2669091629 | P114: 2.59823079
A115: 2017-06-01 | B115: 19.40620724 | C115: 1.728575029 | D115: 5.497083323 | E115: 0.8148996567 | F115: 19.62093706 | G115: 4.568376863 | H115: 12.32549151 | I115: 17.0495475 | J115: 5.182504141 | K115: 1.062912596 | L115: 5.068697338 | M115: 16.79187171 | N115: 0.2834433589 | O115: 0.2669091629 | P115: 2.59823079
A116: 2017-07-01 | B116: 23.38128686 | C116: 1.78030103 | D116: 4.998030299 | E116: 0.8189384737 | F116: 23.31534978 | G116: 3.600164305 | H116: 12.81816741 | I116: 17.56563683 | J116: 4.295141077 | K116: 1.298960381 | L116: 4.143485804 | M116: 20.41411848 | N116: 0.2848481648 | O116: 0.2682320218 | P116: 2.611108177
A117: 2017-08-01 | B117: 17.66884268 | C117: 1.78030103 | D117: 3.79797553 | E117: 0.8808619878 | F117: 17.66884268 | G117: 3.102368055 | H117: 12.81816741 | I117: 16.16203718 | J117: 3.709218493 | K117: 2.115720064 | L117: 3.591563817 | M117: 16.90511934 | N117: 0.2848481648 | O117: 0.2848481648 | P117: 2.611108177
A118: 2017-09-01 | B118: 16.40375616 | C118: 1.78030103 | D118: 3.79797553 | E118: 0.937625209 | F118: 16.40375616 | G118: 3.060868437 | H118: 12.81816741 | I118: 15.59168902 | J118: 3.640559439 | K118: 2.136361236 | L118: 3.525620706 | M118: 15.59168902 | N118: 0.2970916385 | O118: 0.289220834 | P118: 2.611108177
A119: 2017-10-01 | B119: 12.73063911 | C119: 1.79228281 | D119: 3.823536661 | E119: 0.9439356131 | F119: 12.86098695 | G119: 2.628681454 | H119: 11.16646502 | I119: 14.33826248 | J119: 3.258696017 | K119: 2.150739372 | L119: 3.160935137 | M119: 13.55617543 | N119: 0.3299972834 | O119: 0.2987138016 | P119: 2.628681454
A120: 2017-11-01 | B120: 11.42281577 | C120: 1.79228281 | D120: 3.823536661 | E120: 0.9439356131 | F120: 11.51840419 | G120: 3.379050524 | H120: 10.9926679 | I120: 14.33826248 | J120: 4.149732132 | K120: 2.742192699 | L120: 3.877305145 | M120: 12.42649415 | N120: 0.3441182994 | O120: 0.2987138016 | P120: 2.628681454
A121: 2017-12-01 | B121: 13.00283607 | C121: 2.389710413 | D121: 4.020336342 | E121: 0.9439356131 | F121: 13.00283607 | G121: 4.470164184 | H121: 9.137128049 | I121: 14.282034 | J121: 5.111168859 | K121: 3.465080099 | L121: 4.924209162 | M121: 12.45460839 | N121: 0.5032448987 | O121: 0.4260713095 | P121: 2.628681454
A122: 2018-01-01 | B122: 23.27079912 | C122: 2.403771675 | D122: 5.528674853 | E122: 0.9494898116 | F122: 23.27079912 | G122: 5.666033234 | H122: 8.413200863 | I122: 21.63394508 | J122: 5.86634754 | K122: 3.821996963 | L122: 5.757605488 | M122: 20.67243641 | N122: 0.6181127164 | O122: 0.5120033668 | P122: 2.644148843
A123: 2018-02-01 | B123: 18.49639047 | C123: 2.88452601 | D123: 5.648863436 | E123: 0.9146983795 | F123: 18.69881335 | G123: 5.408486269 | H123: 8.413200863 | I123: 24.03771675 | J123: 5.535000568 | K123: 4.80754335 | L123: 5.356615406 | M123: 23.07620808 | N123: 0.5144071385 | O123: 0.5120033668 | P123: 2.644148843
A124: 2018-03-01 | B124: 17.33004912 | C124: 2.88452601 | D124: 5.648863436 | E124: 0.8893955198 | F124: 17.33004912 | G124: 5.288297685 | H124: 8.413200863 | I124: 24.03771675 | J124: 5.441681211 | K124: 4.80754335 | L124: 5.251668783 | M124: 23.07620808 | N124: 0.5904121095 | O124: 0.517841098 | P124: 2.644148843
A125: 2018-04-01 | B125: 17.01722099 | C125: 2.909321363 | D125: 5.697421002 | E125: 0.8970407535 | F125: 17.05185576 | G125: 5.345300757 | H125: 8.13917286 | I125: 23.04367238 | J125: 5.500002766 | K125: 4.779599381 | L125: 5.358000176 | M125: 18.42570196 | N125: 0.7190179939 | O125: 0.5784007947 | P125: 2.666877916
A126: 2018-05-01 | B126: 14.84966112 | C126: 2.909321363 | D126: 5.697421002 | E126: 0.8970407535 | F126: 14.91027198 | G126: 6.622012147 | H126: 6.523932752 | I126: 16.46411407 | J126: 6.962534988 | K126: 4.606425491 | L126: 6.764172168 | M126: 14.81109057 | N126: 0.8243077194 | O126: 0.6303529619 | P126: 2.666877916
A127: 2018-06-01 | B127: 14.75441548 | C127: 2.88623151 | D127: 6.061086172 | E127: 1.115239856 | F127: 14.75441548 | G127: 7.207497328 | H127: 5.841732577 | I127: 13.43829391 | J127: 8.044504466 | K127: 4.606425491 | L127: 7.765117256 | M127: 13.09194613 | N127: 0.8243077194 | O127: 0.6303529619 | P127: 2.666877916
A128: 2018-07-01 | B128: 9.550837661 | C128: 2.434072705 | D128: 6.085181762 | E128: 1.119673444 | F128: 9.411747792 | G128: 6.973038758 | H128: 5.354959951 | I128: 11.21991609 | J128: 7.897986386 | K128: 4.624738139 | L128: 7.743828448 | M128: 11.03446293 | N128: 0.8275847197 | O128: 0.6328589033 | P128: 2.677479975
A129: 2018-08-01 | B129: 5.471372124 | C129: 2.434072705 | D129: 6.085181762 | E129: 1.119673444 | F129: 5.450206274 | G129: 6.461933885 | H129: 4.783482011 | I129: 5.238547778 | J129: 6.933932331 | K129: 4.624738139 | L129: 6.838686008 | M129: 5.386708725 | N129: 0.7073626939 | O129: 0.6328589033 | P129: 2.677479975
A130: 2018-09-01 | B130: 4.099490871 | C130: 2.434072705 | D130: 6.085181762 | E130: 1.119673444 | F130: 4.125112689 | G130: 5.529188313 | H130: 3.407701787 | I130: 4.624738139 | J130: 6.083900671 | K130: 4.445385414 | L130: 5.917358855 | M130: 4.137923598 | N130: 0.5547123585 | O130: 0.5431825405 | P130: 2.677479975
A131: 2018-10-01 | B131: 3.636571337 | C131: 2.44564739 | D131: 6.114118475 | E131: 1.124997799 | F131: 3.636571337 | G131: 5.684535195 | H131: 3.423906346 | I131: 4.646730041 | J131: 6.051382303 | K131: 4.402165302 | L131: 5.808944214 | M131: 4.157600563 | N131: 0.5380424258 | O131: 0.5135859519 | P131: 2.690212129
A132: 2018-11-01 | B132: 3.839666403 | C132: 2.44564739 | D132: 6.114118475 | E132: 1.124997799 | F132: 3.839666403 | G132: 5.138305167 | H132: 3.497275768 | I132: 3.949720535 | J132: 5.556510871 | K132: 4.518333553 | L132: 5.3412939 | M132: 4.341024118 | N132: 0.6211944371 | O132: 0.5845097263 | P132: 2.029887334
A133: 2018-12-01 | B133: 5.01357715 | C133: 2.677983892 | D133: 6.114118475 | E133: 0.7966696374 | F133: 5.09306069 | G133: 5.558956518 | H133: 4.035318194 | I133: 4.866838306 | J133: 5.8573255 | K133: 4.603931212 | L133: 5.732597483 | M133: 5.380424258 | N133: 0.758150691 | O133: 0.7026344952 | P133: 1.868474606
A134: 2019-01-01 | B134: 13.0008911 | C134: 3.06487105 | D134: 6.1297421 | E134: 0.5744444025 | F134: 13.0008911 | G134: 6.001309409 | H134: 3.187465892 | I134: 12.77321497 | J134: 6.109893411 | K134: 5.108118417 | L134: 5.955774182 | M134: 12.74986357 | N134: 0.7124511675 | O134: 0.7439755555 | P134: 1.103353578
A135: 2019-02-01 | B135: 13.5047897 | C135: 3.05196633 | D135: 6.1297421 | E135: 0.5394173048 | F135: 13.49833734 | G135: 5.458696649 | H135: 3.187465892 | I135: 13.24024294 | J135: 5.582581963 | K135: 5.549029691 | L135: 5.440630041 | M135: 12.67243525 | N135: 0.6294922519 | O135: 0.6436874441 | P135: 1.103353578
A136: 2019-03-01 | B136: 12.19818678 | C136: 2.819681366 | D136: 6.1297421 | E136: 0.5394173048 | F136: 12.19818678 | G136: 5.597680486 | H136: 3.187465892 | I136: 13.43639468 | J136: 5.685948772 | K136: 5.51676789 | L136: 5.587872899 | M136: 11.57295309 | N136: 0.5835514479 | O136: 0.5855129654 | P136: 1.103353578
A137: 2019-04-01 | B137: 17.31484941 | C137: 2.837825676 | D137: 6.169186251 | E137: 0.5428883901 | F137: 17.31484941 | G137: 6.003499535 | H137: 3.19622602 | I137: 16.2866517 | J137: 6.031701529 | K137: 5.581644703 | L137: 6.003499535 | M137: 15.7931168 | N137: 0.5692102514 | O137: 0.5555792875 | P137: 1.110453525
A138: 2019-05-01 | B138: 20.63312383 | C138: 2.837825676 | E138: 0.5428883901 | F138: 20.63312383 | G138: 6.465307191 | H138: 2.961209401 | I138: 20.7060324 | J138: 6.578595884 | K138: 6.133292804 | L138: 6.461942181 | M138: 20.05546367 | N138: 0.5626297861 | O138: 0.5478237391 | P138: 1.110453525
A139: 2019-06-01 | B139: 18.68646515 | C139: 2.837825676 | E139: 0.6415953701 | F139: 18.84069481 | G139: 5.563372161 | H139: 2.961209401 | I139: 19.03810877 | J139: 5.984110664 | K139: 5.206793196 | L139: 5.945861709 | M139: 19.3835832 | N139: 0.5744746237 | O139: 0.5655909955 | P139: 1.110453525
A140: 2019-07-01 | B140: 23.25322762 | C140: 2.735673838 | E140: 0.6438266878 | F140: 23.53622837 | G140: 5.959523956 | H140: 2.523423282 | I140: 22.88178915 | J140: 6.308558205 | K140: 4.811012612 | L140: 6.223657982 | M140: 22.74028878 | N140: 0.6273183112 | O140: 0.6055036707 | P140: 1.114315421
A141: 2019-08-01 | B141: 26.27083023 | C141: 2.723882141 | E141: 0.6438266878 | F141: 26.27083023 | G141: 6.399997459 | H141: 5.357718591 | I141: 25.60111541 | J141: 6.692645954 | K141: 4.457261685 | L141: 6.560954131 | M141: 25.60111541 | N141: 0.6938020461 | O141: 0.6110725678 | P141: 1.125081754
A142: 2019-09-01 | B142: 32.49467581 | C142: 2.135771224 | E142: 0.6438266878 | F142: 32.53181966 | G142: 6.827039147 | H142: 4.704887334 | I142: 31.39274167 | J142: 7.089522335 | K142: 4.605837074 | L142: 7.023901538 | M142: 31.39274167 | N142: 0.6965709511 | O142: 0.6965709511 | P142: 1.238128246
A143: 2019-10-01 | B143: 37.141666 | C143: 2.112655136 | E143: 0.646223924 | F143: 37.141666 | G143: 7.235978921 | H143: 1.988381304 | I143: 34.2455454 | J143: 7.453187966 | K143: 6.072127473 | L143: 7.350526974 | M143: 34.12667478 | N143: 0.6909625033 | O143: 0.6909625033 | P143: 1.242738315
A144: 2019-11-01 | B144: 37.82502988 | C144: 2.112655136 | E144: 0.808909667 | F144: 37.91660007 | G144: 8.170677387 | H144: 10.36705384 | I144: 36.41877337 | J144: 8.322422276 | K144: 6.362820174 | L144: 8.212538046 | M144: 36.41877337 | N144: 0.6700321738 | O144: 0.6873723704 | P144: 1.242738315
A145: 2019-12-01 | B145: 41.25891207 | C145: 2.112655136 | E145: 0.8699168207 | F145: 41.32992569 | G145: 9.112230752 | H145: 1.988381304 | I145: 39.38888679 | J145: 9.229403222 | K145: 6.878852465 | L145: 9.119332114 | M145: 39.38888679 | N145: 0.7541646233 | O145: 0.7046918028
A146: 2020-01-01 | B146: 40.90585902 | C146: 3.351380663 | E146: 0.8734981516 | F146: 41.15542992 | G146: 9.4432875 | H146: 3.993134407 | I146: 40.16903064 | J146: 9.462302426 | K146: 8.544832258 | L146: 9.371981528 | M146: 40.16903064 | N146: 0.8606630767 | O146: 0.8136011355
A147: 2020-02-01 | B147: 39.55698772 | C147: 3.408613088 | E147: 0.8734981516 | F147: 39.93791173 | G147: 9.48763481 | H147: 3.993134407 | I147: 42.67662398 | J147: 9.58746317 | K147: 8.235839715 | L147: 9.465304782 | M147: 42.67662398 | N147: 0.8435496435 | O147: 0.8136011355
A148: 2020-03-01 | B148: 35.11008804 | C148: 3.23874964 | E148: 0.8734981516 | F148: 35.22352936 | G148: 9.237639997 | H148: 3.51668087 | I148: 35.3823472 | J148: 9.350967875 | K148: 7.708337584 | L148: 9.238660969 | M148: 35.35965894 | N148: 0.8630615503 | O148: 0.8446840567
A149: 2020-04-01 | B149: 29.75513442 | C149: 3.475569932 | E149: 0.8688924831 | F149: 29.99156775 | G149: 8.017454177 | H149: 3.475569932 | I149: 29.01036943 | J149: 8.108481009 | K149: 6.679241536 | L149: 7.998539511 | M149: 29.01036943 | N149: 0.7958345845 | O149: 0.7632067851
A150: 2020-05-01 | B150: 36.59801271 | C150: 3.475569932 | E150: 0.8688924831 | F150: 36.72867323 | G150: 9.89361486 | H150: 3.475569932 | I150: 35.7225872 | J150: 9.949798885 | K150: 8.259051707 | L150: 9.891001649 | M150: 35.7225872 | N150: 0.8155829894 | O150: 0.8305619118
A151: 2020-06-01 | B151: 41.67298623 | C151: 3.475569932 | E151: 0.8688924831 | F151: 42.29362372 | G151: 9.916658625 | H151: 3.475569932 | I151: 41.30060374 | J151: 10.38834312 | K151: 8.639273832 | L151: 10.28001366 | M151: 41.30060374 | N151: 0.9808329172 | O151: 0.961198204
A152: 2020-07-01 | B152: 43.83287723 | C152: 3.21103296 | E152: 0.876771411 | F152: 43.97521025 | G152: 9.064905458 | H152: 3.097166543 | I152: 43.99798353 | J152: 9.67978411 | K152: 8.406757568 | L152: 9.532896432 | M152: 43.99798353 | N152: 1.136386842 | O152: 1.104504245
A153: 2020-08-01 | B153: 42.53832451 | C153: 3.006073409 | E153: 0.876771411 | F153: 42.72918631 | G153: 9.248447278 | H153: 1.252530587 | I153: 43.0870522 | J153: 9.865169481 | K153: 8.19155004 | L153: 9.768545693 | M153: 43.0870522 | N153: 1.415717429 | O153: 1.415717429
A154: 2020-09-01 | B154: 44.06521894 | C154: 2.755567292 | E154: 0.876771411 | F154: 44.99567023 | G154: 9.824611348 | H154: 1.252530587 | I154: 43.42106035 | J154: 10.24689309 | K154: 8.657968573 | L154: 10.14430487 | M154: 43.42106035 | N154: 1.324103764 | O154: 1.327682422
A155: 2020-10-01 | B155: 45.2258812 | C155: 2.928500212 | E155: 0.8808379544 | F155: 45.70633827 | G155: 10.26576598 | H155: 1.258339935 | I155: 44.97993294 | J155: 10.64212401 | K155: 9.437549511 | L155: 10.53230525 | M155: 44.5681126 | N155: 1.293802242 | O155: 1.293802242
A156: 2020-11-01 | B156: 44.4634416 | C156: 3.020015844 | E156: 0.8808379544 | F156: 44.76544318 | G156: 10.60025561 | H156: 2.491513071 | I156: 44.29356571 | J156: 10.85947364 | K156: 9.972343984 | L156: 10.75880644 | M156: 43.53856175 | N156: 1.428215826 | O156: 1.418904111
A157: 2020-12-01 | B157: 43.31338513 | C157: 3.020015844 | E157: 10.06671948 | F157: 44.2604515 | G157: 10.88795186 | H157: 3.020015844 | I157: 43.08820851 | J157: 11.00716301 | K157: 10.06671948 | L157: 10.90649581 | M157: 43.04847146 | N157: 1.624715541 | O157: 1.600608397
A158: 2021-01-01 | B158: 35.85020019 | C158: 3.208258589 | F158: 40.55650337 | G158: 11.0842441 | H158: 4.269105618 | I158: 40.55650337 | J158: 11.12924974 | K158: 9.894809557 | L158: 11.05724073 | M158: 40.31218708 | N158: 1.700441346 | O158: 1.680896043
A159: 2021-02-01 | B159: 36.59993686 | C159: 3.786902423 | F159: 39.69460981 | G159: 12.14116207 | H159: 4.397693136 | I159: 38.62911934 | J159: 12.16695101 | K159: 9.096709692 | L159: 11.91041891 | M159: 38.49338807 | N159: 1.814998538 | O159: 1.785680583
A160: 2021-03-01 | B160: 37.61307384 | C160: 3.839255913 | F160: 41.55121967 | G160: 15.46754768 | H160: 4.607107095 | I160: 37.13607537 | J160: 15.5548035 | K160: 9.71448087 | L160: 15.27209466 | M160: 37.13607537 | N160: 2.339619285 | O160: 2.304716959
A161: 2021-04-01 | B161: 38.39840002 | C161: 5.072935346 | F161: 44.46348105 | G161: 16.01370371 | H161: 5.149708524 | I161: 37.7015358 | J161: 16.11764278 | K161: 8.551350851 | L161: 15.83535371 | M161: 37.7015358 | N161: 3.11344763 | O161: 2.985886043
A162: 2021-05-01 | B162: 38.63167237 | C162: 5.084746604 | F162: 41.61431032 | G162: 13.95328879 | H162: 14.54434247 | I162: 37.55271394 | J162: 13.9594897 | K162: 6.945019752 | L162: 13.81066785 | M162: 35.8102581 | N162: 3.357172941 | O162: 3.324928206
A163: 2021-06-01 | B163: 38.02371256 | C163: 5.592093826 | F163: 40.16498842 | G163: 13.81901089 | H163: 19.52723086 | I163: 36.99124969 | J163: 14.11778203 | K163: 7.012666048 | L163: 13.84719685 | M163: 36.99124969 | N163: 4.006915617 | O163: 3.99789611
A164: 2021-07-01 | B164: 38.8112274 | C164: 7.447106462 | F164: 39.35642988 | G164: 15.12547464 | H164: 23.31789087 | I164: 38.58356043 | J164: 15.31839244 | K164: 8.567467611 | L164: 15.17100803 | M164: 38.58356043 | N164: 4.3292672 | O164: 4.326870705
A165: 2021-08-01 | B165: 38.44935674 | C165: 9.53684961 | F165: 38.62549908 | G165: 16.81404462 | H165: 23.65340009 | I165: 38.75131504 | J165: 17.1363851 | K165: 9.385870461 | L165: 16.97383088 | M165: 38.75131504 | N165: 6.266892864 | O165: 6.245504151
A166: 2021-09-01 | B166: 38.11624401 | C166: 10.24741021 | F166: 38.65545526 | G166: 16.48668348 | H166: 24.15666392 | I166: 37.74478738 | J166: 16.65323984 | K166: 10.04730293 | L166: 16.49387296 | M166: 38.03236671 | N166: 4.701922085 | O166: 4.69952559
A167: 2021-10-01 | B167: 39.98716397 | C167: 11.20615888 | F167: 41.8889925 | G167: 17.3224882 | H167: 24.68110167 | I167: 40.08469364 | J167: 17.53461523 | K167: 11.30125031 | L167: 17.33224116 | M167: 40.08469364 | N167: 4.386396828 | O167: 4.386396828
A168: 2021-11-01 | B168: 39.0240585 | C168: 11.26467668 | F168: 40.56015077 | G168: 18.32460554 | H168: 26.99499304 | I168: 39.93230353 | J168: 18.53795169 | K168: 12.95925467 | L168: 18.28437455 | M168: 39.93230353 | N168: 4.352261445 | O168: 4.352261445
A169: 2021-12-01 | B169: 38.79796699 | C169: 14.1273941 | F169: 40.29914808 | G169: 19.66663594 | H169: 30.94876821 | I169: 38.60013693 | J169: 19.92730614 | K169: 13.87137872 | L169: 19.58168538 | M169: 38.60013693 | N169: 4.23821823 | O169: 4.083445296

Sheet Wind & PV PPAs vs Gas
A1: Levelized wind and solar PPA prices and levelized gas price projections
A22: Sources: Berkeley Lab, FERC, EIA
A23: Note: Smallest bubble sizes reflect smallest-volume PPAs (<5 MW), whereas largest reflect largest-volume PPAs (>500 MW)
B25: Levelized Gas | C25: Solar | D25: Wind | F25: Wind | G25: Wind | H25: Wind | J25: Solar | K25: Solar | L25: Solar
B26: Price Projection | C26: Average | D26: Average | F26: PPA | G26: Project | H26: Project | J26: PPA | K26: Project | L26: Project
B27: 2021 $/MWh | C27: 2021 $/MWh | D27: 2021 $/MWh | F27: Date | G27: 2021 $/MWh | H27: Capacity | J27: Date | K27: 2021 $/MWh | L27: Capacity
A28: 2008 | B28: 62.52025688 | C28: 149.1272448 | D28: 71.76193605 | F28: 2008-01-02 | G28: 58.94316301 | H28: 24 | J28: 2008-07-01 | K28: 154.9657371 | L28: 550
A29: 2009 | B29: 59.9520311 | C29: 167.3698965 | D29: 75.8194927 | F29: 2008-01-16 | G29: 78.16649274 | H29: 200.8666667 | J29: 2008-07-23 | K29: 134.5414406 | L29: 210
A30: 2010 | B30: 59.12149135 | C30: 138.3755184 | D30: 66.43686459 | F30: 2008-02-27 | G30: 60.19080872 | H30: 81 | J30: 2008-12-19 | K30: 175.4914144 | L30: 10
A31: 2011 | B31: 47.91138353 | C31: 112.6241796 | D31: 48.48260549 | F31: 2008-02-28 | G31: 62.12360795 | H31: 100 | J31: 2009-02-23 | K31: 136.2877374 | L31: 30
A32: 2012 | B32: 46.31919401 | C32: 87.36418714 | D32: 40.81615088 | F32: 2008-03-25 | G32: 83.58531414 | H32: 106 | J32: 2009-03-01 | K32: 162.332173 | L32: 30
A33: 2013 | B33: 44.95468842 | C33: 68.96915546 | D33: 29.11661813 | F33: 2008-04-03 | G33: 73.34553908 | H33: 100.5 | J33: 2009-03-05 | K33: 153.9354952 | L33: 19
A34: 2014 | B34: 48.00567007 | C34: 57.41468401 | D34: 26.84588979 | F34: 2008-04-30 | G34: 62.94563306 | H34: 54 | J34: 2009-05-01 | K34: 212.5955323 | L34: 12.6
A35: 2015 | B35: 49.06019824 | C35: 46.14064168 | D35: 31.33861018 | F35: 2008-05-28 | G35: 86.2099543 | H35: 102.9 | J35: 2009-05-08 | K35: 149.3575736 | L35: 230
A36: 2016 | B36: 41.42138603 | C36: 39.38272456 | D36: 25.74292502 | F36: 2008-05-30 | G36: 88.85219992 | H36: 40 | J36: 2009-06-01 | K36: 132.963372 | L36: 20
A37: 2017 | B37: 39.70824594 | C37: 33.73130513 | D37: 19.4360623 | F37: 2008-05-30 | G37: 87.96876121 | H37: 38 | J37: 2009-06-01 | K37: 204.8411228 | L37: 14
A38: 2018 | B38: 35.90798786 | C38: 25.71086118 | D38: 16.61063168 | F38: 2008-05-30 | G38: 97.62772583 | H38: 10 | J38: 2009-06-01 | K38: 232.2523554 | L38: 10.08
A39: 2019 | B39: 31.92854672 | C39: 21.0348727 | D39: 22.67748057 | F39: 2008-06-12 | G39: 46.96211028 | H39: 99 | J39: 2009-06-22 | K39: 173.3804515 | L39: 48
A40: 2020 | B40: 26.74323083 | C40: 21.72715333 | D40: 25.66017857 | F40: 2008-06-12 | G40: 142.7720125 | H40: 4.5 | J40: 2009-08-17 | K40: 149.4867475 | L40: 250
A41: 2021 | B41: 27.69875568 | C41: 23.10898588 | D41: 23.736679 | F41: 2008-06-15 | G41: 101.4430207 | H41: 50.25 | J41: 2009-09-08 | K41: 206.0913389 | L41: 250
A42: 2022 | B42: 27.61259409 | F42: 2008-06-30 | G42: 101.4430207 | H42: 50.25 | J42: 2009-11-20 | K42: 121.8561825 | L42: 21
F43: 2008-07-23 | G43: 98.3976444 | H43: 63 | J43: 2009-12-23 | K43: 135.4835721 | L43: 50
F44: 2008-07-23 | G44: 66.23561753 | H44: 30 | J44: 2009-12-24 | K44: 258.1736725 | L44: 6
F45: 2008-07-28 | G45: 107.9321501 | H45: 72 | J45: 2009-12-24 | K45: 258.1736725 | L45: 19
F46: 2008-08-11 | G46: 86.80737585 | H46: 76.5 | J46: 2009-12-24 | K46: 258.1736725 | L46: 20
F47: 2008-08-14 | G47: 102.6060002 | H47: 290 | J47: 2010-01-26 | K47: 168.5415202 | L47: 50
F48: 2008-08-14 | G48: 102.6060002 | H48: 290 | J48: 2010-01-26 | K48: 168.5415202 | L48: 20
F49: 2008-08-14 | G49: 102.9253333 | H49: 265 | J49: 2010-01-26 | K49: 172.1170093 | L49: 20
F50: 2008-08-14 | G50: 48.67079166 | H50: 15 | J50: 2010-02-02 | K50: 141.3108956 | L50: 50
F51: 2008-08-15 | G51: 48.07592643 | H51: 50 | J51: 2010-02-24 | K51: 145.3820443 | L51: 300
F52: 2008-08-20 | G52: 96.86135166 | H52: 62.5 | J52: 2010-03-06 | K52: 138.9658333 | L52: 40
F53: 2008-09-05 | G53: 68.49366999 | H53: 99 | J53: 2010-04-19 | K53: 108.0398242 | L53: 29
F54: 2008-09-22 | G54: 66.43693602 | H54: 49.5 | J54: 2010-04-21 | K54: 144.0227178 | L54: 66
F55: 2008-09-24 | G55: 46.48625247 | H55: 40.5 | J55: 2010-04-29 | K55: 134.9318678 | L55: 25
F56: 2008-10-07 | G56: 71.80455609 | H56: 50 | J56: 2010-05-10 | K56: 136.465392 | L56: 125
F57: 2008-10-08 | G57: 73.25337096 | H57: 50 | J57: 2010-05-20 | K57: 163.3522245 | L57: 25.8
F58: 2008-10-17 | G58: 71.29343394 | H58: 99 | J58: 2010-06-01 | K58: 326.1941281 | L58: 32
F59: 2008-11-20 | G59: 112.9307065 | H59: 101.2 | J59: 2010-06-01 | K59: 134.9318678 | L59: 20
F60: 2008-11-21 | G60: 63.08060172 | H60: 150 | J60: 2010-06-24 | K60: 131.562351 | L60: 23
F61: 2008-12-02 | G61: 60.70058012 | H61: 100 | J61: 2010-06-30 | K61: 102.5004147 | L61: 12
F62: 2008-12-09 | G62: 68.42594497 | H62: 25 | J62: 2010-06-30 | K62: 102.4860607 | L62: 10
F63: 2008-12-12 | G63: 55.91679513 | H63: 49.5 | J63: 2010-07-26 | K63: 136.2830601 | L63: 20
F64: 2008-12-16 | G64: 74.64108576 | H64: 150.1 | J64: 2010-07-29 | K64: 160.6826439 | L64: 150
F65: 2008-12-22 | G65: 61.47182206 | H65: 151.8 | J65: 2010-07-29 | K65: 132.0797116 | L65: 45
F66: 2008-12-22 | G66: 62.28213872 | H66: 79.5 | J66: 2010-08-10 | K66: 136.044337 | L66: 30
F67: 2008-12-23 | G67: 40.41345844 | H67: 18.9 | J67: 2010-08-10 | K67: 197.8741658 | L67: 5.5
F68: 2009-01-28 | G68: 55.88945604 | H68: 50.4 | J68: 2010-08-24 | K68: 116.0407115 | L68: 23
F69: 2009-01-30 | G69: 63.66232591 | H69: 98.9 | J69: 2010-09-20 | K69: 132.4158642 | L69: 62.5
F70: 2009-02-02 | G70: 53.93140631 | H70: 99 | J70: 2010-11-10 | K70: 133.795304 | L70: 130
F71: 2009-02-05 | G71: 95.21447691 | H71: 150 | J71: 2010-11-15 | K71: 82.59342842 | L71: 14
F72: 2009-02-05 | G72: 97.93492809 | H72: 51 | J72: 2010-11-15 | K72: 80.02320996 | L72: 20
F73: 2009-02-05 | G73: 97.95525101 | H73: 49.5 | J73: 2010-12-01 | K73: 141.4055645 | L73: 9
F74: 2009-02-19 | G74: 95.9886783 | H74: 49.5 | J74: 2010-12-01 | K74: 150.9312906 | L74: 7.65
F75: 2009-03-17 | G75: 122.047664 | H75: 24.75 | J75: 2010-12-21 | K75: 136.4254609 | L75: 60
F76: 2009-03-17 | G76: 119.1022973 | H76: 8 | J76: 2010-12-30 | K76: 116.8159982 | L76: 309
F77: 2009-03-24 | G77: 91.06401912 | H77: 63 | J77: 2010-12-30 | K77: 152.1434665 | L77: 20
F78: 2009-03-31 | G78: 62.37348815 | H78: 30 | J78: 2011-01-05 | K78: 117.0517381 | L78: 270
F79: 2009-03-31 | G79: 62.37272701 | H79: 12 | J79: 2011-01-07 | K79: 131.755042 | L79: 110
F80: 2009-04-01 | G80: 83.24084635 | H80: 96.6 | J80: 2011-01-25 | K80: 137.7463721 | L80: 26
F81: 2009-04-01 | G81: 52.1705366 | H81: 49.5 | J81: 2011-02-07 | K81: 122.322788 | L81: 250
F82: 2009-04-10 | G82: 108.3473957 | H82: 124.5 | J82: 2011-02-11 | K82: 116.2045877 | L82: 30
F83: 2009-04-29 | G83: 71.06968424 | H83: 70 | J83: 2011-02-11 | K83: 119.5149504 | L83: 20
F84: 2009-04-30 | G84: 65.81783987 | H84: 22.5 | J84: 2011-03-08 | K84: 96.47782914 | L84: 150
F85: 2009-06-10 | G85: 78.74900954 | H85: 102.3 | J85: 2011-06-03 | K85: 121.6853298 | L85: 110
F86: 2009-06-22 | G86: 74.68862612 | H86: 205.5 | J86: 2011-06-03 | K86: 113.024241 | L86: 127
F87: 2009-06-30 | G87: 75.89468918 | H87: 70 | J87: 2011-06-21 | K87: 109.4774509 | L87: 150
F88: 2009-06-30 | G88: 68.3281844 | H88: 51 | J88: 2011-07-08 | K88: 127.5525299 | L88: 23
F89: 2009-07-09 | G89: 88.24904249 | H89: 22.5 | J89: 2011-07-14 | K89: 102.4047219 | L89: 20
F90: 2009-07-09 | G90: 88.24904294 | H90: 21 | J90: 2011-07-18 | K90: 199.8990633 | L90: 6
F91: 2009-07-09 | G91: 88.24904275 | H91: 21 | J91: 2011-07-21 | K91: 119.9475371 | L91: 150
F92: 2009-07-30 | G92: 56.54180805 | H92: 69 | J92: 2011-09-29 | K92: 87.59061447 | L92: 250
F93: 2009-08-01 | G93: 66.72505672 | H93: 100 | J93: 2011-10-01 | K93: 140.1992081 | L93: 9
F94: 2009-08-05 | G94: 75.95683021 | H94: 18.9 | J94: 2011-12-01 | K94: 229.8839228 | L94: 20
F95: 2009-08-05 | G95: 75.88130382 | H95: 16.8 | J95: 2011-12-08 | K95: 109.8444247 | L95: 19
F96: 2009-08-17 | G96: 107.9330533 | H96: 90 | J96: 2011-12-20 | K96: 86.51169273 | L96: 20
F97: 2009-08-26 | G97: 69.5001171 | H97: 200.2 | J97: 2011-12-20 | K97: 116.4148474 | L97: 30
F98: 2009-09-08 | G98: 57.66484584 | H98: 36 | J98: 2011-12-20 | K98: 85.18358376 | L98: 20
F99: 2009-09-25 | G99: 48.94659282 | H99: 151.8 | J99: 2012-01-01 | K99: 87.30673861 | L99: 15
F100: 2009-09-25 | G100: 50.27484463 | H100: 129.6 | J100: 2012-01-01 | K100: 78.32991118 | L100: 15
F101: 2009-10-01 | G101: 69.47975848 | H101: 150 | J101: 2012-02-03 | K101: 90.01183766 | L101: 200
F102: 2009-10-05 | G102: 51.02205817 | H102: 99 | J102: 2012-02-27 | K102: 82.40708151 | L102: 20
F103: 2009-10-09 | G103: 80.71849937 | H103: 5 | J103: 2012-07-03 | K103: 93.39217212 | L103: 20
F104: 2009-11-02 | G104: 72.86024468 | H104: 60 | J104: 2012-07-03 | K104: 99.48184199 | L104: 20
F105: 2009-11-16 | G105: 68.21378737 | H105: 50 | J105: 2012-08-03 | K105: 91.62023585 | L105: 20
F106: 2009-11-24 | G106: 80.25844047 | H106: 209.4 | J106: 2012-08-13 | K106: 97.13615989 | L106: 20
F107: 2009-11-24 | G107: 68.86185776 | H107: 150 | J107: 2012-08-16 | K107: 94.39395117 | L107: 102
F108: 2009-11-30 | G108: 117.7934199 | H108: 168 | J108: 2012-08-29 | K108: 90.99065243 | L108: 20
F109: 2009-11-30 | G109: 117.8087549 | H109: 150 | J109: 2012-08-31 | K109: 93.04400398 | L109: 250
F110: 2009-11-30 | G110: 117.7969739 | H110: 150 | J110: 2012-09-17 | K110: 88.72559876 | L110: 20
F111: 2009-11-30 | G111: 117.7902279 | H111: 150 | J111: 2012-09-17 | K111: 106.6965782 | L111: 20.8
F112: 2009-11-30 | G112: 117.78978 | H112: 102 | J112: 2012-10-17 | K112: 91.46640785 | L112: 10
F113: 2009-12-02 | G113: 102.0377134 | H113: 50 | J113: 2012-10-25 | K113: 56.7068927 | L113: 50
F114: 2009-12-09 | G114: 127.6457623 | H114: 10.25 | J114: 2012-11-01 | K114: 72.23459204 | L114: 20
F115: 2009-12-17 | G115: 130.4969358 | H115: 120 | J115: 2012-11-15 | K115: 83.02022092 | L115: 20
F116: 2009-12-28 | G116: 75.60834438 | H116: 70 | J116: 2012-12-12 | K116: 81.19439215 | L116: 250
F117: 2010-01-28 | G117: 106.9175961 | H117: 151.8 | J117: 2012-12-13 | K117: 86.82543305 | L117: 20
F118: 2010-02-05 | G118: 55.05119406 | H118: 81 | J118: 2013-02-04 | K118: 101.9206217 | L118: 28.8
F119: 2010-02-12 | G119: 75.37735 | H119: 198 | J119: 2013-02-28 | K119: 81.50961867 | L119: 45
F120: 2010-03-05 | G120: 113.3003301 | H120: 65.1 | J120: 2013-03-22 | K120: 92.47577733 | L120: 20
F121: 2010-03-29 | G121: 60.18921314 | H121: 250.2 | J121: 2013-03-22 | K121: 91.05531443 | L121: 20
F122: 2010-04-01 | G122: 61.78590741 | H122: 40.5 | J122: 2013-03-25 | K122: 77.21542982 | L122: 20
F123: 2010-04-16 | G123: 43.6851607 | H123: 102.4 | J123: 2013-04-10 | K123: 88.66515927 | L123: 20
F124: 2010-04-19 | G124: 89.58006497 | H124: 50.4 | J124: 2013-04-16 | K124: 64.94060094 | L124: 20
F125: 2010-04-23 | G125: 51.47627801 | H125: 51 | J125: 2013-06-01 | K125: 59.17389466 | L125: 20
F126: 2010-04-29 | G126: 116.7987184 | H126: 143.5 | J126: 2013-06-03 | K126: 66.89243207 | L126: 48
F127: 2010-05-04 | G127: 81.14376271 | H127: 32.5 | J127: 2013-06-03 | K127: 67.78904063 | L127: 40
F128: 2010-05-04 | G128: 84.36544041 | H128: 20 | J128: 2013-06-19 | K128: 154.7884115 | L128: 12
F129: 2010-05-19 | G129: 60.83943632 | H129: 250.8 | J129: 2013-07-03 | K129: 57.53298787 | L129: 50
F130: 2010-06-01 | G130: 54.01836151 | H130: 36 | J130: 2013-07-10 | K130: 58.97664835 | L130: 40
F131: 2010-06-02 | G131: 119.2705027 | H131: 102 | J131: 2013-07-10 | K131: 63.26461173 | L131: 20
F132: 2010-06-03 | G132: 50.6156746 | H132: 100 | J132: 2013-07-17 | K132: 82.85189823 | L132: 20
F133: 2010-06-03 | G133: 94.28654903 | H133: 90 | J133: 2013-07-17 | K133: 82.85189823 | L133: 12
F134: 2010-06-03 | G134: 100.7172324 | H134: 36.8 | J134: 2013-09-06 | K134: 67.14588716 | L134: 15
F135: 2010-06-04 | G135: 68.13014283 | H135: 30 | J135: 2013-09-19 | K135: 100.9317074 | L135: 20
F136: 2010-06-09 | G136: 122.5249397 | H136: 168 | J136: 2013-09-27 | K136: 64.32893496 | L136: 20
F137: 2010-06-09 | G137: 120.1805381 | H137: 150 | J137: 2013-10-09 | K137: 66.84126081 | L137: 20
F138: 2010-06-09 | G138: 120.1805381 | H138: 150 | J138: 2013-10-22 | K138: 64.56371209 | L138: 20
F139: 2010-06-09 | G139: 122.5249397 | H139: 132 | J139: 2013-12-01 | K139: 82.32803647 | L139: 7.314
F140: 2010-06-21 | G140: 92.77937506 | H140: 81.6 | J140: 2013-12-06 | K140: 67.59927818 | L140: 20
F141: 2010-06-30 | G141: 57.29948761 | H141: 114 | J141: 2013-12-19 | K141: 56.15843563 | L141: 150
F142: 2010-07-07 | G142: 38.70595294 | H142: 78.2 | J142: 2014-01-30 | K142: 69.50243373 | L142: 7
F143: 2010-07-09 | G143: 57.38856251 | H143: 42.5 | J143: 2014-02-20 | K143: 49.29365447 | L143: 10.416
F144: 2010-07-15 | G144: 46.11147171 | H144: 99.2 | J144: 2014-03-17 | K144: 64.06826916 | L144: 20
F145: 2010-07-21 | G145: 82.40646368 | H145: 99.2 | J145: 2014-03-26 | K145: 59.84972581 | L145: 26.66
F146: 2010-07-22 | G146: 116.1160266 | H146: 102.5 | J146: 2014-04-01 | K146: 65.83103707 | L146: 10.3
F147: 2010-08-10 | G147: 92.53674198 | H147: 110.4 | J147: 2014-05-01 | K147: 44.07336285 | L147: 157.5
F148: 2010-08-16 | G148: 57.41027011 | H148: 199.8 | J148: 2014-05-27 | K148: 63.21543134 | L148: 30
F149: 2010-08-20 | G149: 127.7734987 | H149: 49 | J149: 2014-06-01 | K149: 66.11356 | L149: 20
F150: 2010-09-01 | G150: 71.4652165 | H150: 79.2 | J150: 2014-06-12 | K150: 57.53763801 | L150: 30
F151: 2010-09-08 | G151: 83.63112105 | H151: 55.2 | J151: 2014-07-18 | K151: 57.28838015 | L151: 93.6
F152: 2010-09-17 | G152: 35.95329749 | H152: 148.8 | J152: 2014-07-23 | K152: 57.84628874 | L152: 75
F153: 2010-09-22 | G153: 44.89580987 | H153: 80 | J153: 2014-07-24 | K153: 57.53298787 | L153: 56
F154: 2010-10-11 | G154: 113.9494104 | H154: 49.8 | J154: 2014-07-24 | K154: 58.0997281 | L154: 56
F155: 2010-10-18 | G155: 113.0932446 | H155: 31.68 | J155: 2014-08-19 | K155: 60.74746757 | L155: 105
F156: 2010-11-05 | G156: 40.56568613 | H156: 161 | J156: 2014-08-25 | K156: 61.32277997 | L156: 60
F157: 2010-11-12 | G157: 67.00016574 | H157: 99 | J157: 2014-09-03 | K157: 50.56202033 | L157: 60
F158: 2010-12-06 | G158: 34.89699303 | H158: 201 | J158: 2014-09-04 | K158: 46.86151612 | L158: 52
F159: 2010-12-09 | G159: 29.33666287 | H159: 167.9 | J159: 2014-09-04 | K159: 56.20573906 | L159: 120
F160: 2010-12-17 | G160: 106.1362024 | H160: 78.2 | J160: 2014-10-03 | K160: 60.00359348 | L160: 30
F161: 2010-12-17 | G161: 99.68689344 | H161: 78.2 | J161: 2014-10-08 | K161: 52.86957401 | L161: 101.3
F162: 2010-12-17 | G162: 57.32659222 | H162: 50 | J162: 2014-10-08 | K162: 53.63667626 | L162: 51
F163: 2010-12-17 | G163: 54.10168208 | H163: 38.46 | J163: 2014-10-08 | K163: 53.57985734 | L163: 76.5
F164: 2010-12-22 | G164: 45.56690716 | H164: 27.3 | J164: 2014-10-08 | K164: 57.38161858 | L164: 30
F165: 2010-12-23 | G165: 56.11678372 | H165: 48 | J165: 2014-10-08 | K165: 60.06064306 | L165: 80
F166: 2010-12-23 | G166: 74.70449259 | H166: 34.2 | J166: 2014-10-08 | K166: 57.82912665 | L166: 103
F167: 2010-12-23 | G167: 68.063372 | H167: 28.5 | J167: 2014-10-20 | K167: 57.16498492 | L167: 40
F168: 2011-02-01 | G168: 104.9470083 | H168: 257.6 | J168: 2014-10-21 | K168: 62.25864588 | L168: 11.4
F169: 2011-03-10 | G169: 66.424771 | H169: 100 | J169: 2014-10-21 | K169: 64.83948736 | L169: 20
F170: 2011-04-06 | G170: 101.5166754 | H170: 155.1 | J170: 2014-10-22 | K170: 56.8733166 | L170: 20
F171: 2011-04-20 | G171: 34.05519086 | H171: 100.8 | J171: 2014-10-22 | K171: 56.8733166 | L171: 20
F172: 2011-05-05 | G172: 64.73645084 | H172: 165.6 | J172: 2014-10-22 | K172: 56.8733166 | L172: 15
F173: 2011-05-06 | G173: 31.86889917 | H173: 131.1 | J173: 2014-10-22 | K173: 56.8733166 | L173: 20
F174: 2011-05-13 | G174: 70.3301641 | H174: 214.4 | J174: 2014-10-22 | K174: 49.87544264 | L174: 20
F175: 2011-05-16 | G175: 30.73559432 | H175: 150.36 | J175: 2014-10-22 | K175: 69.85906933 | L175: 14.7
F176: 2011-05-16 | G176: 21.99077167 | H176: 108 | J176: 2014-10-22 | K176: 67.75030727 | L176: 19.5
F177: 2011-05-20 | G177: 53.87015056 | H177: 115 | J177: 2014-10-22 | K177: 67.76717737 | L177: 19.5
F178: 2011-06-07 | G178: 37.71728053 | H178: 202 | J178: 2014-10-24 | K178: 66.60921741 | L178: 100
F179: 2011-06-21 | G179: 48.16851689 | H179: 40 | J179: 2014-11-07 | K179: 70.47439441 | L179: 40
F180: 2011-06-27 | G180: 34.1042394 | H180: 200 | J180: 2014-11-07 | K180: 70.47439441 | L180: 50
F181: 2011-06-28 | G181: 62.45343549 | H181: 104.4 | J181: 2014-11-13 | K181: 61.88980333 | L181: 30
F182: 2011-06-29 | G182: 79.72307347 | H182: 20 | J182: 2014-11-18 | K182: 49.30146904 | L182: 45
F183: 2011-07-06 | G183: 41.35820449 | H183: 199.92 | J183: 2014-12-09 | K183: 61.9373933 | L183: 130
F184: 2011-07-15 | G184: 83.792246 | H184: 162 | J184: 2015-02-01 | K184: 58.56761179 | L184: 80
F185: 2011-07-28 | G185: 86.20165087 | H185: 102.5 | J185: 2015-03-02 | K185: 101.9054489 | L185: 6
F186: 2011-08-03 | G186: 59.86976947 | H186: 120 | J186: 2015-03-02 | K186: 42.50551667 | L186: 25
F187: 2011-08-08 | G187: 47.12665533 | H187: 42 | J187: 2015-03-03 | K187: 62.57015172 | L187: 62.25
F188: 2011-08-15 | G188: 34.45459377 | H188: 200 | J188: 2015-03-04 | K188: 37.6003601 | L188: 70
F189: 2011-08-17 | G189: 42.93193585 | H189: 50 | J189: 2015-03-04 | K189: 38.07848645 | L189: 70
F190: 2011-08-17 | G190: 42.93193585 | H190: 37.5 | J190: 2015-03-05 | K190: 84.47394546 | L190: 10.5
F191: 2011-08-30 | G191: 26.88642402 | H191: 100.8 | J191: 2015-03-23 | K191: 68.58178278 | L191: 20
F192: 2011-09-07 | G192: 28.56001294 | H192: 104 | J192: 2015-03-25 | K192: 47.9724213 | L192: 30
F193: 2011-09-12 | G193: 41.46221609 | H193: 201.6 | J193: 2015-04-03 | K193: 47.58947672 | L193: 81
F194: 2011-09-12 | G194: 36.88208757 | H194: 92.34 | J194: 2015-04-03 | K194: 45.56060068 | L194: 54
F195: 2011-09-13 | G195: 71.7205295 | H195: 100.65 | J195: 2015-04-14 | K195: 63.62049171 | L195: 6.8
F196: 2011-10-01 | G196: 37.98082203 | H196: 48 | J196: 2015-04-17 | K196: 53.52202876 | L196: 20
F197: 2011-11-03 | G197: 29.8091126 | H197: 100.8 | J197: 2015-04-30 | K197: 44.90095595 | L197: 50.6
F198: 2011-11-03 | G198: 28.17821308 | H198: 98.9 | J198: 2015-04-30 | K198: 59.67586044 | L198: 52
F199: 2011-11-08 | G199: 30.66451632 | H199: 59.8 | J199: 2015-04-30 | K199: 20.03922513 | L199: 80
F200: 2011-11-16 | G200: 80.31581006 | H200: 49.5 | J200: 2015-05-27 | K200: 67.48081989 | L200: 4.9
F201: 2011-11-16 | G201: 55.14859309 | H201: 39.9 | J201: 2015-06-01 | K201: 74.49776873 | L201: 3.6
F202: 2011-11-28 | G202: 79.0529807 | H202: 20.65 | J202: 2015-06-05 | K202: 42.23697273 | L202: 100
F203: 2011-12-09 | G203: 38.59077643 | H203: 75 | J203: 2015-06-09 | K203: 67.85731322 | L203: 80
F204: 2011-12-13 | G204: 30.65539049 | H204: 201.25 | J204: 2015-06-19 | K204: 44.21057935 | L204: 100
F205: 2011-12-13 | G205: 31.48410248 | H205: 79.6 | J205: 2015-06-23 | K205: 48.97427676 | L205: 46
F206: 2011-12-15 | G206: 31.39557572 | H206: 49.2 | J206: 2015-06-25 | K206: 55.25886895 | L206: 100.815
F207: 2011-12-20 | G207: 65.30702399 | H207: 110.4 | J207: 2015-06-30 | K207: 61.36733969 | L207: 7.06
F208: 2011-12-20 | G208: 31.98385013 | H208: 78.4 | J208: 2015-07-01 | K208: 64.27365415 | L208: 13
F209: 2011-12-20 | G209: 67.64241159 | H209: 30.4 | J209: 2015-07-01 | K209: 66.01552527 | L209: 20
F210: 2011-12-22 | G210: 47.86724126 | H210: 14.4 | J210: 2015-07-01 | K210: 131.1519549 | L210: 27.6
F211: 2012-01-19 | G211: 34.65469875 | H211: 310.4 | J211: 2015-07-15 | K211: 52.51249108 | L211: 125
F212: 2012-02-07 | G212: 45.20692298 | H212: 21 | J212: 2015-07-16 | K212: 49.14700365 | L212: 150
F213: 2012-02-15 | G213: 29.48511184 | H213: 30.4 | J213: 2015-07-16 | K213: 49.54732491 | L213: 180
F214: 2012-02-17 | G214: 94.95205509 | H214: 50 | J214: 2015-07-21 | K214: 46.12307381 | L214: 20
F215: 2012-02-28 | G215: 31.44045339 | H215: 91 | J215: 2015-08-05 | K215: 45.50416635 | L215: 30
F216: 2012-03-13 | G216: 31.48410248 | H216: 51.2 | J216: 2015-08-09 | K216: 41.17928559 | L216: 30
F217: 2012-03-17 | G217: 39.24011273 | H217: 202 | J217: 2015-08-12 | K217: 50.49154631 | L217: 10
F218: 2012-03-29 | G218: 32.95220148 | H218: 48 | J218: 2015-08-16 | K218: 50.49154631 | L218: 10
F219: 2012-04-11 | G219: 46.9076092 | H219: 54 | J219: 2015-08-28 | K219: 51.25032516 | L219: 150
F220: 2012-05-27 | G220: 59.591036 | H220: 69 | J220: 2015-09-03 | K220: 74.32025095 | L220: 10.88
F221: 2012-08-31 | G221: 48.23513757 | H221: 100.3 | J221: 2015-09-23 | K221: 43.31529271 | L221: 52
... 193 more rows

Sheet Recent Wind PPAs v Gas Forecast
A1: Wind PPA prices and natural gas fuel cost projections by calendar year over time
A22: Sources: Berkeley Lab, FERC, EIA
C25: 2022 | F25: 2025 | K25: 2030 | P25: 2035 | U25: 2040
A26: Aggregate wind PPA prices among 40 PPAs executed 2019-2021 (2021 $/MWh)
